Workbook

Sheet Contents
A1: Contents
B3: Disclaimer | C3: General Worksheets
B4: Combined Summary
B5: Title | C5: 250 Bridges BCA Worksheets
B6: Instructions
B7: 1) Project Information
B8: 2) Model Inputs
B9: 3) Results
B10: Parameters Added
B11: Lookups
B12: Bridge Data Matrices
B13: Bridge Data
B14: BondProgramBridgeswithNBIData
B15: Construction Cost Data
B16: Actual Cost (2019)
B17: Improvements
B18: Car Detours
B19: Travel Time
B20: Vehicle Operating Costs
B21: Emissions
B22: Final Calculations
B23: Sensitivity Analyisis
B24: PARAMETERS
B25: ACCIDENT COSTS
B26: VALUE OF TIME
B27: EMISSION COSTS
B28: FUEL COSTS
B29: OTHER VEHICLE COSTS
B30: MISCELLANEOUS
B31: INFLATION ADJUSTMENT
B32: PRICES and ECI
B33: TONS CONVERSION
B34: BCA Summary | C34: Rocheport Bridge BCA Worksheets
B35: Benefits Summary
B36: Project Costs
B37: TDC
B38: Benefit Calculations
B39: Fixed Factors
B40: Cost Summary Discounted
B41: Crash Reduction

Sheet Disclaimer
B4: Missouri Department of Transportation
B5: 251 Missouri Bridges
B6: 2019-03-04
B13: Disclaimer
B14: ="The Model is provided to "&Client.Name&" on the basis that it is strictly private and confidential. The Recipients agree to not disclose that information to any person or entity except with the prior written consent of HDR Inc. (HDR) and MetroAnalytics or as required by law." -> The Model is provided to Missouri Department of Transportation on the basis that it is strictly private and confidential. The Recipients agree to not disclose that information to any person or entity except with the prior written consent of HDR Inc. (HDR) and MetroAnalytics or as required by law.
B17: ="HDR and MetroAnalytics retain all intellectual property with respect to this combined Model. The Recipients agree to use this Model only for the purpose of performing analysis in support of the "&Project.Name&" project. The Model must not be used for any other purpose. " -> HDR and MetroAnalytics retain all intellectual property with respect to this combined Model. The Recipients agree to use this Model only for the purpose of performing analysis in support of the 251 Missouri Bridges project. The Model must not be used for any other purpose.
B20: By retaining and using this Model, the Recipients represent to HDR and MetroAnalytics that they are capable of making their own independent assessment as to the validity of the assumptions, data and results contained in this Model.
B22: The Model is provided to Missouri Department of Transportation on the basis that it is strictly private and confidential. The Recipients agree to not disclose that information to any person or entity except with the prior written consent of HDR Engineering, Inc. (HDR) and MetroAnalytics or as required by law. The Recipients further agree that any modifications, revisions or altering of the information contained in this model shall be done at the Recipients' own risk.

Sheet Combined Summary
A1: Benefit Cost Summary | B1: Rocheport Bridge | C1: 250 Bridges | D1: Combined
A2: Benefit | B2: =TEXT($B$22,"0%")&" discount rate (in $millions)" -> 7% discount rate (in $millions) | C2: =TEXT($B$22,"0%")&" discount rate (in $millions)" -> 7% discount rate (in $millions) | D2: =TEXT($B$22,"0%")&" discount rate (in $millions)" -> 7% discount rate (in $millions)
A3: Vehicle Operating Costs | B3: =CHOOSE(MATCH($B$22,'BCA Summary'!$B$22:$D$22,0),'BCA Summary'!B3,'BCA Summary'!C3,'BCA Summary'!D3) -> 337.9767576 | C3: =LifeCycleVOC -> 2554.46619 | D3: =SUM(B3:C3) -> 2892.442948
A4: Business Time and Reliability Costs | B4: =CHOOSE(MATCH($B$22,'BCA Summary'!$B$22:$D$22,0),'BCA Summary'!B4,'BCA Summary'!C4,'BCA Summary'!D4) -> 796.69349 | C4: not quantified | D4: =SUM(B4:C4) -> 796.69349
A5: Value of Personal Time and Reliability | B5: =CHOOSE(MATCH($B$22,'BCA Summary'!$B$22:$D$22,0),'BCA Summary'!B5,'BCA Summary'!C5,'BCA Summary'!D5) -> 847.4086233 | C5: =LifeCycleTT -> 2934.378932 | D5: =SUM(B5:C5) -> 3781.787556
A6: Safety | B6: =CHOOSE(MATCH($B$22,'BCA Summary'!$B$22:$D$22,0),'BCA Summary'!B6,'BCA Summary'!C6,'BCA Summary'!D6) -> 142.2923074 | C6: not quantified | D6: 142.2923074
A7: Environmental: Non-CO2 | B7: =CHOOSE(MATCH($B$22,'BCA Summary'!$B$22:$D$22,0),'BCA Summary'!B7,'BCA Summary'!C7,'BCA Summary'!D7) -> 32.72734353 | C7: =LifeCycleEm -> 28.70069353 | D7: 61.42803706
A8: Logistics/Freight Costs | B8: =CHOOSE(MATCH($B$22,'BCA Summary'!$B$22:$D$22,0),'BCA Summary'!B8,'BCA Summary'!C8,'BCA Summary'!D8) -> 78.74227663 | C8: not quantified | D8: 78.74227663
A9: Total Benefits | B9: =SUM(B3:B8) -> 2235.840798 | C9: =SUM(C3:C8) -> 5517.545816 | D9: =SUM(D3:D8) -> 7753.386615
A11: Costs | B11: =TEXT($B$22,"0%")&" discount rate (in $millions)" -> 7% discount rate (in $millions) | C11: =TEXT($B$22,"0%")&" discount rate (in $millions)" -> 7% discount rate (in $millions) | D11: =TEXT($B$22,"0%")&" discount rate (in $millions)" -> 7% discount rate (in $millions)
A12: Capital Investment Costs | B12: =CHOOSE(MATCH($B$22,'BCA Summary'!$B$22:$D$22,0),'BCA Summary'!B12,'BCA Summary'!C12,'BCA Summary'!D12) -> 158.4289174 | C12: ='3) Results'!H13 -> 341.7105932 | D12: =SUM(B12:C12) -> 500.1395106
A13: Operation and Maintenance Costs | B13: =CHOOSE(MATCH($B$22,'BCA Summary'!$B$22:$D$22,0),'BCA Summary'!B13,'BCA Summary'!C13,'BCA Summary'!D13) -> -0.1845181231 | C13: 0 | D13: -0.1845181231
A14: Total Costs | B14: =B12+B13 -> 158.2443993 | C14: =C12+C13 -> 341.7105932 | D14: =D12+D13 -> 499.9549925
B16: =TEXT($B$22,"0%")&" discount rate (in $millions)" -> 7% discount rate (in $millions) | C16: =TEXT($B$22,"0%")&" discount rate (in $millions)" -> 7% discount rate (in $millions) | D16: =TEXT($B$22,"0%")&" discount rate (in $millions)" -> 7% discount rate (in $millions)
A17: Net Present Value | B17: =B9-B14 -> 2077.596399 | C17: =C9-C14 -> 5175.835223 | D17: =D9-D14 -> 7253.431622
B19: =TEXT($B$22,"0%")&" discount rate" -> 7% discount rate | C19: =TEXT($B$22,"0%")&" discount rate" -> 7% discount rate | D19: 7% discount rate
A20: Benefit/Cost Ratio | B20: =(B9-B13)/B12 -> 14.11374485 | C20: =(C9-C13)/C12 -> 16.14683866 | D20: 15.50281665
A22: Discount Rate | B22: 0.07

Sheet Title
C2: California Life-Cycle Benefit/Cost Analysis Model (Cal-B/C) Version 6.2 Corridor
B22: Office of Transportation Economics
B23: Division of Transportation Planning
B24: December 2017
B27: For questions and comments, please contact:
B29: Rose Agacer | C29: (916) 651-6014 rose_agacer@dot.ca.gov

Sheet Instructions

Sheet 1) Project Information
C2: District: | W2: Enter all project costs (in today's dollars) in columns 1 to 7. Costs during construction should be entered in the first eight rows.
P3: EA: | W3: Project costs (including maintenance and operating costs) should be net of costs without project.
C4: PROJECT: | E4: 250 Bridges BCA | P4: PPNO:
C7: 1A | D7: PROJECT DATA | L7: 1B | M7: MODEL STRUCTURE | V7: 1C | W7: PROJECT COSTS (enter costs in thousands of dollars)
C9: Type of Project | V9: Col. no. | W9: (1) | X9: (2) | Y9: (3) | Z9: (4) | AA9: (5) | AB9: (6) | AC9: (7)
F10: Planning Model Data | P10: Values In This Model | W10: DIRECT PROJECT COSTS | AC10: Transit
M11: Model Groups | N11: 250 | P11: =MAX('2) Model Inputs'!$D:$D) -> 250 | W11: INITIAL COSTS | Z11: SUBSEQUENT COSTS | AC11: Agency | AD11: TOTAL COSTS (in dollars)
C12: Project Location (enter 1 for So. Cal., 2 for No. Cal., or 3 for rural) | H12: 3 | V12: Year | W12: Project | Z12: Maint./ | AC12: Cost | AD12: Constant | AE12: Present
M13: Years | N13: 50 | P13: =COUNT('1) Project Information'!$V24:$V73) -> 50 | W13: Support | X13: R / W | Y13: Construction | Z13: Op. ** | AA13: Rehab. | AB13: Mitigation | AC13: Savings | AD13: Dollars | AE13: Value
C14: Project Timing | V14: Construction Period
V15: =YearStart -> 2019 | W15: ='Bridge Data Matrices'!IS10 -> 6448 | Z15: =IF(V15<YearOpen,IF(SUM(W15:Y15)>0,"","Enter Construction Cost"),IF(SUM(W15:Y15)>0,"After Construction Period","")) ->  | AD15: =SUM(W15:AC15)*1000 -> 6448000 | AE15: =$AD15/(1+DiscRate)^($V15-YearCurrent) -> 5631932.92
D16: Current Year | F16: 2017 | G16: (used for discounting) | M16: ="** Benefits for each bridge are estimated for " &'Parameters Added'!$B$16 & " years." -> ** Benefits for each bridge are estimated for 30 years. | V16: =V15+1 -> 2020 | W16: =$Y16*SUM('Parameters Added'!$B$4:$B$5,'Parameters Added'!$B$7:$B$8) -> 38081.61 | X16: =$Y16*'Parameters Added'!$B$6 -> 0 | Y16: ='Bridge Data Matrices'!IS11 -> 141043 | Z16: After Construction Period | AD16: =SUM(W16:AC16)*1000 -> 179124610 | AE16: 146219038.8
V17: =V16+1 -> 2021 | W17: =$Y17*SUM('Parameters Added'!$B$4:$B$5,'Parameters Added'!$B$7:$B$8) -> 30842.37 | X17: =$Y17*'Parameters Added'!$B$6 -> 0 | Y17: ='Bridge Data Matrices'!IS12 -> 114231 | Z17: After Construction Period | AD17: =SUM(W17:AC17)*1000 -> 145073370 | AE17: 110675779.4
D18: Year Project Support Begins | F18: 2019 | V18: 2022 | W18: =$Y18*SUM('Parameters Added'!$B$4:$B$5,'Parameters Added'!$B$7:$B$8) -> 15597.36 | X18: =$Y18*'Parameters Added'!$B$6 -> 0 | Y18: ='Bridge Data Matrices'!IS13 -> 57768 | Z18: After Construction Period | AD18: 73365360 | AE18: 52308487.73
V19: 2023 | W19: =$Y19*SUM('Parameters Added'!$B$4:$B$5,'Parameters Added'!$B$7:$B$8) -> 8574.66 | X19: =$Y19*'Parameters Added'!$B$6 -> 0 | Y19: ='Bridge Data Matrices'!IS14 -> 31758 | Z19: After Construction Period | AD19: 40332660 | AE19: 26875354.36
D20: Year Project Opens | F20: 2020 | V20: 2024 | W20: =$Y20*SUM('Parameters Added'!$B$4:$B$5,'Parameters Added'!$B$7:$B$8) -> 0 | X20: =$Y20*'Parameters Added'!$B$6 -> 0 | Y20: ='Bridge Data Matrices'!IS15 -> 0 | AD20: 0 | AE20: 0
V21: 2025 | W21: =$Y21*SUM('Parameters Added'!$B$4:$B$5,'Parameters Added'!$B$7:$B$8) -> 0 | X21: =$Y21*'Parameters Added'!$B$6 -> 0 | Y21: ='Bridge Data Matrices'!IS16 -> 0 | AD21: 0 | AE21: 0
V22: 2026 | W22: =$Y22*SUM('Parameters Added'!$B$4:$B$5,'Parameters Added'!$B$7:$B$8) -> 0 | X22: =$Y22*'Parameters Added'!$B$6 -> 0 | Y22: ='Bridge Data Matrices'!IS17 -> 0 | AD22: 0 | AE22: 0
V23: Project Open
V24: =YearOpen -> 2020 | AD24: =SUM(W24:AC24)*1000 -> 0 | AE24: =$AD24/(1+DiscRate)^($V24-YearCurrent) -> 0
V25: =V24+1 -> 2021 | AD25: 0 | AE25: 0
V26: =V25+1 -> 2022 | AD26: 0 | AE26: 0
V27: 2023 | AD27: 0 | AE27: 0
V28: 2024 | AD28: 0 | AE28: 0
V29: 2025 | AD29: 0 | AE29: 0
V30: 2026 | AD30: 0 | AE30: 0
V31: 2027 | AD31: 0 | AE31: 0
V32: 2028 | AD32: 0 | AE32: 0
V33: 2029 | AD33: 0 | AE33: 0
V34: 2030 | AD34: 0 | AE34: 0
V35: 2031 | AD35: 0 | AE35: 0
V36: 2032 | AD36: 0 | AE36: 0
V37: 2033 | AD37: 0 | AE37: 0
V38: 2034 | AD38: 0 | AE38: 0
V39: 2035 | AD39: 0 | AE39: 0
V40: 2036 | AD40: 0 | AE40: 0
V41: 2037 | AD41: =SUM(W41:AC41)*1000 -> 0 | AE41: 0
V42: 2038 | AD42: 0 | AE42: 0
V43: 2039 | AD43: 0 | AE43: 0
V44: 2040 | AD44: 0 | AE44: 0
V45: 2041 | AD45: 0 | AE45: 0
V46: 2042 | AD46: 0 | AE46: 0
V47: 2043 | AD47: 0 | AE47: 0
V48: 2044 | AD48: 0 | AE48: 0
V49: 2045 | AD49: 0 | AE49: 0
V50: 2046 | AD50: 0 | AE50: 0
V51: 2047 | AD51: 0 | AE51: 0
V52: 2048 | AD52: 0 | AE52: 0
V53: 2049 | AD53: 0 | AE53: 0
V54: 2050 | AD54: 0 | AE54: 0
V55: 2051 | AD55: 0 | AE55: 0
V56: 2052 | AD56: 0 | AE56: =$AD56/(1+DiscRate)^($V56-YearCurrent) -> 0
V57: 2053 | AD57: 0 | AE57: 0
V58: 2054 | AD58: 0 | AE58: 0
V59: 2055 | AD59: 0 | AE59: 0
V60: 2056 | AD60: 0 | AE60: 0
V61: 2057 | AD61: 0 | AE61: 0
V62: 2058 | AD62: 0 | AE62: 0
V63: 2059 | AD63: 0 | AE63: 0
V64: 2060 | AD64: 0 | AE64: 0
V65: 2061 | AD65: 0 | AE65: 0
V66: 2062 | AD66: 0 | AE66: 0
V67: 2063 | AD67: 0 | AE67: 0
V68: 2064 | AD68: 0 | AE68: 0
V69: 2065 | AD69: 0 | AE69: 0
V70: 2066 | AD70: 0 | AE70: 0
V71: 2067 | AD71: 0 | AE71: 0
V72: 2068 | AD72: 0 | AE72: 0
V73: 2069 | AD73: 0 | AE73: 0
V74: Total | W74: =SUM(W15:W73) -> 99544 | X74: 0 | Y74: 344800 | Z74: 0 | AA74: 0 | AB74: 0 | AC74: 0 | AD74: 444344000 | AE74: 341710593.2
W76: ** Operations and Maintenance cost savings are not monetized in this analysis not to exaggerate benefits.
AB78: Present Value = Future Value (in Constant Dollars)
AC79: ( 1 + Real Discount Rate) ^ Year

Sheet 2) Model Inputs
D5: 2A | E5: DEFINITIONS OF MODEL GROUPS AND YEARS
F7: Name | G7: Description | J7: Avg. Vehicle Occupancy (AVO) | K7: Percent Trucks
D8: Model Group 1 | F8: ='Bridge Data'!B4 -> 1S3204 | G8: =F8& " " &'Bridge Data'!S4 & " ("&'Bridge Data'!C4&") " & TEXT('Bridge Data'!M4,"###,###") & " sq. ft." -> 1S3204 Rehabilitation (1963) 2,228 sq. ft. | J8: =TEXT('Parameters Added'!$B$24,"0.00") & " PV and " &TEXT('Parameters Added'!$B$25,"0.00") &" CV" -> 1.68 PV and 1.00 CV | K8: ='Bridge Data'!N4/100 -> 0.21
D9: Model Group 2 | F9: ='Bridge Data'!B5 -> 9P3058 | G9: =F9& " " &'Bridge Data'!S5 & " ("&'Bridge Data'!C5&") " & TEXT('Bridge Data'!M5,"###,###") & " sq. ft." -> 9P3058 Replacement (1928) 2,842 sq. ft. | J9: =TEXT('Parameters Added'!$B$24,"0.00") & " PV and " &TEXT('Parameters Added'!$B$25,"0.00") &" CV" -> 1.68 PV and 1.00 CV | K9: ='Bridge Data'!N5/100 -> 0.1
D10: Model Group 3 | F10: ='Bridge Data'!B6 -> 1P3252 | G10: =F10& " " &'Bridge Data'!S6 & " ("&'Bridge Data'!C6&") " & TEXT('Bridge Data'!M6,"###,###") & " sq. ft." -> 1P3252 Rehabilitation (1971) 6,138 sq. ft. | J10: =TEXT('Parameters Added'!$B$24,"0.00") & " PV and " &TEXT('Parameters Added'!$B$25,"0.00") &" CV" -> 1.68 PV and 1.00 CV | K10: ='Bridge Data'!N6/100 -> 0.15
D11: Model Group 4 | F11: ='Bridge Data'!B7 -> 1S3253 | G11: =F11& " " &'Bridge Data'!S7 & " ("&'Bridge Data'!C7&") " & TEXT('Bridge Data'!M7,"###,###") & " sq. ft." -> 1S3253 Rehabilitation (1961) 2,474 sq. ft. | J11: =TEXT('Parameters Added'!$B$24,"0.00") & " PV and " &TEXT('Parameters Added'!$B$25,"0.00") &" CV" -> 1.68 PV and 1.00 CV | K11: ='Bridge Data'!N7/100 -> 0.1
D12: Model Group 5 | F12: ='Bridge Data'!B8 -> 1P3254 | G12: =F12& " " &'Bridge Data'!S8 & " ("&'Bridge Data'!C8&") " & TEXT('Bridge Data'!M8,"###,###") & " sq. ft." -> 1P3254 Rehabilitation (1974) 3,777 sq. ft. | J12: =TEXT('Parameters Added'!$B$24,"0.00") & " PV and " &TEXT('Parameters Added'!$B$25,"0.00") &" CV" -> 1.68 PV and 1.00 CV | K12: ='Bridge Data'!N8/100 -> 0.16
D13: Model Group 6 | F13: ='Bridge Data'!B9 -> 9S3540 | G13: =F13& " " &'Bridge Data'!S9 & " ("&'Bridge Data'!C9&") " & TEXT('Bridge Data'!M9,"###,###") & " sq. ft." -> 9S3540 Replacement (1954) 1,721 sq. ft. | J13: =TEXT('Parameters Added'!$B$24,"0.00") & " PV and " &TEXT('Parameters Added'!$B$25,"0.00") &" CV" -> 1.68 PV and 1.00 CV | K13: ='Bridge Data'!N9/100 -> 0.11
D14: Model Group 7 | F14: ='Bridge Data'!B10 -> 9S3540 | G14: =F14& " " &'Bridge Data'!S10 & " ("&'Bridge Data'!C10&") " & TEXT('Bridge Data'!M10,"###,###") & " sq. ft." -> 9S3540 Replacement (1954) 1,573 sq. ft. | J14: =TEXT('Parameters Added'!$B$24,"0.00") & " PV and " &TEXT('Parameters Added'!$B$25,"0.00") &" CV" -> 1.68 PV and 1.00 CV | K14: ='Bridge Data'!N10/100 -> 0.11
D15: Model Group 8 | F15: ='Bridge Data'!B11 -> 9S3566 | G15: =F15& " " &'Bridge Data'!S11 & " ("&'Bridge Data'!C11&") " & TEXT('Bridge Data'!M11,"###,###") & " sq. ft." -> 9S3566 Rehabilitation (1948) 2,893 sq. ft. | J15: =TEXT('Parameters Added'!$B$24,"0.00") & " PV and " &TEXT('Parameters Added'!$B$25,"0.00") &" CV" -> 1.68 PV and 1.00 CV | K15: ='Bridge Data'!N11/100 -> 0.11
D16: Model Group 9 | F16: ='Bridge Data'!B12 -> 5S3251 | G16: =F16& " " &'Bridge Data'!S12 & " ("&'Bridge Data'!C12&") " & TEXT('Bridge Data'!M12,"###,###") & " sq. ft." -> 5S3251 Redecking (1965) 12,508 sq. ft. | J16: =TEXT('Parameters Added'!$B$24,"0.00") & " PV and " &TEXT('Parameters Added'!$B$25,"0.00") &" CV" -> 1.68 PV and 1.00 CV | K16: ='Bridge Data'!N12/100 -> 0.11
D17: Model Group 10 | F17: ='Bridge Data'!B13 -> 5S3250 | G17: =F17& " " &'Bridge Data'!S13 & " ("&'Bridge Data'!C13&") " & TEXT('Bridge Data'!M13,"###,###") & " sq. ft." -> 5S3250 Replacement (1954) 2,982 sq. ft. | J17: =TEXT('Parameters Added'!$B$24,"0.00") & " PV and " &TEXT('Parameters Added'!$B$25,"0.00") &" CV" -> 1.68 PV and 1.00 CV | K17: ='Bridge Data'!N13/100 -> 0.1
D18: Model Group 11 | F18: ='Bridge Data'!B14 -> 9S3263 | G18: =F18& " " &'Bridge Data'!S14 & " ("&'Bridge Data'!C14&") " & TEXT('Bridge Data'!M14,"###,###") & " sq. ft." -> 9S3263 Replacement (1933) 1,046 sq. ft. | J18: =TEXT('Parameters Added'!$B$24,"0.00") & " PV and " &TEXT('Parameters Added'!$B$25,"0.00") &" CV" -> 1.68 PV and 1.00 CV | K18: ='Bridge Data'!N14/100 -> 0.11
D19: Model Group 12 | F19: ='Bridge Data'!B15 -> 5P3270 | G19: =F19& " " &'Bridge Data'!S15 & " ("&'Bridge Data'!C15&") " & TEXT('Bridge Data'!M15,"###,###") & " sq. ft." -> 5P3270 Rehabilitation (1983) 70,135 sq. ft. | J19: =TEXT('Parameters Added'!$B$24,"0.00") & " PV and " &TEXT('Parameters Added'!$B$25,"0.00") &" CV" -> 1.68 PV and 1.00 CV | K19: ='Bridge Data'!N15/100 -> 0.13
D20: Model Group 13 | F20: ='Bridge Data'!B16 -> 5S3243 | G20: =F20& " " &'Bridge Data'!S16 & " ("&'Bridge Data'!C16&") " & TEXT('Bridge Data'!M16,"###,###") & " sq. ft." -> 5S3243 Replacement (1947) 2,163 sq. ft. | J20: =TEXT('Parameters Added'!$B$24,"0.00") & " PV and " &TEXT('Parameters Added'!$B$25,"0.00") &" CV" -> 1.68 PV and 1.00 CV | K20: ='Bridge Data'!N16/100 -> 0.11
D21: Model Group 14 | F21: ='Bridge Data'!B17 -> 7S3203 | G21: =F21& " " &'Bridge Data'!S17 & " ("&'Bridge Data'!C17&") " & TEXT('Bridge Data'!M17,"###,###") & " sq. ft." -> 7S3203 Rehabilitation (1978) 49,565 sq. ft. | J21: =TEXT('Parameters Added'!$B$24,"0.00") & " PV and " &TEXT('Parameters Added'!$B$25,"0.00") &" CV" -> 1.68 PV and 1.00 CV | K21: ='Bridge Data'!N17/100 -> 0.1
D22: Model Group 15 | F22: ='Bridge Data'!B18 -> 9S3560 | G22: =F22& " " &'Bridge Data'!S18 & " ("&'Bridge Data'!C18&") " & TEXT('Bridge Data'!M18,"###,###") & " sq. ft." -> 9S3560 Replacement (1952) 6,306 sq. ft. | J22: =TEXT('Parameters Added'!$B$24,"0.00") & " PV and " &TEXT('Parameters Added'!$B$25,"0.00") &" CV" -> 1.68 PV and 1.00 CV | K22: ='Bridge Data'!N18/100 -> 0.16
D23: Model Group 16 | F23: ='Bridge Data'!B19 -> 9S3560 | G23: =F23& " " &'Bridge Data'!S19 & " ("&'Bridge Data'!C19&") " & TEXT('Bridge Data'!M19,"###,###") & " sq. ft." -> 9S3560 Replacement (1952) 6,306 sq. ft. | J23: =TEXT('Parameters Added'!$B$24,"0.00") & " PV and " &TEXT('Parameters Added'!$B$25,"0.00") &" CV" -> 1.68 PV and 1.00 CV | K23: ='Bridge Data'!N19/100 -> 0.16
D24: Model Group 17 | F24: ='Bridge Data'!B20 -> 1I3241 | G24: =F24& " " &'Bridge Data'!S20 & " ("&'Bridge Data'!C20&") " & TEXT('Bridge Data'!M20,"###,###") & " sq. ft." -> 1I3241 Rehabilitation (1965) 4,160 sq. ft. | J24: =TEXT('Parameters Added'!$B$24,"0.00") & " PV and " &TEXT('Parameters Added'!$B$25,"0.00") &" CV" -> 1.68 PV and 1.00 CV | K24: ='Bridge Data'!N20/100 -> 0.35
D25: Model Group 18 | F25: ='Bridge Data'!B21 -> 1I3241 | G25: =F25& " " &'Bridge Data'!S21 & " ("&'Bridge Data'!C21&") " & TEXT('Bridge Data'!M21,"###,###") & " sq. ft." -> 1I3241 Rehabilitation (1965) 4,160 sq. ft. | J25: =TEXT('Parameters Added'!$B$24,"0.00") & " PV and " &TEXT('Parameters Added'!$B$25,"0.00") &" CV" -> 1.68 PV and 1.00 CV | K25: ='Bridge Data'!N21/100 -> 0.34
D26: Model Group 19 | F26: ='Bridge Data'!B22 -> 7S3369 | G26: =F26& " " &'Bridge Data'!S22 & " ("&'Bridge Data'!C22&") " & TEXT('Bridge Data'!M22,"###,###") & " sq. ft." -> 7S3369 Rehabilitation (1966) 815 sq. ft. | J26: =TEXT('Parameters Added'!$B$24,"0.00") & " PV and " &TEXT('Parameters Added'!$B$25,"0.00") &" CV" -> 1.68 PV and 1.00 CV | K26: ='Bridge Data'!N22/100 -> 0.11
D27: Model Group 20 | F27: ='Bridge Data'!B23 -> 2S2185 | G27: =F27& " " &'Bridge Data'!S23 & " ("&'Bridge Data'!C23&") " & TEXT('Bridge Data'!M23,"###,###") & " sq. ft." -> 2S2185 Replacement (1934) 2,741 sq. ft. | J27: =TEXT('Parameters Added'!$B$24,"0.00") & " PV and " &TEXT('Parameters Added'!$B$25,"0.00") &" CV" -> 1.68 PV and 1.00 CV | K27: ='Bridge Data'!N23/100 -> 0.11
D28: Model Group 21 | F28: ='Bridge Data'!B24 -> 7S3205 | G28: =F28& " " &'Bridge Data'!S24 & " ("&'Bridge Data'!C24&") " & TEXT('Bridge Data'!M24,"###,###") & " sq. ft." -> 7S3205 Replacement (1948) 2,771 sq. ft. | J28: =TEXT('Parameters Added'!$B$24,"0.00") & " PV and " &TEXT('Parameters Added'!$B$25,"0.00") &" CV" -> 1.68 PV and 1.00 CV | K28: ='Bridge Data'!N24/100 -> 0.12
D29: Model Group 22 | F29: ='Bridge Data'!B25 -> 2P3181 | G29: =F29& " " &'Bridge Data'!S25 & " ("&'Bridge Data'!C25&") " & TEXT('Bridge Data'!M25,"###,###") & " sq. ft." -> 2P3181 Rehabilitation (1973) 11,622 sq. ft. | J29: =TEXT('Parameters Added'!$B$24,"0.00") & " PV and " &TEXT('Parameters Added'!$B$25,"0.00") &" CV" -> 1.68 PV and 1.00 CV | K29: ='Bridge Data'!N25/100 -> 0.32
D30: Model Group 23 | F30: ='Bridge Data'!B26 -> 2S3186 | G30: =F30& " " &'Bridge Data'!S26 & " ("&'Bridge Data'!C26&") " & TEXT('Bridge Data'!M26,"###,###") & " sq. ft." -> 2S3186 Replacement (1963) 5,528 sq. ft. | J30: =TEXT('Parameters Added'!$B$24,"0.00") & " PV and " &TEXT('Parameters Added'!$B$25,"0.00") &" CV" -> 1.68 PV and 1.00 CV | K30: ='Bridge Data'!N26/100 -> 0.12
D31: Model Group 24 | F31: ='Bridge Data'!B27 -> 9S3279 | G31: =F31& " " &'Bridge Data'!S27 & " ("&'Bridge Data'!C27&") " & TEXT('Bridge Data'!M27,"###,###") & " sq. ft." -> 9S3279 Replacement (1933) 1,130 sq. ft. | J31: =TEXT('Parameters Added'!$B$24,"0.00") & " PV and " &TEXT('Parameters Added'!$B$25,"0.00") &" CV" -> 1.68 PV and 1.00 CV | K31: ='Bridge Data'!N27/100 -> 0.11
D32: Model Group 25 | F32: ='Bridge Data'!B28 -> 1S3133 | G32: =F32& " " &'Bridge Data'!S28 & " ("&'Bridge Data'!C28&") " & TEXT('Bridge Data'!M28,"###,###") & " sq. ft." -> 1S3133 Replacement (1932) 2,542 sq. ft. | J32: =TEXT('Parameters Added'!$B$24,"0.00") & " PV and " &TEXT('Parameters Added'!$B$25,"0.00") &" CV" -> 1.68 PV and 1.00 CV | K32: ='Bridge Data'!N28/100 -> 0.09
D33: Model Group 26 | F33: ='Bridge Data'!B29 -> 9S3232 | G33: =F33& " " &'Bridge Data'!S29 & " ("&'Bridge Data'!C29&") " & TEXT('Bridge Data'!M29,"###,###") & " sq. ft." -> 9S3232 Replacement (1953) 5,852 sq. ft. | J33: =TEXT('Parameters Added'!$B$24,"0.00") & " PV and " &TEXT('Parameters Added'!$B$25,"0.00") &" CV" -> 1.68 PV and 1.00 CV | K33: ='Bridge Data'!N29/100 -> 0.11
D34: Model Group 27 | F34: ='Bridge Data'!B30 -> 9S3232 | G34: =F34& " " &'Bridge Data'!S30 & " ("&'Bridge Data'!C30&") " & TEXT('Bridge Data'!M30,"###,###") & " sq. ft." -> 9S3232 Replacement (1953) 4,094 sq. ft. | J34: =TEXT('Parameters Added'!$B$24,"0.00") & " PV and " &TEXT('Parameters Added'!$B$25,"0.00") &" CV" -> 1.68 PV and 1.00 CV | K34: ='Bridge Data'!N30/100 -> 0.11
D35: Model Group 28 | F35: ='Bridge Data'!B31 -> 1S3139 | G35: =F35& " " &'Bridge Data'!S31 & " ("&'Bridge Data'!C31&") " & TEXT('Bridge Data'!M31,"###,###") & " sq. ft." -> 1S3139 Replacement (1933) 1,998 sq. ft. | J35: =TEXT('Parameters Added'!$B$24,"0.00") & " PV and " &TEXT('Parameters Added'!$B$25,"0.00") &" CV" -> 1.68 PV and 1.00 CV | K35: ='Bridge Data'!N31/100 -> 0.06
D36: Model Group 29 | F36: ='Bridge Data'!B32 -> 7S3369 | G36: =F36& " " &'Bridge Data'!S32 & " ("&'Bridge Data'!C32&") " & TEXT('Bridge Data'!M32,"###,###") & " sq. ft." -> 7S3369 Rehabilitation (1966) 3,575 sq. ft. | J36: =TEXT('Parameters Added'!$B$24,"0.00") & " PV and " &TEXT('Parameters Added'!$B$25,"0.00") &" CV" -> 1.68 PV and 1.00 CV | K36: ='Bridge Data'!N32/100 -> 0.13
D37: Model Group 30 | F37: ='Bridge Data'!B33 -> 7S3369 | G37: =F37& " " &'Bridge Data'!S33 & " ("&'Bridge Data'!C33&") " & TEXT('Bridge Data'!M33,"###,###") & " sq. ft." -> 7S3369 Rehabilitation (1956) 1,257 sq. ft. | J37: =TEXT('Parameters Added'!$B$24,"0.00") & " PV and " &TEXT('Parameters Added'!$B$25,"0.00") &" CV" -> 1.68 PV and 1.00 CV | K37: ='Bridge Data'!N33/100 -> 0.11
D38: Model Group 31 | F38: ='Bridge Data'!B34 -> 7S3369 | G38: =F38& " " &'Bridge Data'!S34 & " ("&'Bridge Data'!C34&") " & TEXT('Bridge Data'!M34,"###,###") & " sq. ft." -> 7S3369 Rehabilitation (1976) 13,301 sq. ft. | J38: =TEXT('Parameters Added'!$B$24,"0.00") & " PV and " &TEXT('Parameters Added'!$B$25,"0.00") &" CV" -> 1.68 PV and 1.00 CV | K38: ='Bridge Data'!N34/100 -> 0.11
D39: Model Group 32 | F39: ='Bridge Data'!B35 -> 1S3258 | G39: =F39& " " &'Bridge Data'!S35 & " ("&'Bridge Data'!C35&") " & TEXT('Bridge Data'!M35,"###,###") & " sq. ft." -> 1S3258 Replacement (1933) 4,644 sq. ft. | J39: =TEXT('Parameters Added'!$B$24,"0.00") & " PV and " &TEXT('Parameters Added'!$B$25,"0.00") &" CV" -> 1.68 PV and 1.00 CV | K39: ='Bridge Data'!N35/100 -> 0.06
D40: Model Group 33 | F40: ='Bridge Data'!B36 -> 9P3547 | G40: =F40& " " &'Bridge Data'!S36 & " ("&'Bridge Data'!C36&") " & TEXT('Bridge Data'!M36,"###,###") & " sq. ft." -> 9P3547 Rehabilitation (1957) 12,764 sq. ft. | J40: =TEXT('Parameters Added'!$B$24,"0.00") & " PV and " &TEXT('Parameters Added'!$B$25,"0.00") &" CV" -> 1.68 PV and 1.00 CV | K40: ='Bridge Data'!N36/100 -> 0.09
D41: Model Group 34 | F41: ='Bridge Data'!B37 -> 9S3568 | G41: =F41& " " &'Bridge Data'!S37 & " ("&'Bridge Data'!C37&") " & TEXT('Bridge Data'!M37,"###,###") & " sq. ft." -> 9S3568 Rehabilitation (1965) 3,255 sq. ft. | J41: =TEXT('Parameters Added'!$B$24,"0.00") & " PV and " &TEXT('Parameters Added'!$B$25,"0.00") &" CV" -> 1.68 PV and 1.00 CV | K41: ='Bridge Data'!N37/100 -> 0.11
D42: Model Group 35 | F42: ='Bridge Data'!B38 -> 1S0447 | G42: =F42& " " &'Bridge Data'!S38 & " ("&'Bridge Data'!C38&") " & TEXT('Bridge Data'!M38,"###,###") & " sq. ft." -> 1S0447 Replacement (1933) 2,196 sq. ft. | J42: =TEXT('Parameters Added'!$B$24,"0.00") & " PV and " &TEXT('Parameters Added'!$B$25,"0.00") &" CV" -> 1.68 PV and 1.00 CV | K42: ='Bridge Data'!N38/100 -> 0.06
D43: Model Group 36 | F43: ='Bridge Data'!B39 -> 7S3261 | G43: =F43& " " &'Bridge Data'!S39 & " ("&'Bridge Data'!C39&") " & TEXT('Bridge Data'!M39,"###,###") & " sq. ft." -> 7S3261 Redecking (1979) 24,702 sq. ft. | J43: =TEXT('Parameters Added'!$B$24,"0.00") & " PV and " &TEXT('Parameters Added'!$B$25,"0.00") &" CV" -> 1.68 PV and 1.00 CV | K43: ='Bridge Data'!N39/100 -> 0.21
D44: Model Group 37 | F44: ='Bridge Data'!B40 -> 9S3264 | G44: =F44& " " &'Bridge Data'!S40 & " ("&'Bridge Data'!C40&") " & TEXT('Bridge Data'!M40,"###,###") & " sq. ft." -> 9S3264 Replacement (1933) 983 sq. ft. | J44: =TEXT('Parameters Added'!$B$24,"0.00") & " PV and " &TEXT('Parameters Added'!$B$25,"0.00") &" CV" -> 1.68 PV and 1.00 CV | K44: ='Bridge Data'!N40/100 -> 0.11
D45: Model Group 38 | F45: ='Bridge Data'!B41 -> 7P2228C | G45: =F45& " " &'Bridge Data'!S41 & " ("&'Bridge Data'!C41&") " & TEXT('Bridge Data'!M41,"###,###") & " sq. ft." -> 7P2228C Rehabilitation (1967) 17,602 sq. ft. | J45: =TEXT('Parameters Added'!$B$24,"0.00") & " PV and " &TEXT('Parameters Added'!$B$25,"0.00") &" CV" -> 1.68 PV and 1.00 CV | K45: ='Bridge Data'!N41/100 -> 0.06
D46: Model Group 39 | F46: ='Bridge Data'!B42 -> 1P3114 | G46: =F46& " " &'Bridge Data'!S42 & " ("&'Bridge Data'!C42&") " & TEXT('Bridge Data'!M42,"###,###") & " sq. ft." -> 1P3114 Rehabilitation (1965) 37,792 sq. ft. | J46: =TEXT('Parameters Added'!$B$24,"0.00") & " PV and " &TEXT('Parameters Added'!$B$25,"0.00") &" CV" -> 1.68 PV and 1.00 CV | K46: ='Bridge Data'!N42/100 -> 0.11
D47: Model Group 40 | F47: ='Bridge Data'!B43 -> 9S3330 | G47: =F47& " " &'Bridge Data'!S43 & " ("&'Bridge Data'!C43&") " & TEXT('Bridge Data'!M43,"###,###") & " sq. ft." -> 9S3330 Replacement (1949) 1,721 sq. ft. | J47: =TEXT('Parameters Added'!$B$24,"0.00") & " PV and " &TEXT('Parameters Added'!$B$25,"0.00") &" CV" -> 1.68 PV and 1.00 CV | K47: ='Bridge Data'!N43/100 -> 0.11
D48: Model Group 41 | F48: ='Bridge Data'!B44 -> 9S3330 | G48: =F48& " " &'Bridge Data'!S44 & " ("&'Bridge Data'!C44&") " & TEXT('Bridge Data'!M44,"###,###") & " sq. ft." -> 9S3330 Replacement (1949) 2,016 sq. ft. | J48: =TEXT('Parameters Added'!$B$24,"0.00") & " PV and " &TEXT('Parameters Added'!$B$25,"0.00") &" CV" -> 1.68 PV and 1.00 CV | K48: ='Bridge Data'!N44/100 -> 0.11
D49: Model Group 42 | F49: ='Bridge Data'!B45 -> 7P3190J | G49: =F49& " " &'Bridge Data'!S45 & " ("&'Bridge Data'!C45&") " & TEXT('Bridge Data'!M45,"###,###") & " sq. ft." -> 7P3190J Replacement (1961) 3,056 sq. ft. | J49: =TEXT('Parameters Added'!$B$24,"0.00") & " PV and " &TEXT('Parameters Added'!$B$25,"0.00") &" CV" -> 1.68 PV and 1.00 CV | K49: ='Bridge Data'!N45/100 -> 0.03
D50: Model Group 43 | F50: ='Bridge Data'!B46 -> 9S3384 | G50: =F50& " " &'Bridge Data'!S46 & " ("&'Bridge Data'!C46&") " & TEXT('Bridge Data'!M46,"###,###") & " sq. ft." -> 9S3384 Replacement (1930) 1,987 sq. ft. | J50: =TEXT('Parameters Added'!$B$24,"0.00") & " PV and " &TEXT('Parameters Added'!$B$25,"0.00") &" CV" -> 1.68 PV and 1.00 CV | K50: ='Bridge Data'!N46/100 -> 0.07
D51: Model Group 44 | F51: ='Bridge Data'!B47 -> 6P3291 | G51: =F51& " " &'Bridge Data'!S47 & " ("&'Bridge Data'!C47&") " & TEXT('Bridge Data'!M47,"###,###") & " sq. ft." -> 6P3291 Rehabilitation (1985) 14,537 sq. ft. | J51: =TEXT('Parameters Added'!$B$24,"0.00") & " PV and " &TEXT('Parameters Added'!$B$25,"0.00") &" CV" -> 1.68 PV and 1.00 CV | K51: ='Bridge Data'!N47/100 -> 0.12
D52: Model Group 45 | F52: ='Bridge Data'!B48 -> 6P3291 | G52: =F52& " " &'Bridge Data'!S48 & " ("&'Bridge Data'!C48&") " & TEXT('Bridge Data'!M48,"###,###") & " sq. ft." -> 6P3291 Rehabilitation (1972) 8,261 sq. ft. | J52: =TEXT('Parameters Added'!$B$24,"0.00") & " PV and " &TEXT('Parameters Added'!$B$25,"0.00") &" CV" -> 1.68 PV and 1.00 CV | K52: ='Bridge Data'!N48/100 -> 0.05
D53: Model Group 46 | F53: ='Bridge Data'!B49 -> 9S3439 | G53: =F53& " " &'Bridge Data'!S49 & " ("&'Bridge Data'!C49&") " & TEXT('Bridge Data'!M49,"###,###") & " sq. ft." -> 9S3439 Replacement (1933) 1,913 sq. ft. | J53: =TEXT('Parameters Added'!$B$24,"0.00") & " PV and " &TEXT('Parameters Added'!$B$25,"0.00") &" CV" -> 1.68 PV and 1.00 CV | K53: ='Bridge Data'!N49/100 -> 0.11
D54: Model Group 47 | F54: ='Bridge Data'!B50 -> 4I3217 | G54: =F54& " " &'Bridge Data'!S50 & " ("&'Bridge Data'!C50&") " & TEXT('Bridge Data'!M50,"###,###") & " sq. ft." -> 4I3217 Replacement (1960) 15,671 sq. ft. | J54: =TEXT('Parameters Added'!$B$24,"0.00") & " PV and " &TEXT('Parameters Added'!$B$25,"0.00") &" CV" -> 1.68 PV and 1.00 CV | K54: ='Bridge Data'!N50/100 -> 0.05
D55: Model Group 48 | F55: ='Bridge Data'!B51 -> 5S3330 | G55: =F55& " " &'Bridge Data'!S51 & " ("&'Bridge Data'!C51&") " & TEXT('Bridge Data'!M51,"###,###") & " sq. ft." -> 5S3330 Replacement (1941) 17,214 sq. ft. | J55: =TEXT('Parameters Added'!$B$24,"0.00") & " PV and " &TEXT('Parameters Added'!$B$25,"0.00") &" CV" -> 1.68 PV and 1.00 CV | K55: ='Bridge Data'!N51/100 -> 0.09
D56: Model Group 49 | F56: ='Bridge Data'!B52 -> 5S3249 | G56: =F56& " " &'Bridge Data'!S52 & " ("&'Bridge Data'!C52&") " & TEXT('Bridge Data'!M52,"###,###") & " sq. ft." -> 5S3249 Redecking (1961) 3,849 sq. ft. | J56: =TEXT('Parameters Added'!$B$24,"0.00") & " PV and " &TEXT('Parameters Added'!$B$25,"0.00") &" CV" -> 1.68 PV and 1.00 CV | K56: ='Bridge Data'!N52/100 -> 0.17
D57: Model Group 50 | F57: ='Bridge Data'!B53 -> 3S3127 | G57: =F57& " " &'Bridge Data'!S53 & " ("&'Bridge Data'!C53&") " & TEXT('Bridge Data'!M53,"###,###") & " sq. ft." -> 3S3127 Replacement (1961) 5,459 sq. ft. | J57: =TEXT('Parameters Added'!$B$24,"0.00") & " PV and " &TEXT('Parameters Added'!$B$25,"0.00") &" CV" -> 1.68 PV and 1.00 CV | K57: ='Bridge Data'!N53/100 -> 0.11
D58: Model Group 51 | F58: ='Bridge Data'!B54 -> 4I3291 | G58: =F58& " " &'Bridge Data'!S54 & " ("&'Bridge Data'!C54&") " & TEXT('Bridge Data'!M54,"###,###") & " sq. ft." -> 4I3291 Replacement (1967) 6,625 sq. ft. | J58: =TEXT('Parameters Added'!$B$24,"0.00") & " PV and " &TEXT('Parameters Added'!$B$25,"0.00") &" CV" -> 1.68 PV and 1.00 CV | K58: ='Bridge Data'!N54/100 -> 0.06
D59: Model Group 52 | F59: ='Bridge Data'!B55 -> 4I3291 | G59: =F59& " " &'Bridge Data'!S55 & " ("&'Bridge Data'!C55&") " & TEXT('Bridge Data'!M55,"###,###") & " sq. ft." -> 4I3291 Replacement (1967) 6,262 sq. ft. | J59: =TEXT('Parameters Added'!$B$24,"0.00") & " PV and " &TEXT('Parameters Added'!$B$25,"0.00") &" CV" -> 1.68 PV and 1.00 CV | K59: ='Bridge Data'!N55/100 -> 0.06
D60: Model Group 53 | F60: ='Bridge Data'!B56 -> 1S3207 | G60: =F60& " " &'Bridge Data'!S56 & " ("&'Bridge Data'!C56&") " & TEXT('Bridge Data'!M56,"###,###") & " sq. ft." -> 1S3207 Replacement (1946) 4,438 sq. ft. | J60: =TEXT('Parameters Added'!$B$24,"0.00") & " PV and " &TEXT('Parameters Added'!$B$25,"0.00") &" CV" -> 1.68 PV and 1.00 CV | K60: ='Bridge Data'!N56/100 -> 0.11
D61: Model Group 54 | F61: ='Bridge Data'!B57 -> 5S3289 | G61: =F61& " " &'Bridge Data'!S57 & " ("&'Bridge Data'!C57&") " & TEXT('Bridge Data'!M57,"###,###") & " sq. ft." -> 5S3289 Redecking (1963) 6,408 sq. ft. | J61: =TEXT('Parameters Added'!$B$24,"0.00") & " PV and " &TEXT('Parameters Added'!$B$25,"0.00") &" CV" -> 1.68 PV and 1.00 CV | K61: ='Bridge Data'!N57/100 -> 0.11
D62: Model Group 55 | F62: ='Bridge Data'!B58 -> 9S3517 | G62: =F62& " " &'Bridge Data'!S58 & " ("&'Bridge Data'!C58&") " & TEXT('Bridge Data'!M58,"###,###") & " sq. ft." -> 9S3517 Replacement (1931) 778 sq. ft. | J62: =TEXT('Parameters Added'!$B$24,"0.00") & " PV and " &TEXT('Parameters Added'!$B$25,"0.00") &" CV" -> 1.68 PV and 1.00 CV | K62: ='Bridge Data'!N58/100 -> 0.11
D63: Model Group 56 | F63: ='Bridge Data'!B59 -> 2P3247 | G63: =F63& " " &'Bridge Data'!S59 & " ("&'Bridge Data'!C59&") " & TEXT('Bridge Data'!M59,"###,###") & " sq. ft." -> 2P3247 Rehabilitation (1956) 3,739 sq. ft. | J63: =TEXT('Parameters Added'!$B$24,"0.00") & " PV and " &TEXT('Parameters Added'!$B$25,"0.00") &" CV" -> 1.68 PV and 1.00 CV | K63: ='Bridge Data'!N59/100 -> 0.27
D64: Model Group 57 | F64: ='Bridge Data'!B60 -> 7S3202 | G64: =F64& " " &'Bridge Data'!S60 & " ("&'Bridge Data'!C60&") " & TEXT('Bridge Data'!M60,"###,###") & " sq. ft." -> 7S3202 Rehabilitation (1974) 59,848 sq. ft. | J64: =TEXT('Parameters Added'!$B$24,"0.00") & " PV and " &TEXT('Parameters Added'!$B$25,"0.00") &" CV" -> 1.68 PV and 1.00 CV | K64: ='Bridge Data'!N60/100 -> 0.11
D65: Model Group 58 | F65: ='Bridge Data'!B61 -> 4P3015 | G65: =F65& " " &'Bridge Data'!S61 & " ("&'Bridge Data'!C61&") " & TEXT('Bridge Data'!M61,"###,###") & " sq. ft." -> 4P3015 Replacement (1931) 5,846 sq. ft. | J65: =TEXT('Parameters Added'!$B$24,"0.00") & " PV and " &TEXT('Parameters Added'!$B$25,"0.00") &" CV" -> 1.68 PV and 1.00 CV | K65: ='Bridge Data'!N61/100 -> 0.13
D66: Model Group 59 | F66: ='Bridge Data'!B62 -> 4P3015 | G66: =F66& " " &'Bridge Data'!S62 & " ("&'Bridge Data'!C62&") " & TEXT('Bridge Data'!M62,"###,###") & " sq. ft." -> 4P3015 Replacement (1931) 2,316 sq. ft. | J66: =TEXT('Parameters Added'!$B$24,"0.00") & " PV and " &TEXT('Parameters Added'!$B$25,"0.00") &" CV" -> 1.68 PV and 1.00 CV | K66: ='Bridge Data'!N62/100 -> 0.11
D67: Model Group 60 | F67: ='Bridge Data'!B63 -> 4P3015 | G67: =F67& " " &'Bridge Data'!S63 & " ("&'Bridge Data'!C63&") " & TEXT('Bridge Data'!M63,"###,###") & " sq. ft." -> 4P3015 Replacement (1931) 2,877 sq. ft. | J67: =TEXT('Parameters Added'!$B$24,"0.00") & " PV and " &TEXT('Parameters Added'!$B$25,"0.00") &" CV" -> 1.68 PV and 1.00 CV | K67: ='Bridge Data'!N63/100 -> 0.11
D68: Model Group 61 | F68: ='Bridge Data'!B64 -> 4P3015 | G68: =F68& " " &'Bridge Data'!S64 & " ("&'Bridge Data'!C64&") " & TEXT('Bridge Data'!M64,"###,###") & " sq. ft." -> 4P3015 Replacement (1931) 3,929 sq. ft. | J68: =TEXT('Parameters Added'!$B$24,"0.00") & " PV and " &TEXT('Parameters Added'!$B$25,"0.00") &" CV" -> 1.68 PV and 1.00 CV | K68: ='Bridge Data'!N64/100 -> 0.11
D69: Model Group 62 | F69: ='Bridge Data'!B65 -> 5S3238 | G69: =F69& " " &'Bridge Data'!S65 & " ("&'Bridge Data'!C65&") " & TEXT('Bridge Data'!M65,"###,###") & " sq. ft." -> 5S3238 Replacement (1952) 1,669 sq. ft. | J69: =TEXT('Parameters Added'!$B$24,"0.00") & " PV and " &TEXT('Parameters Added'!$B$25,"0.00") &" CV" -> 1.68 PV and 1.00 CV | K69: ='Bridge Data'!N65/100 -> 0.2
D70: Model Group 63 | F70: ='Bridge Data'!B66 -> 9S3367 | G70: =F70& " " &'Bridge Data'!S66 & " ("&'Bridge Data'!C66&") " & TEXT('Bridge Data'!M66,"###,###") & " sq. ft." -> 9S3367 Replacement (1968) 9,457 sq. ft. | J70: =TEXT('Parameters Added'!$B$24,"0.00") & " PV and " &TEXT('Parameters Added'!$B$25,"0.00") &" CV" -> 1.68 PV and 1.00 CV | K70: ='Bridge Data'!N66/100 -> 0.1
D71: Model Group 64 | F71: ='Bridge Data'!B67 -> 2P3183 | G71: =F71& " " &'Bridge Data'!S67 & " ("&'Bridge Data'!C67&") " & TEXT('Bridge Data'!M67,"###,###") & " sq. ft." -> 2P3183 Redecking (1967) 10,529 sq. ft. | J71: =TEXT('Parameters Added'!$B$24,"0.00") & " PV and " &TEXT('Parameters Added'!$B$25,"0.00") &" CV" -> 1.68 PV and 1.00 CV | K71: ='Bridge Data'!N67/100 -> 0.24
D72: Model Group 65 | F72: ='Bridge Data'!B68 -> 2S3148 | G72: =F72& " " &'Bridge Data'!S68 & " ("&'Bridge Data'!C68&") " & TEXT('Bridge Data'!M68,"###,###") & " sq. ft." -> 2S3148 Replacement (1937) 3,384 sq. ft. | J72: =TEXT('Parameters Added'!$B$24,"0.00") & " PV and " &TEXT('Parameters Added'!$B$25,"0.00") &" CV" -> 1.68 PV and 1.00 CV | K72: ='Bridge Data'!N68/100 -> 0.11
D73: Model Group 66 | F73: ='Bridge Data'!B69 -> 3S3115 | G73: =F73& " " &'Bridge Data'!S69 & " ("&'Bridge Data'!C69&") " & TEXT('Bridge Data'!M69,"###,###") & " sq. ft." -> 3S3115 Rehabilitation (1933) 1,551 sq. ft. | J73: =TEXT('Parameters Added'!$B$24,"0.00") & " PV and " &TEXT('Parameters Added'!$B$25,"0.00") &" CV" -> 1.68 PV and 1.00 CV | K73: ='Bridge Data'!N69/100 -> 0.11
D74: Model Group 67 | F74: ='Bridge Data'!B70 -> 7I3362 | G74: =F74& " " &'Bridge Data'!S70 & " ("&'Bridge Data'!C70&") " & TEXT('Bridge Data'!M70,"###,###") & " sq. ft." -> 7I3362 Replacement (1923) 5,810 sq. ft. | J74: =TEXT('Parameters Added'!$B$24,"0.00") & " PV and " &TEXT('Parameters Added'!$B$25,"0.00") &" CV" -> 1.68 PV and 1.00 CV | K74: ='Bridge Data'!N70/100 -> 0.35
D75: Model Group 68 | F75: ='Bridge Data'!B71 -> 1S3136 | G75: =F75& " " &'Bridge Data'!S71 & " ("&'Bridge Data'!C71&") " & TEXT('Bridge Data'!M71,"###,###") & " sq. ft." -> 1S3136 Rehabilitation (1964) 9,293 sq. ft. | J75: =TEXT('Parameters Added'!$B$24,"0.00") & " PV and " &TEXT('Parameters Added'!$B$25,"0.00") &" CV" -> 1.68 PV and 1.00 CV | K75: ='Bridge Data'!N71/100 -> 0.11
D76: Model Group 69 | F76: ='Bridge Data'!B72 -> 1S3157 | G76: =F76& " " &'Bridge Data'!S72 & " ("&'Bridge Data'!C72&") " & TEXT('Bridge Data'!M72,"###,###") & " sq. ft." -> 1S3157 Replacement (1963) 12,633 sq. ft. | J76: =TEXT('Parameters Added'!$B$24,"0.00") & " PV and " &TEXT('Parameters Added'!$B$25,"0.00") &" CV" -> 1.68 PV and 1.00 CV | K76: ='Bridge Data'!N72/100 -> 0.15
D77: Model Group 70 | F77: ='Bridge Data'!B73 -> 1S3163 | G77: =F77& " " &'Bridge Data'!S73 & " ("&'Bridge Data'!C73&") " & TEXT('Bridge Data'!M73,"###,###") & " sq. ft." -> 1S3163 Rehabilitation (1955) 2,492 sq. ft. | J77: =TEXT('Parameters Added'!$B$24,"0.00") & " PV and " &TEXT('Parameters Added'!$B$25,"0.00") &" CV" -> 1.68 PV and 1.00 CV | K77: ='Bridge Data'!N73/100 -> 0.13
D78: Model Group 71 | F78: ='Bridge Data'!B74 -> 4I3219 | G78: =F78& " " &'Bridge Data'!S74 & " ("&'Bridge Data'!C74&") " & TEXT('Bridge Data'!M74,"###,###") & " sq. ft." -> 4I3219 Rehabilitation (1965) 6,958 sq. ft. | J78: =TEXT('Parameters Added'!$B$24,"0.00") & " PV and " &TEXT('Parameters Added'!$B$25,"0.00") &" CV" -> 1.68 PV and 1.00 CV | K78: ='Bridge Data'!N74/100 -> 0.05
D79: Model Group 72 | F79: ='Bridge Data'!B75 -> 9S3209 | G79: =F79& " " &'Bridge Data'!S75 & " ("&'Bridge Data'!C75&") " & TEXT('Bridge Data'!M75,"###,###") & " sq. ft." -> 9S3209 Replacement (1949) 2,983 sq. ft. | J79: =TEXT('Parameters Added'!$B$24,"0.00") & " PV and " &TEXT('Parameters Added'!$B$25,"0.00") &" CV" -> 1.68 PV and 1.00 CV | K79: ='Bridge Data'!N75/100 -> 0.07
D80: Model Group 73 | F80: ='Bridge Data'!B76 -> 9S3227 | G80: =F80& " " &'Bridge Data'!S76 & " ("&'Bridge Data'!C76&") " & TEXT('Bridge Data'!M76,"###,###") & " sq. ft." -> 9S3227 Replacement (1935) 1,148 sq. ft. | J80: =TEXT('Parameters Added'!$B$24,"0.00") & " PV and " &TEXT('Parameters Added'!$B$25,"0.00") &" CV" -> 1.68 PV and 1.00 CV | K80: ='Bridge Data'!N76/100 -> 0.1
D81: Model Group 74 | F81: ='Bridge Data'!B77 -> 5S3348 | G81: =F81& " " &'Bridge Data'!S77 & " ("&'Bridge Data'!C77&") " & TEXT('Bridge Data'!M77,"###,###") & " sq. ft." -> 5S3348 Replacement (1966) 5,244 sq. ft. | J81: =TEXT('Parameters Added'!$B$24,"0.00") & " PV and " &TEXT('Parameters Added'!$B$25,"0.00") &" CV" -> 1.68 PV and 1.00 CV | K81: ='Bridge Data'!N77/100 -> 0.11
D82: Model Group 75 | F82: ='Bridge Data'!B78 -> 7I3363 | G82: =F82& " " &'Bridge Data'!S78 & " ("&'Bridge Data'!C78&") " & TEXT('Bridge Data'!M78,"###,###") & " sq. ft." -> 7I3363 Replacement (1964) 6,126 sq. ft. | J82: =TEXT('Parameters Added'!$B$24,"0.00") & " PV and " &TEXT('Parameters Added'!$B$25,"0.00") &" CV" -> 1.68 PV and 1.00 CV | K82: ='Bridge Data'!N78/100 -> 0.41
D83: Model Group 76 | F83: ='Bridge Data'!B79 -> 9S3562 | G83: =F83& " " &'Bridge Data'!S79 & " ("&'Bridge Data'!C79&") " & TEXT('Bridge Data'!M79,"###,###") & " sq. ft." -> 9S3562 Replacement (1952) 968 sq. ft. | J83: =TEXT('Parameters Added'!$B$24,"0.00") & " PV and " &TEXT('Parameters Added'!$B$25,"0.00") &" CV" -> 1.68 PV and 1.00 CV | K83: ='Bridge Data'!N79/100 -> 0.16
D84: Model Group 77 | F84: ='Bridge Data'!B80 -> 5S3350 | G84: =F84& " " &'Bridge Data'!S80 & " ("&'Bridge Data'!C80&") " & TEXT('Bridge Data'!M80,"###,###") & " sq. ft." -> 5S3350 Replacement (1934) 3,188 sq. ft. | J84: =TEXT('Parameters Added'!$B$24,"0.00") & " PV and " &TEXT('Parameters Added'!$B$25,"0.00") &" CV" -> 1.68 PV and 1.00 CV | K84: ='Bridge Data'!N80/100 -> 0.1
D85: Model Group 78 | F85: ='Bridge Data'!B81 -> 5S3240 | G85: =F85& " " &'Bridge Data'!S81 & " ("&'Bridge Data'!C81&") " & TEXT('Bridge Data'!M81,"###,###") & " sq. ft." -> 5S3240 Replacement (1960) 6,061 sq. ft. | J85: =TEXT('Parameters Added'!$B$24,"0.00") & " PV and " &TEXT('Parameters Added'!$B$25,"0.00") &" CV" -> 1.68 PV and 1.00 CV | K85: ='Bridge Data'!N81/100 -> 0.11
D86: Model Group 79 | F86: ='Bridge Data'!B82 -> 5P3241 | G86: =F86& " " &'Bridge Data'!S82 & " ("&'Bridge Data'!C82&") " & TEXT('Bridge Data'!M82,"###,###") & " sq. ft." -> 5P3241 Replacement (1932) 4,858 sq. ft. | J86: =TEXT('Parameters Added'!$B$24,"0.00") & " PV and " &TEXT('Parameters Added'!$B$25,"0.00") &" CV" -> 1.68 PV and 1.00 CV | K86: ='Bridge Data'!N82/100 -> 0.1
D87: Model Group 80 | F87: ='Bridge Data'!B83 -> 5S3242 | G87: =F87& " " &'Bridge Data'!S83 & " ("&'Bridge Data'!C83&") " & TEXT('Bridge Data'!M83,"###,###") & " sq. ft." -> 5S3242 Replacement (1954) 4,734 sq. ft. | J87: =TEXT('Parameters Added'!$B$24,"0.00") & " PV and " &TEXT('Parameters Added'!$B$25,"0.00") &" CV" -> 1.68 PV and 1.00 CV | K87: ='Bridge Data'!N83/100 -> 0.11
D88: Model Group 81 | F88: ='Bridge Data'!B84 -> 5S3263 | G88: =F88& " " &'Bridge Data'!S84 & " ("&'Bridge Data'!C84&") " & TEXT('Bridge Data'!M84,"###,###") & " sq. ft." -> 5S3263 Rehabilitation (1966) 5,796 sq. ft. | J88: =TEXT('Parameters Added'!$B$24,"0.00") & " PV and " &TEXT('Parameters Added'!$B$25,"0.00") &" CV" -> 1.68 PV and 1.00 CV | K88: ='Bridge Data'!N84/100 -> 0.05
D89: Model Group 82 | F89: ='Bridge Data'!B85 -> 7P3190K | G89: =F89& " " &'Bridge Data'!S85 & " ("&'Bridge Data'!C85&") " & TEXT('Bridge Data'!M85,"###,###") & " sq. ft." -> 7P3190K Rehabilitation (1961) 3,627 sq. ft. | J89: =TEXT('Parameters Added'!$B$24,"0.00") & " PV and " &TEXT('Parameters Added'!$B$25,"0.00") &" CV" -> 1.68 PV and 1.00 CV | K89: ='Bridge Data'!N85/100 -> 0.09
D90: Model Group 83 | F90: ='Bridge Data'!B86 -> 9S3557 | G90: =F90& " " &'Bridge Data'!S86 & " ("&'Bridge Data'!C86&") " & TEXT('Bridge Data'!M86,"###,###") & " sq. ft." -> 9S3557 Replacement (1932) 2,468 sq. ft. | J90: =TEXT('Parameters Added'!$B$24,"0.00") & " PV and " &TEXT('Parameters Added'!$B$25,"0.00") &" CV" -> 1.68 PV and 1.00 CV | K90: ='Bridge Data'!N86/100 -> 0.13
D91: Model Group 84 | F91: ='Bridge Data'!B87 -> 1P3132 | G91: =F91& " " &'Bridge Data'!S87 & " ("&'Bridge Data'!C87&") " & TEXT('Bridge Data'!M87,"###,###") & " sq. ft." -> 1P3132 Replacement (1946) 4,863 sq. ft. | J91: =TEXT('Parameters Added'!$B$24,"0.00") & " PV and " &TEXT('Parameters Added'!$B$25,"0.00") &" CV" -> 1.68 PV and 1.00 CV | K91: ='Bridge Data'!N87/100 -> 0.2
D92: Model Group 85 | F92: ='Bridge Data'!B88 -> 1P3160 | G92: =F92& " " &'Bridge Data'!S88 & " ("&'Bridge Data'!C88&") " & TEXT('Bridge Data'!M88,"###,###") & " sq. ft." -> 1P3160 Replacement (1926) 3,088 sq. ft. | J92: =TEXT('Parameters Added'!$B$24,"0.00") & " PV and " &TEXT('Parameters Added'!$B$25,"0.00") &" CV" -> 1.68 PV and 1.00 CV | K92: ='Bridge Data'!N88/100 -> 0.08
D93: Model Group 86 | F93: ='Bridge Data'!B89 -> 7P3190B | G93: =F93& " " &'Bridge Data'!S89 & " ("&'Bridge Data'!C89&") " & TEXT('Bridge Data'!M89,"###,###") & " sq. ft." -> 7P3190B Replacement (1935) 754 sq. ft. | J93: =TEXT('Parameters Added'!$B$24,"0.00") & " PV and " &TEXT('Parameters Added'!$B$25,"0.00") &" CV" -> 1.68 PV and 1.00 CV | K93: ='Bridge Data'!N89/100 -> 0.04
D94: Model Group 87 | F94: ='Bridge Data'!B90 -> 7P3190G | G94: =F94& " " &'Bridge Data'!S90 & " ("&'Bridge Data'!C90&") " & TEXT('Bridge Data'!M90,"###,###") & " sq. ft." -> 7P3190G Replacement (1932) 5,152 sq. ft. | J94: =TEXT('Parameters Added'!$B$24,"0.00") & " PV and " &TEXT('Parameters Added'!$B$25,"0.00") &" CV" -> 1.68 PV and 1.00 CV | K94: ='Bridge Data'!N90/100 -> 0.1
D95: Model Group 88 | F95: ='Bridge Data'!B91 -> 7P3190I | G95: =F95& " " &'Bridge Data'!S91 & " ("&'Bridge Data'!C91&") " & TEXT('Bridge Data'!M91,"###,###") & " sq. ft." -> 7P3190I Replacement (1935) 384 sq. ft. | J95: =TEXT('Parameters Added'!$B$24,"0.00") & " PV and " &TEXT('Parameters Added'!$B$25,"0.00") &" CV" -> 1.68 PV and 1.00 CV | K95: ='Bridge Data'!N91/100 -> 0.1
D96: Model Group 89 | F96: ='Bridge Data'!B92 -> 5S3262 | G96: =F96& " " &'Bridge Data'!S92 & " ("&'Bridge Data'!C92&") " & TEXT('Bridge Data'!M92,"###,###") & " sq. ft." -> 5S3262 Replacement (1967) 2,706 sq. ft. | J96: =TEXT('Parameters Added'!$B$24,"0.00") & " PV and " &TEXT('Parameters Added'!$B$25,"0.00") &" CV" -> 1.68 PV and 1.00 CV | K96: ='Bridge Data'!N92/100 -> 0.11
D97: Model Group 90 | F97: ='Bridge Data'!B93 -> 5S3260 | G97: =F97& " " &'Bridge Data'!S93 & " ("&'Bridge Data'!C93&") " & TEXT('Bridge Data'!M93,"###,###") & " sq. ft." -> 5S3260 Replacement (1952) 3,582 sq. ft. | J97: =TEXT('Parameters Added'!$B$24,"0.00") & " PV and " &TEXT('Parameters Added'!$B$25,"0.00") &" CV" -> 1.68 PV and 1.00 CV | K97: ='Bridge Data'!N93/100 -> 0.12
D98: Model Group 91 | F98: ='Bridge Data'!B94 -> 5S3248 | G98: =F98& " " &'Bridge Data'!S94 & " ("&'Bridge Data'!C94&") " & TEXT('Bridge Data'!M94,"###,###") & " sq. ft." -> 5S3248 Redecking (1966) 3,979 sq. ft. | J98: =TEXT('Parameters Added'!$B$24,"0.00") & " PV and " &TEXT('Parameters Added'!$B$25,"0.00") &" CV" -> 1.68 PV and 1.00 CV | K98: ='Bridge Data'!N94/100 -> 0.06
D99: Model Group 92 | F99: ='Bridge Data'!B95 -> 5S3281 | G99: =F99& " " &'Bridge Data'!S95 & " ("&'Bridge Data'!C95&") " & TEXT('Bridge Data'!M95,"###,###") & " sq. ft." -> 5S3281 Replacement (1952) 816 sq. ft. | J99: =TEXT('Parameters Added'!$B$24,"0.00") & " PV and " &TEXT('Parameters Added'!$B$25,"0.00") &" CV" -> 1.68 PV and 1.00 CV | K99: ='Bridge Data'!N95/100 -> 0.11
D100: Model Group 93 | F100: ='Bridge Data'!B96 -> 9S3383 | G100: =F100& " " &'Bridge Data'!S96 & " ("&'Bridge Data'!C96&") " & TEXT('Bridge Data'!M96,"###,###") & " sq. ft." -> 9S3383 Replacement (1932) 2,193 sq. ft. | J100: =TEXT('Parameters Added'!$B$24,"0.00") & " PV and " &TEXT('Parameters Added'!$B$25,"0.00") &" CV" -> 1.68 PV and 1.00 CV | K100: ='Bridge Data'!N96/100 -> 0.11
D101: Model Group 94 | F101: ='Bridge Data'!B97 -> 7P3191B | G101: =F101& " " &'Bridge Data'!S97 & " ("&'Bridge Data'!C97&") " & TEXT('Bridge Data'!M97,"###,###") & " sq. ft." -> 7P3191B Rehabilitation (1976) 34,770 sq. ft. | J101: =TEXT('Parameters Added'!$B$24,"0.00") & " PV and " &TEXT('Parameters Added'!$B$25,"0.00") &" CV" -> 1.68 PV and 1.00 CV | K101: ='Bridge Data'!N97/100 -> 0.11
D102: Model Group 95 | F102: ='Bridge Data'!B98 -> 1I3099 | G102: =F102& " " &'Bridge Data'!S98 & " ("&'Bridge Data'!C98&") " & TEXT('Bridge Data'!M98,"###,###") & " sq. ft." -> 1I3099 Rehabilitation (1972) 5,571 sq. ft. | J102: =TEXT('Parameters Added'!$B$24,"0.00") & " PV and " &TEXT('Parameters Added'!$B$25,"0.00") &" CV" -> 1.68 PV and 1.00 CV | K102: ='Bridge Data'!N98/100 -> 0.34
D103: Model Group 96 | F103: ='Bridge Data'!B99 -> 1I3099 | G103: =F103& " " &'Bridge Data'!S99 & " ("&'Bridge Data'!C99&") " & TEXT('Bridge Data'!M99,"###,###") & " sq. ft." -> 1I3099 Rehabilitation (1972) 5,571 sq. ft. | J103: =TEXT('Parameters Added'!$B$24,"0.00") & " PV and " &TEXT('Parameters Added'!$B$25,"0.00") &" CV" -> 1.68 PV and 1.00 CV | K103: ='Bridge Data'!N99/100 -> 0.35
D104: Model Group 97 | F104: ='Bridge Data'!B100 -> 1I3099 | G104: =F104& " " &'Bridge Data'!S100 & " ("&'Bridge Data'!C100&") " & TEXT('Bridge Data'!M100,"###,###") & " sq. ft." -> 1I3099 Rehabilitation (1972) 12,037 sq. ft. | J104: =TEXT('Parameters Added'!$B$24,"0.00") & " PV and " &TEXT('Parameters Added'!$B$25,"0.00") &" CV" -> 1.68 PV and 1.00 CV | K104: ='Bridge Data'!N100/100 -> 0.46
D105: Model Group 98 | F105: ='Bridge Data'!B101 -> 1I3099 | G105: =F105& " " &'Bridge Data'!S101 & " ("&'Bridge Data'!C101&") " & TEXT('Bridge Data'!M101,"###,###") & " sq. ft." -> 1I3099 Rehabilitation (1972) 12,037 sq. ft. | J105: =TEXT('Parameters Added'!$B$24,"0.00") & " PV and " &TEXT('Parameters Added'!$B$25,"0.00") &" CV" -> 1.68 PV and 1.00 CV | K105: ='Bridge Data'!N101/100 -> 0.35
D106: Model Group 99 | F106: ='Bridge Data'!B102 -> 9P3212 | G106: =F106& " " &'Bridge Data'!S102 & " ("&'Bridge Data'!C102&") " & TEXT('Bridge Data'!M102,"###,###") & " sq. ft." -> 9P3212 Replacement (1932) 4,790 sq. ft. | J106: =TEXT('Parameters Added'!$B$24,"0.00") & " PV and " &TEXT('Parameters Added'!$B$25,"0.00") &" CV" -> 1.68 PV and 1.00 CV | K106: ='Bridge Data'!N102/100 -> 0.14
D107: Model Group 100 | F107: ='Bridge Data'!B103 -> 6S1908 | G107: =F107& " " &'Bridge Data'!S103 & " ("&'Bridge Data'!C103&") " & TEXT('Bridge Data'!M103,"###,###") & " sq. ft." -> 6S1908 Replacement (1972) 5,449 sq. ft. | J107: =TEXT('Parameters Added'!$B$24,"0.00") & " PV and " &TEXT('Parameters Added'!$B$25,"0.00") &" CV" -> 1.68 PV and 1.00 CV | K107: ='Bridge Data'!N103/100 -> 0.03
D108: Model Group 101 | F108: ='Bridge Data'!B104 -> 6S1908 | G108: =F108& " " &'Bridge Data'!S104 & " ("&'Bridge Data'!C104&") " & TEXT('Bridge Data'!M104,"###,###") & " sq. ft." -> 6S1908 Replacement (1972) 5,449 sq. ft. | J108: =TEXT('Parameters Added'!$B$24,"0.00") & " PV and " &TEXT('Parameters Added'!$B$25,"0.00") &" CV" -> 1.68 PV and 1.00 CV | K108: ='Bridge Data'!N104/100 -> 0.05
D109: Model Group 102 | F109: ='Bridge Data'!B105 -> 6S1908 | G109: =F109& " " &'Bridge Data'!S105 & " ("&'Bridge Data'!C105&") " & TEXT('Bridge Data'!M105,"###,###") & " sq. ft." -> 6S1908 Replacement (1924) 776 sq. ft. | J109: =TEXT('Parameters Added'!$B$24,"0.00") & " PV and " &TEXT('Parameters Added'!$B$25,"0.00") &" CV" -> 1.68 PV and 1.00 CV | K109: ='Bridge Data'!N105/100 -> 0.03
D110: Model Group 103 | F110: ='Bridge Data'!B106 -> 1S3070 | G110: =F110& " " &'Bridge Data'!S106 & " ("&'Bridge Data'!C106&") " & TEXT('Bridge Data'!M106,"###,###") & " sq. ft." -> 1S3070 Rehabilitation (1962) 2,344 sq. ft. | J110: =TEXT('Parameters Added'!$B$24,"0.00") & " PV and " &TEXT('Parameters Added'!$B$25,"0.00") &" CV" -> 1.68 PV and 1.00 CV | K110: ='Bridge Data'!N106/100 -> 0.09
D111: Model Group 104 | F111: ='Bridge Data'!B107 -> 5S3253 | G111: =F111& " " &'Bridge Data'!S107 & " ("&'Bridge Data'!C107&") " & TEXT('Bridge Data'!M107,"###,###") & " sq. ft." -> 5S3253 Replacement (1961) 2,937 sq. ft. | J111: =TEXT('Parameters Added'!$B$24,"0.00") & " PV and " &TEXT('Parameters Added'!$B$25,"0.00") &" CV" -> 1.68 PV and 1.00 CV | K111: ='Bridge Data'!N107/100 -> 0.08
D112: Model Group 105 | F112: ='Bridge Data'!B108 -> 9S3395 | G112: =F112& " " &'Bridge Data'!S108 & " ("&'Bridge Data'!C108&") " & TEXT('Bridge Data'!M108,"###,###") & " sq. ft." -> 9S3395 Replacement (1948) 1,819 sq. ft. | J112: =TEXT('Parameters Added'!$B$24,"0.00") & " PV and " &TEXT('Parameters Added'!$B$25,"0.00") &" CV" -> 1.68 PV and 1.00 CV | K112: ='Bridge Data'!N108/100 -> 0.05
D113: Model Group 106 | F113: ='Bridge Data'!B109 -> 3P3125 | G113: =F113& " " &'Bridge Data'!S109 & " ("&'Bridge Data'!C109&") " & TEXT('Bridge Data'!M109,"###,###") & " sq. ft." -> 3P3125 Replacement (1930) 596 sq. ft. | J113: =TEXT('Parameters Added'!$B$24,"0.00") & " PV and " &TEXT('Parameters Added'!$B$25,"0.00") &" CV" -> 1.68 PV and 1.00 CV | K113: ='Bridge Data'!N109/100 -> 0.1
D114: Model Group 107 | F114: ='Bridge Data'!B110 -> 5S3176 | G114: =F114& " " &'Bridge Data'!S110 & " ("&'Bridge Data'!C110&") " & TEXT('Bridge Data'!M110,"###,###") & " sq. ft." -> 5S3176 Replacement (1938) 3,836 sq. ft. | J114: =TEXT('Parameters Added'!$B$24,"0.00") & " PV and " &TEXT('Parameters Added'!$B$25,"0.00") &" CV" -> 1.68 PV and 1.00 CV | K114: ='Bridge Data'!N110/100 -> 0.11
D115: Model Group 108 | F115: ='Bridge Data'!B111 -> 9S3298 | G115: =F115& " " &'Bridge Data'!S111 & " ("&'Bridge Data'!C111&") " & TEXT('Bridge Data'!M111,"###,###") & " sq. ft." -> 9S3298 Replacement (1929) 8,590 sq. ft. | J115: =TEXT('Parameters Added'!$B$24,"0.00") & " PV and " &TEXT('Parameters Added'!$B$25,"0.00") &" CV" -> 1.68 PV and 1.00 CV | K115: ='Bridge Data'!N111/100 -> 0.12
D116: Model Group 109 | F116: ='Bridge Data'!B112 -> 2S3196 | G116: =F116& " " &'Bridge Data'!S112 & " ("&'Bridge Data'!C112&") " & TEXT('Bridge Data'!M112,"###,###") & " sq. ft." -> 2S3196 Replacement (1961) 2,581 sq. ft. | J116: =TEXT('Parameters Added'!$B$24,"0.00") & " PV and " &TEXT('Parameters Added'!$B$25,"0.00") &" CV" -> 1.68 PV and 1.00 CV | K116: ='Bridge Data'!N112/100 -> 0.27
D117: Model Group 110 | F117: ='Bridge Data'!B113 -> 1S3061 | G117: =F117& " " &'Bridge Data'!S113 & " ("&'Bridge Data'!C113&") " & TEXT('Bridge Data'!M113,"###,###") & " sq. ft." -> 1S3061 Rehabilitation (1968) 8,825 sq. ft. | J117: =TEXT('Parameters Added'!$B$24,"0.00") & " PV and " &TEXT('Parameters Added'!$B$25,"0.00") &" CV" -> 1.68 PV and 1.00 CV | K117: ='Bridge Data'!N113/100 -> 0.11
D118: Model Group 111 | F118: ='Bridge Data'!B114 -> 1I3110 | G118: =F118& " " &'Bridge Data'!S114 & " ("&'Bridge Data'!C114&") " & TEXT('Bridge Data'!M114,"###,###") & " sq. ft." -> 1I3110 Rehabilitation (1971) 40,545 sq. ft. | J118: =TEXT('Parameters Added'!$B$24,"0.00") & " PV and " &TEXT('Parameters Added'!$B$25,"0.00") &" CV" -> 1.68 PV and 1.00 CV | K118: ='Bridge Data'!N114/100 -> 0.42
D119: Model Group 112 | F119: ='Bridge Data'!B115 -> 1I3110 | G119: =F119& " " &'Bridge Data'!S115 & " ("&'Bridge Data'!C115&") " & TEXT('Bridge Data'!M115,"###,###") & " sq. ft." -> 1I3110 Rehabilitation (1971) 40,545 sq. ft. | J119: =TEXT('Parameters Added'!$B$24,"0.00") & " PV and " &TEXT('Parameters Added'!$B$25,"0.00") &" CV" -> 1.68 PV and 1.00 CV | K119: ='Bridge Data'!N115/100 -> 0.43
D120: Model Group 113 | F120: ='Bridge Data'!B116 -> 1S3158 | G120: =F120& " " &'Bridge Data'!S116 & " ("&'Bridge Data'!C116&") " & TEXT('Bridge Data'!M116,"###,###") & " sq. ft." -> 1S3158 Replacement (1954) 2,759 sq. ft. | J120: =TEXT('Parameters Added'!$B$24,"0.00") & " PV and " &TEXT('Parameters Added'!$B$25,"0.00") &" CV" -> 1.68 PV and 1.00 CV | K120: ='Bridge Data'!N116/100 -> 0.13
D121: Model Group 114 | F121: ='Bridge Data'!B117 -> 9S3386 | G121: =F121& " " &'Bridge Data'!S117 & " ("&'Bridge Data'!C117&") " & TEXT('Bridge Data'!M117,"###,###") & " sq. ft." -> 9S3386 Replacement (1964) 11,413 sq. ft. | J121: =TEXT('Parameters Added'!$B$24,"0.00") & " PV and " &TEXT('Parameters Added'!$B$25,"0.00") &" CV" -> 1.68 PV and 1.00 CV | K121: ='Bridge Data'!N117/100 -> 0.11
D122: Model Group 115 | F122: ='Bridge Data'!B118 -> 2S3198 | G122: =F122& " " &'Bridge Data'!S118 & " ("&'Bridge Data'!C118&") " & TEXT('Bridge Data'!M118,"###,###") & " sq. ft." -> 2S3198 Replacement (1961) 2,270 sq. ft. | J122: =TEXT('Parameters Added'!$B$24,"0.00") & " PV and " &TEXT('Parameters Added'!$B$25,"0.00") &" CV" -> 1.68 PV and 1.00 CV | K122: ='Bridge Data'!N118/100 -> 0.1
D123: Model Group 116 | F123: ='Bridge Data'!B119 -> 3S3116 | G123: =F123& " " &'Bridge Data'!S119 & " ("&'Bridge Data'!C119&") " & TEXT('Bridge Data'!M119,"###,###") & " sq. ft." -> 3S3116 Rehabilitation (1933) 3,472 sq. ft. | J123: =TEXT('Parameters Added'!$B$24,"0.00") & " PV and " &TEXT('Parameters Added'!$B$25,"0.00") &" CV" -> 1.68 PV and 1.00 CV | K123: ='Bridge Data'!N119/100 -> 0.11
D124: Model Group 117 | F124: ='Bridge Data'!B120 -> 3S3091 | G124: =F124& " " &'Bridge Data'!S120 & " ("&'Bridge Data'!C120&") " & TEXT('Bridge Data'!M120,"###,###") & " sq. ft." -> 3S3091 Replacement (1935) 4,399 sq. ft. | J124: =TEXT('Parameters Added'!$B$24,"0.00") & " PV and " &TEXT('Parameters Added'!$B$25,"0.00") &" CV" -> 1.68 PV and 1.00 CV | K124: ='Bridge Data'!N120/100 -> 0.14
D125: Model Group 118 | F125: ='Bridge Data'!B121 -> 1S3156 | G125: =F125& " " &'Bridge Data'!S121 & " ("&'Bridge Data'!C121&") " & TEXT('Bridge Data'!M121,"###,###") & " sq. ft." -> 1S3156 Rehabilitation (1964) 31,544 sq. ft. | J125: =TEXT('Parameters Added'!$B$24,"0.00") & " PV and " &TEXT('Parameters Added'!$B$25,"0.00") &" CV" -> 1.68 PV and 1.00 CV | K125: ='Bridge Data'!N121/100 -> 0.22
D126: Model Group 119 | F126: ='Bridge Data'!B122 -> 1I3109 | G126: =F126& " " &'Bridge Data'!S122 & " ("&'Bridge Data'!C122&") " & TEXT('Bridge Data'!M122,"###,###") & " sq. ft." -> 1I3109 Replacement (1965) 12,184 sq. ft. | J126: =TEXT('Parameters Added'!$B$24,"0.00") & " PV and " &TEXT('Parameters Added'!$B$25,"0.00") &" CV" -> 1.68 PV and 1.00 CV | K126: ='Bridge Data'!N122/100 -> 0.34
D127: Model Group 120 | F127: ='Bridge Data'!B123 -> 1I3109 | G127: =F127& " " &'Bridge Data'!S123 & " ("&'Bridge Data'!C123&") " & TEXT('Bridge Data'!M123,"###,###") & " sq. ft." -> 1I3109 Replacement (1965) 13,078 sq. ft. | J127: =TEXT('Parameters Added'!$B$24,"0.00") & " PV and " &TEXT('Parameters Added'!$B$25,"0.00") &" CV" -> 1.68 PV and 1.00 CV | K127: ='Bridge Data'!N123/100 -> 0.35
D128: Model Group 121 | F128: ='Bridge Data'!B124 -> 2S3187 | G128: =F128& " " &'Bridge Data'!S124 & " ("&'Bridge Data'!C124&") " & TEXT('Bridge Data'!M124,"###,###") & " sq. ft." -> 2S3187 Replacement (1957) 2,426 sq. ft. | J128: =TEXT('Parameters Added'!$B$24,"0.00") & " PV and " &TEXT('Parameters Added'!$B$25,"0.00") &" CV" -> 1.68 PV and 1.00 CV | K128: ='Bridge Data'!N124/100 -> 0.08
D129: Model Group 122 | F129: ='Bridge Data'!B125 -> 3P3093 | G129: =F129& " " &'Bridge Data'!S125 & " ("&'Bridge Data'!C125&") " & TEXT('Bridge Data'!M125,"###,###") & " sq. ft." -> 3P3093 Rehabilitation (1973) 19,483 sq. ft. | J129: =TEXT('Parameters Added'!$B$24,"0.00") & " PV and " &TEXT('Parameters Added'!$B$25,"0.00") &" CV" -> 1.68 PV and 1.00 CV | K129: ='Bridge Data'!N125/100 -> 0.1
D130: Model Group 123 | F130: ='Bridge Data'!B126 -> 5S3264 | G130: =F130& " " &'Bridge Data'!S126 & " ("&'Bridge Data'!C126&") " & TEXT('Bridge Data'!M126,"###,###") & " sq. ft." -> 5S3264 Replacement (1958) 2,848 sq. ft. | J130: =TEXT('Parameters Added'!$B$24,"0.00") & " PV and " &TEXT('Parameters Added'!$B$25,"0.00") &" CV" -> 1.68 PV and 1.00 CV | K130: ='Bridge Data'!N126/100 -> 0.1
D131: Model Group 124 | F131: ='Bridge Data'!B127 -> 3S2202 | G131: =F131& " " &'Bridge Data'!S127 & " ("&'Bridge Data'!C127&") " & TEXT('Bridge Data'!M127,"###,###") & " sq. ft." -> 3S2202 Replacement (1959) 5,741 sq. ft. | J131: =TEXT('Parameters Added'!$B$24,"0.00") & " PV and " &TEXT('Parameters Added'!$B$25,"0.00") &" CV" -> 1.68 PV and 1.00 CV | K131: ='Bridge Data'!N127/100 -> 0.1
D132: Model Group 125 | F132: ='Bridge Data'!B128 -> 9S3222 | G132: =F132& " " &'Bridge Data'!S128 & " ("&'Bridge Data'!C128&") " & TEXT('Bridge Data'!M128,"###,###") & " sq. ft." -> 9S3222 Replacement (1937) 1,275 sq. ft. | J132: =TEXT('Parameters Added'!$B$24,"0.00") & " PV and " &TEXT('Parameters Added'!$B$25,"0.00") &" CV" -> 1.68 PV and 1.00 CV | K132: ='Bridge Data'!N128/100 -> 0.11
D133: Model Group 126 | F133: ='Bridge Data'!B129 -> 9S3327 | G133: =F133& " " &'Bridge Data'!S129 & " ("&'Bridge Data'!C129&") " & TEXT('Bridge Data'!M129,"###,###") & " sq. ft." -> 9S3327 Replacement (1928) 2,264 sq. ft. | J133: =TEXT('Parameters Added'!$B$24,"0.00") & " PV and " &TEXT('Parameters Added'!$B$25,"0.00") &" CV" -> 1.68 PV and 1.00 CV | K133: ='Bridge Data'!N129/100 -> 0.16
D134: Model Group 127 | F134: ='Bridge Data'!B130 -> 9S3327 | G134: =F134& " " &'Bridge Data'!S130 & " ("&'Bridge Data'!C130&") " & TEXT('Bridge Data'!M130,"###,###") & " sq. ft." -> 9S3327 Replacement (1928) 2,820 sq. ft. | J134: =TEXT('Parameters Added'!$B$24,"0.00") & " PV and " &TEXT('Parameters Added'!$B$25,"0.00") &" CV" -> 1.68 PV and 1.00 CV | K134: ='Bridge Data'!N130/100 -> 0.16
D135: Model Group 128 | F135: ='Bridge Data'!B131 -> 4S3287 | G135: =F135& " " &'Bridge Data'!S131 & " ("&'Bridge Data'!C131&") " & TEXT('Bridge Data'!M131,"###,###") & " sq. ft." -> 4S3287 Replacement (1955) 10,463 sq. ft. | J135: =TEXT('Parameters Added'!$B$24,"0.00") & " PV and " &TEXT('Parameters Added'!$B$25,"0.00") &" CV" -> 1.68 PV and 1.00 CV | K135: ='Bridge Data'!N131/100 -> 0.05
D136: Model Group 129 | F136: ='Bridge Data'!B132 -> 9S3213 | G136: =F136& " " &'Bridge Data'!S132 & " ("&'Bridge Data'!C132&") " & TEXT('Bridge Data'!M132,"###,###") & " sq. ft." -> 9S3213 Replacement (1931) 5,710 sq. ft. | J136: =TEXT('Parameters Added'!$B$24,"0.00") & " PV and " &TEXT('Parameters Added'!$B$25,"0.00") &" CV" -> 1.68 PV and 1.00 CV | K136: ='Bridge Data'!N132/100 -> 0.09
D137: Model Group 130 | F137: ='Bridge Data'!B133 -> 5S3334 | G137: =F137& " " &'Bridge Data'!S133 & " ("&'Bridge Data'!C133&") " & TEXT('Bridge Data'!M133,"###,###") & " sq. ft." -> 5S3334 Rehabilitation (1962) 6,052 sq. ft. | J137: =TEXT('Parameters Added'!$B$24,"0.00") & " PV and " &TEXT('Parameters Added'!$B$25,"0.00") &" CV" -> 1.68 PV and 1.00 CV | K137: ='Bridge Data'!N133/100 -> 0.11
D138: Model Group 131 | F138: ='Bridge Data'!B134 -> 5S3229 | G138: =F138& " " &'Bridge Data'!S134 & " ("&'Bridge Data'!C134&") " & TEXT('Bridge Data'!M134,"###,###") & " sq. ft." -> 5S3229 Redecking (1963) 3,807 sq. ft. | J138: =TEXT('Parameters Added'!$B$24,"0.00") & " PV and " &TEXT('Parameters Added'!$B$25,"0.00") &" CV" -> 1.68 PV and 1.00 CV | K138: ='Bridge Data'!N134/100 -> 0.06
D139: Model Group 132 | F139: ='Bridge Data'!B135 -> 9P3382 | G139: =F139& " " &'Bridge Data'!S135 & " ("&'Bridge Data'!C135&") " & TEXT('Bridge Data'!M135,"###,###") & " sq. ft." -> 9P3382 Rehabilitation (1959) 4,599 sq. ft. | J139: =TEXT('Parameters Added'!$B$24,"0.00") & " PV and " &TEXT('Parameters Added'!$B$25,"0.00") &" CV" -> 1.68 PV and 1.00 CV | K139: ='Bridge Data'!N135/100 -> 0.09
D140: Model Group 133 | F140: ='Bridge Data'!B136 -> 3P3126 | G140: =F140& " " &'Bridge Data'!S136 & " ("&'Bridge Data'!C136&") " & TEXT('Bridge Data'!M136,"###,###") & " sq. ft." -> 3P3126 Replacement (1929) 2,567 sq. ft. | J140: =TEXT('Parameters Added'!$B$24,"0.00") & " PV and " &TEXT('Parameters Added'!$B$25,"0.00") &" CV" -> 1.68 PV and 1.00 CV | K140: ='Bridge Data'!N136/100 -> 0.1
D141: Model Group 134 | F141: ='Bridge Data'!B137 -> 9S3329 | G141: =F141& " " &'Bridge Data'!S137 & " ("&'Bridge Data'!C137&") " & TEXT('Bridge Data'!M137,"###,###") & " sq. ft." -> 9S3329 Replacement (1957) 1,469 sq. ft. | J141: =TEXT('Parameters Added'!$B$24,"0.00") & " PV and " &TEXT('Parameters Added'!$B$25,"0.00") &" CV" -> 1.68 PV and 1.00 CV | K141: ='Bridge Data'!N137/100 -> 0.11
D142: Model Group 135 | F142: ='Bridge Data'!B138 -> 2P3089 | G142: =F142& " " &'Bridge Data'!S138 & " ("&'Bridge Data'!C138&") " & TEXT('Bridge Data'!M138,"###,###") & " sq. ft." -> 2P3089 Replacement (1928) 4,652 sq. ft. | J142: =TEXT('Parameters Added'!$B$24,"0.00") & " PV and " &TEXT('Parameters Added'!$B$25,"0.00") &" CV" -> 1.68 PV and 1.00 CV | K142: ='Bridge Data'!N138/100 -> 0.22
D143: Model Group 136 | F143: ='Bridge Data'!B139 -> 7P3174 | G143: =F143& " " &'Bridge Data'!S139 & " ("&'Bridge Data'!C139&") " & TEXT('Bridge Data'!M139,"###,###") & " sq. ft." -> 7P3174 Rehabilitation (1963) 44,025 sq. ft. | J143: =TEXT('Parameters Added'!$B$24,"0.00") & " PV and " &TEXT('Parameters Added'!$B$25,"0.00") &" CV" -> 1.68 PV and 1.00 CV | K143: ='Bridge Data'!N139/100 -> 0.13
D144: Model Group 137 | F144: ='Bridge Data'!B140 -> 9S3368 | G144: =F144& " " &'Bridge Data'!S140 & " ("&'Bridge Data'!C140&") " & TEXT('Bridge Data'!M140,"###,###") & " sq. ft." -> 9S3368 Replacement (1958) 1,424 sq. ft. | J144: =TEXT('Parameters Added'!$B$24,"0.00") & " PV and " &TEXT('Parameters Added'!$B$25,"0.00") &" CV" -> 1.68 PV and 1.00 CV | K144: ='Bridge Data'!N140/100 -> 0.1
D145: Model Group 138 | F145: ='Bridge Data'!B141 -> 6S3298 | G145: =F145& " " &'Bridge Data'!S141 & " ("&'Bridge Data'!C141&") " & TEXT('Bridge Data'!M141,"###,###") & " sq. ft." -> 6S3298 Replacement (1963) 3,438 sq. ft. | J145: =TEXT('Parameters Added'!$B$24,"0.00") & " PV and " &TEXT('Parameters Added'!$B$25,"0.00") &" CV" -> 1.68 PV and 1.00 CV | K145: ='Bridge Data'!N141/100 -> 0.12
D146: Model Group 139 | F146: ='Bridge Data'!B142 -> 1S3138 | G146: =F146& " " &'Bridge Data'!S142 & " ("&'Bridge Data'!C142&") " & TEXT('Bridge Data'!M142,"###,###") & " sq. ft." -> 1S3138 Replacement (1933) 1,736 sq. ft. | J146: =TEXT('Parameters Added'!$B$24,"0.00") & " PV and " &TEXT('Parameters Added'!$B$25,"0.00") &" CV" -> 1.68 PV and 1.00 CV | K146: ='Bridge Data'!N142/100 -> 0.06
D147: Model Group 140 | F147: ='Bridge Data'!B143 -> 2S2168 | G147: =F147& " " &'Bridge Data'!S143 & " ("&'Bridge Data'!C143&") " & TEXT('Bridge Data'!M143,"###,###") & " sq. ft." -> 2S2168 Replacement (1935) 5,460 sq. ft. | J147: =TEXT('Parameters Added'!$B$24,"0.00") & " PV and " &TEXT('Parameters Added'!$B$25,"0.00") &" CV" -> 1.68 PV and 1.00 CV | K147: ='Bridge Data'!N143/100 -> 0.04
D148: Model Group 141 | F148: ='Bridge Data'!B144 -> 9S3385 | G148: =F148& " " &'Bridge Data'!S144 & " ("&'Bridge Data'!C144&") " & TEXT('Bridge Data'!M144,"###,###") & " sq. ft." -> 9S3385 Replacement (1948) 5,118 sq. ft. | J148: =TEXT('Parameters Added'!$B$24,"0.00") & " PV and " &TEXT('Parameters Added'!$B$25,"0.00") &" CV" -> 1.68 PV and 1.00 CV | K148: ='Bridge Data'!N144/100 -> 0.09
D149: Model Group 142 | F149: ='Bridge Data'!B145 -> 2S3005 | G149: =F149& " " &'Bridge Data'!S145 & " ("&'Bridge Data'!C145&") " & TEXT('Bridge Data'!M145,"###,###") & " sq. ft." -> 2S3005 Replacement (1963) 3,647 sq. ft. | J149: =TEXT('Parameters Added'!$B$24,"0.00") & " PV and " &TEXT('Parameters Added'!$B$25,"0.00") &" CV" -> 1.68 PV and 1.00 CV | K149: ='Bridge Data'!N145/100 -> 0.14
D150: Model Group 143 | F150: ='Bridge Data'!B146 -> 1S3162 | G150: =F150& " " &'Bridge Data'!S146 & " ("&'Bridge Data'!C146&") " & TEXT('Bridge Data'!M146,"###,###") & " sq. ft." -> 1S3162 Rehabilitation (1960) 2,679 sq. ft. | J150: =TEXT('Parameters Added'!$B$24,"0.00") & " PV and " &TEXT('Parameters Added'!$B$25,"0.00") &" CV" -> 1.68 PV and 1.00 CV | K150: ='Bridge Data'!N146/100 -> 0.13
D151: Model Group 144 | F151: ='Bridge Data'!B147 -> 1S3161 | G151: =F151& " " &'Bridge Data'!S147 & " ("&'Bridge Data'!C147&") " & TEXT('Bridge Data'!M147,"###,###") & " sq. ft." -> 1S3161 Rehabilitation (1961) 2,314 sq. ft. | J151: =TEXT('Parameters Added'!$B$24,"0.00") & " PV and " &TEXT('Parameters Added'!$B$25,"0.00") &" CV" -> 1.68 PV and 1.00 CV | K151: ='Bridge Data'!N147/100 -> 0.08
D152: Model Group 145 | F152: ='Bridge Data'!B148 -> 7P3190D | G152: =F152& " " &'Bridge Data'!S148 & " ("&'Bridge Data'!C148&") " & TEXT('Bridge Data'!M148,"###,###") & " sq. ft." -> 7P3190D Rehabilitation (1976) 5,594 sq. ft. | J152: =TEXT('Parameters Added'!$B$24,"0.00") & " PV and " &TEXT('Parameters Added'!$B$25,"0.00") &" CV" -> 1.68 PV and 1.00 CV | K152: ='Bridge Data'!N148/100 -> 0.12
D153: Model Group 146 | F153: ='Bridge Data'!B149 -> 7P3190D | G153: =F153& " " &'Bridge Data'!S149 & " ("&'Bridge Data'!C149&") " & TEXT('Bridge Data'!M149,"###,###") & " sq. ft." -> 7P3190D Rehabilitation (1976) 5,305 sq. ft. | J153: =TEXT('Parameters Added'!$B$24,"0.00") & " PV and " &TEXT('Parameters Added'!$B$25,"0.00") &" CV" -> 1.68 PV and 1.00 CV | K153: ='Bridge Data'!N149/100 -> 0.12
D154: Model Group 147 | F154: ='Bridge Data'!B150 -> 1P3106 | G154: =F154& " " &'Bridge Data'!S150 & " ("&'Bridge Data'!C150&") " & TEXT('Bridge Data'!M150,"###,###") & " sq. ft." -> 1P3106 Rehabilitation (1961) 13,478 sq. ft. | J154: =TEXT('Parameters Added'!$B$24,"0.00") & " PV and " &TEXT('Parameters Added'!$B$25,"0.00") &" CV" -> 1.68 PV and 1.00 CV | K154: ='Bridge Data'!N150/100 -> 0.24
D155: Model Group 148 | F155: ='Bridge Data'!B151 -> 1S3071 | G155: =F155& " " &'Bridge Data'!S151 & " ("&'Bridge Data'!C151&") " & TEXT('Bridge Data'!M151,"###,###") & " sq. ft." -> 1S3071 Rehabilitation (1962) 2,487 sq. ft. | J155: =TEXT('Parameters Added'!$B$24,"0.00") & " PV and " &TEXT('Parameters Added'!$B$25,"0.00") &" CV" -> 1.68 PV and 1.00 CV | K155: ='Bridge Data'!N151/100 -> 0.09
D156: Model Group 149 | F156: ='Bridge Data'!B152 -> 2P3182 | G156: =F156& " " &'Bridge Data'!S152 & " ("&'Bridge Data'!C152&") " & TEXT('Bridge Data'!M152,"###,###") & " sq. ft." -> 2P3182 Rehabilitation (1973) 11,622 sq. ft. | J156: =TEXT('Parameters Added'!$B$24,"0.00") & " PV and " &TEXT('Parameters Added'!$B$25,"0.00") &" CV" -> 1.68 PV and 1.00 CV | K156: ='Bridge Data'!N152/100 -> 0.31
D157: Model Group 150 | F157: ='Bridge Data'!B153 -> 1I3242 | G157: =F157& " " &'Bridge Data'!S153 & " ("&'Bridge Data'!C153&") " & TEXT('Bridge Data'!M153,"###,###") & " sq. ft." -> 1I3242 Rehabilitation (1973) 8,999 sq. ft. | J157: =TEXT('Parameters Added'!$B$24,"0.00") & " PV and " &TEXT('Parameters Added'!$B$25,"0.00") &" CV" -> 1.68 PV and 1.00 CV | K157: ='Bridge Data'!N153/100 -> 0.31
D158: Model Group 151 | F158: ='Bridge Data'!B154 -> 1I3242 | G158: =F158& " " &'Bridge Data'!S154 & " ("&'Bridge Data'!C154&") " & TEXT('Bridge Data'!M154,"###,###") & " sq. ft." -> 1I3242 Rehabilitation (1973) 8,999 sq. ft. | J158: =TEXT('Parameters Added'!$B$24,"0.00") & " PV and " &TEXT('Parameters Added'!$B$25,"0.00") &" CV" -> 1.68 PV and 1.00 CV | K158: ='Bridge Data'!N154/100 -> 0.34
D159: Model Group 152 | F159: ='Bridge Data'!B155 -> 2S0416 | G159: =F159& " " &'Bridge Data'!S155 & " ("&'Bridge Data'!C155&") " & TEXT('Bridge Data'!M155,"###,###") & " sq. ft." -> 2S0416 Replacement (1930) 2,364 sq. ft. | J159: =TEXT('Parameters Added'!$B$24,"0.00") & " PV and " &TEXT('Parameters Added'!$B$25,"0.00") &" CV" -> 1.68 PV and 1.00 CV | K159: ='Bridge Data'!N155/100 -> 0.05
D160: Model Group 153 | F160: ='Bridge Data'!B156 -> 5P3332 | G160: =F160& " " &'Bridge Data'!S156 & " ("&'Bridge Data'!C156&") " & TEXT('Bridge Data'!M156,"###,###") & " sq. ft." -> 5P3332 Replacement (1936) 2,469 sq. ft. | J160: =TEXT('Parameters Added'!$B$24,"0.00") & " PV and " &TEXT('Parameters Added'!$B$25,"0.00") &" CV" -> 1.68 PV and 1.00 CV | K160: ='Bridge Data'!N156/100 -> 0.14
D161: Model Group 154 | F161: ='Bridge Data'!B157 -> 1S3122 | G161: =F161& " " &'Bridge Data'!S157 & " ("&'Bridge Data'!C157&") " & TEXT('Bridge Data'!M157,"###,###") & " sq. ft." -> 1S3122 Replacement (1957) 3,249 sq. ft. | J161: =TEXT('Parameters Added'!$B$24,"0.00") & " PV and " &TEXT('Parameters Added'!$B$25,"0.00") &" CV" -> 1.68 PV and 1.00 CV | K161: ='Bridge Data'!N157/100 -> 0.1
D162: Model Group 155 | F162: ='Bridge Data'!B158 -> 3S0623 | G162: =F162& " " &'Bridge Data'!S158 & " ("&'Bridge Data'!C158&") " & TEXT('Bridge Data'!M158,"###,###") & " sq. ft." -> 3S0623 Replacement (1934) 2,803 sq. ft. | J162: =TEXT('Parameters Added'!$B$24,"0.00") & " PV and " &TEXT('Parameters Added'!$B$25,"0.00") &" CV" -> 1.68 PV and 1.00 CV | K162: ='Bridge Data'!N158/100 -> 0.14
D163: Model Group 156 | F163: ='Bridge Data'!B159 -> 1S0616 | G163: =F163& " " &'Bridge Data'!S159 & " ("&'Bridge Data'!C159&") " & TEXT('Bridge Data'!M159,"###,###") & " sq. ft." -> 1S0616 Replacement (1933) 2,656 sq. ft. | J163: =TEXT('Parameters Added'!$B$24,"0.00") & " PV and " &TEXT('Parameters Added'!$B$25,"0.00") &" CV" -> 1.68 PV and 1.00 CV | K163: ='Bridge Data'!N159/100 -> 0.06
D164: Model Group 157 | F164: ='Bridge Data'!B160 -> 5S3234 | G164: =F164& " " &'Bridge Data'!S160 & " ("&'Bridge Data'!C160&") " & TEXT('Bridge Data'!M160,"###,###") & " sq. ft." -> 5S3234 Replacement (1963) 5,748 sq. ft. | J164: =TEXT('Parameters Added'!$B$24,"0.00") & " PV and " &TEXT('Parameters Added'!$B$25,"0.00") &" CV" -> 1.68 PV and 1.00 CV | K164: ='Bridge Data'!N160/100 -> 0.11
D165: Model Group 158 | F165: ='Bridge Data'!B161 -> 1S3209 | G165: =F165& " " &'Bridge Data'!S161 & " ("&'Bridge Data'!C161&") " & TEXT('Bridge Data'!M161,"###,###") & " sq. ft." -> 1S3209 Replacement (1930) 414 sq. ft. | J165: =TEXT('Parameters Added'!$B$24,"0.00") & " PV and " &TEXT('Parameters Added'!$B$25,"0.00") &" CV" -> 1.68 PV and 1.00 CV | K165: ='Bridge Data'!N161/100 -> 0.17
D166: Model Group 159 | F166: ='Bridge Data'!B162 -> 9S3220 | G166: =F166& " " &'Bridge Data'!S162 & " ("&'Bridge Data'!C162&") " & TEXT('Bridge Data'!M162,"###,###") & " sq. ft." -> 9S3220 Replacement (1947) 1,758 sq. ft. | J166: =TEXT('Parameters Added'!$B$24,"0.00") & " PV and " &TEXT('Parameters Added'!$B$25,"0.00") &" CV" -> 1.68 PV and 1.00 CV | K166: ='Bridge Data'!N162/100 -> 0.11
D167: Model Group 160 | F167: ='Bridge Data'!B163 -> 5I3324 | G167: =F167& " " &'Bridge Data'!S163 & " ("&'Bridge Data'!C163&") " & TEXT('Bridge Data'!M163,"###,###") & " sq. ft." -> 5I3324 Replacement (1956) 4,286 sq. ft. | J167: =TEXT('Parameters Added'!$B$24,"0.00") & " PV and " &TEXT('Parameters Added'!$B$25,"0.00") &" CV" -> 1.68 PV and 1.00 CV | K167: ='Bridge Data'!N163/100 -> 0.29
D168: Model Group 161 | F168: ='Bridge Data'!B164 -> 9S3510 | G168: =F168& " " &'Bridge Data'!S164 & " ("&'Bridge Data'!C164&") " & TEXT('Bridge Data'!M164,"###,###") & " sq. ft." -> 9S3510 Replacement (1933) 2,008 sq. ft. | J168: =TEXT('Parameters Added'!$B$24,"0.00") & " PV and " &TEXT('Parameters Added'!$B$25,"0.00") &" CV" -> 1.68 PV and 1.00 CV | K168: ='Bridge Data'!N164/100 -> 0.1
D169: Model Group 162 | F169: ='Bridge Data'!B165 -> 2P3137 | G169: =F169& " " &'Bridge Data'!S165 & " ("&'Bridge Data'!C165&") " & TEXT('Bridge Data'!M165,"###,###") & " sq. ft." -> 2P3137 Rehabilitation (1963) 8,294 sq. ft. | J169: =TEXT('Parameters Added'!$B$24,"0.00") & " PV and " &TEXT('Parameters Added'!$B$25,"0.00") &" CV" -> 1.68 PV and 1.00 CV | K169: ='Bridge Data'!N165/100 -> 0.23
D170: Model Group 163 | F170: ='Bridge Data'!B166 -> 9S3219 | G170: =F170& " " &'Bridge Data'!S166 & " ("&'Bridge Data'!C166&") " & TEXT('Bridge Data'!M166,"###,###") & " sq. ft." -> 9S3219 Replacement (1930) 6,380 sq. ft. | J170: =TEXT('Parameters Added'!$B$24,"0.00") & " PV and " &TEXT('Parameters Added'!$B$25,"0.00") &" CV" -> 1.68 PV and 1.00 CV | K170: ='Bridge Data'!N166/100 -> 0.08
D171: Model Group 164 | F171: ='Bridge Data'!B167 -> 3S2219 | G171: =F171& " " &'Bridge Data'!S167 & " ("&'Bridge Data'!C167&") " & TEXT('Bridge Data'!M167,"###,###") & " sq. ft." -> 3S2219 Replacement (1947) 2,995 sq. ft. | J171: =TEXT('Parameters Added'!$B$24,"0.00") & " PV and " &TEXT('Parameters Added'!$B$25,"0.00") &" CV" -> 1.68 PV and 1.00 CV | K171: ='Bridge Data'!N167/100 -> 0.12
D172: Model Group 165 | F172: ='Bridge Data'!B168 -> 9S3232 | G172: =F172& " " &'Bridge Data'!S168 & " ("&'Bridge Data'!C168&") " & TEXT('Bridge Data'!M168,"###,###") & " sq. ft." -> 9S3232 Replacement (1953) 2,114 sq. ft. | J172: =TEXT('Parameters Added'!$B$24,"0.00") & " PV and " &TEXT('Parameters Added'!$B$25,"0.00") &" CV" -> 1.68 PV and 1.00 CV | K172: ='Bridge Data'!N168/100 -> 0.11
D173: Model Group 166 | F173: ='Bridge Data'!B169 -> 9S3232 | G173: =F173& " " &'Bridge Data'!S169 & " ("&'Bridge Data'!C169&") " & TEXT('Bridge Data'!M169,"###,###") & " sq. ft." -> 9S3232 Replacement (1953) 5,362 sq. ft. | J173: =TEXT('Parameters Added'!$B$24,"0.00") & " PV and " &TEXT('Parameters Added'!$B$25,"0.00") &" CV" -> 1.68 PV and 1.00 CV | K173: ='Bridge Data'!N169/100 -> 0.23
D174: Model Group 167 | F174: ='Bridge Data'!B170 -> 2S3046 | G174: =F174& " " &'Bridge Data'!S170 & " ("&'Bridge Data'!C170&") " & TEXT('Bridge Data'!M170,"###,###") & " sq. ft." -> 2S3046 Redecking (1964) 17,930 sq. ft. | J174: =TEXT('Parameters Added'!$B$24,"0.00") & " PV and " &TEXT('Parameters Added'!$B$25,"0.00") &" CV" -> 1.68 PV and 1.00 CV | K174: ='Bridge Data'!N170/100 -> 0.11
D175: Model Group 168 | F175: ='Bridge Data'!B171 -> 1S3137 | G175: =F175& " " &'Bridge Data'!S171 & " ("&'Bridge Data'!C171&") " & TEXT('Bridge Data'!M171,"###,###") & " sq. ft." -> 1S3137 Replacement (1935) 1,955 sq. ft. | J175: =TEXT('Parameters Added'!$B$24,"0.00") & " PV and " &TEXT('Parameters Added'!$B$25,"0.00") &" CV" -> 1.68 PV and 1.00 CV | K175: ='Bridge Data'!N171/100 -> 0.11
D176: Model Group 169 | F176: ='Bridge Data'!B172 -> 1S3134 | G176: =F176& " " &'Bridge Data'!S172 & " ("&'Bridge Data'!C172&") " & TEXT('Bridge Data'!M172,"###,###") & " sq. ft." -> 1S3134 Replacement (1927) 6,907 sq. ft. | J176: =TEXT('Parameters Added'!$B$24,"0.00") & " PV and " &TEXT('Parameters Added'!$B$25,"0.00") &" CV" -> 1.68 PV and 1.00 CV | K176: ='Bridge Data'!N172/100 -> 0.08
D177: Model Group 170 | F177: ='Bridge Data'!B173 -> 1P3107 | G177: =F177& " " &'Bridge Data'!S173 & " ("&'Bridge Data'!C173&") " & TEXT('Bridge Data'!M173,"###,###") & " sq. ft." -> 1P3107 Replacement (1926) 3,611 sq. ft. | J177: =TEXT('Parameters Added'!$B$24,"0.00") & " PV and " &TEXT('Parameters Added'!$B$25,"0.00") &" CV" -> 1.68 PV and 1.00 CV | K177: ='Bridge Data'!N173/100 -> 0.08
D178: Model Group 171 | F178: ='Bridge Data'!B174 -> 7S3172 | G178: =F178& " " &'Bridge Data'!S174 & " ("&'Bridge Data'!C174&") " & TEXT('Bridge Data'!M174,"###,###") & " sq. ft." -> 7S3172 Rehabilitation (1966) 12,056 sq. ft. | J178: =TEXT('Parameters Added'!$B$24,"0.00") & " PV and " &TEXT('Parameters Added'!$B$25,"0.00") &" CV" -> 1.68 PV and 1.00 CV | K178: ='Bridge Data'!N174/100 -> 0.11
D179: Model Group 172 | F179: ='Bridge Data'!B175 -> 7S3171 | G179: =F179& " " &'Bridge Data'!S175 & " ("&'Bridge Data'!C175&") " & TEXT('Bridge Data'!M175,"###,###") & " sq. ft." -> 7S3171 Replacement (1925) 6,154 sq. ft. | J179: =TEXT('Parameters Added'!$B$24,"0.00") & " PV and " &TEXT('Parameters Added'!$B$25,"0.00") &" CV" -> 1.68 PV and 1.00 CV | K179: ='Bridge Data'!N175/100 -> 0.22
D180: Model Group 173 | F180: ='Bridge Data'!B176 -> 4I3197 | G180: =F180& " " &'Bridge Data'!S176 & " ("&'Bridge Data'!C176&") " & TEXT('Bridge Data'!M176,"###,###") & " sq. ft." -> 4I3197 Replacement (1958) 6,535 sq. ft. | J180: =TEXT('Parameters Added'!$B$24,"0.00") & " PV and " &TEXT('Parameters Added'!$B$25,"0.00") &" CV" -> 1.68 PV and 1.00 CV | K180: ='Bridge Data'!N176/100 -> 0.07
D181: Model Group 174 | F181: ='Bridge Data'!B177 -> 1S3140 | G181: =F181& " " &'Bridge Data'!S177 & " ("&'Bridge Data'!C177&") " & TEXT('Bridge Data'!M177,"###,###") & " sq. ft." -> 1S3140 Replacement (1955) 4,318 sq. ft. | J181: =TEXT('Parameters Added'!$B$24,"0.00") & " PV and " &TEXT('Parameters Added'!$B$25,"0.00") &" CV" -> 1.68 PV and 1.00 CV | K181: ='Bridge Data'!N177/100 -> 0.13
D182: Model Group 175 | F182: ='Bridge Data'!B178 -> 4S2276 | G182: =F182& " " &'Bridge Data'!S178 & " ("&'Bridge Data'!C178&") " & TEXT('Bridge Data'!M178,"###,###") & " sq. ft." -> 4S2276 Rehabilitation (1976) 32,195 sq. ft. | J182: =TEXT('Parameters Added'!$B$24,"0.00") & " PV and " &TEXT('Parameters Added'!$B$25,"0.00") &" CV" -> 1.68 PV and 1.00 CV | K182: ='Bridge Data'!N178/100 -> 0.08
D183: Model Group 176 | F183: ='Bridge Data'!B179 -> 4I3024 | G183: =F183& " " &'Bridge Data'!S179 & " ("&'Bridge Data'!C179&") " & TEXT('Bridge Data'!M179,"###,###") & " sq. ft." -> 4I3024 Replacement (1962) 14,137 sq. ft. | J183: =TEXT('Parameters Added'!$B$24,"0.00") & " PV and " &TEXT('Parameters Added'!$B$25,"0.00") &" CV" -> 1.68 PV and 1.00 CV | K183: ='Bridge Data'!N179/100 -> 0.05
D184: Model Group 177 | F184: ='Bridge Data'!B180 -> 2P3138 | G184: =F184& " " &'Bridge Data'!S180 & " ("&'Bridge Data'!C180&") " & TEXT('Bridge Data'!M180,"###,###") & " sq. ft." -> 2P3138 Rehabilitation (1963) 6,315 sq. ft. | J184: =TEXT('Parameters Added'!$B$24,"0.00") & " PV and " &TEXT('Parameters Added'!$B$25,"0.00") &" CV" -> 1.68 PV and 1.00 CV | K184: ='Bridge Data'!N180/100 -> 0.23
D185: Model Group 178 | F185: ='Bridge Data'!B181 -> 7I3050 | G185: =F185& " " &'Bridge Data'!S181 & " ("&'Bridge Data'!C181&") " & TEXT('Bridge Data'!M181,"###,###") & " sq. ft." -> 7I3050 Rehabilitation (1966) 27,696 sq. ft. | J185: =TEXT('Parameters Added'!$B$24,"0.00") & " PV and " &TEXT('Parameters Added'!$B$25,"0.00") &" CV" -> 1.68 PV and 1.00 CV | K185: ='Bridge Data'!N181/100 -> 0.36
D186: Model Group 179 | F186: ='Bridge Data'!B182 -> 6S2211 | G186: =F186& " " &'Bridge Data'!S182 & " ("&'Bridge Data'!C182&") " & TEXT('Bridge Data'!M182,"###,###") & " sq. ft." -> 6S2211 Replacement (1928) 776 sq. ft. | J186: =TEXT('Parameters Added'!$B$24,"0.00") & " PV and " &TEXT('Parameters Added'!$B$25,"0.00") &" CV" -> 1.68 PV and 1.00 CV | K186: ='Bridge Data'!N182/100 -> 0.03
D187: Model Group 180 | F187: ='Bridge Data'!B183 -> 2S3071 | G187: =F187& " " &'Bridge Data'!S183 & " ("&'Bridge Data'!C183&") " & TEXT('Bridge Data'!M183,"###,###") & " sq. ft." -> 2S3071 Replacement (1958) 2,508 sq. ft. | J187: =TEXT('Parameters Added'!$B$24,"0.00") & " PV and " &TEXT('Parameters Added'!$B$25,"0.00") &" CV" -> 1.68 PV and 1.00 CV | K187: ='Bridge Data'!N183/100 -> 0.06
D188: Model Group 181 | F188: ='Bridge Data'!B184 -> 2S3120 | G188: =F188& " " &'Bridge Data'!S184 & " ("&'Bridge Data'!C184&") " & TEXT('Bridge Data'!M184,"###,###") & " sq. ft." -> 2S3120 Replacement (1961) 3,031 sq. ft. | J188: =TEXT('Parameters Added'!$B$24,"0.00") & " PV and " &TEXT('Parameters Added'!$B$25,"0.00") &" CV" -> 1.68 PV and 1.00 CV | K188: ='Bridge Data'!N184/100 -> 0.17
D189: Model Group 182 | F189: ='Bridge Data'!B185 -> 3P3092 | G189: =F189& " " &'Bridge Data'!S185 & " ("&'Bridge Data'!C185&") " & TEXT('Bridge Data'!M185,"###,###") & " sq. ft." -> 3P3092 Replacement (1929) 2,246 sq. ft. | J189: =TEXT('Parameters Added'!$B$24,"0.00") & " PV and " &TEXT('Parameters Added'!$B$25,"0.00") &" CV" -> 1.68 PV and 1.00 CV | K189: ='Bridge Data'!N185/100 -> 0.21
D190: Model Group 183 | F190: ='Bridge Data'!B186 -> 9S3224 | G190: =F190& " " &'Bridge Data'!S186 & " ("&'Bridge Data'!C186&") " & TEXT('Bridge Data'!M186,"###,###") & " sq. ft." -> 9S3224 Replacement (1957) 1,446 sq. ft. | J190: =TEXT('Parameters Added'!$B$24,"0.00") & " PV and " &TEXT('Parameters Added'!$B$25,"0.00") &" CV" -> 1.68 PV and 1.00 CV | K190: ='Bridge Data'!N186/100 -> 0.11
D191: Model Group 184 | F191: ='Bridge Data'!B187 -> 9S3224 | G191: =F191& " " &'Bridge Data'!S187 & " ("&'Bridge Data'!C187&") " & TEXT('Bridge Data'!M187,"###,###") & " sq. ft." -> 9S3224 Replacement (1954) 1,313 sq. ft. | J191: =TEXT('Parameters Added'!$B$24,"0.00") & " PV and " &TEXT('Parameters Added'!$B$25,"0.00") &" CV" -> 1.68 PV and 1.00 CV | K191: ='Bridge Data'!N187/100 -> 0.1
D192: Model Group 185 | F192: ='Bridge Data'!B188 -> 9S3224 | G192: =F192& " " &'Bridge Data'!S188 & " ("&'Bridge Data'!C188&") " & TEXT('Bridge Data'!M188,"###,###") & " sq. ft." -> 9S3224 Replacement (1957) 1,624 sq. ft. | J192: =TEXT('Parameters Added'!$B$24,"0.00") & " PV and " &TEXT('Parameters Added'!$B$25,"0.00") &" CV" -> 1.68 PV and 1.00 CV | K192: ='Bridge Data'!N188/100 -> 0.11
D193: Model Group 186 | F193: ='Bridge Data'!B189 -> 9S3224 | G193: =F193& " " &'Bridge Data'!S189 & " ("&'Bridge Data'!C189&") " & TEXT('Bridge Data'!M189,"###,###") & " sq. ft." -> 9S3224 Replacement (1957) 1,869 sq. ft. | J193: =TEXT('Parameters Added'!$B$24,"0.00") & " PV and " &TEXT('Parameters Added'!$B$25,"0.00") &" CV" -> 1.68 PV and 1.00 CV | K193: ='Bridge Data'!N189/100 -> 0.11
D194: Model Group 187 | F194: ='Bridge Data'!B190 -> 9S3381 | G194: =F194& " " &'Bridge Data'!S190 & " ("&'Bridge Data'!C190&") " & TEXT('Bridge Data'!M190,"###,###") & " sq. ft." -> 9S3381 Replacement (1934) 17,877 sq. ft. | J194: =TEXT('Parameters Added'!$B$24,"0.00") & " PV and " &TEXT('Parameters Added'!$B$25,"0.00") &" CV" -> 1.68 PV and 1.00 CV | K194: ='Bridge Data'!N190/100 -> 0.05
D195: Model Group 188 | F195: ='Bridge Data'!B191 -> 1S3208 | G195: =F195& " " &'Bridge Data'!S191 & " ("&'Bridge Data'!C191&") " & TEXT('Bridge Data'!M191,"###,###") & " sq. ft." -> 1S3208 Replacement (1946) 1,552 sq. ft. | J195: =TEXT('Parameters Added'!$B$24,"0.00") & " PV and " &TEXT('Parameters Added'!$B$25,"0.00") &" CV" -> 1.68 PV and 1.00 CV | K195: ='Bridge Data'!N191/100 -> 0.11
D196: Model Group 189 | F196: ='Bridge Data'!B192 -> 9P3380 | G196: =F196& " " &'Bridge Data'!S192 & " ("&'Bridge Data'!C192&") " & TEXT('Bridge Data'!M192,"###,###") & " sq. ft." -> 9P3380 Redecking (1955) 19,665 sq. ft. | J196: =TEXT('Parameters Added'!$B$24,"0.00") & " PV and " &TEXT('Parameters Added'!$B$25,"0.00") &" CV" -> 1.68 PV and 1.00 CV | K196: ='Bridge Data'!N192/100 -> 0.08
D197: Model Group 190 | F197: ='Bridge Data'!B193 -> 5S3282 | G197: =F197& " " &'Bridge Data'!S193 & " ("&'Bridge Data'!C193&") " & TEXT('Bridge Data'!M193,"###,###") & " sq. ft." -> 5S3282 Replacement (1967) 4,123 sq. ft. | J197: =TEXT('Parameters Added'!$B$24,"0.00") & " PV and " &TEXT('Parameters Added'!$B$25,"0.00") &" CV" -> 1.68 PV and 1.00 CV | K197: ='Bridge Data'!N193/100 -> 0.11
D198: Model Group 191 | F198: ='Bridge Data'!B194 -> 9S3396 | G198: =F198& " " &'Bridge Data'!S194 & " ("&'Bridge Data'!C194&") " & TEXT('Bridge Data'!M194,"###,###") & " sq. ft." -> 9S3396 Replacement (1958) 1,424 sq. ft. | J198: =TEXT('Parameters Added'!$B$24,"0.00") & " PV and " &TEXT('Parameters Added'!$B$25,"0.00") &" CV" -> 1.68 PV and 1.00 CV | K198: ='Bridge Data'!N194/100 -> 0.11
D199: Model Group 192 | F199: ='Bridge Data'!B195 -> 7P3190C | G199: =F199& " " &'Bridge Data'!S195 & " ("&'Bridge Data'!C195&") " & TEXT('Bridge Data'!M195,"###,###") & " sq. ft." -> 7P3190C Rehabilitation (1967) 14,965 sq. ft. | J199: =TEXT('Parameters Added'!$B$24,"0.00") & " PV and " &TEXT('Parameters Added'!$B$25,"0.00") &" CV" -> 1.68 PV and 1.00 CV | K199: ='Bridge Data'!N195/100 -> 0.1
D200: Model Group 193 | F200: ='Bridge Data'!B196 -> 7P3190F | G200: =F200& " " &'Bridge Data'!S196 & " ("&'Bridge Data'!C196&") " & TEXT('Bridge Data'!M196,"###,###") & " sq. ft." -> 7P3190F Replacement (1928) 6,583 sq. ft. | J200: =TEXT('Parameters Added'!$B$24,"0.00") & " PV and " &TEXT('Parameters Added'!$B$25,"0.00") &" CV" -> 1.68 PV and 1.00 CV | K200: ='Bridge Data'!N196/100 -> 0.11
D201: Model Group 194 | F201: ='Bridge Data'!B197 -> 7P3190L | G201: =F201& " " &'Bridge Data'!S197 & " ("&'Bridge Data'!C197&") " & TEXT('Bridge Data'!M197,"###,###") & " sq. ft." -> 7P3190L Rehabilitation (1973) 38,122 sq. ft. | J201: =TEXT('Parameters Added'!$B$24,"0.00") & " PV and " &TEXT('Parameters Added'!$B$25,"0.00") &" CV" -> 1.68 PV and 1.00 CV | K201: ='Bridge Data'!N197/100 -> 0.08
D202: Model Group 195 | F202: ='Bridge Data'!B198 -> 7P3190H | G202: =F202& " " &'Bridge Data'!S198 & " ("&'Bridge Data'!C198&") " & TEXT('Bridge Data'!M198,"###,###") & " sq. ft." -> 7P3190H Replacement (1958) 1,980 sq. ft. | J202: =TEXT('Parameters Added'!$B$24,"0.00") & " PV and " &TEXT('Parameters Added'!$B$25,"0.00") &" CV" -> 1.68 PV and 1.00 CV | K202: ='Bridge Data'!N198/100 -> 0.1
D203: Model Group 196 | F203: ='Bridge Data'!B199 -> 5S3344 | G203: =F203& " " &'Bridge Data'!S199 & " ("&'Bridge Data'!C199&") " & TEXT('Bridge Data'!M199,"###,###") & " sq. ft." -> 5S3344 Rehabilitation (1964) 6,107 sq. ft. | J203: =TEXT('Parameters Added'!$B$24,"0.00") & " PV and " &TEXT('Parameters Added'!$B$25,"0.00") &" CV" -> 1.68 PV and 1.00 CV | K203: ='Bridge Data'!N199/100 -> 0.08
D204: Model Group 197 | F204: ='Bridge Data'!B200 -> 5S3349 | G204: =F204& " " &'Bridge Data'!S200 & " ("&'Bridge Data'!C200&") " & TEXT('Bridge Data'!M200,"###,###") & " sq. ft." -> 5S3349 Redecking (1967) 6,156 sq. ft. | J204: =TEXT('Parameters Added'!$B$24,"0.00") & " PV and " &TEXT('Parameters Added'!$B$25,"0.00") &" CV" -> 1.68 PV and 1.00 CV | K204: ='Bridge Data'!N200/100 -> 0.01
D205: Model Group 198 | F205: ='Bridge Data'!B201 -> 4S3286 | G205: =F205& " " &'Bridge Data'!S201 & " ("&'Bridge Data'!C201&") " & TEXT('Bridge Data'!M201,"###,###") & " sq. ft." -> 4S3286 Rehabilitation (1968) 4,217 sq. ft. | J205: =TEXT('Parameters Added'!$B$24,"0.00") & " PV and " &TEXT('Parameters Added'!$B$25,"0.00") &" CV" -> 1.68 PV and 1.00 CV | K205: ='Bridge Data'!N201/100 -> 0.1
... 560 more rows

Sheet 3) Results
B2: District: | E2: =IF('1) Project Information'!E2<>"",'1) Project Information'!E2,"") -> 
B4: PROJECT: | E4: =IF(ProjName<>"",ProjName,"") -> 250 Bridges BCA
D9: 3 | E9: INVESTMENT ANALYSIS
E10: SUMMARY RESULTS
P12: Total Over
E13: Life-Cycle Costs (mil. $) | H13: =LifeCycleCost/1000000 -> 341.7105932 | L13: ITEMIZED BENEFITS (mil. $) | P13: Analysis Period
E14: Life-Cycle Benefits (mil. $) | H14: =LifeCycleBene/1000000 -> 5517.545816 | L14: Travel Time Savings | P14: =('Final Calculations'!C83+'Final Calculations'!G83+'Final Calculations'!K83+'Final Calculations'!O83)/1000000 -> 2934.378932
E15: Net Present Value (mil. $) | H15: =NetPresentValue/1000000 -> 5175.835223 | L15: Veh. Op. Cost Savings | P15: =('Final Calculations'!D83+'Final Calculations'!H83+'Final Calculations'!L83+'Final Calculations'!P83)/1000000 -> 2554.46619
L16: Accident Cost Savings | P16: =('Final Calculations'!E83+'Final Calculations'!I83+'Final Calculations'!M83+'Final Calculations'!Q83)/1000000 -> 0
E17: Benefit / Cost Ratio: | H17: =IF(LifeCycleCost=0,"N/A",LifeCycleBene/LifeCycleCost) -> 16.14683866 | L17: Emission Cost Savings | P17: =('Final Calculations'!F83+'Final Calculations'!J83+'Final Calculations'!N83+'Final Calculations'!R83)/1000000 -> 28.70069353
L18: TOTAL BENEFITS | P18: =SUM(P14:P17) -> 5517.545816
E19: Rate of Return on Investment: | H19: =ReturnOnInvest -> 0.2606208185
L20: Person-Hours of Time Saved | P20: ='Final Calculations'!C85+'Final Calculations'!G85+'Final Calculations'!K85+'Final Calculations'!O85 -> 746448129.6
E21: Payback Period: | H21: =Payback -> 10 years
D24: Should benefit-cost results include: | O24: Tons | P24: Value (mil. $)
O25: Total Over | P25: Total Over
E26: 1) Induced Travel? (y/n) | H26: N | L26: EMISSIONS REDUCTION | O26: Analysis Period | P26: Analysis Period
H27: Default = Y | L27: CO Emissions Saved | O27: ='Final Calculations'!C88+'Final Calculations'!G88+'Final Calculations'!K88+'Final Calculations'!O88 -> 17748.43604 | P27: =('Final Calculations'!D88+'Final Calculations'!H88+'Final Calculations'!L88+'Final Calculations'!P88)/1000000 -> 0
E28: 2) Vehicle Operating Costs? (y/n) | H28: Y | L28: CO2 Emissions Saved | O28: ='Final Calculations'!C89+'Final Calculations'!G89+'Final Calculations'!K89+'Final Calculations'!O89 -> 12307185.6 | P28: =('Final Calculations'!D89+'Final Calculations'!H89+'Final Calculations'!L89+'Final Calculations'!P89)/1000000 -> 3.622351404
H29: Default = Y | L29: NOX Emissions Saved | O29: ='Final Calculations'!C90+'Final Calculations'!G90+'Final Calculations'!K90+'Final Calculations'!O90 -> 6955.736554 | P29: =('Final Calculations'!D90+'Final Calculations'!H90+'Final Calculations'!L90+'Final Calculations'!P90)/1000000 -> 11.14338712
E30: 3) Accident Costs are not included * | L30: PM10 Emissions Saved | O30: ='Final Calculations'!C91+'Final Calculations'!G91+'Final Calculations'!K91+'Final Calculations'!O91 -> 179.7773361 | P30: =('Final Calculations'!D91+'Final Calculations'!H91+'Final Calculations'!L91+'Final Calculations'!P91)/1000000 -> 12.85967448
L31: PM2.5 Emissions Saved | O31: ='Final Calculations'!C92+'Final Calculations'!G92+'Final Calculations'!K92+'Final Calculations'!O92 -> 163.9653183
E32: 4) Vehicle Emissions? (y/n) | H32: Y | L32: SOX Emissions Saved | O32: ='Final Calculations'!C93+'Final Calculations'!G93+'Final Calculations'!K93+'Final Calculations'!O93 -> 96.7388865 | P32: =('Final Calculations'!D93+'Final Calculations'!H93+'Final Calculations'!L93+'Final Calculations'!P93)/1000000 -> 0.945853124
E33: includes value for CO2e | H33: Default = Y | L33: VOC Emissions Saved | O33: ='Final Calculations'!C94+'Final Calculations'!G94+'Final Calculations'!K94+'Final Calculations'!O94 -> 345.9865945 | P33: =('Final Calculations'!D94+'Final Calculations'!H94+'Final Calculations'!L94+'Final Calculations'!P94)/1000000 -> 0.1294274035
E36: * Safety benefits (accident cost savings) are not quantified in this analysis - they are analyzed qualitatively in the BCA Technical Appendix.

Sheet Parameters Added
A1: Additional Parameters
B3: Parameter | C3: Description (units) | D3: Notes/Comments
B4: 0.15 | C4: Preliminary Engineering percentage
B5: 0.02 | C5: Administrative/Legal
B6: 0 | C6: Right-of-Way
B7: 0 | C7: Utilities
B8: 0.1 | C8: Project Management
B9: =SUM(B4:B8) -> 0.27 | C9: Percent additional (on top of construction) | D9: Includes PE, Admin, ROW, Utilities, PM above
B11: 0 | C11: Increase in construction cost | D11: This is only used for sensitivity analysis
B13: 4 | C13: =Lookups!B3 &" Construction Duration (months)" -> Rehabilitation Construction Duration (months) | D13: Assumed that construction takes place in one year. No distinction between fiscal and calendar year is assumed. Construction cannot take more than one year.
B14: 4 | C14: =Lookups!B4 &" Construction Duration (months)" -> Redecking Construction Duration (months)
B15: 6 | C15: =Lookups!B5 &" Construction Duration (months)" -> Replacement Construction Duration (months)
B16: 30 | C16: Benefit Years | D16: ="Each bridge has "&$B$16&" years of analysis starting the year after construction." -> Each bridge has 30 years of analysis starting the year after construction.
B18: 55 | C18: Assumed Speed | D18: HDR Assumption
B19: =$B$18 -> 55 | C19: ="No Build Speed of Trucks and Cars for Detour in " & YearFirst -> No Build Speed of Trucks and Cars for Detour in 2020 | D19: HDR Assumption
B20: =$B$18 -> 55 | C20: ="No Build Speed of Trucks and Cars for Detour in " & YearLast -> No Build Speed of Trucks and Cars for Detour in 2040 | D20: HDR Assumption
B21: 55 | C21: ="Build Speed of Trucks and Cars for Detour in " & YearFirst -> Build Speed of Trucks and Cars for Detour in 2020 | D21: HDR Assumption
B22: 55 | C22: ="Build Speed of Trucks and Cars for Detour in " & YearLast -> Build Speed of Trucks and Cars for Detour in 2040 | D22: HDR Assumption
B24: ='VALUE OF TIME'!C79 -> 1.68 | C24: Car AVO | D24: ='VALUE OF TIME'!D79 -> The source cited in BCA Guidance is Federal Highway Administration Highway Statistics 2016, Table VM1
B25: ='VALUE OF TIME'!$C$80 -> 1 | C25: Truck AVO
A27: =Lookups!B3 -> Rehabilitation
A28: No Build Threshold Start | B28: 0 | C28: No Build Start Detour length (in miles) threshold over which some percent of trips will not take place | D28: =A27 -> Rehabilitation
A29: No Build Threshold End | B29: 130 | C29: No Build End Detour length (in miles) threshold over which some percent of trips will not take place | D29: =A27 -> Rehabilitation
A30: No Build PV Percent Start | B30: 1 | C30: No Build Start Percent of Personal Vehicle trips that will not be made in case of the threshold is exceeded | D30: =A27 -> Rehabilitation
A31: No Build PV Percent End | B31: 1 | C31: No Build End Percent of Personal Vehicle trips that will not be made in case of the threshold is exceeded | D31: =A27 -> Rehabilitation
A32: No Build CV Percent Start | B32: 0 | C32: No Build Start Percent of Commercial Vehicle trips that will not be made in case of the threshold is exceeded | D32: =A27 -> Rehabilitation
A33: No Build CV Percent End | B33: 0 | C33: No Build End Percent of Commercial Vehicle trips that will not be made in case of the threshold is exceeded | D33: =A27 -> Rehabilitation
A35: Build Threshold Start | B35: 0 | C35: Build Start Detour length (in miles) threshold over which some percent of trips will not take place | D35: =A27 -> Rehabilitation
A36: Build Threshold End | B36: 130 | C36: Build End Detour length (in miles) threshold over which some percent of trips will not take place | D36: =A27 -> Rehabilitation
A37: Build PV Percent Start | B37: =1-$B$13/12 -> 0.6666666667 | C37: Build Start Percent of Personal Vehicle trips that will not be made in case of the threshold is exceeded | D37: Based on assumption that the closure during Rehabilitation will be 4 months
A38: Build PV Percent End | B38: =1-$B$13/12 -> 0.6666666667 | C38: Build End Percent of Personal Vehicle trips that will not be made in case of the threshold is exceeded | D38: Based on assumption that the closure during Rehabilitation will be 4 months
A39: Build CV Percent Start | B39: 0.6666666667 | C39: Build Start Percent of Commercial Vehicle trips that will not be made in case of the threshold is exceeded | D39: Based on assumption that the closure during Rehabilitation will be 4 months
A40: Build CV Percent End | B40: 0.6666666667 | C40: Build End Percent of Commercial Vehicle trips that will not be made in case of the threshold is exceeded | D40: Based on assumption that the closure during Rehabilitation will be 4 months
A42: =Lookups!B4 -> Redecking
A43: No Build Threshold Start | B43: 0 | C43: No Build Start Detour length (in miles) threshold over which some percent of trips will not take place | D43: =A42 -> Redecking
A44: No Build Threshold End | B44: 130 | C44: No Build End Detour length (in miles) threshold over which some percent of trips will not take place | D44: =A42 -> Redecking
A45: No Build PV Percent Start | B45: 1 | C45: No Build Start Percent of Personal Vehicle trips that will not be made in case of the threshold is exceeded | D45: =A42 -> Redecking
A46: No Build PV Percent End | B46: 1 | C46: No Build End Percent of Personal Vehicle trips that will not be made in case of the threshold is exceeded | D46: =A42 -> Redecking
A47: No Build CV Percent Start | B47: 0 | C47: No Build Start Percent of Commercial Vehicle trips that will not be made in case of the threshold is exceeded | D47: =A42 -> Redecking
A48: No Build CV Percent End | B48: 0 | C48: No Build End Percent of Commercial Vehicle trips that will not be made in case of the threshold is exceeded | D48: =A42 -> Redecking
A50: Build Threshold Start | B50: 0 | C50: Build Start Detour length (in miles) threshold over which some percent of trips will not take place | D50: =A42 -> Redecking
A51: Build Threshold End | B51: 130 | C51: Build End Detour length (in miles) threshold over which some percent of trips will not take place | D51: =A42 -> Redecking
A52: Build PV Percent Start | B52: =1-$B$14/12 -> 0.6666666667 | C52: Build Start Percent of Personal Vehicle trips that will not be made in case of the threshold is exceeded | D52: Based on assumption that the closure during Redecking will be 4 months
A53: Build PV Percent End | B53: =1-$B$14/12 -> 0.6666666667 | C53: Build End Percent of Personal Vehicle trips that will not be made in case of the threshold is exceeded | D53: Based on assumption that the closure during Redecking will be 4 months
A54: Build CV Percent Start | B54: 0.6666666667 | C54: Build Start Percent of Commercial Vehicle trips that will not be made in case of the threshold is exceeded | D54: Based on assumption that the closure during Redecking will be 4 months
A55: Build CV Percent End | B55: 0.6666666667 | C55: Build End Percent of Commercial Vehicle trips that will not be made in case of the threshold is exceeded | D55: Based on assumption that the closure during Redecking will be 4 months
A57: =Lookups!B5 -> Replacement
A58: No Build Threshold Start | B58: 0 | C58: No Build Start Detour length (in miles) threshold over which some percent of trips will not take place | D58: =A57 -> Replacement
A59: No Build Threshold End | B59: 130 | C59: No Build End Detour length (in miles) threshold over which some percent of trips will not take place | D59: =A57 -> Replacement
A60: No Build PV Percent Start | B60: 0.5 | C60: No Build Start Percent of Personal Vehicle trips that will not be made in case of the threshold is exceeded | D60: =A57 -> Replacement
A61: No Build PV Percent End | B61: 0.5 | C61: No Build End Percent of Personal Vehicle trips that will not be made in case of the threshold is exceeded | D61: =A57 -> Replacement
A62: No Build CV Percent Start | B62: 0.1 | C62: No Build Start Percent of Commercial Vehicle trips that will not be made in case of the threshold is exceeded | D62: =A57 -> Replacement
A63: No Build CV Percent End | B63: 0.1 | C63: No Build End Percent of Commercial Vehicle trips that will not be made in case of the threshold is exceeded | D63: =A57 -> Replacement
A65: Build Threshold Start | B65: 0 | C65: Build Start Detour length (in miles) threshold over which some percent of trips will not take place | D65: =A57 -> Replacement
A66: Build Threshold End | B66: 130 | C66: Build End Detour length (in miles) threshold over which some percent of trips will not take place | D66: =A57 -> Replacement
A67: Build PV Percent Start | B67: =1-$B$15/12 -> 0.5 | C67: Build Start Percent of Personal Vehicle trips that will not be made in case of the threshold is exceeded | D67: Based on assumption that the closure during Replacement will be 6 months
A68: Build PV Percent End | B68: =1-$B$15/12 -> 0.5 | C68: Build End Percent of Personal Vehicle trips that will not be made in case of the threshold is exceeded | D68: Based on assumption that the closure during Replacement will be 6 months
A69: Build CV Percent Start | B69: 0.5 | C69: Build Start Percent of Commercial Vehicle trips that will not be made in case of the threshold is exceeded | D69: Based on assumption that the closure during Replacement will be 6 months
A70: Build CV Percent End | B70: 0.5 | C70: Build End Percent of Commercial Vehicle trips that will not be made in case of the threshold is exceeded | D70: Based on assumption that the closure during Replacement will be 6 months
B72: 0.62 | C72: Minimum detour, miles | D72: Minimum of all detours in the NBI Data
B73: 130 | C73: Maximum detour, miles | D73: Maximum of all detours in the NBI Data
B74: No | C74: Apply car detour average of 16 top detour bridges to all bridges?
B75: No | C75: Use longer detours for both trucks and cars in Build Scenario?
A77: Parameter to estimate the year of bridge closure
B78: 2018 | C78: Bridge Age reference current year
B80: 50 | C80: Bridge life cut-off maximum age for Bridge Closure Year Age Logic 1 | D80: See Lookups worksheet to see how Age Logic 1 and Age Logic 2 are defined
B82: 1 | C82: Number of Critical and/or Bad conditions needed to be excluded from Conditions Logic 1 | D82: See Lookups worksheet to see how Conditions Logic 1 through 4 are defined
B83: 1 | C83: Number of Critical conditions to be excluded from Conditions Logic 2 | D83: See Lookups worksheet to see how Conditions Logic 1 through 4 are defined
B84: 2 | C84: Number of Critical conditions to be excluded from Conditions Logic 3 | D84: See Lookups worksheet to see how Conditions Logic 1 through 4 are defined
C85: Note: see the BCA technical appendix for more information on the logic applied to estimating the year when the bridge would have to be closed.

Sheet Lookups
B2: lstConstrType | C2: lstConstrDuration
B3: Rehabilitation | C3: ='Parameters Added'!B13 -> 4
B4: Redecking | C4: ='Parameters Added'!B14 -> 4
B5: Replacement | C5: ='Parameters Added'!B15 -> 6
B7: Original Value | C7: New Value | D7: Comment
B8: Bridge replacement | C8: =B5 -> Replacement | D8: Matches to Construction Cost Data Sheet
B9: Bridge rehabilitation | C9: =B3 -> Rehabilitation
B10: Bridge improvements | C10: =B4 -> Redecking
B11: Bridge replacements | C11: =B5 -> Replacement
B12: Bridge replacements | C12: =B5 -> Replacement
B13: Bridge improvement | C13: =B4 -> Redecking
B14: Bridge rehabilitation | C14: =B3 -> Rehabilitation
B15: Bridge rehabilitation | C15: =B3 -> Rehabilitation
B16: Bridge rehabilition | C16: =B3 -> Rehabilitation
B17: Bridge replacement | C17: =B5 -> Replacement
B18: =B3 -> Rehabilitation | C18: =B3 -> Rehabilitation
B19: =B5 -> Replacement | C19: =B5 -> Replacement
B20: Replace | C20: =B5 -> Replacement | D20: Matches to Improvements Sheet
B21: Rehab | C21: =B3 -> Rehabilitation
B22: Redeck | C22: =B4 -> Redecking
D24: =$B$3 -> Rehabilitation | H24: =$B$4 -> Redecking | L24: =$B$5 -> Replacement
B25: lstCondition | C25: lstConditionCritical | D25: matConditionCriticalType1 | H25: matConditionCriticalType2 | L25: matConditionCriticalType3
D26: ='Bridge Data'!O3 -> DECK_RATING | E26: ='Bridge Data'!P3 -> SUPER_RATING | F26: ='Bridge Data'!Q3 -> SUBSTRUC_RATING | H26: =$D$26 -> DECK_RATING | I26: =$E$26 -> SUPER_RATING | J26: =$F$26 -> SUBSTRUC_RATING | L26: =$D$26 -> DECK_RATING | M26: =$E$26 -> SUPER_RATING | N26: =$F$26 -> SUBSTRUC_RATING
B27: VERY GOOD CONDITION | D27: =$C27 -> 0 | E27: =$C27 -> 0 | F27: 0 | H27: =$C27 -> 0 | L27: =$C27 -> 0 | M27: 0 | N27: 0
B28: GOOD CONDITION | D28: =$C28 -> 0 | E28: 0 | F28: 0 | H28: 0 | L28: 0 | M28: 0 | N28: 0
B29: SATISFACTORY CONDITION | D29: 0 | E29: 0 | F29: 0 | H29: 0 | L29: 0 | M29: 0 | N29: 0
B30: FAIR CONDITION | D30: 0 | E30: 0 | F30: 0 | H30: 0 | L30: 0 | M30: 0 | N30: 0
B31: POOR CONDITION | D31: 0 | E31: 0 | F31: 0 | H31: 0 | L31: 0 | M31: 0 | N31: 0
B32: SERIOUS CONDITION | C32: 1 | D32: 1 | E32: 1 | F32: 1 | H32: 1 | L32: 1 | M32: 1 | N32: 1
B33: NOT APPLICABLE | D33: 0 | E33: 0 | F33: 0 | H33: 0 | L33: 0 | M33: 0 | N33: 0
C34: Note: only one value can be equal to 1 for the model to work properly. | H34: Note: only deck rating is relevant for Redecking projects.
C36: lstConditionBad | D36: matConditionBadType1 | H36: matConditionBadType2 | L36: matConditionBadType3
D37: =$D$26 -> DECK_RATING | E37: =$E$26 -> SUPER_RATING | F37: =$F$26 -> SUBSTRUC_RATING | H37: =$D$26 -> DECK_RATING | I37: =$E$26 -> SUPER_RATING | J37: =$F$26 -> SUBSTRUC_RATING | L37: =$D$26 -> DECK_RATING | M37: =$E$26 -> SUPER_RATING | N37: =$F$26 -> SUBSTRUC_RATING
B38: VERY GOOD CONDITION | D38: =$C38 -> 0 | E38: =$C38 -> 0 | F38: 0 | H38: =$C38 -> 0 | L38: =$C38 -> 0 | M38: 0 | N38: 0
B39: GOOD CONDITION | D39: =$C39 -> 0 | E39: 0 | F39: 0 | H39: 0 | L39: 0 | M39: 0 | N39: 0
B40: SATISFACTORY CONDITION | D40: 0 | E40: 0 | F40: 0 | H40: 0 | L40: 0 | M40: 0 | N40: 0
B41: FAIR CONDITION | D41: 0 | E41: 0 | F41: 0 | H41: 0 | L41: 0 | M41: 0 | N41: 0
B42: POOR CONDITION | C42: 1 | D42: 1 | E42: 1 | F42: 1 | H42: 1 | L42: 1 | M42: 1 | N42: 1
B43: SERIOUS CONDITION | D43: 0 | E43: 0 | F43: 0 | H43: 0 | L43: 0 | M43: 0 | N43: 0
B44: NOT APPLICABLE | D44: 0 | E44: 0 | F44: 0 | H44: 0 | L44: 0 | M44: 0 | N44: 0
C45: Note: only one value can be equal to 1 for the model to work properly. | H45: Note: only deck rating is relevant for Redecking projects.
B47: Additional years before bridge closes
C48: =$B$3 -> Rehabilitation | H48: =$B$4 -> Redecking | L48: =$B$5 -> Replacement
D49: matLogic1 | I49: matLogic2 | M49: matLogic3
D50: Age Logic 1 | E50: Age Logic 2
D51: ="Age <= "&'Parameters Added'!$B$80 & " Years" -> Age <= 50 Years | E51: ="Age > "&'Parameters Added'!$B$80 & " Years" -> Age > 50 Years | I51: ="Age <= "&'Parameters Added'!$B$80 & " Years" -> Age <= 50 Years | J51: ="Age > "&'Parameters Added'!$B$80 & " Years" -> Age > 50 Years | M51: ="Age <= "&'Parameters Added'!$B$80 & " Years" -> Age <= 50 Years | N51: ="Age > "&'Parameters Added'!$B$80 & " Years" -> Age > 50 Years
B52: Condition Logic 1 | C52: ="Bad and Critical = " &'Parameters Added'!$B$82-1 -> Bad and Critical = 0 | D52: 30 | E52: 20 | H52: ="Bad and Critical = " &'Parameters Added'!$B$82-1 -> Bad and Critical = 0 | I52: 8 | J52: 8 | L52: ="Bad and Critical = " &'Parameters Added'!$B$82-1 -> Bad and Critical = 0 | M52: 25 | N52: 15
B53: Condition Logic 2 | C53: ="At least " &'Parameters Added'!$B$82 & " Bad" -> At least 1 Bad | D53: 25 | E53: 15 | H53: ="At least " &'Parameters Added'!$B$82 & " Bad" -> At least 1 Bad | I53: 8 | J53: 8 | L53: ="At least " &'Parameters Added'!$B$82 & " Bad" -> At least 1 Bad | M53: 20 | N53: 10
B54: Condition Logic 3 | C54: ="At least " &'Parameters Added'!$B$83 & " Critical" -> At least 1 Critical | D54: 15 | E54: 10 | H54: ="At least " &'Parameters Added'!$B$83 & " Critical" -> At least 1 Critical | I54: 8 | J54: 8 | L54: ="At least " &'Parameters Added'!$B$83 & " Critical" -> At least 1 Critical | M54: 10 | N54: 8
B55: Condition Logic 4 | C55: ="At least " &'Parameters Added'!$B$84 & " Critical" -> At least 2 Critical | D55: 10 | E55: 6 | H55: ="At least " &'Parameters Added'!$B$84 & " Critical" -> At least 2 Critical | I55: NA | J55: NA | L55: ="At least " &'Parameters Added'!$B$84 & " Critical" -> At least 2 Critical | M55: 5 | N55: 4

Sheet Bridge Data Matrices
A1: Construction Start | C1: =INDEX('Bridge Data'!$BT$4:$BT$253,'Bridge Data Matrices'!C$9) -> 2020 | D1: =INDEX('Bridge Data'!$BT$4:$BT$253,'Bridge Data Matrices'!D$9) -> 2020 | E1: =INDEX('Bridge Data'!$BT$4:$BT$253,'Bridge Data Matrices'!E$9) -> 2021 | F1: =INDEX('Bridge Data'!$BT$4:$BT$253,'Bridge Data Matrices'!F$9) -> 2021 | G1: =INDEX('Bridge Data'!$BT$4:$BT$253,'Bridge Data Matrices'!G$9) -> 2021 | H1: =INDEX('Bridge Data'!$BT$4:$BT$253,'Bridge Data Matrices'!H$9) -> 2023 | I1: =INDEX('Bridge Data'!$BT$4:$BT$253,'Bridge Data Matrices'!I$9) -> 2023 | J1: =INDEX('Bridge Data'!$BT$4:$BT$253,'Bridge Data Matrices'!J$9) -> 2023 | K1: =INDEX('Bridge Data'!$BT$4:$BT$253,'Bridge Data Matrices'!K$9) -> 2020 | L1: =INDEX('Bridge Data'!$BT$4:$BT$253,'Bridge Data Matrices'!L$9) -> 2020 | M1: =INDEX('Bridge Data'!$BT$4:$BT$253,'Bridge Data Matrices'!M$9) -> 2020 | N1: =INDEX('Bridge Data'!$BT$4:$BT$253,'Bridge Data Matrices'!N$9) -> 2021 | O1: =INDEX('Bridge Data'!$BT$4:$BT$253,'Bridge Data Matrices'!O$9) -> 2020 | P1: =INDEX('Bridge Data'!$BT$4:$BT$253,'Bridge Data Matrices'!P$9) -> 2020 | Q1: =INDEX('Bridge Data'!$BT$4:$BT$253,'Bridge Data Matrices'!Q$9) -> 2023 | R1: =INDEX('Bridge Data'!$BT$4:$BT$253,'Bridge Data Matrices'!R$9) -> 2023 | S1: =INDEX('Bridge Data'!$BT$4:$BT$253,'Bridge Data Matrices'!S$9) -> 2021 | T1: =INDEX('Bridge Data'!$BT$4:$BT$253,'Bridge Data Matrices'!T$9) -> 2021 | U1: =INDEX('Bridge Data'!$BT$4:$BT$253,'Bridge Data Matrices'!U$9) -> 2021 | V1: =INDEX('Bridge Data'!$BT$4:$BT$253,'Bridge Data Matrices'!V$9) -> 2021 | W1: =INDEX('Bridge Data'!$BT$4:$BT$253,'Bridge Data Matrices'!W$9) -> 2021 | X1: =INDEX('Bridge Data'!$BT$4:$BT$253,'Bridge Data Matrices'!X$9) -> 2021 | Y1: =INDEX('Bridge Data'!$BT$4:$BT$253,'Bridge Data Matrices'!Y$9) -> 2022 | Z1: =INDEX('Bridge Data'!$BT$4:$BT$253,'Bridge Data Matrices'!Z$9) -> 2020 | AA1: =INDEX('Bridge Data'!$BT$4:$BT$253,'Bridge Data Matrices'!AA$9) -> 2020 | AB1: =INDEX('Bridge Data'!$BT$4:$BT$253,'Bridge Data Matrices'!AB$9) -> 2021 | AC1: =INDEX('Bridge Data'!$BT$4:$BT$253,'Bridge Data Matrices'!AC$9) -> 2021 | AD1: =INDEX('Bridge Data'!$BT$4:$BT$253,'Bridge Data Matrices'!AD$9) -> 2020 | AE1: =INDEX('Bridge Data'!$BT$4:$BT$253,'Bridge Data Matrices'!AE$9) -> 2021 | AF1: =INDEX('Bridge Data'!$BT$4:$BT$253,'Bridge Data Matrices'!AF$9) -> 2021 | AG1: =INDEX('Bridge Data'!$BT$4:$BT$253,'Bridge Data Matrices'!AG$9) -> 2021 | AH1: =INDEX('Bridge Data'!$BT$4:$BT$253,'Bridge Data Matrices'!AH$9) -> 2022 | AI1: =INDEX('Bridge Data'!$BT$4:$BT$253,'Bridge Data Matrices'!AI$9) -> 2023 | AJ1: =INDEX('Bridge Data'!$BT$4:$BT$253,'Bridge Data Matrices'!AJ$9) -> 2023 | AK1: =INDEX('Bridge Data'!$BT$4:$BT$253,'Bridge Data Matrices'!AK$9) -> 2020 | AL1: =INDEX('Bridge Data'!$BT$4:$BT$253,'Bridge Data Matrices'!AL$9) -> 2021 | AM1: =INDEX('Bridge Data'!$BT$4:$BT$253,'Bridge Data Matrices'!AM$9) -> 2020 | AN1: =INDEX('Bridge Data'!$BT$4:$BT$253,'Bridge Data Matrices'!AN$9) -> 2020 | AO1: =INDEX('Bridge Data'!$BT$4:$BT$253,'Bridge Data Matrices'!AO$9) -> 2020 | AP1: =INDEX('Bridge Data'!$BT$4:$BT$253,'Bridge Data Matrices'!AP$9) -> 2020 | AQ1: =INDEX('Bridge Data'!$BT$4:$BT$253,'Bridge Data Matrices'!AQ$9) -> 2020 | AR1: =INDEX('Bridge Data'!$BT$4:$BT$253,'Bridge Data Matrices'!AR$9) -> 2021 | AS1: =INDEX('Bridge Data'!$BT$4:$BT$253,'Bridge Data Matrices'!AS$9) -> 2020 | AT1: =INDEX('Bridge Data'!$BT$4:$BT$253,'Bridge Data Matrices'!AT$9) -> 2023 | AU1: =INDEX('Bridge Data'!$BT$4:$BT$253,'Bridge Data Matrices'!AU$9) -> 2023 | AV1: =INDEX('Bridge Data'!$BT$4:$BT$253,'Bridge Data Matrices'!AV$9) -> 2020 | AW1: =INDEX('Bridge Data'!$BT$4:$BT$253,'Bridge Data Matrices'!AW$9) -> 2020 | AX1: =INDEX('Bridge Data'!$BT$4:$BT$253,'Bridge Data Matrices'!AX$9) -> 2023 | AY1: =INDEX('Bridge Data'!$BT$4:$BT$253,'Bridge Data Matrices'!AY$9) -> 2020 | AZ1: =INDEX('Bridge Data'!$BT$4:$BT$253,'Bridge Data Matrices'!AZ$9) -> 2021 | BA1: =INDEX('Bridge Data'!$BT$4:$BT$253,'Bridge Data Matrices'!BA$9) -> 2021 | BB1: =INDEX('Bridge Data'!$BT$4:$BT$253,'Bridge Data Matrices'!BB$9) -> 2021 | BC1: =INDEX('Bridge Data'!$BT$4:$BT$253,'Bridge Data Matrices'!BC$9) -> 2022 | BD1: =INDEX('Bridge Data'!$BT$4:$BT$253,'Bridge Data Matrices'!BD$9) -> 2020 | BE1: =INDEX('Bridge Data'!$BT$4:$BT$253,'Bridge Data Matrices'!BE$9) -> 2023 | BF1: =INDEX('Bridge Data'!$BT$4:$BT$253,'Bridge Data Matrices'!BF$9) -> 2022 | BG1: =INDEX('Bridge Data'!$BT$4:$BT$253,'Bridge Data Matrices'!BG$9) -> 2020 | BH1: =INDEX('Bridge Data'!$BT$4:$BT$253,'Bridge Data Matrices'!BH$9) -> 2021 | BI1: =INDEX('Bridge Data'!$BT$4:$BT$253,'Bridge Data Matrices'!BI$9) -> 2021 | BJ1: =INDEX('Bridge Data'!$BT$4:$BT$253,'Bridge Data Matrices'!BJ$9) -> 2021 | BK1: =INDEX('Bridge Data'!$BT$4:$BT$253,'Bridge Data Matrices'!BK$9) -> 2021 | BL1: =INDEX('Bridge Data'!$BT$4:$BT$253,'Bridge Data Matrices'!BL$9) -> 2020 | BM1: =INDEX('Bridge Data'!$BT$4:$BT$253,'Bridge Data Matrices'!BM$9) -> 2022 | BN1: =INDEX('Bridge Data'!$BT$4:$BT$253,'Bridge Data Matrices'!BN$9) -> 2020 | BO1: =INDEX('Bridge Data'!$BT$4:$BT$253,'Bridge Data Matrices'!BO$9) -> 2021 | BP1: =INDEX('Bridge Data'!$BT$4:$BT$253,'Bridge Data Matrices'!BP$9) -> 2020 | BQ1: =INDEX('Bridge Data'!$BT$4:$BT$253,'Bridge Data Matrices'!BQ$9) -> 2021 | BR1: =INDEX('Bridge Data'!$BT$4:$BT$253,'Bridge Data Matrices'!BR$9) -> 2021 | BS1: =INDEX('Bridge Data'!$BT$4:$BT$253,'Bridge Data Matrices'!BS$9) -> 2021 | BT1: =INDEX('Bridge Data'!$BT$4:$BT$253,'Bridge Data Matrices'!BT$9) -> 2021 | BU1: =INDEX('Bridge Data'!$BT$4:$BT$253,'Bridge Data Matrices'!BU$9) -> 2020 | BV1: =INDEX('Bridge Data'!$BT$4:$BT$253,'Bridge Data Matrices'!BV$9) -> 2020 | BW1: =INDEX('Bridge Data'!$BT$4:$BT$253,'Bridge Data Matrices'!BW$9) -> 2020 | BX1: =INDEX('Bridge Data'!$BT$4:$BT$253,'Bridge Data Matrices'!BX$9) -> 2022 | BY1: =INDEX('Bridge Data'!$BT$4:$BT$253,'Bridge Data Matrices'!BY$9) -> 2021 | BZ1: =INDEX('Bridge Data'!$BT$4:$BT$253,'Bridge Data Matrices'!BZ$9) -> 2023 | CA1: =INDEX('Bridge Data'!$BT$4:$BT$253,'Bridge Data Matrices'!CA$9) -> 2022 | CB1: =INDEX('Bridge Data'!$BT$4:$BT$253,'Bridge Data Matrices'!CB$9) -> 2020 | CC1: =INDEX('Bridge Data'!$BT$4:$BT$253,'Bridge Data Matrices'!CC$9) -> 2020 | CD1: =INDEX('Bridge Data'!$BT$4:$BT$253,'Bridge Data Matrices'!CD$9) -> 2020 | CE1: =INDEX('Bridge Data'!$BT$4:$BT$253,'Bridge Data Matrices'!CE$9) -> 2020 | CF1: =INDEX('Bridge Data'!$BT$4:$BT$253,'Bridge Data Matrices'!CF$9) -> 2022 | CG1: =INDEX('Bridge Data'!$BT$4:$BT$253,'Bridge Data Matrices'!CG$9) -> 2023 | CH1: =INDEX('Bridge Data'!$BT$4:$BT$253,'Bridge Data Matrices'!CH$9) -> 2020 | CI1: =INDEX('Bridge Data'!$BT$4:$BT$253,'Bridge Data Matrices'!CI$9) -> 2022 | CJ1: =INDEX('Bridge Data'!$BT$4:$BT$253,'Bridge Data Matrices'!CJ$9) -> 2020 | CK1: =INDEX('Bridge Data'!$BT$4:$BT$253,'Bridge Data Matrices'!CK$9) -> 2021 | CL1: =INDEX('Bridge Data'!$BT$4:$BT$253,'Bridge Data Matrices'!CL$9) -> 2021 | CM1: =INDEX('Bridge Data'!$BT$4:$BT$253,'Bridge Data Matrices'!CM$9) -> 2020 | CN1: =INDEX('Bridge Data'!$BT$4:$BT$253,'Bridge Data Matrices'!CN$9) -> 2020 | CO1: =INDEX('Bridge Data'!$BT$4:$BT$253,'Bridge Data Matrices'!CO$9) -> 2020 | CP1: =INDEX('Bridge Data'!$BT$4:$BT$253,'Bridge Data Matrices'!CP$9) -> 2021 | CQ1: =INDEX('Bridge Data'!$BT$4:$BT$253,'Bridge Data Matrices'!CQ$9) -> 2021 | CR1: =INDEX('Bridge Data'!$BT$4:$BT$253,'Bridge Data Matrices'!CR$9) -> 2022 | CS1: =INDEX('Bridge Data'!$BT$4:$BT$253,'Bridge Data Matrices'!CS$9) -> 2020 | CT1: =INDEX('Bridge Data'!$BT$4:$BT$253,'Bridge Data Matrices'!CT$9) -> 2020 | CU1: =INDEX('Bridge Data'!$BT$4:$BT$253,'Bridge Data Matrices'!CU$9) -> 2020 | CV1: =INDEX('Bridge Data'!$BT$4:$BT$253,'Bridge Data Matrices'!CV$9) -> 2020 | CW1: =INDEX('Bridge Data'!$BT$4:$BT$253,'Bridge Data Matrices'!CW$9) -> 2020 | CX1: =INDEX('Bridge Data'!$BT$4:$BT$253,'Bridge Data Matrices'!CX$9) -> 2020 | CY1: =INDEX('Bridge Data'!$BT$4:$BT$253,'Bridge Data Matrices'!CY$9) -> 2020 | CZ1: =INDEX('Bridge Data'!$BT$4:$BT$253,'Bridge Data Matrices'!CZ$9) -> 2020 | DA1: =INDEX('Bridge Data'!$BT$4:$BT$253,'Bridge Data Matrices'!DA$9) -> 2020 | DB1: =INDEX('Bridge Data'!$BT$4:$BT$253,'Bridge Data Matrices'!DB$9) -> 2021 | DC1: =INDEX('Bridge Data'!$BT$4:$BT$253,'Bridge Data Matrices'!DC$9) -> 2020 | DD1: =INDEX('Bridge Data'!$BT$4:$BT$253,'Bridge Data Matrices'!DD$9) -> 2020 | DE1: =INDEX('Bridge Data'!$BT$4:$BT$253,'Bridge Data Matrices'!DE$9) -> 2021 | DF1: =INDEX('Bridge Data'!$BT$4:$BT$253,'Bridge Data Matrices'!DF$9) -> 2020 | DG1: =INDEX('Bridge Data'!$BT$4:$BT$253,'Bridge Data Matrices'!DG$9) -> 2021 | DH1: =INDEX('Bridge Data'!$BT$4:$BT$253,'Bridge Data Matrices'!DH$9) -> 2021 | DI1: =INDEX('Bridge Data'!$BT$4:$BT$253,'Bridge Data Matrices'!DI$9) -> 2021 | DJ1: =INDEX('Bridge Data'!$BT$4:$BT$253,'Bridge Data Matrices'!DJ$9) -> 2021 | DK1: =INDEX('Bridge Data'!$BT$4:$BT$253,'Bridge Data Matrices'!DK$9) -> 2021 | DL1: =INDEX('Bridge Data'!$BT$4:$BT$253,'Bridge Data Matrices'!DL$9) -> 2022 | DM1: =INDEX('Bridge Data'!$BT$4:$BT$253,'Bridge Data Matrices'!DM$9) -> 2021 | DN1: =INDEX('Bridge Data'!$BT$4:$BT$253,'Bridge Data Matrices'!DN$9) -> 2020 | DO1: =INDEX('Bridge Data'!$BT$4:$BT$253,'Bridge Data Matrices'!DO$9) -> 2020 | DP1: =INDEX('Bridge Data'!$BT$4:$BT$253,'Bridge Data Matrices'!DP$9) -> 2020 | DQ1: =INDEX('Bridge Data'!$BT$4:$BT$253,'Bridge Data Matrices'!DQ$9) -> 2020 | DR1: =INDEX('Bridge Data'!$BT$4:$BT$253,'Bridge Data Matrices'!DR$9) -> 2020 | DS1: =INDEX('Bridge Data'!$BT$4:$BT$253,'Bridge Data Matrices'!DS$9) -> 2021 | DT1: =INDEX('Bridge Data'!$BT$4:$BT$253,'Bridge Data Matrices'!DT$9) -> 2021 | DU1: =INDEX('Bridge Data'!$BT$4:$BT$253,'Bridge Data Matrices'!DU$9) -> 2021 | DV1: =INDEX('Bridge Data'!$BT$4:$BT$253,'Bridge Data Matrices'!DV$9) -> 2020 | DW1: =INDEX('Bridge Data'!$BT$4:$BT$253,'Bridge Data Matrices'!DW$9) -> 2020 | DX1: =INDEX('Bridge Data'!$BT$4:$BT$253,'Bridge Data Matrices'!DX$9) -> 2020 | DY1: =INDEX('Bridge Data'!$BT$4:$BT$253,'Bridge Data Matrices'!DY$9) -> 2020 | DZ1: =INDEX('Bridge Data'!$BT$4:$BT$253,'Bridge Data Matrices'!DZ$9) -> 2020 | EA1: =INDEX('Bridge Data'!$BT$4:$BT$253,'Bridge Data Matrices'!EA$9) -> 2021 | EB1: =INDEX('Bridge Data'!$BT$4:$BT$253,'Bridge Data Matrices'!EB$9) -> 2022 | EC1: =INDEX('Bridge Data'!$BT$4:$BT$253,'Bridge Data Matrices'!EC$9) -> 2021 | ED1: =INDEX('Bridge Data'!$BT$4:$BT$253,'Bridge Data Matrices'!ED$9) -> 2022 | EE1: =INDEX('Bridge Data'!$BT$4:$BT$253,'Bridge Data Matrices'!EE$9) -> 2020 | EF1: =INDEX('Bridge Data'!$BT$4:$BT$253,'Bridge Data Matrices'!EF$9) -> 2020 | EG1: =INDEX('Bridge Data'!$BT$4:$BT$253,'Bridge Data Matrices'!EG$9) -> 2020 | EH1: =INDEX('Bridge Data'!$BT$4:$BT$253,'Bridge Data Matrices'!EH$9) -> 2021 | EI1: =INDEX('Bridge Data'!$BT$4:$BT$253,'Bridge Data Matrices'!EI$9) -> 2021 | EJ1: =INDEX('Bridge Data'!$BT$4:$BT$253,'Bridge Data Matrices'!EJ$9) -> 2023 | EK1: =INDEX('Bridge Data'!$BT$4:$BT$253,'Bridge Data Matrices'!EK$9) -> 2020 | EL1: =INDEX('Bridge Data'!$BT$4:$BT$253,'Bridge Data Matrices'!EL$9) -> 2020 | EM1: =INDEX('Bridge Data'!$BT$4:$BT$253,'Bridge Data Matrices'!EM$9) -> 2020 | EN1: =INDEX('Bridge Data'!$BT$4:$BT$253,'Bridge Data Matrices'!EN$9) -> 2021 | EO1: =INDEX('Bridge Data'!$BT$4:$BT$253,'Bridge Data Matrices'!EO$9) -> 2020 | EP1: =INDEX('Bridge Data'!$BT$4:$BT$253,'Bridge Data Matrices'!EP$9) -> 2021 | EQ1: =INDEX('Bridge Data'!$BT$4:$BT$253,'Bridge Data Matrices'!EQ$9) -> 2021 | ER1: =INDEX('Bridge Data'!$BT$4:$BT$253,'Bridge Data Matrices'!ER$9) -> 2021 | ES1: =INDEX('Bridge Data'!$BT$4:$BT$253,'Bridge Data Matrices'!ES$9) -> 2021 | ET1: =INDEX('Bridge Data'!$BT$4:$BT$253,'Bridge Data Matrices'!ET$9) -> 2020 | EU1: =INDEX('Bridge Data'!$BT$4:$BT$253,'Bridge Data Matrices'!EU$9) -> 2020 | EV1: =INDEX('Bridge Data'!$BT$4:$BT$253,'Bridge Data Matrices'!EV$9) -> 2022 | EW1: =INDEX('Bridge Data'!$BT$4:$BT$253,'Bridge Data Matrices'!EW$9) -> 2022 | EX1: =INDEX('Bridge Data'!$BT$4:$BT$253,'Bridge Data Matrices'!EX$9) -> 2022 | EY1: =INDEX('Bridge Data'!$BT$4:$BT$253,'Bridge Data Matrices'!EY$9) -> 2022 | EZ1: =INDEX('Bridge Data'!$BT$4:$BT$253,'Bridge Data Matrices'!EZ$9) -> 2021 | FA1: =INDEX('Bridge Data'!$BT$4:$BT$253,'Bridge Data Matrices'!FA$9) -> 2020 | FB1: =INDEX('Bridge Data'!$BT$4:$BT$253,'Bridge Data Matrices'!FB$9) -> 2020 | FC1: =INDEX('Bridge Data'!$BT$4:$BT$253,'Bridge Data Matrices'!FC$9) -> 2020 | FD1: =INDEX('Bridge Data'!$BT$4:$BT$253,'Bridge Data Matrices'!FD$9) -> 2022 | FE1: =INDEX('Bridge Data'!$BT$4:$BT$253,'Bridge Data Matrices'!FE$9) -> 2020 | FF1: =INDEX('Bridge Data'!$BT$4:$BT$253,'Bridge Data Matrices'!FF$9) -> 2021 | FG1: =INDEX('Bridge Data'!$BT$4:$BT$253,'Bridge Data Matrices'!FG$9) -> 2023 | FH1: =INDEX('Bridge Data'!$BT$4:$BT$253,'Bridge Data Matrices'!FH$9) -> 2020 | FI1: =INDEX('Bridge Data'!$BT$4:$BT$253,'Bridge Data Matrices'!FI$9) -> 2020 | FJ1: =INDEX('Bridge Data'!$BT$4:$BT$253,'Bridge Data Matrices'!FJ$9) -> 2020 | FK1: =INDEX('Bridge Data'!$BT$4:$BT$253,'Bridge Data Matrices'!FK$9) -> 2021 | FL1: =INDEX('Bridge Data'!$BT$4:$BT$253,'Bridge Data Matrices'!FL$9) -> 2021 | FM1: =INDEX('Bridge Data'!$BT$4:$BT$253,'Bridge Data Matrices'!FM$9) -> 2020 | FN1: =INDEX('Bridge Data'!$BT$4:$BT$253,'Bridge Data Matrices'!FN$9) -> 2020 | FO1: =INDEX('Bridge Data'!$BT$4:$BT$253,'Bridge Data Matrices'!FO$9) -> 2021 | FP1: =INDEX('Bridge Data'!$BT$4:$BT$253,'Bridge Data Matrices'!FP$9) -> 2022 | FQ1: =INDEX('Bridge Data'!$BT$4:$BT$253,'Bridge Data Matrices'!FQ$9) -> 2020 | FR1: =INDEX('Bridge Data'!$BT$4:$BT$253,'Bridge Data Matrices'!FR$9) -> 2022 | FS1: =INDEX('Bridge Data'!$BT$4:$BT$253,'Bridge Data Matrices'!FS$9) -> 2020 | FT1: =INDEX('Bridge Data'!$BT$4:$BT$253,'Bridge Data Matrices'!FT$9) -> 2020 | FU1: =INDEX('Bridge Data'!$BT$4:$BT$253,'Bridge Data Matrices'!FU$9) -> 2020 | FV1: =INDEX('Bridge Data'!$BT$4:$BT$253,'Bridge Data Matrices'!FV$9) -> 2023 | FW1: =INDEX('Bridge Data'!$BT$4:$BT$253,'Bridge Data Matrices'!FW$9) -> 2020 | FX1: =INDEX('Bridge Data'!$BT$4:$BT$253,'Bridge Data Matrices'!FX$9) -> 2020 | FY1: =INDEX('Bridge Data'!$BT$4:$BT$253,'Bridge Data Matrices'!FY$9) -> 2020 | FZ1: =INDEX('Bridge Data'!$BT$4:$BT$253,'Bridge Data Matrices'!FZ$9) -> 2021 | GA1: =INDEX('Bridge Data'!$BT$4:$BT$253,'Bridge Data Matrices'!GA$9) -> 2020 | GB1: =INDEX('Bridge Data'!$BT$4:$BT$253,'Bridge Data Matrices'!GB$9) -> 2020 | GC1: =INDEX('Bridge Data'!$BT$4:$BT$253,'Bridge Data Matrices'!GC$9) -> 2020 | GD1: =INDEX('Bridge Data'!$BT$4:$BT$253,'Bridge Data Matrices'!GD$9) -> 2020 | GE1: =INDEX('Bridge Data'!$BT$4:$BT$253,'Bridge Data Matrices'!GE$9) -> 2020 | GF1: =INDEX('Bridge Data'!$BT$4:$BT$253,'Bridge Data Matrices'!GF$9) -> 2020 | GG1: =INDEX('Bridge Data'!$BT$4:$BT$253,'Bridge Data Matrices'!GG$9) -> 2022 | GH1: =INDEX('Bridge Data'!$BT$4:$BT$253,'Bridge Data Matrices'!GH$9) -> 2022 | GI1: =INDEX('Bridge Data'!$BT$4:$BT$253,'Bridge Data Matrices'!GI$9) -> 2022 | GJ1: =INDEX('Bridge Data'!$BT$4:$BT$253,'Bridge Data Matrices'!GJ$9) -> 2021 | GK1: =INDEX('Bridge Data'!$BT$4:$BT$253,'Bridge Data Matrices'!GK$9) -> 2022 | GL1: =INDEX('Bridge Data'!$BT$4:$BT$253,'Bridge Data Matrices'!GL$9) -> 2021 | GM1: =INDEX('Bridge Data'!$BT$4:$BT$253,'Bridge Data Matrices'!GM$9) -> 2021 | GN1: =INDEX('Bridge Data'!$BT$4:$BT$253,'Bridge Data Matrices'!GN$9) -> 2022 | GO1: =INDEX('Bridge Data'!$BT$4:$BT$253,'Bridge Data Matrices'!GO$9) -> 2021 | GP1: =INDEX('Bridge Data'!$BT$4:$BT$253,'Bridge Data Matrices'!GP$9) -> 2022 | GQ1: =INDEX('Bridge Data'!$BT$4:$BT$253,'Bridge Data Matrices'!GQ$9) -> 2022 | GR1: =INDEX('Bridge Data'!$BT$4:$BT$253,'Bridge Data Matrices'!GR$9) -> 2021 | GS1: =INDEX('Bridge Data'!$BT$4:$BT$253,'Bridge Data Matrices'!GS$9) -> 2023 | GT1: =INDEX('Bridge Data'!$BT$4:$BT$253,'Bridge Data Matrices'!GT$9) -> 2022 | GU1: =INDEX('Bridge Data'!$BT$4:$BT$253,'Bridge Data Matrices'!GU$9) -> 2022 | GV1: =INDEX('Bridge Data'!$BT$4:$BT$253,'Bridge Data Matrices'!GV$9) -> 2023 | GW1: =INDEX('Bridge Data'!$BT$4:$BT$253,'Bridge Data Matrices'!GW$9) -> 2020 | GX1: =INDEX('Bridge Data'!$BT$4:$BT$253,'Bridge Data Matrices'!GX$9) -> 2020 | GY1: =INDEX('Bridge Data'!$BT$4:$BT$253,'Bridge Data Matrices'!GY$9) -> 2020 | GZ1: =INDEX('Bridge Data'!$BT$4:$BT$253,'Bridge Data Matrices'!GZ$9) -> 2021 | HA1: =INDEX('Bridge Data'!$BT$4:$BT$253,'Bridge Data Matrices'!HA$9) -> 2021 | HB1: =INDEX('Bridge Data'!$BT$4:$BT$253,'Bridge Data Matrices'!HB$9) -> 2021 | HC1: =INDEX('Bridge Data'!$BT$4:$BT$253,'Bridge Data Matrices'!HC$9) -> 2023 | HD1: =INDEX('Bridge Data'!$BT$4:$BT$253,'Bridge Data Matrices'!HD$9) -> 2020 | HE1: =INDEX('Bridge Data'!$BT$4:$BT$253,'Bridge Data Matrices'!HE$9) -> 2020 | HF1: =INDEX('Bridge Data'!$BT$4:$BT$253,'Bridge Data Matrices'!HF$9) -> 2022 | HG1: =INDEX('Bridge Data'!$BT$4:$BT$253,'Bridge Data Matrices'!HG$9) -> 2020 | HH1: =INDEX('Bridge Data'!$BT$4:$BT$253,'Bridge Data Matrices'!HH$9) -> 2022 | HI1: =INDEX('Bridge Data'!$BT$4:$BT$253,'Bridge Data Matrices'!HI$9) -> 2020 | HJ1: =INDEX('Bridge Data'!$BT$4:$BT$253,'Bridge Data Matrices'!HJ$9) -> 2022 | HK1: =INDEX('Bridge Data'!$BT$4:$BT$253,'Bridge Data Matrices'!HK$9) -> 2023 | HL1: =INDEX('Bridge Data'!$BT$4:$BT$253,'Bridge Data Matrices'!HL$9) -> 2023 | HM1: =INDEX('Bridge Data'!$BT$4:$BT$253,'Bridge Data Matrices'!HM$9) -> 2021 | HN1: =INDEX('Bridge Data'!$BT$4:$BT$253,'Bridge Data Matrices'!HN$9) -> 2020 | HO1: =INDEX('Bridge Data'!$BT$4:$BT$253,'Bridge Data Matrices'!HO$9) -> 2020 | HP1: =INDEX('Bridge Data'!$BT$4:$BT$253,'Bridge Data Matrices'!HP$9) -> 2023 | HQ1: =INDEX('Bridge Data'!$BT$4:$BT$253,'Bridge Data Matrices'!HQ$9) -> 2021 | HR1: =INDEX('Bridge Data'!$BT$4:$BT$253,'Bridge Data Matrices'!HR$9) -> 2021 | HS1: =INDEX('Bridge Data'!$BT$4:$BT$253,'Bridge Data Matrices'!HS$9) -> 2020 | HT1: =INDEX('Bridge Data'!$BT$4:$BT$253,'Bridge Data Matrices'!HT$9) -> 2020 | HU1: =INDEX('Bridge Data'!$BT$4:$BT$253,'Bridge Data Matrices'!HU$9) -> 2020 | HV1: =INDEX('Bridge Data'!$BT$4:$BT$253,'Bridge Data Matrices'!HV$9) -> 2020 | HW1: =INDEX('Bridge Data'!$BT$4:$BT$253,'Bridge Data Matrices'!HW$9) -> 2020 | HX1: =INDEX('Bridge Data'!$BT$4:$BT$253,'Bridge Data Matrices'!HX$9) -> 2021 | HY1: =INDEX('Bridge Data'!$BT$4:$BT$253,'Bridge Data Matrices'!HY$9) -> 2022 | HZ1: =INDEX('Bridge Data'!$BT$4:$BT$253,'Bridge Data Matrices'!HZ$9) -> 2021 | IA1: =INDEX('Bridge Data'!$BT$4:$BT$253,'Bridge Data Matrices'!IA$9) -> 2021 | IB1: =INDEX('Bridge Data'!$BT$4:$BT$253,'Bridge Data Matrices'!IB$9) -> 2021 | IC1: =INDEX('Bridge Data'!$BT$4:$BT$253,'Bridge Data Matrices'!IC$9) -> 2021 | ID1: =INDEX('Bridge Data'!$BT$4:$BT$253,'Bridge Data Matrices'!ID$9) -> 2021 | IE1: =INDEX('Bridge Data'!$BT$4:$BT$253,'Bridge Data Matrices'!IE$9) -> 2021 | IF1: =INDEX('Bridge Data'!$BT$4:$BT$253,'Bridge Data Matrices'!IF$9) -> 2020 | IG1: =INDEX('Bridge Data'!$BT$4:$BT$253,'Bridge Data Matrices'!IG$9) -> 2021 | IH1: =INDEX('Bridge Data'!$BT$4:$BT$253,'Bridge Data Matrices'!IH$9) -> 2020 | II1: =INDEX('Bridge Data'!$BT$4:$BT$253,'Bridge Data Matrices'!II$9) -> 2022 | IJ1: =INDEX('Bridge Data'!$BT$4:$BT$253,'Bridge Data Matrices'!IJ$9) -> 2022 | IK1: =INDEX('Bridge Data'!$BT$4:$BT$253,'Bridge Data Matrices'!IK$9) -> 2020 | IL1: =INDEX('Bridge Data'!$BT$4:$BT$253,'Bridge Data Matrices'!IL$9) -> 2022 | IM1: =INDEX('Bridge Data'!$BT$4:$BT$253,'Bridge Data Matrices'!IM$9) -> 2022 | IN1: =INDEX('Bridge Data'!$BT$4:$BT$253,'Bridge Data Matrices'!IN$9) -> 2022 | IO1: =INDEX('Bridge Data'!$BT$4:$BT$253,'Bridge Data Matrices'!IO$9) -> 2022 | IP1: =INDEX('Bridge Data'!$BT$4:$BT$253,'Bridge Data Matrices'!IP$9) -> 2022 | IQ1: =INDEX('Bridge Data'!$BT$4:$BT$253,'Bridge Data Matrices'!IQ$9) -> 2021 | IR1: =INDEX('Bridge Data'!$BT$4:$BT$253,'Bridge Data Matrices'!IR$9) -> 2020
A2: Construction End | C2: =C1+C$6-1 -> 2020 | D2: =D1+D$6-1 -> 2020 | E2: 2021 | F2: 2021 | G2: 2021 | H2: 2023 | I2: 2023 | J2: 2023 | K2: 2020 | L2: 2020 | M2: 2020 | N2: 2021 | O2: 2020 | P2: 2020 | Q2: 2023 | R2: 2023 | S2: 2021 | T2: 2021 | U2: 2021 | V2: 2021 | W2: 2021 | X2: 2021 | Y2: 2022 | Z2: 2020 | AA2: 2020 | AB2: 2021 | AC2: 2021 | AD2: 2020 | AE2: 2021 | AF2: 2021 | AG2: 2021 | AH2: 2022 | AI2: 2023 | AJ2: 2023 | AK2: 2020 | AL2: 2021 | AM2: 2020 | AN2: 2020 | AO2: 2020 | AP2: 2020 | AQ2: 2020 | AR2: 2021 | AS2: 2020 | AT2: 2023 | AU2: 2023 | AV2: 2020 | AW2: 2020 | AX2: 2023 | AY2: 2020 | AZ2: 2021 | BA2: 2021 | BB2: 2021 | BC2: 2022 | BD2: 2020 | BE2: 2023 | BF2: 2022 | BG2: 2020 | BH2: 2021 | BI2: 2021 | BJ2: 2021 | BK2: 2021 | BL2: 2020 | BM2: 2022 | BN2: 2020 | BO2: 2021 | BP2: =BP1+BP$6-1 -> 2020 | BQ2: 2021 | BR2: 2021 | BS2: 2021 | BT2: 2021 | BU2: 2020 | BV2: 2020 | BW2: 2020 | BX2: 2022 | BY2: 2021 | BZ2: 2023 | CA2: 2022 | CB2: 2020 | CC2: 2020 | CD2: 2020 | CE2: 2020 | CF2: 2022 | CG2: 2023 | CH2: 2020 | CI2: 2022 | CJ2: 2020 | CK2: 2021 | CL2: 2021 | CM2: 2020 | CN2: 2020 | CO2: 2020 | CP2: 2021 | CQ2: 2021 | CR2: 2022 | CS2: 2020 | CT2: 2020 | CU2: 2020 | CV2: 2020 | CW2: 2020 | CX2: 2020 | CY2: 2020 | CZ2: 2020 | DA2: 2020 | DB2: 2021 | DC2: 2020 | DD2: 2020 | DE2: 2021 | DF2: 2020 | DG2: 2021 | DH2: 2021 | DI2: 2021 | DJ2: 2021 | DK2: 2021 | DL2: 2022 | DM2: 2021 | DN2: 2020 | DO2: 2020 | DP2: 2020 | DQ2: 2020 | DR2: 2020 | DS2: 2021 | DT2: 2021 | DU2: 2021 | DV2: 2020 | DW2: 2020 | DX2: 2020 | DY2: 2020 | DZ2: 2020 | EA2: 2021 | EB2: =EB1+EB$6-1 -> 2022 | EC2: 2021 | ED2: 2022 | EE2: 2020 | EF2: 2020 | EG2: 2020 | EH2: 2021 | EI2: 2021 | EJ2: 2023 | EK2: 2020 | EL2: 2020 | EM2: 2020 | EN2: 2021 | EO2: 2020 | EP2: 2021 | EQ2: 2021 | ER2: 2021 | ES2: 2021 | ET2: 2020 | EU2: 2020 | EV2: 2022 | EW2: 2022 | EX2: 2022 | EY2: 2022 | EZ2: 2021 | FA2: 2020 | FB2: 2020 | FC2: 2020 | FD2: 2022 | FE2: 2020 | FF2: 2021 | FG2: 2023 | FH2: 2020 | FI2: 2020 | FJ2: 2020 | FK2: 2021 | FL2: 2021 | FM2: 2020 | FN2: 2020 | FO2: 2021 | FP2: 2022 | FQ2: 2020 | FR2: 2022 | FS2: 2020 | FT2: 2020 | FU2: 2020 | FV2: 2023 | FW2: 2020 | FX2: 2020 | FY2: 2020 | FZ2: 2021 | GA2: 2020 | GB2: 2020 | GC2: 2020 | GD2: 2020 | GE2: 2020 | GF2: 2020 | GG2: 2022 | GH2: 2022 | GI2: 2022 | GJ2: 2021 | GK2: 2022 | GL2: 2021 | GM2: 2021 | GN2: =GN1+GN$6-1 -> 2022 | GO2: 2021 | GP2: 2022 | GQ2: 2022 | GR2: 2021 | GS2: 2023 | GT2: 2022 | GU2: 2022 | GV2: 2023 | GW2: 2020 | GX2: 2020 | GY2: 2020 | GZ2: 2021 | HA2: 2021 | HB2: 2021 | HC2: 2023 | HD2: 2020 | HE2: 2020 | HF2: 2022 | HG2: 2020 | HH2: 2022 | HI2: 2020 | HJ2: 2022 | HK2: 2023 | HL2: 2023 | HM2: 2021 | HN2: 2020 | HO2: 2020 | HP2: 2023 | HQ2: 2021 | HR2: 2021 | HS2: 2020 | HT2: 2020 | HU2: 2020 | HV2: 2020 | HW2: 2020 | HX2: 2021 | HY2: 2022 | HZ2: 2021 | IA2: 2021 | IB2: 2021 | IC2: 2021 | ID2: 2021 | IE2: 2021 | IF2: 2020 | IG2: 2021 | IH2: 2020 | II2: 2022 | IJ2: 2022 | IK2: 2020 | IL2: 2022 | IM2: 2022 | IN2: 2022 | IO2: 2022 | IP2: 2022 | IQ2: 2021 | IR2: 2020
A3: Benefits Start | C3: =INDEX('Bridge Data'!$BV$4:$BV$253,'Bridge Data Matrices'!C$9) -> 2033 | D3: =INDEX('Bridge Data'!$BV$4:$BV$253,'Bridge Data Matrices'!D$9) -> 2028 | E3: =INDEX('Bridge Data'!$BV$4:$BV$253,'Bridge Data Matrices'!E$9) -> 2048 | F3: =INDEX('Bridge Data'!$BV$4:$BV$253,'Bridge Data Matrices'!F$9) -> 2024 | G3: =INDEX('Bridge Data'!$BV$4:$BV$253,'Bridge Data Matrices'!G$9) -> 2048 | H3: =INDEX('Bridge Data'!$BV$4:$BV$253,'Bridge Data Matrices'!H$9) -> 2028 | I3: =INDEX('Bridge Data'!$BV$4:$BV$253,'Bridge Data Matrices'!I$9) -> 2028 | J3: =INDEX('Bridge Data'!$BV$4:$BV$253,'Bridge Data Matrices'!J$9) -> 2033 | K3: =INDEX('Bridge Data'!$BV$4:$BV$253,'Bridge Data Matrices'!K$9) -> 2026 | L3: =INDEX('Bridge Data'!$BV$4:$BV$253,'Bridge Data Matrices'!L$9) -> 2026 | M3: =INDEX('Bridge Data'!$BV$4:$BV$253,'Bridge Data Matrices'!M$9) -> 2028 | N3: =INDEX('Bridge Data'!$BV$4:$BV$253,'Bridge Data Matrices'!N$9) -> 2048 | O3: =INDEX('Bridge Data'!$BV$4:$BV$253,'Bridge Data Matrices'!O$9) -> 2026 | P3: =INDEX('Bridge Data'!$BV$4:$BV$253,'Bridge Data Matrices'!P$9) -> 2048 | Q3: =INDEX('Bridge Data'!$BV$4:$BV$253,'Bridge Data Matrices'!Q$9) -> 2026 | R3: =INDEX('Bridge Data'!$BV$4:$BV$253,'Bridge Data Matrices'!R$9) -> 2028 | S3: =INDEX('Bridge Data'!$BV$4:$BV$253,'Bridge Data Matrices'!S$9) -> 2038 | T3: =INDEX('Bridge Data'!$BV$4:$BV$253,'Bridge Data Matrices'!T$9) -> 2038 | U3: =INDEX('Bridge Data'!$BV$4:$BV$253,'Bridge Data Matrices'!U$9) -> 2038 | V3: =INDEX('Bridge Data'!$BV$4:$BV$253,'Bridge Data Matrices'!V$9) -> 2026 | W3: =INDEX('Bridge Data'!$BV$4:$BV$253,'Bridge Data Matrices'!W$9) -> 2022 | X3: =INDEX('Bridge Data'!$BV$4:$BV$253,'Bridge Data Matrices'!X$9) -> 2048 | Y3: =INDEX('Bridge Data'!$BV$4:$BV$253,'Bridge Data Matrices'!Y$9) -> 2026 | Z3: =INDEX('Bridge Data'!$BV$4:$BV$253,'Bridge Data Matrices'!Z$9) -> 2028 | AA3: =INDEX('Bridge Data'!$BV$4:$BV$253,'Bridge Data Matrices'!AA$9) -> 2028 | AB3: =INDEX('Bridge Data'!$BV$4:$BV$253,'Bridge Data Matrices'!AB$9) -> 2028 | AC3: =INDEX('Bridge Data'!$BV$4:$BV$253,'Bridge Data Matrices'!AC$9) -> 2033 | AD3: =INDEX('Bridge Data'!$BV$4:$BV$253,'Bridge Data Matrices'!AD$9) -> 2026 | AE3: =INDEX('Bridge Data'!$BV$4:$BV$253,'Bridge Data Matrices'!AE$9) -> 2028 | AF3: =INDEX('Bridge Data'!$BV$4:$BV$253,'Bridge Data Matrices'!AF$9) -> 2038 | AG3: =INDEX('Bridge Data'!$BV$4:$BV$253,'Bridge Data Matrices'!AG$9) -> 2048 | AH3: =INDEX('Bridge Data'!$BV$4:$BV$253,'Bridge Data Matrices'!AH$9) -> 2028 | AI3: =INDEX('Bridge Data'!$BV$4:$BV$253,'Bridge Data Matrices'!AI$9) -> 2033 | AJ3: =INDEX('Bridge Data'!$BV$4:$BV$253,'Bridge Data Matrices'!AJ$9) -> 2033 | AK3: =INDEX('Bridge Data'!$BV$4:$BV$253,'Bridge Data Matrices'!AK$9) -> 2026 | AL3: =INDEX('Bridge Data'!$BV$4:$BV$253,'Bridge Data Matrices'!AL$9) -> 2026 | AM3: =INDEX('Bridge Data'!$BV$4:$BV$253,'Bridge Data Matrices'!AM$9) -> 2028 | AN3: =INDEX('Bridge Data'!$BV$4:$BV$253,'Bridge Data Matrices'!AN$9) -> 2028 | AO3: =INDEX('Bridge Data'!$BV$4:$BV$253,'Bridge Data Matrices'!AO$9) -> 2038 | AP3: =INDEX('Bridge Data'!$BV$4:$BV$253,'Bridge Data Matrices'!AP$9) -> 2028 | AQ3: =INDEX('Bridge Data'!$BV$4:$BV$253,'Bridge Data Matrices'!AQ$9) -> 2028 | AR3: =INDEX('Bridge Data'!$BV$4:$BV$253,'Bridge Data Matrices'!AR$9) -> 2026 | AS3: =INDEX('Bridge Data'!$BV$4:$BV$253,'Bridge Data Matrices'!AS$9) -> 2028 | AT3: =INDEX('Bridge Data'!$BV$4:$BV$253,'Bridge Data Matrices'!AT$9) -> 2048 | AU3: =INDEX('Bridge Data'!$BV$4:$BV$253,'Bridge Data Matrices'!AU$9) -> 2048 | AV3: =INDEX('Bridge Data'!$BV$4:$BV$253,'Bridge Data Matrices'!AV$9) -> 2026 | AW3: =INDEX('Bridge Data'!$BV$4:$BV$253,'Bridge Data Matrices'!AW$9) -> 2028 | AX3: =INDEX('Bridge Data'!$BV$4:$BV$253,'Bridge Data Matrices'!AX$9) -> 2033 | AY3: =INDEX('Bridge Data'!$BV$4:$BV$253,'Bridge Data Matrices'!AY$9) -> 2026 | AZ3: =INDEX('Bridge Data'!$BV$4:$BV$253,'Bridge Data Matrices'!AZ$9) -> 2028 | BA3: =INDEX('Bridge Data'!$BV$4:$BV$253,'Bridge Data Matrices'!BA$9) -> 2022 | BB3: =INDEX('Bridge Data'!$BV$4:$BV$253,'Bridge Data Matrices'!BB$9) -> 2033 | BC3: =INDEX('Bridge Data'!$BV$4:$BV$253,'Bridge Data Matrices'!BC$9) -> 2026 | BD3: =INDEX('Bridge Data'!$BV$4:$BV$253,'Bridge Data Matrices'!BD$9) -> 2026 | BE3: =INDEX('Bridge Data'!$BV$4:$BV$253,'Bridge Data Matrices'!BE$9) -> 2028 | BF3: =INDEX('Bridge Data'!$BV$4:$BV$253,'Bridge Data Matrices'!BF$9) -> 2033 | BG3: =INDEX('Bridge Data'!$BV$4:$BV$253,'Bridge Data Matrices'!BG$9) -> 2048 | BH3: =INDEX('Bridge Data'!$BV$4:$BV$253,'Bridge Data Matrices'!BH$9) -> 2022 | BI3: =INDEX('Bridge Data'!$BV$4:$BV$253,'Bridge Data Matrices'!BI$9) -> 2022 | BJ3: =INDEX('Bridge Data'!$BV$4:$BV$253,'Bridge Data Matrices'!BJ$9) -> 2022 | BK3: =INDEX('Bridge Data'!$BV$4:$BV$253,'Bridge Data Matrices'!BK$9) -> 2022 | BL3: =INDEX('Bridge Data'!$BV$4:$BV$253,'Bridge Data Matrices'!BL$9) -> 2026 | BM3: =INDEX('Bridge Data'!$BV$4:$BV$253,'Bridge Data Matrices'!BM$9) -> 2038 | BN3: =INDEX('Bridge Data'!$BV$4:$BV$253,'Bridge Data Matrices'!BN$9) -> 2026 | BO3: =INDEX('Bridge Data'!$BV$4:$BV$253,'Bridge Data Matrices'!BO$9) -> 2026 | BP3: =INDEX('Bridge Data'!$BV$4:$BV$253,'Bridge Data Matrices'!BP$9) -> 2028 | BQ3: =INDEX('Bridge Data'!$BV$4:$BV$253,'Bridge Data Matrices'!BQ$9) -> 2028 | BR3: =INDEX('Bridge Data'!$BV$4:$BV$253,'Bridge Data Matrices'!BR$9) -> 2033 | BS3: =INDEX('Bridge Data'!$BV$4:$BV$253,'Bridge Data Matrices'!BS$9) -> 2022 | BT3: =INDEX('Bridge Data'!$BV$4:$BV$253,'Bridge Data Matrices'!BT$9) -> 2028 | BU3: =INDEX('Bridge Data'!$BV$4:$BV$253,'Bridge Data Matrices'!BU$9) -> 2033 | BV3: =INDEX('Bridge Data'!$BV$4:$BV$253,'Bridge Data Matrices'!BV$9) -> 2026 | BW3: =INDEX('Bridge Data'!$BV$4:$BV$253,'Bridge Data Matrices'!BW$9) -> 2028 | BX3: =INDEX('Bridge Data'!$BV$4:$BV$253,'Bridge Data Matrices'!BX$9) -> 2028 | BY3: =INDEX('Bridge Data'!$BV$4:$BV$253,'Bridge Data Matrices'!BY$9) -> 2026 | BZ3: =INDEX('Bridge Data'!$BV$4:$BV$253,'Bridge Data Matrices'!BZ$9) -> 2028 | CA3: =INDEX('Bridge Data'!$BV$4:$BV$253,'Bridge Data Matrices'!CA$9) -> 2028 | CB3: =INDEX('Bridge Data'!$BV$4:$BV$253,'Bridge Data Matrices'!CB$9) -> 2028 | CC3: =INDEX('Bridge Data'!$BV$4:$BV$253,'Bridge Data Matrices'!CC$9) -> 2028 | CD3: =INDEX('Bridge Data'!$BV$4:$BV$253,'Bridge Data Matrices'!CD$9) -> 2028 | CE3: =INDEX('Bridge Data'!$BV$4:$BV$253,'Bridge Data Matrices'!CE$9) -> 2028 | CF3: =INDEX('Bridge Data'!$BV$4:$BV$253,'Bridge Data Matrices'!CF$9) -> 2028 | CG3: =INDEX('Bridge Data'!$BV$4:$BV$253,'Bridge Data Matrices'!CG$9) -> 2026 | CH3: =INDEX('Bridge Data'!$BV$4:$BV$253,'Bridge Data Matrices'!CH$9) -> 2028 | CI3: =INDEX('Bridge Data'!$BV$4:$BV$253,'Bridge Data Matrices'!CI$9) -> 2026 | CJ3: =INDEX('Bridge Data'!$BV$4:$BV$253,'Bridge Data Matrices'!CJ$9) -> 2026 | CK3: =INDEX('Bridge Data'!$BV$4:$BV$253,'Bridge Data Matrices'!CK$9) -> 2028 | CL3: =INDEX('Bridge Data'!$BV$4:$BV$253,'Bridge Data Matrices'!CL$9) -> 2028 | CM3: =INDEX('Bridge Data'!$BV$4:$BV$253,'Bridge Data Matrices'!CM$9) -> 2026 | CN3: =INDEX('Bridge Data'!$BV$4:$BV$253,'Bridge Data Matrices'!CN$9) -> 2026 | CO3: =INDEX('Bridge Data'!$BV$4:$BV$253,'Bridge Data Matrices'!CO$9) -> 2026 | CP3: =INDEX('Bridge Data'!$BV$4:$BV$253,'Bridge Data Matrices'!CP$9) -> 2028 | CQ3: =INDEX('Bridge Data'!$BV$4:$BV$253,'Bridge Data Matrices'!CQ$9) -> 2028 | CR3: =INDEX('Bridge Data'!$BV$4:$BV$253,'Bridge Data Matrices'!CR$9) -> 2048 | CS3: =INDEX('Bridge Data'!$BV$4:$BV$253,'Bridge Data Matrices'!CS$9) -> 2043 | CT3: =INDEX('Bridge Data'!$BV$4:$BV$253,'Bridge Data Matrices'!CT$9) -> 2043 | CU3: =INDEX('Bridge Data'!$BV$4:$BV$253,'Bridge Data Matrices'!CU$9) -> 2048 | CV3: =INDEX('Bridge Data'!$BV$4:$BV$253,'Bridge Data Matrices'!CV$9) -> 2048 | CW3: =INDEX('Bridge Data'!$BV$4:$BV$253,'Bridge Data Matrices'!CW$9) -> 2028 | CX3: =INDEX('Bridge Data'!$BV$4:$BV$253,'Bridge Data Matrices'!CX$9) -> 2038 | CY3: =INDEX('Bridge Data'!$BV$4:$BV$253,'Bridge Data Matrices'!CY$9) -> 2038 | CZ3: =INDEX('Bridge Data'!$BV$4:$BV$253,'Bridge Data Matrices'!CZ$9) -> 2033 | DA3: =INDEX('Bridge Data'!$BV$4:$BV$253,'Bridge Data Matrices'!DA$9) -> 2024 | DB3: =INDEX('Bridge Data'!$BV$4:$BV$253,'Bridge Data Matrices'!DB$9) -> 2022 | DC3: =INDEX('Bridge Data'!$BV$4:$BV$253,'Bridge Data Matrices'!DC$9) -> 2033 | DD3: =INDEX('Bridge Data'!$BV$4:$BV$253,'Bridge Data Matrices'!DD$9) -> 2028 | DE3: =INDEX('Bridge Data'!$BV$4:$BV$253,'Bridge Data Matrices'!DE$9) -> 2026 | DF3: =INDEX('Bridge Data'!$BV$4:$BV$253,'Bridge Data Matrices'!DF$9) -> 2033 | DG3: =INDEX('Bridge Data'!$BV$4:$BV$253,'Bridge Data Matrices'!DG$9) -> 2028 | DH3: =INDEX('Bridge Data'!$BV$4:$BV$253,'Bridge Data Matrices'!DH$9) -> 2043 | DI3: =INDEX('Bridge Data'!$BV$4:$BV$253,'Bridge Data Matrices'!DI$9) -> 2043 | DJ3: =INDEX('Bridge Data'!$BV$4:$BV$253,'Bridge Data Matrices'!DJ$9) -> 2048 | DK3: =INDEX('Bridge Data'!$BV$4:$BV$253,'Bridge Data Matrices'!DK$9) -> 2026 | DL3: =INDEX('Bridge Data'!$BV$4:$BV$253,'Bridge Data Matrices'!DL$9) -> 2026 | DM3: =INDEX('Bridge Data'!$BV$4:$BV$253,'Bridge Data Matrices'!DM$9) -> 2028 | DN3: =INDEX('Bridge Data'!$BV$4:$BV$253,'Bridge Data Matrices'!DN$9) -> 2028 | DO3: =INDEX('Bridge Data'!$BV$4:$BV$253,'Bridge Data Matrices'!DO$9) -> 2026 | DP3: =INDEX('Bridge Data'!$BV$4:$BV$253,'Bridge Data Matrices'!DP$9) -> 2038 | DQ3: =INDEX('Bridge Data'!$BV$4:$BV$253,'Bridge Data Matrices'!DQ$9) -> 2028 | DR3: =INDEX('Bridge Data'!$BV$4:$BV$253,'Bridge Data Matrices'!DR$9) -> 2033 | DS3: =INDEX('Bridge Data'!$BV$4:$BV$253,'Bridge Data Matrices'!DS$9) -> 2026 | DT3: =INDEX('Bridge Data'!$BV$4:$BV$253,'Bridge Data Matrices'!DT$9) -> 2043 | DU3: =INDEX('Bridge Data'!$BV$4:$BV$253,'Bridge Data Matrices'!DU$9) -> 2028 | DV3: =INDEX('Bridge Data'!$BV$4:$BV$253,'Bridge Data Matrices'!DV$9) -> 2026 | DW3: =INDEX('Bridge Data'!$BV$4:$BV$253,'Bridge Data Matrices'!DW$9) -> 2028 | DX3: =INDEX('Bridge Data'!$BV$4:$BV$253,'Bridge Data Matrices'!DX$9) -> 2028 | DY3: =INDEX('Bridge Data'!$BV$4:$BV$253,'Bridge Data Matrices'!DY$9) -> 2028 | DZ3: =INDEX('Bridge Data'!$BV$4:$BV$253,'Bridge Data Matrices'!DZ$9) -> 2028 | EA3: =INDEX('Bridge Data'!$BV$4:$BV$253,'Bridge Data Matrices'!EA$9) -> 2033 | EB3: =INDEX('Bridge Data'!$BV$4:$BV$253,'Bridge Data Matrices'!EB$9) -> 2028 | EC3: =INDEX('Bridge Data'!$BV$4:$BV$253,'Bridge Data Matrices'!EC$9) -> 2026 | ED3: =INDEX('Bridge Data'!$BV$4:$BV$253,'Bridge Data Matrices'!ED$9) -> 2033 | EE3: =INDEX('Bridge Data'!$BV$4:$BV$253,'Bridge Data Matrices'!EE$9) -> 2028 | EF3: =INDEX('Bridge Data'!$BV$4:$BV$253,'Bridge Data Matrices'!EF$9) -> 2028 | EG3: =INDEX('Bridge Data'!$BV$4:$BV$253,'Bridge Data Matrices'!EG$9) -> 2028 | EH3: =INDEX('Bridge Data'!$BV$4:$BV$253,'Bridge Data Matrices'!EH$9) -> 2028 | EI3: =INDEX('Bridge Data'!$BV$4:$BV$253,'Bridge Data Matrices'!EI$9) -> 2028 | EJ3: =INDEX('Bridge Data'!$BV$4:$BV$253,'Bridge Data Matrices'!EJ$9) -> 2028 | EK3: =INDEX('Bridge Data'!$BV$4:$BV$253,'Bridge Data Matrices'!EK$9) -> 2022 | EL3: =INDEX('Bridge Data'!$BV$4:$BV$253,'Bridge Data Matrices'!EL$9) -> 2028 | EM3: =INDEX('Bridge Data'!$BV$4:$BV$253,'Bridge Data Matrices'!EM$9) -> 2028 | EN3: =INDEX('Bridge Data'!$BV$4:$BV$253,'Bridge Data Matrices'!EN$9) -> 2022 | EO3: =INDEX('Bridge Data'!$BV$4:$BV$253,'Bridge Data Matrices'!EO$9) -> 2024 | EP3: =INDEX('Bridge Data'!$BV$4:$BV$253,'Bridge Data Matrices'!EP$9) -> 2028 | EQ3: =INDEX('Bridge Data'!$BV$4:$BV$253,'Bridge Data Matrices'!EQ$9) -> 2033 | ER3: =INDEX('Bridge Data'!$BV$4:$BV$253,'Bridge Data Matrices'!ER$9) -> 2033 | ES3: =INDEX('Bridge Data'!$BV$4:$BV$253,'Bridge Data Matrices'!ES$9) -> 2028 | ET3: =INDEX('Bridge Data'!$BV$4:$BV$253,'Bridge Data Matrices'!ET$9) -> 2024 | EU3: =INDEX('Bridge Data'!$BV$4:$BV$253,'Bridge Data Matrices'!EU$9) -> 2048 | EV3: =INDEX('Bridge Data'!$BV$4:$BV$253,'Bridge Data Matrices'!EV$9) -> 2048 | EW3: =INDEX('Bridge Data'!$BV$4:$BV$253,'Bridge Data Matrices'!EW$9) -> 2048 | EX3: =INDEX('Bridge Data'!$BV$4:$BV$253,'Bridge Data Matrices'!EX$9) -> 2028 | EY3: =INDEX('Bridge Data'!$BV$4:$BV$253,'Bridge Data Matrices'!EY$9) -> 2028 | EZ3: =INDEX('Bridge Data'!$BV$4:$BV$253,'Bridge Data Matrices'!EZ$9) -> 2026 | FA3: =INDEX('Bridge Data'!$BV$4:$BV$253,'Bridge Data Matrices'!FA$9) -> 2026 | FB3: =INDEX('Bridge Data'!$BV$4:$BV$253,'Bridge Data Matrices'!FB$9) -> 2026 | FC3: =INDEX('Bridge Data'!$BV$4:$BV$253,'Bridge Data Matrices'!FC$9) -> 2026 | FD3: =INDEX('Bridge Data'!$BV$4:$BV$253,'Bridge Data Matrices'!FD$9) -> 2026 | FE3: =INDEX('Bridge Data'!$BV$4:$BV$253,'Bridge Data Matrices'!FE$9) -> 2028 | FF3: =INDEX('Bridge Data'!$BV$4:$BV$253,'Bridge Data Matrices'!FF$9) -> 2028 | FG3: =INDEX('Bridge Data'!$BV$4:$BV$253,'Bridge Data Matrices'!FG$9) -> 2028 | FH3: =INDEX('Bridge Data'!$BV$4:$BV$253,'Bridge Data Matrices'!FH$9) -> 2038 | FI3: =INDEX('Bridge Data'!$BV$4:$BV$253,'Bridge Data Matrices'!FI$9) -> 2033 | FJ3: =INDEX('Bridge Data'!$BV$4:$BV$253,'Bridge Data Matrices'!FJ$9) -> 2022 | FK3: =INDEX('Bridge Data'!$BV$4:$BV$253,'Bridge Data Matrices'!FK$9) -> 2033 | FL3: =INDEX('Bridge Data'!$BV$4:$BV$253,'Bridge Data Matrices'!FL$9) -> 2026 | FM3: =INDEX('Bridge Data'!$BV$4:$BV$253,'Bridge Data Matrices'!FM$9) -> 2026 | FN3: =INDEX('Bridge Data'!$BV$4:$BV$253,'Bridge Data Matrices'!FN$9) -> 2026 | FO3: =INDEX('Bridge Data'!$BV$4:$BV$253,'Bridge Data Matrices'!FO$9) -> 2028 | FP3: =INDEX('Bridge Data'!$BV$4:$BV$253,'Bridge Data Matrices'!FP$9) -> 2028 | FQ3: =INDEX('Bridge Data'!$BV$4:$BV$253,'Bridge Data Matrices'!FQ$9) -> 2028 | FR3: =INDEX('Bridge Data'!$BV$4:$BV$253,'Bridge Data Matrices'!FR$9) -> 2028 | FS3: =INDEX('Bridge Data'!$BV$4:$BV$253,'Bridge Data Matrices'!FS$9) -> 2028 | FT3: =INDEX('Bridge Data'!$BV$4:$BV$253,'Bridge Data Matrices'!FT$9) -> 2026 | FU3: =INDEX('Bridge Data'!$BV$4:$BV$253,'Bridge Data Matrices'!FU$9) -> 2048 | FV3: =INDEX('Bridge Data'!$BV$4:$BV$253,'Bridge Data Matrices'!FV$9) -> 2022 | FW3: =INDEX('Bridge Data'!$BV$4:$BV$253,'Bridge Data Matrices'!FW$9) -> 2038 | FX3: =INDEX('Bridge Data'!$BV$4:$BV$253,'Bridge Data Matrices'!FX$9) -> 2028 | FY3: =INDEX('Bridge Data'!$BV$4:$BV$253,'Bridge Data Matrices'!FY$9) -> 2028 | FZ3: =INDEX('Bridge Data'!$BV$4:$BV$253,'Bridge Data Matrices'!FZ$9) -> 2028 | GA3: =INDEX('Bridge Data'!$BV$4:$BV$253,'Bridge Data Matrices'!GA$9) -> 2026 | GB3: =INDEX('Bridge Data'!$BV$4:$BV$253,'Bridge Data Matrices'!GB$9) -> 2028 | GC3: =INDEX('Bridge Data'!$BV$4:$BV$253,'Bridge Data Matrices'!GC$9) -> 2028 | GD3: =INDEX('Bridge Data'!$BV$4:$BV$253,'Bridge Data Matrices'!GD$9) -> 2028 | GE3: =INDEX('Bridge Data'!$BV$4:$BV$253,'Bridge Data Matrices'!GE$9) -> 2028 | GF3: =INDEX('Bridge Data'!$BV$4:$BV$253,'Bridge Data Matrices'!GF$9) -> 2028 | GG3: =INDEX('Bridge Data'!$BV$4:$BV$253,'Bridge Data Matrices'!GG$9) -> 2028 | GH3: =INDEX('Bridge Data'!$BV$4:$BV$253,'Bridge Data Matrices'!GH$9) -> 2028 | GI3: =INDEX('Bridge Data'!$BV$4:$BV$253,'Bridge Data Matrices'!GI$9) -> 2026 | GJ3: =INDEX('Bridge Data'!$BV$4:$BV$253,'Bridge Data Matrices'!GJ$9) -> 2026 | GK3: =INDEX('Bridge Data'!$BV$4:$BV$253,'Bridge Data Matrices'!GK$9) -> 2028 | GL3: =INDEX('Bridge Data'!$BV$4:$BV$253,'Bridge Data Matrices'!GL$9) -> 2024 | GM3: =INDEX('Bridge Data'!$BV$4:$BV$253,'Bridge Data Matrices'!GM$9) -> 2028 | GN3: =INDEX('Bridge Data'!$BV$4:$BV$253,'Bridge Data Matrices'!GN$9) -> 2048 | GO3: =INDEX('Bridge Data'!$BV$4:$BV$253,'Bridge Data Matrices'!GO$9) -> 2028 | GP3: =INDEX('Bridge Data'!$BV$4:$BV$253,'Bridge Data Matrices'!GP$9) -> 2033 | GQ3: =INDEX('Bridge Data'!$BV$4:$BV$253,'Bridge Data Matrices'!GQ$9) -> 2026 | GR3: =INDEX('Bridge Data'!$BV$4:$BV$253,'Bridge Data Matrices'!GR$9) -> 2043 | GS3: =INDEX('Bridge Data'!$BV$4:$BV$253,'Bridge Data Matrices'!GS$9) -> 2033 | GT3: =INDEX('Bridge Data'!$BV$4:$BV$253,'Bridge Data Matrices'!GT$9) -> 2033 | GU3: =INDEX('Bridge Data'!$BV$4:$BV$253,'Bridge Data Matrices'!GU$9) -> 2026 | GV3: =INDEX('Bridge Data'!$BV$4:$BV$253,'Bridge Data Matrices'!GV$9) -> 2033 | GW3: =INDEX('Bridge Data'!$BV$4:$BV$253,'Bridge Data Matrices'!GW$9) -> 2026 | GX3: =INDEX('Bridge Data'!$BV$4:$BV$253,'Bridge Data Matrices'!GX$9) -> 2026 | GY3: =INDEX('Bridge Data'!$BV$4:$BV$253,'Bridge Data Matrices'!GY$9) -> 2026 | GZ3: =INDEX('Bridge Data'!$BV$4:$BV$253,'Bridge Data Matrices'!GZ$9) -> 2048 | HA3: =INDEX('Bridge Data'!$BV$4:$BV$253,'Bridge Data Matrices'!HA$9) -> 2048 | HB3: =INDEX('Bridge Data'!$BV$4:$BV$253,'Bridge Data Matrices'!HB$9) -> 2048 | HC3: =INDEX('Bridge Data'!$BV$4:$BV$253,'Bridge Data Matrices'!HC$9) -> 2028 | HD3: =INDEX('Bridge Data'!$BV$4:$BV$253,'Bridge Data Matrices'!HD$9) -> 2028 | HE3: =INDEX('Bridge Data'!$BV$4:$BV$253,'Bridge Data Matrices'!HE$9) -> 2028 | HF3: =INDEX('Bridge Data'!$BV$4:$BV$253,'Bridge Data Matrices'!HF$9) -> 2028 | HG3: =INDEX('Bridge Data'!$BV$4:$BV$253,'Bridge Data Matrices'!HG$9) -> 2022 | HH3: =INDEX('Bridge Data'!$BV$4:$BV$253,'Bridge Data Matrices'!HH$9) -> 2026 | HI3: =INDEX('Bridge Data'!$BV$4:$BV$253,'Bridge Data Matrices'!HI$9) -> 2028 | HJ3: =INDEX('Bridge Data'!$BV$4:$BV$253,'Bridge Data Matrices'!HJ$9) -> 2028 | HK3: =INDEX('Bridge Data'!$BV$4:$BV$253,'Bridge Data Matrices'!HK$9) -> 2043 | HL3: =INDEX('Bridge Data'!$BV$4:$BV$253,'Bridge Data Matrices'!HL$9) -> 2043 | HM3: =INDEX('Bridge Data'!$BV$4:$BV$253,'Bridge Data Matrices'!HM$9) -> 2038 | HN3: =INDEX('Bridge Data'!$BV$4:$BV$253,'Bridge Data Matrices'!HN$9) -> 2043 | HO3: =INDEX('Bridge Data'!$BV$4:$BV$253,'Bridge Data Matrices'!HO$9) -> 2028 | HP3: =INDEX('Bridge Data'!$BV$4:$BV$253,'Bridge Data Matrices'!HP$9) -> 2033 | HQ3: =INDEX('Bridge Data'!$BV$4:$BV$253,'Bridge Data Matrices'!HQ$9) -> 2038 | HR3: =INDEX('Bridge Data'!$BV$4:$BV$253,'Bridge Data Matrices'!HR$9) -> 2038 | HS3: =INDEX('Bridge Data'!$BV$4:$BV$253,'Bridge Data Matrices'!HS$9) -> 2028 | HT3: =INDEX('Bridge Data'!$BV$4:$BV$253,'Bridge Data Matrices'!HT$9) -> 2028 | HU3: =INDEX('Bridge Data'!$BV$4:$BV$253,'Bridge Data Matrices'!HU$9) -> 2028 | HV3: =INDEX('Bridge Data'!$BV$4:$BV$253,'Bridge Data Matrices'!HV$9) -> 2028 | HW3: =INDEX('Bridge Data'!$BV$4:$BV$253,'Bridge Data Matrices'!HW$9) -> 2028 | HX3: =INDEX('Bridge Data'!$BV$4:$BV$253,'Bridge Data Matrices'!HX$9) -> 2028 | HY3: =INDEX('Bridge Data'!$BV$4:$BV$253,'Bridge Data Matrices'!HY$9) -> 2033 | HZ3: =INDEX('Bridge Data'!$BV$4:$BV$253,'Bridge Data Matrices'!HZ$9) -> 2022 | IA3: =INDEX('Bridge Data'!$BV$4:$BV$253,'Bridge Data Matrices'!IA$9) -> 2022 | IB3: =INDEX('Bridge Data'!$BV$4:$BV$253,'Bridge Data Matrices'!IB$9) -> 2033 | IC3: =INDEX('Bridge Data'!$BV$4:$BV$253,'Bridge Data Matrices'!IC$9) -> 2033 | ID3: =INDEX('Bridge Data'!$BV$4:$BV$253,'Bridge Data Matrices'!ID$9) -> 2048 | IE3: =INDEX('Bridge Data'!$BV$4:$BV$253,'Bridge Data Matrices'!IE$9) -> 2048 | IF3: =INDEX('Bridge Data'!$BV$4:$BV$253,'Bridge Data Matrices'!IF$9) -> 2028 | IG3: =INDEX('Bridge Data'!$BV$4:$BV$253,'Bridge Data Matrices'!IG$9) -> 2028 | IH3: =INDEX('Bridge Data'!$BV$4:$BV$253,'Bridge Data Matrices'!IH$9) -> 2028 | II3: =INDEX('Bridge Data'!$BV$4:$BV$253,'Bridge Data Matrices'!II$9) -> 2043 | IJ3: =INDEX('Bridge Data'!$BV$4:$BV$253,'Bridge Data Matrices'!IJ$9) -> 2043 | IK3: =INDEX('Bridge Data'!$BV$4:$BV$253,'Bridge Data Matrices'!IK$9) -> 2043 | IL3: =INDEX('Bridge Data'!$BV$4:$BV$253,'Bridge Data Matrices'!IL$9) -> 2048 | IM3: =INDEX('Bridge Data'!$BV$4:$BV$253,'Bridge Data Matrices'!IM$9) -> 2048 | IN3: =INDEX('Bridge Data'!$BV$4:$BV$253,'Bridge Data Matrices'!IN$9) -> 2038 | IO3: =INDEX('Bridge Data'!$BV$4:$BV$253,'Bridge Data Matrices'!IO$9) -> 2048 | IP3: =INDEX('Bridge Data'!$BV$4:$BV$253,'Bridge Data Matrices'!IP$9) -> 2048 | IQ3: =INDEX('Bridge Data'!$BV$4:$BV$253,'Bridge Data Matrices'!IQ$9) -> 2026 | IR3: =INDEX('Bridge Data'!$BV$4:$BV$253,'Bridge Data Matrices'!IR$9) -> 2028
A4: Analysis Ends | C4: =MIN(C1+'Parameters Added'!$B$16,MAX($A$24:$A$72)) -> 2050 | D4: =MIN(D1+'Parameters Added'!$B$16,MAX($A$24:$A$72)) -> 2050 | E4: =MIN(E1+'Parameters Added'!$B$16,MAX($A$24:$A$72)) -> 2051 | F4: =MIN(F1+'Parameters Added'!$B$16,MAX($A$24:$A$72)) -> 2051 | G4: =MIN(G1+'Parameters Added'!$B$16,MAX($A$24:$A$72)) -> 2051 | H4: =MIN(H1+'Parameters Added'!$B$16,MAX($A$24:$A$72)) -> 2053 | I4: =MIN(I1+'Parameters Added'!$B$16,MAX($A$24:$A$72)) -> 2053 | J4: =MIN(J1+'Parameters Added'!$B$16,MAX($A$24:$A$72)) -> 2053 | K4: =MIN(K1+'Parameters Added'!$B$16,MAX($A$24:$A$72)) -> 2050 | L4: =MIN(L1+'Parameters Added'!$B$16,MAX($A$24:$A$72)) -> 2050 | M4: =MIN(M1+'Parameters Added'!$B$16,MAX($A$24:$A$72)) -> 2050 | N4: =MIN(N1+'Parameters Added'!$B$16,MAX($A$24:$A$72)) -> 2051 | O4: =MIN(O1+'Parameters Added'!$B$16,MAX($A$24:$A$72)) -> 2050 | P4: =MIN(P1+'Parameters Added'!$B$16,MAX($A$24:$A$72)) -> 2050 | Q4: =MIN(Q1+'Parameters Added'!$B$16,MAX($A$24:$A$72)) -> 2053 | R4: =MIN(R1+'Parameters Added'!$B$16,MAX($A$24:$A$72)) -> 2053 | S4: =MIN(S1+'Parameters Added'!$B$16,MAX($A$24:$A$72)) -> 2051 | T4: =MIN(T1+'Parameters Added'!$B$16,MAX($A$24:$A$72)) -> 2051 | U4: =MIN(U1+'Parameters Added'!$B$16,MAX($A$24:$A$72)) -> 2051 | V4: =MIN(V1+'Parameters Added'!$B$16,MAX($A$24:$A$72)) -> 2051 | W4: =MIN(W1+'Parameters Added'!$B$16,MAX($A$24:$A$72)) -> 2051 | X4: =MIN(X1+'Parameters Added'!$B$16,MAX($A$24:$A$72)) -> 2051 | Y4: =MIN(Y1+'Parameters Added'!$B$16,MAX($A$24:$A$72)) -> 2052 | Z4: =MIN(Z1+'Parameters Added'!$B$16,MAX($A$24:$A$72)) -> 2050 | AA4: =MIN(AA1+'Parameters Added'!$B$16,MAX($A$24:$A$72)) -> 2050 | AB4: =MIN(AB1+'Parameters Added'!$B$16,MAX($A$24:$A$72)) -> 2051 | AC4: =MIN(AC1+'Parameters Added'!$B$16,MAX($A$24:$A$72)) -> 2051 | AD4: =MIN(AD1+'Parameters Added'!$B$16,MAX($A$24:$A$72)) -> 2050 | AE4: =MIN(AE1+'Parameters Added'!$B$16,MAX($A$24:$A$72)) -> 2051 | AF4: =MIN(AF1+'Parameters Added'!$B$16,MAX($A$24:$A$72)) -> 2051 | AG4: =MIN(AG1+'Parameters Added'!$B$16,MAX($A$24:$A$72)) -> 2051 | AH4: =MIN(AH1+'Parameters Added'!$B$16,MAX($A$24:$A$72)) -> 2052 | AI4: =MIN(AI1+'Parameters Added'!$B$16,MAX($A$24:$A$72)) -> 2053 | AJ4: =MIN(AJ1+'Parameters Added'!$B$16,MAX($A$24:$A$72)) -> 2053 | AK4: =MIN(AK1+'Parameters Added'!$B$16,MAX($A$24:$A$72)) -> 2050 | AL4: =MIN(AL1+'Parameters Added'!$B$16,MAX($A$24:$A$72)) -> 2051 | AM4: =MIN(AM1+'Parameters Added'!$B$16,MAX($A$24:$A$72)) -> 2050 | AN4: =MIN(AN1+'Parameters Added'!$B$16,MAX($A$24:$A$72)) -> 2050 | AO4: =MIN(AO1+'Parameters Added'!$B$16,MAX($A$24:$A$72)) -> 2050 | AP4: =MIN(AP1+'Parameters Added'!$B$16,MAX($A$24:$A$72)) -> 2050 | AQ4: =MIN(AQ1+'Parameters Added'!$B$16,MAX($A$24:$A$72)) -> 2050 | AR4: =MIN(AR1+'Parameters Added'!$B$16,MAX($A$24:$A$72)) -> 2051 | AS4: =MIN(AS1+'Parameters Added'!$B$16,MAX($A$24:$A$72)) -> 2050 | AT4: =MIN(AT1+'Parameters Added'!$B$16,MAX($A$24:$A$72)) -> 2053 | AU4: =MIN(AU1+'Parameters Added'!$B$16,MAX($A$24:$A$72)) -> 2053 | AV4: =MIN(AV1+'Parameters Added'!$B$16,MAX($A$24:$A$72)) -> 2050 | AW4: =MIN(AW1+'Parameters Added'!$B$16,MAX($A$24:$A$72)) -> 2050 | AX4: =MIN(AX1+'Parameters Added'!$B$16,MAX($A$24:$A$72)) -> 2053 | AY4: =MIN(AY1+'Parameters Added'!$B$16,MAX($A$24:$A$72)) -> 2050 | AZ4: =MIN(AZ1+'Parameters Added'!$B$16,MAX($A$24:$A$72)) -> 2051 | BA4: =MIN(BA1+'Parameters Added'!$B$16,MAX($A$24:$A$72)) -> 2051 | BB4: =MIN(BB1+'Parameters Added'!$B$16,MAX($A$24:$A$72)) -> 2051 | BC4: =MIN(BC1+'Parameters Added'!$B$16,MAX($A$24:$A$72)) -> 2052 | BD4: =MIN(BD1+'Parameters Added'!$B$16,MAX($A$24:$A$72)) -> 2050 | BE4: =MIN(BE1+'Parameters Added'!$B$16,MAX($A$24:$A$72)) -> 2053 | BF4: =MIN(BF1+'Parameters Added'!$B$16,MAX($A$24:$A$72)) -> 2052 | BG4: =MIN(BG1+'Parameters Added'!$B$16,MAX($A$24:$A$72)) -> 2050 | BH4: =MIN(BH1+'Parameters Added'!$B$16,MAX($A$24:$A$72)) -> 2051 | BI4: =MIN(BI1+'Parameters Added'!$B$16,MAX($A$24:$A$72)) -> 2051 | BJ4: =MIN(BJ1+'Parameters Added'!$B$16,MAX($A$24:$A$72)) -> 2051 | BK4: =MIN(BK1+'Parameters Added'!$B$16,MAX($A$24:$A$72)) -> 2051 | BL4: =MIN(BL1+'Parameters Added'!$B$16,MAX($A$24:$A$72)) -> 2050 | BM4: =MIN(BM1+'Parameters Added'!$B$16,MAX($A$24:$A$72)) -> 2052 | BN4: =MIN(BN1+'Parameters Added'!$B$16,MAX($A$24:$A$72)) -> 2050 | BO4: =MIN(BO1+'Parameters Added'!$B$16,MAX($A$24:$A$72)) -> 2051 | BP4: =MIN(BP1+'Parameters Added'!$B$16,MAX($A$24:$A$72)) -> 2050 | BQ4: =MIN(BQ1+'Parameters Added'!$B$16,MAX($A$24:$A$72)) -> 2051 | BR4: =MIN(BR1+'Parameters Added'!$B$16,MAX($A$24:$A$72)) -> 2051 | BS4: =MIN(BS1+'Parameters Added'!$B$16,MAX($A$24:$A$72)) -> 2051 | BT4: =MIN(BT1+'Parameters Added'!$B$16,MAX($A$24:$A$72)) -> 2051 | BU4: =MIN(BU1+'Parameters Added'!$B$16,MAX($A$24:$A$72)) -> 2050 | BV4: =MIN(BV1+'Parameters Added'!$B$16,MAX($A$24:$A$72)) -> 2050 | BW4: =MIN(BW1+'Parameters Added'!$B$16,MAX($A$24:$A$72)) -> 2050 | BX4: =MIN(BX1+'Parameters Added'!$B$16,MAX($A$24:$A$72)) -> 2052 | BY4: =MIN(BY1+'Parameters Added'!$B$16,MAX($A$24:$A$72)) -> 2051 | BZ4: =MIN(BZ1+'Parameters Added'!$B$16,MAX($A$24:$A$72)) -> 2053 | CA4: =MIN(CA1+'Parameters Added'!$B$16,MAX($A$24:$A$72)) -> 2052 | CB4: =MIN(CB1+'Parameters Added'!$B$16,MAX($A$24:$A$72)) -> 2050 | CC4: =MIN(CC1+'Parameters Added'!$B$16,MAX($A$24:$A$72)) -> 2050 | CD4: =MIN(CD1+'Parameters Added'!$B$16,MAX($A$24:$A$72)) -> 2050 | CE4: =MIN(CE1+'Parameters Added'!$B$16,MAX($A$24:$A$72)) -> 2050 | CF4: =MIN(CF1+'Parameters Added'!$B$16,MAX($A$24:$A$72)) -> 2052 | CG4: =MIN(CG1+'Parameters Added'!$B$16,MAX($A$24:$A$72)) -> 2053 | CH4: =MIN(CH1+'Parameters Added'!$B$16,MAX($A$24:$A$72)) -> 2050 | CI4: =MIN(CI1+'Parameters Added'!$B$16,MAX($A$24:$A$72)) -> 2052 | CJ4: =MIN(CJ1+'Parameters Added'!$B$16,MAX($A$24:$A$72)) -> 2050 | CK4: =MIN(CK1+'Parameters Added'!$B$16,MAX($A$24:$A$72)) -> 2051 | CL4: =MIN(CL1+'Parameters Added'!$B$16,MAX($A$24:$A$72)) -> 2051 | CM4: =MIN(CM1+'Parameters Added'!$B$16,MAX($A$24:$A$72)) -> 2050 | CN4: =MIN(CN1+'Parameters Added'!$B$16,MAX($A$24:$A$72)) -> 2050 | CO4: =MIN(CO1+'Parameters Added'!$B$16,MAX($A$24:$A$72)) -> 2050 | CP4: =MIN(CP1+'Parameters Added'!$B$16,MAX($A$24:$A$72)) -> 2051 | CQ4: =MIN(CQ1+'Parameters Added'!$B$16,MAX($A$24:$A$72)) -> 2051 | CR4: =MIN(CR1+'Parameters Added'!$B$16,MAX($A$24:$A$72)) -> 2052 | CS4: =MIN(CS1+'Parameters Added'!$B$16,MAX($A$24:$A$72)) -> 2050 | CT4: =MIN(CT1+'Parameters Added'!$B$16,MAX($A$24:$A$72)) -> 2050 | CU4: =MIN(CU1+'Parameters Added'!$B$16,MAX($A$24:$A$72)) -> 2050 | CV4: =MIN(CV1+'Parameters Added'!$B$16,MAX($A$24:$A$72)) -> 2050 | CW4: =MIN(CW1+'Parameters Added'!$B$16,MAX($A$24:$A$72)) -> 2050 | CX4: =MIN(CX1+'Parameters Added'!$B$16,MAX($A$24:$A$72)) -> 2050 | CY4: =MIN(CY1+'Parameters Added'!$B$16,MAX($A$24:$A$72)) -> 2050 | CZ4: =MIN(CZ1+'Parameters Added'!$B$16,MAX($A$24:$A$72)) -> 2050 | DA4: =MIN(DA1+'Parameters Added'!$B$16,MAX($A$24:$A$72)) -> 2050 | DB4: =MIN(DB1+'Parameters Added'!$B$16,MAX($A$24:$A$72)) -> 2051 | DC4: =MIN(DC1+'Parameters Added'!$B$16,MAX($A$24:$A$72)) -> 2050 | DD4: =MIN(DD1+'Parameters Added'!$B$16,MAX($A$24:$A$72)) -> 2050 | DE4: =MIN(DE1+'Parameters Added'!$B$16,MAX($A$24:$A$72)) -> 2051 | DF4: =MIN(DF1+'Parameters Added'!$B$16,MAX($A$24:$A$72)) -> 2050 | DG4: =MIN(DG1+'Parameters Added'!$B$16,MAX($A$24:$A$72)) -> 2051 | DH4: =MIN(DH1+'Parameters Added'!$B$16,MAX($A$24:$A$72)) -> 2051 | DI4: =MIN(DI1+'Parameters Added'!$B$16,MAX($A$24:$A$72)) -> 2051 | DJ4: =MIN(DJ1+'Parameters Added'!$B$16,MAX($A$24:$A$72)) -> 2051 | DK4: =MIN(DK1+'Parameters Added'!$B$16,MAX($A$24:$A$72)) -> 2051 | DL4: =MIN(DL1+'Parameters Added'!$B$16,MAX($A$24:$A$72)) -> 2052 | DM4: =MIN(DM1+'Parameters Added'!$B$16,MAX($A$24:$A$72)) -> 2051 | DN4: =MIN(DN1+'Parameters Added'!$B$16,MAX($A$24:$A$72)) -> 2050 | DO4: =MIN(DO1+'Parameters Added'!$B$16,MAX($A$24:$A$72)) -> 2050 | DP4: =MIN(DP1+'Parameters Added'!$B$16,MAX($A$24:$A$72)) -> 2050 | DQ4: =MIN(DQ1+'Parameters Added'!$B$16,MAX($A$24:$A$72)) -> 2050 | DR4: =MIN(DR1+'Parameters Added'!$B$16,MAX($A$24:$A$72)) -> 2050 | DS4: =MIN(DS1+'Parameters Added'!$B$16,MAX($A$24:$A$72)) -> 2051 | DT4: =MIN(DT1+'Parameters Added'!$B$16,MAX($A$24:$A$72)) -> 2051 | DU4: =MIN(DU1+'Parameters Added'!$B$16,MAX($A$24:$A$72)) -> 2051 | DV4: =MIN(DV1+'Parameters Added'!$B$16,MAX($A$24:$A$72)) -> 2050 | DW4: =MIN(DW1+'Parameters Added'!$B$16,MAX($A$24:$A$72)) -> 2050 | DX4: =MIN(DX1+'Parameters Added'!$B$16,MAX($A$24:$A$72)) -> 2050 | DY4: =MIN(DY1+'Parameters Added'!$B$16,MAX($A$24:$A$72)) -> 2050 | DZ4: =MIN(DZ1+'Parameters Added'!$B$16,MAX($A$24:$A$72)) -> 2050 | EA4: =MIN(EA1+'Parameters Added'!$B$16,MAX($A$24:$A$72)) -> 2051 | EB4: =MIN(EB1+'Parameters Added'!$B$16,MAX($A$24:$A$72)) -> 2052 | EC4: =MIN(EC1+'Parameters Added'!$B$16,MAX($A$24:$A$72)) -> 2051 | ED4: =MIN(ED1+'Parameters Added'!$B$16,MAX($A$24:$A$72)) -> 2052 | EE4: =MIN(EE1+'Parameters Added'!$B$16,MAX($A$24:$A$72)) -> 2050 | EF4: =MIN(EF1+'Parameters Added'!$B$16,MAX($A$24:$A$72)) -> 2050 | EG4: =MIN(EG1+'Parameters Added'!$B$16,MAX($A$24:$A$72)) -> 2050 | EH4: =MIN(EH1+'Parameters Added'!$B$16,MAX($A$24:$A$72)) -> 2051 | EI4: =MIN(EI1+'Parameters Added'!$B$16,MAX($A$24:$A$72)) -> 2051 | EJ4: =MIN(EJ1+'Parameters Added'!$B$16,MAX($A$24:$A$72)) -> 2053 | EK4: =MIN(EK1+'Parameters Added'!$B$16,MAX($A$24:$A$72)) -> 2050 | EL4: =MIN(EL1+'Parameters Added'!$B$16,MAX($A$24:$A$72)) -> 2050 | EM4: =MIN(EM1+'Parameters Added'!$B$16,MAX($A$24:$A$72)) -> 2050 | EN4: =MIN(EN1+'Parameters Added'!$B$16,MAX($A$24:$A$72)) -> 2051 | EO4: =MIN(EO1+'Parameters Added'!$B$16,MAX($A$24:$A$72)) -> 2050 | EP4: =MIN(EP1+'Parameters Added'!$B$16,MAX($A$24:$A$72)) -> 2051 | EQ4: =MIN(EQ1+'Parameters Added'!$B$16,MAX($A$24:$A$72)) -> 2051 | ER4: =MIN(ER1+'Parameters Added'!$B$16,MAX($A$24:$A$72)) -> 2051 | ES4: =MIN(ES1+'Parameters Added'!$B$16,MAX($A$24:$A$72)) -> 2051 | ET4: =MIN(ET1+'Parameters Added'!$B$16,MAX($A$24:$A$72)) -> 2050 | EU4: =MIN(EU1+'Parameters Added'!$B$16,MAX($A$24:$A$72)) -> 2050 | EV4: =MIN(EV1+'Parameters Added'!$B$16,MAX($A$24:$A$72)) -> 2052 | EW4: =MIN(EW1+'Parameters Added'!$B$16,MAX($A$24:$A$72)) -> 2052 | EX4: =MIN(EX1+'Parameters Added'!$B$16,MAX($A$24:$A$72)) -> 2052 | EY4: =MIN(EY1+'Parameters Added'!$B$16,MAX($A$24:$A$72)) -> 2052 | EZ4: =MIN(EZ1+'Parameters Added'!$B$16,MAX($A$24:$A$72)) -> 2051 | FA4: =MIN(FA1+'Parameters Added'!$B$16,MAX($A$24:$A$72)) -> 2050 | FB4: =MIN(FB1+'Parameters Added'!$B$16,MAX($A$24:$A$72)) -> 2050 | FC4: =MIN(FC1+'Parameters Added'!$B$16,MAX($A$24:$A$72)) -> 2050 | FD4: =MIN(FD1+'Parameters Added'!$B$16,MAX($A$24:$A$72)) -> 2052 | FE4: =MIN(FE1+'Parameters Added'!$B$16,MAX($A$24:$A$72)) -> 2050 | FF4: =MIN(FF1+'Parameters Added'!$B$16,MAX($A$24:$A$72)) -> 2051 | FG4: =MIN(FG1+'Parameters Added'!$B$16,MAX($A$24:$A$72)) -> 2053 | FH4: =MIN(FH1+'Parameters Added'!$B$16,MAX($A$24:$A$72)) -> 2050 | FI4: =MIN(FI1+'Parameters Added'!$B$16,MAX($A$24:$A$72)) -> 2050 | FJ4: =MIN(FJ1+'Parameters Added'!$B$16,MAX($A$24:$A$72)) -> 2050 | FK4: =MIN(FK1+'Parameters Added'!$B$16,MAX($A$24:$A$72)) -> 2051 | FL4: =MIN(FL1+'Parameters Added'!$B$16,MAX($A$24:$A$72)) -> 2051 | FM4: =MIN(FM1+'Parameters Added'!$B$16,MAX($A$24:$A$72)) -> 2050 | FN4: =MIN(FN1+'Parameters Added'!$B$16,MAX($A$24:$A$72)) -> 2050 | FO4: =MIN(FO1+'Parameters Added'!$B$16,MAX($A$24:$A$72)) -> 2051 | FP4: =MIN(FP1+'Parameters Added'!$B$16,MAX($A$24:$A$72)) -> 2052 | FQ4: =MIN(FQ1+'Parameters Added'!$B$16,MAX($A$24:$A$72)) -> 2050 | FR4: =MIN(FR1+'Parameters Added'!$B$16,MAX($A$24:$A$72)) -> 2052 | FS4: =MIN(FS1+'Parameters Added'!$B$16,MAX($A$24:$A$72)) -> 2050 | FT4: =MIN(FT1+'Parameters Added'!$B$16,MAX($A$24:$A$72)) -> 2050 | FU4: =MIN(FU1+'Parameters Added'!$B$16,MAX($A$24:$A$72)) -> 2050 | FV4: =MIN(FV1+'Parameters Added'!$B$16,MAX($A$24:$A$72)) -> 2053 | FW4: =MIN(FW1+'Parameters Added'!$B$16,MAX($A$24:$A$72)) -> 2050 | FX4: =MIN(FX1+'Parameters Added'!$B$16,MAX($A$24:$A$72)) -> 2050 | FY4: =MIN(FY1+'Parameters Added'!$B$16,MAX($A$24:$A$72)) -> 2050 | FZ4: =MIN(FZ1+'Parameters Added'!$B$16,MAX($A$24:$A$72)) -> 2051 | GA4: =MIN(GA1+'Parameters Added'!$B$16,MAX($A$24:$A$72)) -> 2050 | GB4: =MIN(GB1+'Parameters Added'!$B$16,MAX($A$24:$A$72)) -> 2050 | GC4: =MIN(GC1+'Parameters Added'!$B$16,MAX($A$24:$A$72)) -> 2050 | GD4: =MIN(GD1+'Parameters Added'!$B$16,MAX($A$24:$A$72)) -> 2050 | GE4: =MIN(GE1+'Parameters Added'!$B$16,MAX($A$24:$A$72)) -> 2050 | GF4: =MIN(GF1+'Parameters Added'!$B$16,MAX($A$24:$A$72)) -> 2050 | GG4: =MIN(GG1+'Parameters Added'!$B$16,MAX($A$24:$A$72)) -> 2052 | GH4: =MIN(GH1+'Parameters Added'!$B$16,MAX($A$24:$A$72)) -> 2052 | GI4: =MIN(GI1+'Parameters Added'!$B$16,MAX($A$24:$A$72)) -> 2052 | GJ4: =MIN(GJ1+'Parameters Added'!$B$16,MAX($A$24:$A$72)) -> 2051 | GK4: =MIN(GK1+'Parameters Added'!$B$16,MAX($A$24:$A$72)) -> 2052 | GL4: =MIN(GL1+'Parameters Added'!$B$16,MAX($A$24:$A$72)) -> 2051 | GM4: =MIN(GM1+'Parameters Added'!$B$16,MAX($A$24:$A$72)) -> 2051 | GN4: =MIN(GN1+'Parameters Added'!$B$16,MAX($A$24:$A$72)) -> 2052 | GO4: =MIN(GO1+'Parameters Added'!$B$16,MAX($A$24:$A$72)) -> 2051 | GP4: =MIN(GP1+'Parameters Added'!$B$16,MAX($A$24:$A$72)) -> 2052 | GQ4: =MIN(GQ1+'Parameters Added'!$B$16,MAX($A$24:$A$72)) -> 2052 | GR4: =MIN(GR1+'Parameters Added'!$B$16,MAX($A$24:$A$72)) -> 2051 | GS4: =MIN(GS1+'Parameters Added'!$B$16,MAX($A$24:$A$72)) -> 2053 | GT4: =MIN(GT1+'Parameters Added'!$B$16,MAX($A$24:$A$72)) -> 2052 | GU4: =MIN(GU1+'Parameters Added'!$B$16,MAX($A$24:$A$72)) -> 2052 | GV4: =MIN(GV1+'Parameters Added'!$B$16,MAX($A$24:$A$72)) -> 2053 | GW4: =MIN(GW1+'Parameters Added'!$B$16,MAX($A$24:$A$72)) -> 2050 | GX4: =MIN(GX1+'Parameters Added'!$B$16,MAX($A$24:$A$72)) -> 2050 | GY4: =MIN(GY1+'Parameters Added'!$B$16,MAX($A$24:$A$72)) -> 2050 | GZ4: =MIN(GZ1+'Parameters Added'!$B$16,MAX($A$24:$A$72)) -> 2051 | HA4: =MIN(HA1+'Parameters Added'!$B$16,MAX($A$24:$A$72)) -> 2051 | HB4: =MIN(HB1+'Parameters Added'!$B$16,MAX($A$24:$A$72)) -> 2051 | HC4: =MIN(HC1+'Parameters Added'!$B$16,MAX($A$24:$A$72)) -> 2053 | HD4: =MIN(HD1+'Parameters Added'!$B$16,MAX($A$24:$A$72)) -> 2050 | HE4: =MIN(HE1+'Parameters Added'!$B$16,MAX($A$24:$A$72)) -> 2050 | HF4: =MIN(HF1+'Parameters Added'!$B$16,MAX($A$24:$A$72)) -> 2052 | HG4: =MIN(HG1+'Parameters Added'!$B$16,MAX($A$24:$A$72)) -> 2050 | HH4: =MIN(HH1+'Parameters Added'!$B$16,MAX($A$24:$A$72)) -> 2052 | HI4: =MIN(HI1+'Parameters Added'!$B$16,MAX($A$24:$A$72)) -> 2050 | HJ4: =MIN(HJ1+'Parameters Added'!$B$16,MAX($A$24:$A$72)) -> 2052 | HK4: =MIN(HK1+'Parameters Added'!$B$16,MAX($A$24:$A$72)) -> 2053 | HL4: =MIN(HL1+'Parameters Added'!$B$16,MAX($A$24:$A$72)) -> 2053 | HM4: =MIN(HM1+'Parameters Added'!$B$16,MAX($A$24:$A$72)) -> 2051 | HN4: =MIN(HN1+'Parameters Added'!$B$16,MAX($A$24:$A$72)) -> 2050 | HO4: =MIN(HO1+'Parameters Added'!$B$16,MAX($A$24:$A$72)) -> 2050 | HP4: =MIN(HP1+'Parameters Added'!$B$16,MAX($A$24:$A$72)) -> 2053 | HQ4: =MIN(HQ1+'Parameters Added'!$B$16,MAX($A$24:$A$72)) -> 2051 | HR4: =MIN(HR1+'Parameters Added'!$B$16,MAX($A$24:$A$72)) -> 2051 | HS4: =MIN(HS1+'Parameters Added'!$B$16,MAX($A$24:$A$72)) -> 2050 | HT4: =MIN(HT1+'Parameters Added'!$B$16,MAX($A$24:$A$72)) -> 2050 | HU4: =MIN(HU1+'Parameters Added'!$B$16,MAX($A$24:$A$72)) -> 2050 | HV4: =MIN(HV1+'Parameters Added'!$B$16,MAX($A$24:$A$72)) -> 2050 | HW4: =MIN(HW1+'Parameters Added'!$B$16,MAX($A$24:$A$72)) -> 2050 | HX4: =MIN(HX1+'Parameters Added'!$B$16,MAX($A$24:$A$72)) -> 2051 | HY4: =MIN(HY1+'Parameters Added'!$B$16,MAX($A$24:$A$72)) -> 2052 | HZ4: =MIN(HZ1+'Parameters Added'!$B$16,MAX($A$24:$A$72)) -> 2051 | IA4: =MIN(IA1+'Parameters Added'!$B$16,MAX($A$24:$A$72)) -> 2051 | IB4: =MIN(IB1+'Parameters Added'!$B$16,MAX($A$24:$A$72)) -> 2051 | IC4: =MIN(IC1+'Parameters Added'!$B$16,MAX($A$24:$A$72)) -> 2051 | ID4: =MIN(ID1+'Parameters Added'!$B$16,MAX($A$24:$A$72)) -> 2051 | IE4: =MIN(IE1+'Parameters Added'!$B$16,MAX($A$24:$A$72)) -> 2051 | IF4: =MIN(IF1+'Parameters Added'!$B$16,MAX($A$24:$A$72)) -> 2050 | IG4: =MIN(IG1+'Parameters Added'!$B$16,MAX($A$24:$A$72)) -> 2051 | IH4: =MIN(IH1+'Parameters Added'!$B$16,MAX($A$24:$A$72)) -> 2050 | II4: =MIN(II1+'Parameters Added'!$B$16,MAX($A$24:$A$72)) -> 2052 | IJ4: =MIN(IJ1+'Parameters Added'!$B$16,MAX($A$24:$A$72)) -> 2052 | IK4: =MIN(IK1+'Parameters Added'!$B$16,MAX($A$24:$A$72)) -> 2050 | IL4: =MIN(IL1+'Parameters Added'!$B$16,MAX($A$24:$A$72)) -> 2052 | IM4: =MIN(IM1+'Parameters Added'!$B$16,MAX($A$24:$A$72)) -> 2052 | IN4: =MIN(IN1+'Parameters Added'!$B$16,MAX($A$24:$A$72)) -> 2052 | IO4: =MIN(IO1+'Parameters Added'!$B$16,MAX($A$24:$A$72)) -> 2052 | IP4: =MIN(IP1+'Parameters Added'!$B$16,MAX($A$24:$A$72)) -> 2052 | IQ4: =MIN(IQ1+'Parameters Added'!$B$16,MAX($A$24:$A$72)) -> 2051 | IR4: =MIN(IR1+'Parameters Added'!$B$16,MAX($A$24:$A$72)) -> 2050
A5: Construction Type | C5: =INDEX('Bridge Data'!$S$4:$S$253,'Bridge Data Matrices'!C$9) -> Rehabilitation | D5: =INDEX('Bridge Data'!$S$4:$S$253,'Bridge Data Matrices'!D$9) -> Replacement | E5: =INDEX('Bridge Data'!$S$4:$S$253,'Bridge Data Matrices'!E$9) -> Rehabilitation | F5: =INDEX('Bridge Data'!$S$4:$S$253,'Bridge Data Matrices'!F$9) -> Rehabilitation | G5: =INDEX('Bridge Data'!$S$4:$S$253,'Bridge Data Matrices'!G$9) -> Rehabilitation | H5: =INDEX('Bridge Data'!$S$4:$S$253,'Bridge Data Matrices'!H$9) -> Replacement | I5: =INDEX('Bridge Data'!$S$4:$S$253,'Bridge Data Matrices'!I$9) -> Replacement | J5: =INDEX('Bridge Data'!$S$4:$S$253,'Bridge Data Matrices'!J$9) -> Rehabilitation | K5: =INDEX('Bridge Data'!$S$4:$S$253,'Bridge Data Matrices'!K$9) -> Redecking | L5: =INDEX('Bridge Data'!$S$4:$S$253,'Bridge Data Matrices'!L$9) -> Replacement | M5: =INDEX('Bridge Data'!$S$4:$S$253,'Bridge Data Matrices'!M$9) -> Replacement | N5: =INDEX('Bridge Data'!$S$4:$S$253,'Bridge Data Matrices'!N$9) -> Rehabilitation | O5: =INDEX('Bridge Data'!$S$4:$S$253,'Bridge Data Matrices'!O$9) -> Replacement | P5: =INDEX('Bridge Data'!$S$4:$S$253,'Bridge Data Matrices'!P$9) -> Rehabilitation | Q5: =INDEX('Bridge Data'!$S$4:$S$253,'Bridge Data Matrices'!Q$9) -> Replacement | R5: =INDEX('Bridge Data'!$S$4:$S$253,'Bridge Data Matrices'!R$9) -> Replacement | S5: =INDEX('Bridge Data'!$S$4:$S$253,'Bridge Data Matrices'!S$9) -> Rehabilitation | T5: =INDEX('Bridge Data'!$S$4:$S$253,'Bridge Data Matrices'!T$9) -> Rehabilitation | U5: =INDEX('Bridge Data'!$S$4:$S$253,'Bridge Data Matrices'!U$9) -> Rehabilitation | V5: =INDEX('Bridge Data'!$S$4:$S$253,'Bridge Data Matrices'!V$9) -> Replacement | W5: =INDEX('Bridge Data'!$S$4:$S$253,'Bridge Data Matrices'!W$9) -> Replacement | X5: =INDEX('Bridge Data'!$S$4:$S$253,'Bridge Data Matrices'!X$9) -> Rehabilitation | Y5: =INDEX('Bridge Data'!$S$4:$S$253,'Bridge Data Matrices'!Y$9) -> Replacement | Z5: =INDEX('Bridge Data'!$S$4:$S$253,'Bridge Data Matrices'!Z$9) -> Replacement | AA5: =INDEX('Bridge Data'!$S$4:$S$253,'Bridge Data Matrices'!AA$9) -> Replacement | AB5: =INDEX('Bridge Data'!$S$4:$S$253,'Bridge Data Matrices'!AB$9) -> Replacement | AC5: =INDEX('Bridge Data'!$S$4:$S$253,'Bridge Data Matrices'!AC$9) -> Replacement | AD5: =INDEX('Bridge Data'!$S$4:$S$253,'Bridge Data Matrices'!AD$9) -> Replacement | AE5: =INDEX('Bridge Data'!$S$4:$S$253,'Bridge Data Matrices'!AE$9) -> Rehabilitation | AF5: =INDEX('Bridge Data'!$S$4:$S$253,'Bridge Data Matrices'!AF$9) -> Rehabilitation | AG5: =INDEX('Bridge Data'!$S$4:$S$253,'Bridge Data Matrices'!AG$9) -> Rehabilitation | AH5: =INDEX('Bridge Data'!$S$4:$S$253,'Bridge Data Matrices'!AH$9) -> Replacement | AI5: =INDEX('Bridge Data'!$S$4:$S$253,'Bridge Data Matrices'!AI$9) -> Rehabilitation | AJ5: =INDEX('Bridge Data'!$S$4:$S$253,'Bridge Data Matrices'!AJ$9) -> Rehabilitation | AK5: =INDEX('Bridge Data'!$S$4:$S$253,'Bridge Data Matrices'!AK$9) -> Replacement | AL5: =INDEX('Bridge Data'!$S$4:$S$253,'Bridge Data Matrices'!AL$9) -> Redecking | AM5: =INDEX('Bridge Data'!$S$4:$S$253,'Bridge Data Matrices'!AM$9) -> Replacement | AN5: =INDEX('Bridge Data'!$S$4:$S$253,'Bridge Data Matrices'!AN$9) -> Rehabilitation | AO5: =INDEX('Bridge Data'!$S$4:$S$253,'Bridge Data Matrices'!AO$9) -> Rehabilitation | AP5: =INDEX('Bridge Data'!$S$4:$S$253,'Bridge Data Matrices'!AP$9) -> Replacement | AQ5: =INDEX('Bridge Data'!$S$4:$S$253,'Bridge Data Matrices'!AQ$9) -> Replacement | AR5: =INDEX('Bridge Data'!$S$4:$S$253,'Bridge Data Matrices'!AR$9) -> Replacement | AS5: =INDEX('Bridge Data'!$S$4:$S$253,'Bridge Data Matrices'!AS$9) -> Replacement | AT5: =INDEX('Bridge Data'!$S$4:$S$253,'Bridge Data Matrices'!AT$9) -> Rehabilitation | AU5: =INDEX('Bridge Data'!$S$4:$S$253,'Bridge Data Matrices'!AU$9) -> Rehabilitation | AV5: =INDEX('Bridge Data'!$S$4:$S$253,'Bridge Data Matrices'!AV$9) -> Replacement | AW5: =INDEX('Bridge Data'!$S$4:$S$253,'Bridge Data Matrices'!AW$9) -> Replacement | AX5: =INDEX('Bridge Data'!$S$4:$S$253,'Bridge Data Matrices'!AX$9) -> Replacement | AY5: =INDEX('Bridge Data'!$S$4:$S$253,'Bridge Data Matrices'!AY$9) -> Redecking | AZ5: =INDEX('Bridge Data'!$S$4:$S$253,'Bridge Data Matrices'!AZ$9) -> Replacement | BA5: =INDEX('Bridge Data'!$S$4:$S$253,'Bridge Data Matrices'!BA$9) -> Replacement | BB5: =INDEX('Bridge Data'!$S$4:$S$253,'Bridge Data Matrices'!BB$9) -> Replacement | BC5: =INDEX('Bridge Data'!$S$4:$S$253,'Bridge Data Matrices'!BC$9) -> Replacement | BD5: =INDEX('Bridge Data'!$S$4:$S$253,'Bridge Data Matrices'!BD$9) -> Redecking | BE5: =INDEX('Bridge Data'!$S$4:$S$253,'Bridge Data Matrices'!BE$9) -> Replacement | BF5: =INDEX('Bridge Data'!$S$4:$S$253,'Bridge Data Matrices'!BF$9) -> Rehabilitation | BG5: =INDEX('Bridge Data'!$S$4:$S$253,'Bridge Data Matrices'!BG$9) -> Rehabilitation | BH5: =INDEX('Bridge Data'!$S$4:$S$253,'Bridge Data Matrices'!BH$9) -> Replacement | BI5: =INDEX('Bridge Data'!$S$4:$S$253,'Bridge Data Matrices'!BI$9) -> Replacement | BJ5: =INDEX('Bridge Data'!$S$4:$S$253,'Bridge Data Matrices'!BJ$9) -> Replacement | BK5: =INDEX('Bridge Data'!$S$4:$S$253,'Bridge Data Matrices'!BK$9) -> Replacement | BL5: =INDEX('Bridge Data'!$S$4:$S$253,'Bridge Data Matrices'!BL$9) -> Replacement | BM5: =INDEX('Bridge Data'!$S$4:$S$253,'Bridge Data Matrices'!BM$9) -> Replacement | BN5: =INDEX('Bridge Data'!$S$4:$S$253,'Bridge Data Matrices'!BN$9) -> Redecking | BO5: =INDEX('Bridge Data'!$S$4:$S$253,'Bridge Data Matrices'!BO$9) -> Replacement | BP5: =INDEX('Bridge Data'!$S$4:$S$253,'Bridge Data Matrices'!BP$9) -> Rehabilitation | BQ5: =INDEX('Bridge Data'!$S$4:$S$253,'Bridge Data Matrices'!BQ$9) -> Replacement | BR5: =INDEX('Bridge Data'!$S$4:$S$253,'Bridge Data Matrices'!BR$9) -> Rehabilitation | BS5: =INDEX('Bridge Data'!$S$4:$S$253,'Bridge Data Matrices'!BS$9) -> Replacement | BT5: =INDEX('Bridge Data'!$S$4:$S$253,'Bridge Data Matrices'!BT$9) -> Rehabilitation | BU5: =INDEX('Bridge Data'!$S$4:$S$253,'Bridge Data Matrices'!BU$9) -> Rehabilitation | BV5: =INDEX('Bridge Data'!$S$4:$S$253,'Bridge Data Matrices'!BV$9) -> Replacement | BW5: =INDEX('Bridge Data'!$S$4:$S$253,'Bridge Data Matrices'!BW$9) -> Replacement | BX5: =INDEX('Bridge Data'!$S$4:$S$253,'Bridge Data Matrices'!BX$9) -> Replacement | BY5: =INDEX('Bridge Data'!$S$4:$S$253,'Bridge Data Matrices'!BY$9) -> Replacement | BZ5: =INDEX('Bridge Data'!$S$4:$S$253,'Bridge Data Matrices'!BZ$9) -> Replacement | CA5: =INDEX('Bridge Data'!$S$4:$S$253,'Bridge Data Matrices'!CA$9) -> Replacement | CB5: =INDEX('Bridge Data'!$S$4:$S$253,'Bridge Data Matrices'!CB$9) -> Replacement | CC5: =INDEX('Bridge Data'!$S$4:$S$253,'Bridge Data Matrices'!CC$9) -> Replacement | CD5: =INDEX('Bridge Data'!$S$4:$S$253,'Bridge Data Matrices'!CD$9) -> Replacement | CE5: =INDEX('Bridge Data'!$S$4:$S$253,'Bridge Data Matrices'!CE$9) -> Rehabilitation | CF5: =INDEX('Bridge Data'!$S$4:$S$253,'Bridge Data Matrices'!CF$9) -> Rehabilitation | CG5: =INDEX('Bridge Data'!$S$4:$S$253,'Bridge Data Matrices'!CG$9) -> Replacement | CH5: =INDEX('Bridge Data'!$S$4:$S$253,'Bridge Data Matrices'!CH$9) -> Replacement | CI5: =INDEX('Bridge Data'!$S$4:$S$253,'Bridge Data Matrices'!CI$9) -> Replacement | CJ5: =INDEX('Bridge Data'!$S$4:$S$253,'Bridge Data Matrices'!CJ$9) -> Replacement | CK5: =INDEX('Bridge Data'!$S$4:$S$253,'Bridge Data Matrices'!CK$9) -> Replacement | CL5: =INDEX('Bridge Data'!$S$4:$S$253,'Bridge Data Matrices'!CL$9) -> Replacement | CM5: =INDEX('Bridge Data'!$S$4:$S$253,'Bridge Data Matrices'!CM$9) -> Replacement | CN5: =INDEX('Bridge Data'!$S$4:$S$253,'Bridge Data Matrices'!CN$9) -> Replacement | CO5: =INDEX('Bridge Data'!$S$4:$S$253,'Bridge Data Matrices'!CO$9) -> Redecking | CP5: =INDEX('Bridge Data'!$S$4:$S$253,'Bridge Data Matrices'!CP$9) -> Replacement | CQ5: =INDEX('Bridge Data'!$S$4:$S$253,'Bridge Data Matrices'!CQ$9) -> Replacement | CR5: =INDEX('Bridge Data'!$S$4:$S$253,'Bridge Data Matrices'!CR$9) -> Rehabilitation | CS5: =INDEX('Bridge Data'!$S$4:$S$253,'Bridge Data Matrices'!CS$9) -> Rehabilitation | CT5: =INDEX('Bridge Data'!$S$4:$S$253,'Bridge Data Matrices'!CT$9) -> Rehabilitation | CU5: =INDEX('Bridge Data'!$S$4:$S$253,'Bridge Data Matrices'!CU$9) -> Rehabilitation | CV5: =INDEX('Bridge Data'!$S$4:$S$253,'Bridge Data Matrices'!CV$9) -> Rehabilitation | CW5: =INDEX('Bridge Data'!$S$4:$S$253,'Bridge Data Matrices'!CW$9) -> Replacement | CX5: =INDEX('Bridge Data'!$S$4:$S$253,'Bridge Data Matrices'!CX$9) -> Replacement | CY5: =INDEX('Bridge Data'!$S$4:$S$253,'Bridge Data Matrices'!CY$9) -> Replacement | CZ5: =INDEX('Bridge Data'!$S$4:$S$253,'Bridge Data Matrices'!CZ$9) -> Replacement | DA5: =INDEX('Bridge Data'!$S$4:$S$253,'Bridge Data Matrices'!DA$9) -> Rehabilitation | DB5: =INDEX('Bridge Data'!$S$4:$S$253,'Bridge Data Matrices'!DB$9) -> Replacement | DC5: =INDEX('Bridge Data'!$S$4:$S$253,'Bridge Data Matrices'!DC$9) -> Replacement | DD5: =INDEX('Bridge Data'!$S$4:$S$253,'Bridge Data Matrices'!DD$9) -> Replacement | DE5: =INDEX('Bridge Data'!$S$4:$S$253,'Bridge Data Matrices'!DE$9) -> Replacement | DF5: =INDEX('Bridge Data'!$S$4:$S$253,'Bridge Data Matrices'!DF$9) -> Replacement | DG5: =INDEX('Bridge Data'!$S$4:$S$253,'Bridge Data Matrices'!DG$9) -> Replacement | DH5: =INDEX('Bridge Data'!$S$4:$S$253,'Bridge Data Matrices'!DH$9) -> Rehabilitation | DI5: =INDEX('Bridge Data'!$S$4:$S$253,'Bridge Data Matrices'!DI$9) -> Rehabilitation | DJ5: =INDEX('Bridge Data'!$S$4:$S$253,'Bridge Data Matrices'!DJ$9) -> Rehabilitation | DK5: =INDEX('Bridge Data'!$S$4:$S$253,'Bridge Data Matrices'!DK$9) -> Replacement | DL5: =INDEX('Bridge Data'!$S$4:$S$253,'Bridge Data Matrices'!DL$9) -> Replacement | DM5: =INDEX('Bridge Data'!$S$4:$S$253,'Bridge Data Matrices'!DM$9) -> Replacement | DN5: =INDEX('Bridge Data'!$S$4:$S$253,'Bridge Data Matrices'!DN$9) -> Rehabilitation | DO5: =INDEX('Bridge Data'!$S$4:$S$253,'Bridge Data Matrices'!DO$9) -> Replacement | DP5: =INDEX('Bridge Data'!$S$4:$S$253,'Bridge Data Matrices'!DP$9) -> Rehabilitation | DQ5: =INDEX('Bridge Data'!$S$4:$S$253,'Bridge Data Matrices'!DQ$9) -> Replacement | DR5: =INDEX('Bridge Data'!$S$4:$S$253,'Bridge Data Matrices'!DR$9) -> Replacement | DS5: =INDEX('Bridge Data'!$S$4:$S$253,'Bridge Data Matrices'!DS$9) -> Replacement | DT5: =INDEX('Bridge Data'!$S$4:$S$253,'Bridge Data Matrices'!DT$9) -> Rehabilitation | DU5: =INDEX('Bridge Data'!$S$4:$S$253,'Bridge Data Matrices'!DU$9) -> Replacement | DV5: =INDEX('Bridge Data'!$S$4:$S$253,'Bridge Data Matrices'!DV$9) -> Replacement | DW5: =INDEX('Bridge Data'!$S$4:$S$253,'Bridge Data Matrices'!DW$9) -> Replacement | DX5: =INDEX('Bridge Data'!$S$4:$S$253,'Bridge Data Matrices'!DX$9) -> Replacement | DY5: =INDEX('Bridge Data'!$S$4:$S$253,'Bridge Data Matrices'!DY$9) -> Replacement | DZ5: =INDEX('Bridge Data'!$S$4:$S$253,'Bridge Data Matrices'!DZ$9) -> Replacement | EA5: =INDEX('Bridge Data'!$S$4:$S$253,'Bridge Data Matrices'!EA$9) -> Replacement | EB5: =INDEX('Bridge Data'!$S$4:$S$253,'Bridge Data Matrices'!EB$9) -> Rehabilitation | EC5: =INDEX('Bridge Data'!$S$4:$S$253,'Bridge Data Matrices'!EC$9) -> Redecking | ED5: =INDEX('Bridge Data'!$S$4:$S$253,'Bridge Data Matrices'!ED$9) -> Rehabilitation | EE5: =INDEX('Bridge Data'!$S$4:$S$253,'Bridge Data Matrices'!EE$9) -> Replacement | EF5: =INDEX('Bridge Data'!$S$4:$S$253,'Bridge Data Matrices'!EF$9) -> Replacement | EG5: =INDEX('Bridge Data'!$S$4:$S$253,'Bridge Data Matrices'!EG$9) -> Replacement | EH5: =INDEX('Bridge Data'!$S$4:$S$253,'Bridge Data Matrices'!EH$9) -> Rehabilitation | EI5: =INDEX('Bridge Data'!$S$4:$S$253,'Bridge Data Matrices'!EI$9) -> Replacement | EJ5: =INDEX('Bridge Data'!$S$4:$S$253,'Bridge Data Matrices'!EJ$9) -> Replacement | EK5: =INDEX('Bridge Data'!$S$4:$S$253,'Bridge Data Matrices'!EK$9) -> Replacement | EL5: =INDEX('Bridge Data'!$S$4:$S$253,'Bridge Data Matrices'!EL$9) -> Replacement | EM5: =INDEX('Bridge Data'!$S$4:$S$253,'Bridge Data Matrices'!EM$9) -> Replacement | EN5: =INDEX('Bridge Data'!$S$4:$S$253,'Bridge Data Matrices'!EN$9) -> Replacement | EO5: =INDEX('Bridge Data'!$S$4:$S$253,'Bridge Data Matrices'!EO$9) -> Rehabilitation | EP5: =INDEX('Bridge Data'!$S$4:$S$253,'Bridge Data Matrices'!EP$9) -> Rehabilitation | EQ5: =INDEX('Bridge Data'!$S$4:$S$253,'Bridge Data Matrices'!EQ$9) -> Rehabilitation | ER5: =INDEX('Bridge Data'!$S$4:$S$253,'Bridge Data Matrices'!ER$9) -> Rehabilitation | ES5: =INDEX('Bridge Data'!$S$4:$S$253,'Bridge Data Matrices'!ES$9) -> Rehabilitation | ET5: =INDEX('Bridge Data'!$S$4:$S$253,'Bridge Data Matrices'!ET$9) -> Rehabilitation | EU5: =INDEX('Bridge Data'!$S$4:$S$253,'Bridge Data Matrices'!EU$9) -> Rehabilitation | EV5: =INDEX('Bridge Data'!$S$4:$S$253,'Bridge Data Matrices'!EV$9) -> Rehabilitation | EW5: =INDEX('Bridge Data'!$S$4:$S$253,'Bridge Data Matrices'!EW$9) -> Rehabilitation | EX5: =INDEX('Bridge Data'!$S$4:$S$253,'Bridge Data Matrices'!EX$9) -> Replacement | EY5: =INDEX('Bridge Data'!$S$4:$S$253,'Bridge Data Matrices'!EY$9) -> Replacement | EZ5: =INDEX('Bridge Data'!$S$4:$S$253,'Bridge Data Matrices'!EZ$9) -> Replacement | FA5: =INDEX('Bridge Data'!$S$4:$S$253,'Bridge Data Matrices'!FA$9) -> Replacement | FB5: =INDEX('Bridge Data'!$S$4:$S$253,'Bridge Data Matrices'!FB$9) -> Replacement | FC5: =INDEX('Bridge Data'!$S$4:$S$253,'Bridge Data Matrices'!FC$9) -> Replacement | FD5: =INDEX('Bridge Data'!$S$4:$S$253,'Bridge Data Matrices'!FD$9) -> Replacement | FE5: =INDEX('Bridge Data'!$S$4:$S$253,'Bridge Data Matrices'!FE$9) -> Replacement | FF5: =INDEX('Bridge Data'!$S$4:$S$253,'Bridge Data Matrices'!FF$9) -> Replacement | FG5: =INDEX('Bridge Data'!$S$4:$S$253,'Bridge Data Matrices'!FG$9) -> Replacement | FH5: =INDEX('Bridge Data'!$S$4:$S$253,'Bridge Data Matrices'!FH$9) -> Rehabilitation | FI5: =INDEX('Bridge Data'!$S$4:$S$253,'Bridge Data Matrices'!FI$9) -> Replacement | FJ5: =INDEX('Bridge Data'!$S$4:$S$253,'Bridge Data Matrices'!FJ$9) -> Replacement | FK5: =INDEX('Bridge Data'!$S$4:$S$253,'Bridge Data Matrices'!FK$9) -> Replacement | FL5: =INDEX('Bridge Data'!$S$4:$S$253,'Bridge Data Matrices'!FL$9) -> Replacement | FM5: =INDEX('Bridge Data'!$S$4:$S$253,'Bridge Data Matrices'!FM$9) -> Redecking | FN5: =INDEX('Bridge Data'!$S$4:$S$253,'Bridge Data Matrices'!FN$9) -> Replacement | FO5: =INDEX('Bridge Data'!$S$4:$S$253,'Bridge Data Matrices'!FO$9) -> Replacement | FP5: =INDEX('Bridge Data'!$S$4:$S$253,'Bridge Data Matrices'!FP$9) -> Replacement | FQ5: =INDEX('Bridge Data'!$S$4:$S$253,'Bridge Data Matrices'!FQ$9) -> Rehabilitation | FR5: =INDEX('Bridge Data'!$S$4:$S$253,'Bridge Data Matrices'!FR$9) -> Replacement | FS5: =INDEX('Bridge Data'!$S$4:$S$253,'Bridge Data Matrices'!FS$9) -> Replacement | FT5: =INDEX('Bridge Data'!$S$4:$S$253,'Bridge Data Matrices'!FT$9) -> Replacement | FU5: =INDEX('Bridge Data'!$S$4:$S$253,'Bridge Data Matrices'!FU$9) -> Rehabilitation | FV5: =INDEX('Bridge Data'!$S$4:$S$253,'Bridge Data Matrices'!FV$9) -> Replacement | FW5: =INDEX('Bridge Data'!$S$4:$S$253,'Bridge Data Matrices'!FW$9) -> Rehabilitation | FX5: =INDEX('Bridge Data'!$S$4:$S$253,'Bridge Data Matrices'!FX$9) -> Rehabilitation | FY5: =INDEX('Bridge Data'!$S$4:$S$253,'Bridge Data Matrices'!FY$9) -> Replacement | FZ5: =INDEX('Bridge Data'!$S$4:$S$253,'Bridge Data Matrices'!FZ$9) -> Replacement | GA5: =INDEX('Bridge Data'!$S$4:$S$253,'Bridge Data Matrices'!GA$9) -> Replacement | GB5: =INDEX('Bridge Data'!$S$4:$S$253,'Bridge Data Matrices'!GB$9) -> Replacement | GC5: =INDEX('Bridge Data'!$S$4:$S$253,'Bridge Data Matrices'!GC$9) -> Replacement | GD5: =INDEX('Bridge Data'!$S$4:$S$253,'Bridge Data Matrices'!GD$9) -> Replacement | GE5: =INDEX('Bridge Data'!$S$4:$S$253,'Bridge Data Matrices'!GE$9) -> Replacement | GF5: =INDEX('Bridge Data'!$S$4:$S$253,'Bridge Data Matrices'!GF$9) -> Replacement | GG5: =INDEX('Bridge Data'!$S$4:$S$253,'Bridge Data Matrices'!GG$9) -> Replacement | GH5: =INDEX('Bridge Data'!$S$4:$S$253,'Bridge Data Matrices'!GH$9) -> Replacement | GI5: =INDEX('Bridge Data'!$S$4:$S$253,'Bridge Data Matrices'!GI$9) -> Redecking | GJ5: =INDEX('Bridge Data'!$S$4:$S$253,'Bridge Data Matrices'!GJ$9) -> Replacement | GK5: =INDEX('Bridge Data'!$S$4:$S$253,'Bridge Data Matrices'!GK$9) -> Replacement | GL5: =INDEX('Bridge Data'!$S$4:$S$253,'Bridge Data Matrices'!GL$9) -> Rehabilitation | GM5: =INDEX('Bridge Data'!$S$4:$S$253,'Bridge Data Matrices'!GM$9) -> Replacement | GN5: =INDEX('Bridge Data'!$S$4:$S$253,'Bridge Data Matrices'!GN$9) -> Rehabilitation | GO5: =INDEX('Bridge Data'!$S$4:$S$253,'Bridge Data Matrices'!GO$9) -> Replacement | GP5: =INDEX('Bridge Data'!$S$4:$S$253,'Bridge Data Matrices'!GP$9) -> Rehabilitation | GQ5: =INDEX('Bridge Data'!$S$4:$S$253,'Bridge Data Matrices'!GQ$9) -> Redecking | GR5: =INDEX('Bridge Data'!$S$4:$S$253,'Bridge Data Matrices'!GR$9) -> Rehabilitation | GS5: =INDEX('Bridge Data'!$S$4:$S$253,'Bridge Data Matrices'!GS$9) -> Replacement | GT5: =INDEX('Bridge Data'!$S$4:$S$253,'Bridge Data Matrices'!GT$9) -> Replacement | GU5: =INDEX('Bridge Data'!$S$4:$S$253,'Bridge Data Matrices'!GU$9) -> Redecking | GV5: =INDEX('Bridge Data'!$S$4:$S$253,'Bridge Data Matrices'!GV$9) -> Rehabilitation | GW5: =INDEX('Bridge Data'!$S$4:$S$253,'Bridge Data Matrices'!GW$9) -> Replacement | GX5: =INDEX('Bridge Data'!$S$4:$S$253,'Bridge Data Matrices'!GX$9) -> Replacement | GY5: =INDEX('Bridge Data'!$S$4:$S$253,'Bridge Data Matrices'!GY$9) -> Replacement | GZ5: =INDEX('Bridge Data'!$S$4:$S$253,'Bridge Data Matrices'!GZ$9) -> Rehabilitation | HA5: =INDEX('Bridge Data'!$S$4:$S$253,'Bridge Data Matrices'!HA$9) -> Rehabilitation | HB5: =INDEX('Bridge Data'!$S$4:$S$253,'Bridge Data Matrices'!HB$9) -> Rehabilitation | HC5: =INDEX('Bridge Data'!$S$4:$S$253,'Bridge Data Matrices'!HC$9) -> Replacement | HD5: =INDEX('Bridge Data'!$S$4:$S$253,'Bridge Data Matrices'!HD$9) -> Replacement | HE5: =INDEX('Bridge Data'!$S$4:$S$253,'Bridge Data Matrices'!HE$9) -> Replacement | HF5: =INDEX('Bridge Data'!$S$4:$S$253,'Bridge Data Matrices'!HF$9) -> Rehabilitation | HG5: =INDEX('Bridge Data'!$S$4:$S$253,'Bridge Data Matrices'!HG$9) -> Replacement | HH5: =INDEX('Bridge Data'!$S$4:$S$253,'Bridge Data Matrices'!HH$9) -> Replacement | HI5: =INDEX('Bridge Data'!$S$4:$S$253,'Bridge Data Matrices'!HI$9) -> Replacement | HJ5: =INDEX('Bridge Data'!$S$4:$S$253,'Bridge Data Matrices'!HJ$9) -> Replacement | HK5: =INDEX('Bridge Data'!$S$4:$S$253,'Bridge Data Matrices'!HK$9) -> Replacement | HL5: =INDEX('Bridge Data'!$S$4:$S$253,'Bridge Data Matrices'!HL$9) -> Replacement | HM5: =INDEX('Bridge Data'!$S$4:$S$253,'Bridge Data Matrices'!HM$9) -> Rehabilitation | HN5: =INDEX('Bridge Data'!$S$4:$S$253,'Bridge Data Matrices'!HN$9) -> Replacement | HO5: =INDEX('Bridge Data'!$S$4:$S$253,'Bridge Data Matrices'!HO$9) -> Rehabilitation | HP5: =INDEX('Bridge Data'!$S$4:$S$253,'Bridge Data Matrices'!HP$9) -> Rehabilitation | HQ5: =INDEX('Bridge Data'!$S$4:$S$253,'Bridge Data Matrices'!HQ$9) -> Rehabilitation | HR5: =INDEX('Bridge Data'!$S$4:$S$253,'Bridge Data Matrices'!HR$9) -> Rehabilitation | HS5: =INDEX('Bridge Data'!$S$4:$S$253,'Bridge Data Matrices'!HS$9) -> Replacement | HT5: =INDEX('Bridge Data'!$S$4:$S$253,'Bridge Data Matrices'!HT$9) -> Replacement | HU5: =INDEX('Bridge Data'!$S$4:$S$253,'Bridge Data Matrices'!HU$9) -> Replacement | HV5: =INDEX('Bridge Data'!$S$4:$S$253,'Bridge Data Matrices'!HV$9) -> Replacement | HW5: =INDEX('Bridge Data'!$S$4:$S$253,'Bridge Data Matrices'!HW$9) -> Replacement | HX5: =INDEX('Bridge Data'!$S$4:$S$253,'Bridge Data Matrices'!HX$9) -> Replacement | HY5: =INDEX('Bridge Data'!$S$4:$S$253,'Bridge Data Matrices'!HY$9) -> Replacement | HZ5: =INDEX('Bridge Data'!$S$4:$S$253,'Bridge Data Matrices'!HZ$9) -> Replacement | IA5: =INDEX('Bridge Data'!$S$4:$S$253,'Bridge Data Matrices'!IA$9) -> Replacement | IB5: =INDEX('Bridge Data'!$S$4:$S$253,'Bridge Data Matrices'!IB$9) -> Replacement | IC5: =INDEX('Bridge Data'!$S$4:$S$253,'Bridge Data Matrices'!IC$9) -> Replacement | ID5: =INDEX('Bridge Data'!$S$4:$S$253,'Bridge Data Matrices'!ID$9) -> Rehabilitation | IE5: =INDEX('Bridge Data'!$S$4:$S$253,'Bridge Data Matrices'!IE$9) -> Rehabilitation | IF5: =INDEX('Bridge Data'!$S$4:$S$253,'Bridge Data Matrices'!IF$9) -> Replacement | IG5: =INDEX('Bridge Data'!$S$4:$S$253,'Bridge Data Matrices'!IG$9) -> Replacement | IH5: =INDEX('Bridge Data'!$S$4:$S$253,'Bridge Data Matrices'!IH$9) -> Rehabilitation | II5: =INDEX('Bridge Data'!$S$4:$S$253,'Bridge Data Matrices'!II$9) -> Replacement | IJ5: =INDEX('Bridge Data'!$S$4:$S$253,'Bridge Data Matrices'!IJ$9) -> Replacement | IK5: =INDEX('Bridge Data'!$S$4:$S$253,'Bridge Data Matrices'!IK$9) -> Rehabilitation | IL5: =INDEX('Bridge Data'!$S$4:$S$253,'Bridge Data Matrices'!IL$9) -> Rehabilitation | IM5: =INDEX('Bridge Data'!$S$4:$S$253,'Bridge Data Matrices'!IM$9) -> Rehabilitation | IN5: =INDEX('Bridge Data'!$S$4:$S$253,'Bridge Data Matrices'!IN$9) -> Rehabilitation | IO5: =INDEX('Bridge Data'!$S$4:$S$253,'Bridge Data Matrices'!IO$9) -> Rehabilitation | IP5: =INDEX('Bridge Data'!$S$4:$S$253,'Bridge Data Matrices'!IP$9) -> Rehabilitation | IQ5: =INDEX('Bridge Data'!$S$4:$S$253,'Bridge Data Matrices'!IQ$9) -> Replacement | IR5: =INDEX('Bridge Data'!$S$4:$S$253,'Bridge Data Matrices'!IR$9) -> Replacement
A6: Construction Duration (years) | C6: =ROUNDUP(INDEX('Bridge Data'!$AF$4:$AF$253,'Bridge Data Matrices'!C$9)/12,0) -> 1 | D6: =ROUNDUP(INDEX('Bridge Data'!$AF$4:$AF$253,'Bridge Data Matrices'!D$9)/12,0) -> 1 | E6: =ROUNDUP(INDEX('Bridge Data'!$AF$4:$AF$253,'Bridge Data Matrices'!E$9)/12,0) -> 1 | F6: =ROUNDUP(INDEX('Bridge Data'!$AF$4:$AF$253,'Bridge Data Matrices'!F$9)/12,0) -> 1 | G6: =ROUNDUP(INDEX('Bridge Data'!$AF$4:$AF$253,'Bridge Data Matrices'!G$9)/12,0) -> 1 | H6: =ROUNDUP(INDEX('Bridge Data'!$AF$4:$AF$253,'Bridge Data Matrices'!H$9)/12,0) -> 1 | I6: =ROUNDUP(INDEX('Bridge Data'!$AF$4:$AF$253,'Bridge Data Matrices'!I$9)/12,0) -> 1 | J6: =ROUNDUP(INDEX('Bridge Data'!$AF$4:$AF$253,'Bridge Data Matrices'!J$9)/12,0) -> 1 | K6: =ROUNDUP(INDEX('Bridge Data'!$AF$4:$AF$253,'Bridge Data Matrices'!K$9)/12,0) -> 1 | L6: =ROUNDUP(INDEX('Bridge Data'!$AF$4:$AF$253,'Bridge Data Matrices'!L$9)/12,0) -> 1 | M6: =ROUNDUP(INDEX('Bridge Data'!$AF$4:$AF$253,'Bridge Data Matrices'!M$9)/12,0) -> 1 | N6: =ROUNDUP(INDEX('Bridge Data'!$AF$4:$AF$253,'Bridge Data Matrices'!N$9)/12,0) -> 1 | O6: =ROUNDUP(INDEX('Bridge Data'!$AF$4:$AF$253,'Bridge Data Matrices'!O$9)/12,0) -> 1 | P6: =ROUNDUP(INDEX('Bridge Data'!$AF$4:$AF$253,'Bridge Data Matrices'!P$9)/12,0) -> 1 | Q6: =ROUNDUP(INDEX('Bridge Data'!$AF$4:$AF$253,'Bridge Data Matrices'!Q$9)/12,0) -> 1 | R6: =ROUNDUP(INDEX('Bridge Data'!$AF$4:$AF$253,'Bridge Data Matrices'!R$9)/12,0) -> 1 | S6: =ROUNDUP(INDEX('Bridge Data'!$AF$4:$AF$253,'Bridge Data Matrices'!S$9)/12,0) -> 1 | T6: =ROUNDUP(INDEX('Bridge Data'!$AF$4:$AF$253,'Bridge Data Matrices'!T$9)/12,0) -> 1 | U6: =ROUNDUP(INDEX('Bridge Data'!$AF$4:$AF$253,'Bridge Data Matrices'!U$9)/12,0) -> 1 | V6: =ROUNDUP(INDEX('Bridge Data'!$AF$4:$AF$253,'Bridge Data Matrices'!V$9)/12,0) -> 1 | W6: =ROUNDUP(INDEX('Bridge Data'!$AF$4:$AF$253,'Bridge Data Matrices'!W$9)/12,0) -> 1 | X6: =ROUNDUP(INDEX('Bridge Data'!$AF$4:$AF$253,'Bridge Data Matrices'!X$9)/12,0) -> 1 | Y6: =ROUNDUP(INDEX('Bridge Data'!$AF$4:$AF$253,'Bridge Data Matrices'!Y$9)/12,0) -> 1 | Z6: =ROUNDUP(INDEX('Bridge Data'!$AF$4:$AF$253,'Bridge Data Matrices'!Z$9)/12,0) -> 1 | AA6: =ROUNDUP(INDEX('Bridge Data'!$AF$4:$AF$253,'Bridge Data Matrices'!AA$9)/12,0) -> 1 | AB6: =ROUNDUP(INDEX('Bridge Data'!$AF$4:$AF$253,'Bridge Data Matrices'!AB$9)/12,0) -> 1 | AC6: =ROUNDUP(INDEX('Bridge Data'!$AF$4:$AF$253,'Bridge Data Matrices'!AC$9)/12,0) -> 1 | AD6: =ROUNDUP(INDEX('Bridge Data'!$AF$4:$AF$253,'Bridge Data Matrices'!AD$9)/12,0) -> 1 | AE6: =ROUNDUP(INDEX('Bridge Data'!$AF$4:$AF$253,'Bridge Data Matrices'!AE$9)/12,0) -> 1 | AF6: =ROUNDUP(INDEX('Bridge Data'!$AF$4:$AF$253,'Bridge Data Matrices'!AF$9)/12,0) -> 1 | AG6: =ROUNDUP(INDEX('Bridge Data'!$AF$4:$AF$253,'Bridge Data Matrices'!AG$9)/12,0) -> 1 | AH6: =ROUNDUP(INDEX('Bridge Data'!$AF$4:$AF$253,'Bridge Data Matrices'!AH$9)/12,0) -> 1 | AI6: =ROUNDUP(INDEX('Bridge Data'!$AF$4:$AF$253,'Bridge Data Matrices'!AI$9)/12,0) -> 1 | AJ6: =ROUNDUP(INDEX('Bridge Data'!$AF$4:$AF$253,'Bridge Data Matrices'!AJ$9)/12,0) -> 1 | AK6: =ROUNDUP(INDEX('Bridge Data'!$AF$4:$AF$253,'Bridge Data Matrices'!AK$9)/12,0) -> 1 | AL6: =ROUNDUP(INDEX('Bridge Data'!$AF$4:$AF$253,'Bridge Data Matrices'!AL$9)/12,0) -> 1 | AM6: =ROUNDUP(INDEX('Bridge Data'!$AF$4:$AF$253,'Bridge Data Matrices'!AM$9)/12,0) -> 1 | AN6: =ROUNDUP(INDEX('Bridge Data'!$AF$4:$AF$253,'Bridge Data Matrices'!AN$9)/12,0) -> 1 | AO6: =ROUNDUP(INDEX('Bridge Data'!$AF$4:$AF$253,'Bridge Data Matrices'!AO$9)/12,0) -> 1 | AP6: =ROUNDUP(INDEX('Bridge Data'!$AF$4:$AF$253,'Bridge Data Matrices'!AP$9)/12,0) -> 1 | AQ6: =ROUNDUP(INDEX('Bridge Data'!$AF$4:$AF$253,'Bridge Data Matrices'!AQ$9)/12,0) -> 1 | AR6: =ROUNDUP(INDEX('Bridge Data'!$AF$4:$AF$253,'Bridge Data Matrices'!AR$9)/12,0) -> 1 | AS6: =ROUNDUP(INDEX('Bridge Data'!$AF$4:$AF$253,'Bridge Data Matrices'!AS$9)/12,0) -> 1 | AT6: =ROUNDUP(INDEX('Bridge Data'!$AF$4:$AF$253,'Bridge Data Matrices'!AT$9)/12,0) -> 1 | AU6: =ROUNDUP(INDEX('Bridge Data'!$AF$4:$AF$253,'Bridge Data Matrices'!AU$9)/12,0) -> 1 | AV6: =ROUNDUP(INDEX('Bridge Data'!$AF$4:$AF$253,'Bridge Data Matrices'!AV$9)/12,0) -> 1 | AW6: =ROUNDUP(INDEX('Bridge Data'!$AF$4:$AF$253,'Bridge Data Matrices'!AW$9)/12,0) -> 1 | AX6: =ROUNDUP(INDEX('Bridge Data'!$AF$4:$AF$253,'Bridge Data Matrices'!AX$9)/12,0) -> 1 | AY6: =ROUNDUP(INDEX('Bridge Data'!$AF$4:$AF$253,'Bridge Data Matrices'!AY$9)/12,0) -> 1 | AZ6: =ROUNDUP(INDEX('Bridge Data'!$AF$4:$AF$253,'Bridge Data Matrices'!AZ$9)/12,0) -> 1 | BA6: =ROUNDUP(INDEX('Bridge Data'!$AF$4:$AF$253,'Bridge Data Matrices'!BA$9)/12,0) -> 1 | BB6: =ROUNDUP(INDEX('Bridge Data'!$AF$4:$AF$253,'Bridge Data Matrices'!BB$9)/12,0) -> 1 | BC6: =ROUNDUP(INDEX('Bridge Data'!$AF$4:$AF$253,'Bridge Data Matrices'!BC$9)/12,0) -> 1 | BD6: =ROUNDUP(INDEX('Bridge Data'!$AF$4:$AF$253,'Bridge Data Matrices'!BD$9)/12,0) -> 1 | BE6: =ROUNDUP(INDEX('Bridge Data'!$AF$4:$AF$253,'Bridge Data Matrices'!BE$9)/12,0) -> 1 | BF6: =ROUNDUP(INDEX('Bridge Data'!$AF$4:$AF$253,'Bridge Data Matrices'!BF$9)/12,0) -> 1 | BG6: =ROUNDUP(INDEX('Bridge Data'!$AF$4:$AF$253,'Bridge Data Matrices'!BG$9)/12,0) -> 1 | BH6: =ROUNDUP(INDEX('Bridge Data'!$AF$4:$AF$253,'Bridge Data Matrices'!BH$9)/12,0) -> 1 | BI6: =ROUNDUP(INDEX('Bridge Data'!$AF$4:$AF$253,'Bridge Data Matrices'!BI$9)/12,0) -> 1 | BJ6: =ROUNDUP(INDEX('Bridge Data'!$AF$4:$AF$253,'Bridge Data Matrices'!BJ$9)/12,0) -> 1 | BK6: =ROUNDUP(INDEX('Bridge Data'!$AF$4:$AF$253,'Bridge Data Matrices'!BK$9)/12,0) -> 1 | BL6: =ROUNDUP(INDEX('Bridge Data'!$AF$4:$AF$253,'Bridge Data Matrices'!BL$9)/12,0) -> 1 | BM6: =ROUNDUP(INDEX('Bridge Data'!$AF$4:$AF$253,'Bridge Data Matrices'!BM$9)/12,0) -> 1 | BN6: =ROUNDUP(INDEX('Bridge Data'!$AF$4:$AF$253,'Bridge Data Matrices'!BN$9)/12,0) -> 1 | BO6: =ROUNDUP(INDEX('Bridge Data'!$AF$4:$AF$253,'Bridge Data Matrices'!BO$9)/12,0) -> 1 | BP6: =ROUNDUP(INDEX('Bridge Data'!$AF$4:$AF$253,'Bridge Data Matrices'!BP$9)/12,0) -> 1 | BQ6: =ROUNDUP(INDEX('Bridge Data'!$AF$4:$AF$253,'Bridge Data Matrices'!BQ$9)/12,0) -> 1 | BR6: =ROUNDUP(INDEX('Bridge Data'!$AF$4:$AF$253,'Bridge Data Matrices'!BR$9)/12,0) -> 1 | BS6: =ROUNDUP(INDEX('Bridge Data'!$AF$4:$AF$253,'Bridge Data Matrices'!BS$9)/12,0) -> 1 | BT6: =ROUNDUP(INDEX('Bridge Data'!$AF$4:$AF$253,'Bridge Data Matrices'!BT$9)/12,0) -> 1 | BU6: =ROUNDUP(INDEX('Bridge Data'!$AF$4:$AF$253,'Bridge Data Matrices'!BU$9)/12,0) -> 1 | BV6: =ROUNDUP(INDEX('Bridge Data'!$AF$4:$AF$253,'Bridge Data Matrices'!BV$9)/12,0) -> 1 | BW6: =ROUNDUP(INDEX('Bridge Data'!$AF$4:$AF$253,'Bridge Data Matrices'!BW$9)/12,0) -> 1 | BX6: =ROUNDUP(INDEX('Bridge Data'!$AF$4:$AF$253,'Bridge Data Matrices'!BX$9)/12,0) -> 1 | BY6: =ROUNDUP(INDEX('Bridge Data'!$AF$4:$AF$253,'Bridge Data Matrices'!BY$9)/12,0) -> 1 | BZ6: =ROUNDUP(INDEX('Bridge Data'!$AF$4:$AF$253,'Bridge Data Matrices'!BZ$9)/12,0) -> 1 | CA6: =ROUNDUP(INDEX('Bridge Data'!$AF$4:$AF$253,'Bridge Data Matrices'!CA$9)/12,0) -> 1 | CB6: =ROUNDUP(INDEX('Bridge Data'!$AF$4:$AF$253,'Bridge Data Matrices'!CB$9)/12,0) -> 1 | CC6: =ROUNDUP(INDEX('Bridge Data'!$AF$4:$AF$253,'Bridge Data Matrices'!CC$9)/12,0) -> 1 | CD6: =ROUNDUP(INDEX('Bridge Data'!$AF$4:$AF$253,'Bridge Data Matrices'!CD$9)/12,0) -> 1 | CE6: =ROUNDUP(INDEX('Bridge Data'!$AF$4:$AF$253,'Bridge Data Matrices'!CE$9)/12,0) -> 1 | CF6: =ROUNDUP(INDEX('Bridge Data'!$AF$4:$AF$253,'Bridge Data Matrices'!CF$9)/12,0) -> 1 | CG6: =ROUNDUP(INDEX('Bridge Data'!$AF$4:$AF$253,'Bridge Data Matrices'!CG$9)/12,0) -> 1 | CH6: =ROUNDUP(INDEX('Bridge Data'!$AF$4:$AF$253,'Bridge Data Matrices'!CH$9)/12,0) -> 1 | CI6: =ROUNDUP(INDEX('Bridge Data'!$AF$4:$AF$253,'Bridge Data Matrices'!CI$9)/12,0) -> 1 | CJ6: =ROUNDUP(INDEX('Bridge Data'!$AF$4:$AF$253,'Bridge Data Matrices'!CJ$9)/12,0) -> 1 | CK6: =ROUNDUP(INDEX('Bridge Data'!$AF$4:$AF$253,'Bridge Data Matrices'!CK$9)/12,0) -> 1 | CL6: =ROUNDUP(INDEX('Bridge Data'!$AF$4:$AF$253,'Bridge Data Matrices'!CL$9)/12,0) -> 1 | CM6: =ROUNDUP(INDEX('Bridge Data'!$AF$4:$AF$253,'Bridge Data Matrices'!CM$9)/12,0) -> 1 | CN6: =ROUNDUP(INDEX('Bridge Data'!$AF$4:$AF$253,'Bridge Data Matrices'!CN$9)/12,0) -> 1 | CO6: =ROUNDUP(INDEX('Bridge Data'!$AF$4:$AF$253,'Bridge Data Matrices'!CO$9)/12,0) -> 1 | CP6: =ROUNDUP(INDEX('Bridge Data'!$AF$4:$AF$253,'Bridge Data Matrices'!CP$9)/12,0) -> 1 | CQ6: =ROUNDUP(INDEX('Bridge Data'!$AF$4:$AF$253,'Bridge Data Matrices'!CQ$9)/12,0) -> 1 | CR6: =ROUNDUP(INDEX('Bridge Data'!$AF$4:$AF$253,'Bridge Data Matrices'!CR$9)/12,0) -> 1 | CS6: =ROUNDUP(INDEX('Bridge Data'!$AF$4:$AF$253,'Bridge Data Matrices'!CS$9)/12,0) -> 1 | CT6: =ROUNDUP(INDEX('Bridge Data'!$AF$4:$AF$253,'Bridge Data Matrices'!CT$9)/12,0) -> 1 | CU6: =ROUNDUP(INDEX('Bridge Data'!$AF$4:$AF$253,'Bridge Data Matrices'!CU$9)/12,0) -> 1 | CV6: =ROUNDUP(INDEX('Bridge Data'!$AF$4:$AF$253,'Bridge Data Matrices'!CV$9)/12,0) -> 1 | CW6: =ROUNDUP(INDEX('Bridge Data'!$AF$4:$AF$253,'Bridge Data Matrices'!CW$9)/12,0) -> 1 | CX6: =ROUNDUP(INDEX('Bridge Data'!$AF$4:$AF$253,'Bridge Data Matrices'!CX$9)/12,0) -> 1 | CY6: =ROUNDUP(INDEX('Bridge Data'!$AF$4:$AF$253,'Bridge Data Matrices'!CY$9)/12,0) -> 1 | CZ6: =ROUNDUP(INDEX('Bridge Data'!$AF$4:$AF$253,'Bridge Data Matrices'!CZ$9)/12,0) -> 1 | DA6: =ROUNDUP(INDEX('Bridge Data'!$AF$4:$AF$253,'Bridge Data Matrices'!DA$9)/12,0) -> 1 | DB6: =ROUNDUP(INDEX('Bridge Data'!$AF$4:$AF$253,'Bridge Data Matrices'!DB$9)/12,0) -> 1 | DC6: =ROUNDUP(INDEX('Bridge Data'!$AF$4:$AF$253,'Bridge Data Matrices'!DC$9)/12,0) -> 1 | DD6: =ROUNDUP(INDEX('Bridge Data'!$AF$4:$AF$253,'Bridge Data Matrices'!DD$9)/12,0) -> 1 | DE6: =ROUNDUP(INDEX('Bridge Data'!$AF$4:$AF$253,'Bridge Data Matrices'!DE$9)/12,0) -> 1 | DF6: =ROUNDUP(INDEX('Bridge Data'!$AF$4:$AF$253,'Bridge Data Matrices'!DF$9)/12,0) -> 1 | DG6: =ROUNDUP(INDEX('Bridge Data'!$AF$4:$AF$253,'Bridge Data Matrices'!DG$9)/12,0) -> 1 | DH6: =ROUNDUP(INDEX('Bridge Data'!$AF$4:$AF$253,'Bridge Data Matrices'!DH$9)/12,0) -> 1 | DI6: =ROUNDUP(INDEX('Bridge Data'!$AF$4:$AF$253,'Bridge Data Matrices'!DI$9)/12,0) -> 1 | DJ6: =ROUNDUP(INDEX('Bridge Data'!$AF$4:$AF$253,'Bridge Data Matrices'!DJ$9)/12,0) -> 1 | DK6: =ROUNDUP(INDEX('Bridge Data'!$AF$4:$AF$253,'Bridge Data Matrices'!DK$9)/12,0) -> 1 | DL6: =ROUNDUP(INDEX('Bridge Data'!$AF$4:$AF$253,'Bridge Data Matrices'!DL$9)/12,0) -> 1 | DM6: =ROUNDUP(INDEX('Bridge Data'!$AF$4:$AF$253,'Bridge Data Matrices'!DM$9)/12,0) -> 1 | DN6: =ROUNDUP(INDEX('Bridge Data'!$AF$4:$AF$253,'Bridge Data Matrices'!DN$9)/12,0) -> 1 | DO6: =ROUNDUP(INDEX('Bridge Data'!$AF$4:$AF$253,'Bridge Data Matrices'!DO$9)/12,0) -> 1 | DP6: =ROUNDUP(INDEX('Bridge Data'!$AF$4:$AF$253,'Bridge Data Matrices'!DP$9)/12,0) -> 1 | DQ6: =ROUNDUP(INDEX('Bridge Data'!$AF$4:$AF$253,'Bridge Data Matrices'!DQ$9)/12,0) -> 1 | DR6: =ROUNDUP(INDEX('Bridge Data'!$AF$4:$AF$253,'Bridge Data Matrices'!DR$9)/12,0) -> 1 | DS6: =ROUNDUP(INDEX('Bridge Data'!$AF$4:$AF$253,'Bridge Data Matrices'!DS$9)/12,0) -> 1 | DT6: =ROUNDUP(INDEX('Bridge Data'!$AF$4:$AF$253,'Bridge Data Matrices'!DT$9)/12,0) -> 1 | DU6: =ROUNDUP(INDEX('Bridge Data'!$AF$4:$AF$253,'Bridge Data Matrices'!DU$9)/12,0) -> 1 | DV6: =ROUNDUP(INDEX('Bridge Data'!$AF$4:$AF$253,'Bridge Data Matrices'!DV$9)/12,0) -> 1 | DW6: =ROUNDUP(INDEX('Bridge Data'!$AF$4:$AF$253,'Bridge Data Matrices'!DW$9)/12,0) -> 1 | DX6: =ROUNDUP(INDEX('Bridge Data'!$AF$4:$AF$253,'Bridge Data Matrices'!DX$9)/12,0) -> 1 | DY6: =ROUNDUP(INDEX('Bridge Data'!$AF$4:$AF$253,'Bridge Data Matrices'!DY$9)/12,0) -> 1 | DZ6: =ROUNDUP(INDEX('Bridge Data'!$AF$4:$AF$253,'Bridge Data Matrices'!DZ$9)/12,0) -> 1 | EA6: =ROUNDUP(INDEX('Bridge Data'!$AF$4:$AF$253,'Bridge Data Matrices'!EA$9)/12,0) -> 1 | EB6: =ROUNDUP(INDEX('Bridge Data'!$AF$4:$AF$253,'Bridge Data Matrices'!EB$9)/12,0) -> 1 | EC6: =ROUNDUP(INDEX('Bridge Data'!$AF$4:$AF$253,'Bridge Data Matrices'!EC$9)/12,0) -> 1 | ED6: =ROUNDUP(INDEX('Bridge Data'!$AF$4:$AF$253,'Bridge Data Matrices'!ED$9)/12,0) -> 1 | EE6: =ROUNDUP(INDEX('Bridge Data'!$AF$4:$AF$253,'Bridge Data Matrices'!EE$9)/12,0) -> 1 | EF6: =ROUNDUP(INDEX('Bridge Data'!$AF$4:$AF$253,'Bridge Data Matrices'!EF$9)/12,0) -> 1 | EG6: =ROUNDUP(INDEX('Bridge Data'!$AF$4:$AF$253,'Bridge Data Matrices'!EG$9)/12,0) -> 1 | EH6: =ROUNDUP(INDEX('Bridge Data'!$AF$4:$AF$253,'Bridge Data Matrices'!EH$9)/12,0) -> 1 | EI6: =ROUNDUP(INDEX('Bridge Data'!$AF$4:$AF$253,'Bridge Data Matrices'!EI$9)/12,0) -> 1 | EJ6: =ROUNDUP(INDEX('Bridge Data'!$AF$4:$AF$253,'Bridge Data Matrices'!EJ$9)/12,0) -> 1 | EK6: =ROUNDUP(INDEX('Bridge Data'!$AF$4:$AF$253,'Bridge Data Matrices'!EK$9)/12,0) -> 1 | EL6: =ROUNDUP(INDEX('Bridge Data'!$AF$4:$AF$253,'Bridge Data Matrices'!EL$9)/12,0) -> 1 | EM6: =ROUNDUP(INDEX('Bridge Data'!$AF$4:$AF$253,'Bridge Data Matrices'!EM$9)/12,0) -> 1 | EN6: =ROUNDUP(INDEX('Bridge Data'!$AF$4:$AF$253,'Bridge Data Matrices'!EN$9)/12,0) -> 1 | EO6: =ROUNDUP(INDEX('Bridge Data'!$AF$4:$AF$253,'Bridge Data Matrices'!EO$9)/12,0) -> 1 | EP6: =ROUNDUP(INDEX('Bridge Data'!$AF$4:$AF$253,'Bridge Data Matrices'!EP$9)/12,0) -> 1 | EQ6: =ROUNDUP(INDEX('Bridge Data'!$AF$4:$AF$253,'Bridge Data Matrices'!EQ$9)/12,0) -> 1 | ER6: =ROUNDUP(INDEX('Bridge Data'!$AF$4:$AF$253,'Bridge Data Matrices'!ER$9)/12,0) -> 1 | ES6: =ROUNDUP(INDEX('Bridge Data'!$AF$4:$AF$253,'Bridge Data Matrices'!ES$9)/12,0) -> 1 | ET6: =ROUNDUP(INDEX('Bridge Data'!$AF$4:$AF$253,'Bridge Data Matrices'!ET$9)/12,0) -> 1 | EU6: =ROUNDUP(INDEX('Bridge Data'!$AF$4:$AF$253,'Bridge Data Matrices'!EU$9)/12,0) -> 1 | EV6: =ROUNDUP(INDEX('Bridge Data'!$AF$4:$AF$253,'Bridge Data Matrices'!EV$9)/12,0) -> 1 | EW6: =ROUNDUP(INDEX('Bridge Data'!$AF$4:$AF$253,'Bridge Data Matrices'!EW$9)/12,0) -> 1 | EX6: =ROUNDUP(INDEX('Bridge Data'!$AF$4:$AF$253,'Bridge Data Matrices'!EX$9)/12,0) -> 1 | EY6: =ROUNDUP(INDEX('Bridge Data'!$AF$4:$AF$253,'Bridge Data Matrices'!EY$9)/12,0) -> 1 | EZ6: =ROUNDUP(INDEX('Bridge Data'!$AF$4:$AF$253,'Bridge Data Matrices'!EZ$9)/12,0) -> 1 | FA6: =ROUNDUP(INDEX('Bridge Data'!$AF$4:$AF$253,'Bridge Data Matrices'!FA$9)/12,0) -> 1 | FB6: =ROUNDUP(INDEX('Bridge Data'!$AF$4:$AF$253,'Bridge Data Matrices'!FB$9)/12,0) -> 1 | FC6: =ROUNDUP(INDEX('Bridge Data'!$AF$4:$AF$253,'Bridge Data Matrices'!FC$9)/12,0) -> 1 | FD6: =ROUNDUP(INDEX('Bridge Data'!$AF$4:$AF$253,'Bridge Data Matrices'!FD$9)/12,0) -> 1 | FE6: =ROUNDUP(INDEX('Bridge Data'!$AF$4:$AF$253,'Bridge Data Matrices'!FE$9)/12,0) -> 1 | FF6: =ROUNDUP(INDEX('Bridge Data'!$AF$4:$AF$253,'Bridge Data Matrices'!FF$9)/12,0) -> 1 | FG6: =ROUNDUP(INDEX('Bridge Data'!$AF$4:$AF$253,'Bridge Data Matrices'!FG$9)/12,0) -> 1 | FH6: =ROUNDUP(INDEX('Bridge Data'!$AF$4:$AF$253,'Bridge Data Matrices'!FH$9)/12,0) -> 1 | FI6: =ROUNDUP(INDEX('Bridge Data'!$AF$4:$AF$253,'Bridge Data Matrices'!FI$9)/12,0) -> 1 | FJ6: =ROUNDUP(INDEX('Bridge Data'!$AF$4:$AF$253,'Bridge Data Matrices'!FJ$9)/12,0) -> 1 | FK6: =ROUNDUP(INDEX('Bridge Data'!$AF$4:$AF$253,'Bridge Data Matrices'!FK$9)/12,0) -> 1 | FL6: =ROUNDUP(INDEX('Bridge Data'!$AF$4:$AF$253,'Bridge Data Matrices'!FL$9)/12,0) -> 1 | FM6: =ROUNDUP(INDEX('Bridge Data'!$AF$4:$AF$253,'Bridge Data Matrices'!FM$9)/12,0) -> 1 | FN6: =ROUNDUP(INDEX('Bridge Data'!$AF$4:$AF$253,'Bridge Data Matrices'!FN$9)/12,0) -> 1 | FO6: =ROUNDUP(INDEX('Bridge Data'!$AF$4:$AF$253,'Bridge Data Matrices'!FO$9)/12,0) -> 1 | FP6: =ROUNDUP(INDEX('Bridge Data'!$AF$4:$AF$253,'Bridge Data Matrices'!FP$9)/12,0) -> 1 | FQ6: =ROUNDUP(INDEX('Bridge Data'!$AF$4:$AF$253,'Bridge Data Matrices'!FQ$9)/12,0) -> 1 | FR6: =ROUNDUP(INDEX('Bridge Data'!$AF$4:$AF$253,'Bridge Data Matrices'!FR$9)/12,0) -> 1 | FS6: =ROUNDUP(INDEX('Bridge Data'!$AF$4:$AF$253,'Bridge Data Matrices'!FS$9)/12,0) -> 1 | FT6: =ROUNDUP(INDEX('Bridge Data'!$AF$4:$AF$253,'Bridge Data Matrices'!FT$9)/12,0) -> 1 | FU6: =ROUNDUP(INDEX('Bridge Data'!$AF$4:$AF$253,'Bridge Data Matrices'!FU$9)/12,0) -> 1 | FV6: =ROUNDUP(INDEX('Bridge Data'!$AF$4:$AF$253,'Bridge Data Matrices'!FV$9)/12,0) -> 1 | FW6: =ROUNDUP(INDEX('Bridge Data'!$AF$4:$AF$253,'Bridge Data Matrices'!FW$9)/12,0) -> 1 | FX6: =ROUNDUP(INDEX('Bridge Data'!$AF$4:$AF$253,'Bridge Data Matrices'!FX$9)/12,0) -> 1 | FY6: =ROUNDUP(INDEX('Bridge Data'!$AF$4:$AF$253,'Bridge Data Matrices'!FY$9)/12,0) -> 1 | FZ6: =ROUNDUP(INDEX('Bridge Data'!$AF$4:$AF$253,'Bridge Data Matrices'!FZ$9)/12,0) -> 1 | GA6: =ROUNDUP(INDEX('Bridge Data'!$AF$4:$AF$253,'Bridge Data Matrices'!GA$9)/12,0) -> 1 | GB6: =ROUNDUP(INDEX('Bridge Data'!$AF$4:$AF$253,'Bridge Data Matrices'!GB$9)/12,0) -> 1 | GC6: =ROUNDUP(INDEX('Bridge Data'!$AF$4:$AF$253,'Bridge Data Matrices'!GC$9)/12,0) -> 1 | GD6: =ROUNDUP(INDEX('Bridge Data'!$AF$4:$AF$253,'Bridge Data Matrices'!GD$9)/12,0) -> 1 | GE6: =ROUNDUP(INDEX('Bridge Data'!$AF$4:$AF$253,'Bridge Data Matrices'!GE$9)/12,0) -> 1 | GF6: =ROUNDUP(INDEX('Bridge Data'!$AF$4:$AF$253,'Bridge Data Matrices'!GF$9)/12,0) -> 1 | GG6: =ROUNDUP(INDEX('Bridge Data'!$AF$4:$AF$253,'Bridge Data Matrices'!GG$9)/12,0) -> 1 | GH6: =ROUNDUP(INDEX('Bridge Data'!$AF$4:$AF$253,'Bridge Data Matrices'!GH$9)/12,0) -> 1 | GI6: =ROUNDUP(INDEX('Bridge Data'!$AF$4:$AF$253,'Bridge Data Matrices'!GI$9)/12,0) -> 1 | GJ6: =ROUNDUP(INDEX('Bridge Data'!$AF$4:$AF$253,'Bridge Data Matrices'!GJ$9)/12,0) -> 1 | GK6: =ROUNDUP(INDEX('Bridge Data'!$AF$4:$AF$253,'Bridge Data Matrices'!GK$9)/12,0) -> 1 | GL6: =ROUNDUP(INDEX('Bridge Data'!$AF$4:$AF$253,'Bridge Data Matrices'!GL$9)/12,0) -> 1 | GM6: =ROUNDUP(INDEX('Bridge Data'!$AF$4:$AF$253,'Bridge Data Matrices'!GM$9)/12,0) -> 1 | GN6: =ROUNDUP(INDEX('Bridge Data'!$AF$4:$AF$253,'Bridge Data Matrices'!GN$9)/12,0) -> 1 | GO6: =ROUNDUP(INDEX('Bridge Data'!$AF$4:$AF$253,'Bridge Data Matrices'!GO$9)/12,0) -> 1 | GP6: =ROUNDUP(INDEX('Bridge Data'!$AF$4:$AF$253,'Bridge Data Matrices'!GP$9)/12,0) -> 1 | GQ6: =ROUNDUP(INDEX('Bridge Data'!$AF$4:$AF$253,'Bridge Data Matrices'!GQ$9)/12,0) -> 1 | GR6: =ROUNDUP(INDEX('Bridge Data'!$AF$4:$AF$253,'Bridge Data Matrices'!GR$9)/12,0) -> 1 | GS6: =ROUNDUP(INDEX('Bridge Data'!$AF$4:$AF$253,'Bridge Data Matrices'!GS$9)/12,0) -> 1 | GT6: =ROUNDUP(INDEX('Bridge Data'!$AF$4:$AF$253,'Bridge Data Matrices'!GT$9)/12,0) -> 1 | GU6: =ROUNDUP(INDEX('Bridge Data'!$AF$4:$AF$253,'Bridge Data Matrices'!GU$9)/12,0) -> 1 | GV6: =ROUNDUP(INDEX('Bridge Data'!$AF$4:$AF$253,'Bridge Data Matrices'!GV$9)/12,0) -> 1 | GW6: =ROUNDUP(INDEX('Bridge Data'!$AF$4:$AF$253,'Bridge Data Matrices'!GW$9)/12,0) -> 1 | GX6: =ROUNDUP(INDEX('Bridge Data'!$AF$4:$AF$253,'Bridge Data Matrices'!GX$9)/12,0) -> 1 | GY6: =ROUNDUP(INDEX('Bridge Data'!$AF$4:$AF$253,'Bridge Data Matrices'!GY$9)/12,0) -> 1 | GZ6: =ROUNDUP(INDEX('Bridge Data'!$AF$4:$AF$253,'Bridge Data Matrices'!GZ$9)/12,0) -> 1 | HA6: =ROUNDUP(INDEX('Bridge Data'!$AF$4:$AF$253,'Bridge Data Matrices'!HA$9)/12,0) -> 1 | HB6: =ROUNDUP(INDEX('Bridge Data'!$AF$4:$AF$253,'Bridge Data Matrices'!HB$9)/12,0) -> 1 | HC6: =ROUNDUP(INDEX('Bridge Data'!$AF$4:$AF$253,'Bridge Data Matrices'!HC$9)/12,0) -> 1 | HD6: =ROUNDUP(INDEX('Bridge Data'!$AF$4:$AF$253,'Bridge Data Matrices'!HD$9)/12,0) -> 1 | HE6: =ROUNDUP(INDEX('Bridge Data'!$AF$4:$AF$253,'Bridge Data Matrices'!HE$9)/12,0) -> 1 | HF6: =ROUNDUP(INDEX('Bridge Data'!$AF$4:$AF$253,'Bridge Data Matrices'!HF$9)/12,0) -> 1 | HG6: =ROUNDUP(INDEX('Bridge Data'!$AF$4:$AF$253,'Bridge Data Matrices'!HG$9)/12,0) -> 1 | HH6: =ROUNDUP(INDEX('Bridge Data'!$AF$4:$AF$253,'Bridge Data Matrices'!HH$9)/12,0) -> 1 | HI6: =ROUNDUP(INDEX('Bridge Data'!$AF$4:$AF$253,'Bridge Data Matrices'!HI$9)/12,0) -> 1 | HJ6: =ROUNDUP(INDEX('Bridge Data'!$AF$4:$AF$253,'Bridge Data Matrices'!HJ$9)/12,0) -> 1 | HK6: =ROUNDUP(INDEX('Bridge Data'!$AF$4:$AF$253,'Bridge Data Matrices'!HK$9)/12,0) -> 1 | HL6: =ROUNDUP(INDEX('Bridge Data'!$AF$4:$AF$253,'Bridge Data Matrices'!HL$9)/12,0) -> 1 | HM6: =ROUNDUP(INDEX('Bridge Data'!$AF$4:$AF$253,'Bridge Data Matrices'!HM$9)/12,0) -> 1 | HN6: =ROUNDUP(INDEX('Bridge Data'!$AF$4:$AF$253,'Bridge Data Matrices'!HN$9)/12,0) -> 1 | HO6: =ROUNDUP(INDEX('Bridge Data'!$AF$4:$AF$253,'Bridge Data Matrices'!HO$9)/12,0) -> 1 | HP6: =ROUNDUP(INDEX('Bridge Data'!$AF$4:$AF$253,'Bridge Data Matrices'!HP$9)/12,0) -> 1 | HQ6: =ROUNDUP(INDEX('Bridge Data'!$AF$4:$AF$253,'Bridge Data Matrices'!HQ$9)/12,0) -> 1 | HR6: =ROUNDUP(INDEX('Bridge Data'!$AF$4:$AF$253,'Bridge Data Matrices'!HR$9)/12,0) -> 1 | HS6: =ROUNDUP(INDEX('Bridge Data'!$AF$4:$AF$253,'Bridge Data Matrices'!HS$9)/12,0) -> 1 | HT6: =ROUNDUP(INDEX('Bridge Data'!$AF$4:$AF$253,'Bridge Data Matrices'!HT$9)/12,0) -> 1 | HU6: =ROUNDUP(INDEX('Bridge Data'!$AF$4:$AF$253,'Bridge Data Matrices'!HU$9)/12,0) -> 1 | HV6: =ROUNDUP(INDEX('Bridge Data'!$AF$4:$AF$253,'Bridge Data Matrices'!HV$9)/12,0) -> 1 | HW6: =ROUNDUP(INDEX('Bridge Data'!$AF$4:$AF$253,'Bridge Data Matrices'!HW$9)/12,0) -> 1 | HX6: =ROUNDUP(INDEX('Bridge Data'!$AF$4:$AF$253,'Bridge Data Matrices'!HX$9)/12,0) -> 1 | HY6: =ROUNDUP(INDEX('Bridge Data'!$AF$4:$AF$253,'Bridge Data Matrices'!HY$9)/12,0) -> 1 | HZ6: =ROUNDUP(INDEX('Bridge Data'!$AF$4:$AF$253,'Bridge Data Matrices'!HZ$9)/12,0) -> 1 | IA6: =ROUNDUP(INDEX('Bridge Data'!$AF$4:$AF$253,'Bridge Data Matrices'!IA$9)/12,0) -> 1 | IB6: =ROUNDUP(INDEX('Bridge Data'!$AF$4:$AF$253,'Bridge Data Matrices'!IB$9)/12,0) -> 1 | IC6: =ROUNDUP(INDEX('Bridge Data'!$AF$4:$AF$253,'Bridge Data Matrices'!IC$9)/12,0) -> 1 | ID6: =ROUNDUP(INDEX('Bridge Data'!$AF$4:$AF$253,'Bridge Data Matrices'!ID$9)/12,0) -> 1 | IE6: =ROUNDUP(INDEX('Bridge Data'!$AF$4:$AF$253,'Bridge Data Matrices'!IE$9)/12,0) -> 1 | IF6: =ROUNDUP(INDEX('Bridge Data'!$AF$4:$AF$253,'Bridge Data Matrices'!IF$9)/12,0) -> 1 | IG6: =ROUNDUP(INDEX('Bridge Data'!$AF$4:$AF$253,'Bridge Data Matrices'!IG$9)/12,0) -> 1 | IH6: =ROUNDUP(INDEX('Bridge Data'!$AF$4:$AF$253,'Bridge Data Matrices'!IH$9)/12,0) -> 1 | II6: =ROUNDUP(INDEX('Bridge Data'!$AF$4:$AF$253,'Bridge Data Matrices'!II$9)/12,0) -> 1 | IJ6: =ROUNDUP(INDEX('Bridge Data'!$AF$4:$AF$253,'Bridge Data Matrices'!IJ$9)/12,0) -> 1 | IK6: =ROUNDUP(INDEX('Bridge Data'!$AF$4:$AF$253,'Bridge Data Matrices'!IK$9)/12,0) -> 1 | IL6: =ROUNDUP(INDEX('Bridge Data'!$AF$4:$AF$253,'Bridge Data Matrices'!IL$9)/12,0) -> 1 | IM6: =ROUNDUP(INDEX('Bridge Data'!$AF$4:$AF$253,'Bridge Data Matrices'!IM$9)/12,0) -> 1 | IN6: =ROUNDUP(INDEX('Bridge Data'!$AF$4:$AF$253,'Bridge Data Matrices'!IN$9)/12,0) -> 1 | IO6: =ROUNDUP(INDEX('Bridge Data'!$AF$4:$AF$253,'Bridge Data Matrices'!IO$9)/12,0) -> 1 | IP6: =ROUNDUP(INDEX('Bridge Data'!$AF$4:$AF$253,'Bridge Data Matrices'!IP$9)/12,0) -> 1 | IQ6: =ROUNDUP(INDEX('Bridge Data'!$AF$4:$AF$253,'Bridge Data Matrices'!IQ$9)/12,0) -> 1 | IR6: =ROUNDUP(INDEX('Bridge Data'!$AF$4:$AF$253,'Bridge Data Matrices'!IR$9)/12,0) -> 1
A8: matCost | C8: Bridge Number
A9: Year | C9: 1 | D9: 2 | E9: 3 | F9: 4 | G9: 5 | H9: 6 | I9: 7 | J9: 8 | K9: 9 | L9: 10 | M9: 11 | N9: 12 | O9: 13 | P9: 14 | Q9: 15 | R9: 16 | S9: 17 | T9: 18 | U9: 19 | V9: 20 | W9: 21 | X9: 22 | Y9: 23 | Z9: 24 | AA9: 25 | AB9: 26 | AC9: 27 | AD9: 28 | AE9: 29 | AF9: 30 | AG9: 31 | AH9: 32 | AI9: 33 | AJ9: 34 | AK9: 35 | AL9: 36 | AM9: 37 | AN9: 38 | AO9: 39 | AP9: 40 | AQ9: 41 | AR9: 42 | AS9: 43 | AT9: 44 | AU9: 45 | AV9: 46 | AW9: 47 | AX9: 48 | AY9: 49 | AZ9: 50 | BA9: 51 | BB9: 52 | BC9: 53 | BD9: 54 | BE9: 55 | BF9: 56 | BG9: 57 | BH9: 58 | BI9: 59 | BJ9: 60 | BK9: 61 | BL9: 62 | BM9: 63 | BN9: 64 | BO9: 65 | BP9: 66 | BQ9: 67 | BR9: 68 | BS9: 69 | BT9: 70 | BU9: 71 | BV9: 72 | BW9: 73 | BX9: 74 | BY9: 75 | BZ9: 76 | CA9: 77 | CB9: 78 | CC9: 79 | CD9: 80 | CE9: 81 | CF9: 82 | CG9: 83 | CH9: 84 | CI9: 85 | CJ9: 86 | CK9: 87 | CL9: 88 | CM9: 89 | CN9: 90 | CO9: 91 | CP9: 92 | CQ9: 93 | CR9: 94 | CS9: 95 | CT9: 96 | CU9: 97 | CV9: 98 | CW9: 99 | CX9: 100 | CY9: 101 | CZ9: 102 | DA9: 103 | DB9: 104 | DC9: 105 | DD9: 106 | DE9: 107 | DF9: 108 | DG9: 109 | DH9: 110 | DI9: 111 | DJ9: 112 | DK9: 113 | DL9: 114 | DM9: 115 | DN9: 116 | DO9: 117 | DP9: 118 | DQ9: 119 | DR9: 120 | DS9: 121 | DT9: 122 | DU9: 123 | DV9: 124 | DW9: 125 | DX9: 126 | DY9: 127 | DZ9: 128 | EA9: 129 | EB9: 130 | EC9: 131 | ED9: 132 | EE9: 133 | EF9: 134 | EG9: 135 | EH9: 136 | EI9: 137 | EJ9: 138 | EK9: 139 | EL9: 140 | EM9: 141 | EN9: 142 | EO9: 143 | EP9: 144 | EQ9: 145 | ER9: 146 | ES9: 147 | ET9: 148 | EU9: 149 | EV9: 150 | EW9: 151 | EX9: 152 | EY9: 153 | EZ9: 154 | FA9: 155 | FB9: 156 | FC9: 157 | FD9: 158 | FE9: 159 | FF9: 160 | FG9: 161 | FH9: 162 | FI9: 163 | FJ9: 164 | FK9: 165 | FL9: 166 | FM9: 167 | FN9: 168 | FO9: 169 | FP9: 170 | FQ9: 171 | FR9: 172 | FS9: 173 | FT9: 174 | FU9: 175 | FV9: 176 | FW9: 177 | FX9: 178 | FY9: 179 | FZ9: 180 | GA9: 181 | GB9: 182 | GC9: 183 | GD9: 184 | GE9: 185 | GF9: 186 | GG9: 187 | GH9: 188 | GI9: 189 | GJ9: 190 | GK9: 191 | GL9: 192 | GM9: 193 | GN9: 194 | GO9: 195 | GP9: 196 | GQ9: 197 | GR9: 198 | GS9: 199 | GT9: 200 | GU9: 201 | GV9: 202 | GW9: 203 | GX9: 204 | GY9: 205 | GZ9: 206 | HA9: 207 | HB9: 208 | HC9: 209 | HD9: 210 | HE9: 211 | HF9: 212 | HG9: 213 | HH9: 214 | HI9: 215 | HJ9: 216 | HK9: 217 | HL9: 218 | HM9: 219 | HN9: 220 | HO9: 221 | HP9: 222 | HQ9: 223 | HR9: 224 | HS9: 225 | HT9: 226 | HU9: 227 | HV9: 228 | HW9: 229 | HX9: 230 | HY9: 231 | HZ9: 232 | IA9: 233 | IB9: 234 | IC9: 235 | ID9: 236 | IE9: 237 | IF9: 238 | IG9: 239 | IH9: 240 | II9: 241 | IJ9: 242 | IK9: 243 | IL9: 244 | IM9: 245 | IN9: 246 | IO9: 247 | IP9: 248 | IQ9: 249 | IR9: 250 | IS9: Construction Cost
A10: ='1) Project Information'!V15 -> 2019 | C10: =IF(AND($A10>=C$1,$A10<=C$2),1,0) -> 0 | D10: =IF(AND($A10>=D$1,$A10<=D$2),1,0) -> 0 | E10: 0 | F10: 0 | G10: 0 | H10: 0 | I10: 0 | J10: 0 | K10: 0 | L10: 0 | M10: 0 | N10: 0 | O10: 0 | P10: 0 | Q10: 0 | R10: 0 | S10: 0 | T10: =IF(AND($A10>=T$1,$A10<=T$2),1,0) -> 0 | U10: 0 | V10: 0 | W10: 0 | X10: 0 | Y10: 0 | Z10: 0 | AA10: 0 | AB10: 0 | AC10: 0 | AD10: 0 | AE10: 0 | AF10: 0 | AG10: 0 | AH10: 0 | AI10: 0 | AJ10: =IF(AND($A10>=AJ$1,$A10<=AJ$2),1,0) -> 0 | AK10: 0 | AL10: 0 | AM10: 0 | AN10: 0 | AO10: 0 | AP10: 0 | AQ10: 0 | AR10: 0 | AS10: 0 | AT10: 0 | AU10: 0 | AV10: 0 | AW10: 0 | AX10: 0 | AY10: 0 | AZ10: =IF(AND($A10>=AZ$1,$A10<=AZ$2),1,0) -> 0 | BA10: 0 | BB10: 0 | BC10: 0 | BD10: 0 | BE10: 0 | BF10: 0 | BG10: 0 | BH10: 0 | BI10: 0 | BJ10: 0 | BK10: 0 | BL10: 0 | BM10: 0 | BN10: 0 | BO10: 0 | BP10: =IF(AND($A10>=BP$1,$A10<=BP$2),1,0) -> 0 | BQ10: 0 | BR10: 0 | BS10: 0 | BT10: 0 | BU10: 0 | BV10: 0 | BW10: 0 | BX10: 0 | BY10: 0 | BZ10: 0 | CA10: 0 | CB10: 0 | CC10: 0 | CD10: 0 | CE10: 0 | CF10: =IF(AND($A10>=CF$1,$A10<=CF$2),1,0) -> 0 | CG10: 0 | CH10: 0 | CI10: 0 | CJ10: 0 | CK10: 0 | CL10: 0 | CM10: 0 | CN10: 0 | CO10: 0 | CP10: 0 | CQ10: 0 | CR10: 0 | CS10: 0 | CT10: 0 | CU10: 0 | CV10: =IF(AND($A10>=CV$1,$A10<=CV$2),1,0) -> 0 | CW10: 0 | CX10: 0 | CY10: 0 | CZ10: 0 | DA10: 0 | DB10: 0 | DC10: 0 | DD10: 0 | DE10: 0 | DF10: 0 | DG10: 0 | DH10: 0 | DI10: 0 | DJ10: 0 | DK10: 0 | DL10: =IF(AND($A10>=DL$1,$A10<=DL$2),1,0) -> 0 | DM10: 0 | DN10: 0 | DO10: 0 | DP10: 0 | DQ10: 0 | DR10: 0 | DS10: 0 | DT10: 0 | DU10: 0 | DV10: 0 | DW10: 0 | DX10: 0 | DY10: 0 | DZ10: 0 | EA10: 0 | EB10: =IF(AND($A10>=EB$1,$A10<=EB$2),1,0) -> 0 | EC10: 0 | ED10: 0 | EE10: 0 | EF10: 0 | EG10: 0 | EH10: 0 | EI10: 0 | EJ10: 0 | EK10: 0 | EL10: 0 | EM10: 0 | EN10: 0 | EO10: 0 | EP10: 0 | EQ10: 0 | ER10: =IF(AND($A10>=ER$1,$A10<=ER$2),1,0) -> 0 | ES10: 0 | ET10: 0 | EU10: 0 | EV10: 0 | EW10: 0 | EX10: 0 | EY10: 0 | EZ10: 0 | FA10: 0 | FB10: 0 | FC10: 0 | FD10: 0 | FE10: 0 | FF10: 0 | FG10: 0 | FH10: =IF(AND($A10>=FH$1,$A10<=FH$2),1,0) -> 0 | FI10: 0 | FJ10: 0 | FK10: 0 | FL10: 0 | FM10: 0 | FN10: 0 | FO10: 0 | FP10: 0 | FQ10: 0 | FR10: 0 | FS10: 0 | FT10: 0 | FU10: 0 | FV10: 0 | FW10: 0 | FX10: =IF(AND($A10>=FX$1,$A10<=FX$2),1,0) -> 0 | FY10: 0 | FZ10: 0 | GA10: 0 | GB10: 0 | GC10: 0 | GD10: 0 | GE10: 0 | GF10: 0 | GG10: 0 | GH10: 0 | GI10: 0 | GJ10: 0 | GK10: 0 | GL10: 0 | GM10: 0 | GN10: =IF(AND($A10>=GN$1,$A10<=GN$2),1,0) -> 0 | GO10: 0 | GP10: 0 | GQ10: 0 | GR10: 0 | GS10: 0 | GT10: 0 | GU10: 0 | GV10: 0 | GW10: 0 | GX10: 0 | GY10: 0 | GZ10: 0 | HA10: 0 | HB10: 0 | HC10: 0 | HD10: =IF(AND($A10>=HD$1,$A10<=HD$2),1,0) -> 0 | HE10: 0 | HF10: 0 | HG10: 0 | HH10: 0 | HI10: 0 | HJ10: 0 | HK10: 0 | HL10: 0 | HM10: 0 | HN10: 0 | HO10: 0 | HP10: 0 | HQ10: 0 | HR10: 0 | HS10: 0 | HT10: =IF(AND($A10>=HT$1,$A10<=HT$2),1,0) -> 0 | HU10: 0 | HV10: 0 | HW10: 0 | HX10: 0 | HY10: 0 | HZ10: 0 | IA10: 0 | IB10: 0 | IC10: 0 | ID10: 0 | IE10: 0 | IF10: 0 | IG10: 0 | IH10: 0 | II10: 0 | IJ10: =IF(AND($A10>=IJ$1,$A10<=IJ$2),1,0) -> 0 | IK10: 0 | IL10: 0 | IM10: 0 | IN10: 0 | IO10: 0 | IP10: 0 | IQ10: 0 | IR10: 0 | IS10: ='Actual Cost (2019)'!F211 -> 6448
A11: ='1) Project Information'!V16 -> 2020 | B11: 1 | C11: =IF(AND($A11>=C$1,$A11<=C$2),1,0) -> 1 | D11: 1 | E11: 0 | F11: 0 | G11: 0 | H11: 0 | I11: 0 | J11: 0 | K11: 1 | L11: 1 | M11: 1 | N11: 0 | O11: 1 | P11: 1 | Q11: 0 | R11: 0 | S11: 0 | T11: 0 | U11: 0 | V11: 0 | W11: 0 | X11: 0 | Y11: 0 | Z11: 1 | AA11: 1 | AB11: 0 | AC11: 0 | AD11: 1 | AE11: 0 | AF11: 0 | AG11: 0 | AH11: 0 | AI11: 0 | AJ11: 0 | AK11: 1 | AL11: 0 | AM11: 1 | AN11: 1 | AO11: 1 | AP11: 1 | AQ11: 1 | AR11: 0 | AS11: 1 | AT11: 0 | AU11: 0 | AV11: 1 | AW11: 1 | AX11: 0 | AY11: 1 | AZ11: 0 | BA11: 0 | BB11: 0 | BC11: 0 | BD11: 1 | BE11: 0 | BF11: 0 | BG11: 1 | BH11: 0 | BI11: 0 | BJ11: 0 | BK11: 0 | BL11: 1 | BM11: 0 | BN11: 1 | BO11: 0 | BP11: 1 | BQ11: 0 | BR11: 0 | BS11: 0 | BT11: 0 | BU11: 1 | BV11: 1 | BW11: 1 | BX11: 0 | BY11: 0 | BZ11: 0 | CA11: 0 | CB11: 1 | CC11: 1 | CD11: 1 | CE11: 1 | CF11: 0 | CG11: 0 | CH11: 1 | CI11: 0 | CJ11: 1 | CK11: 0 | CL11: 0 | CM11: 1 | CN11: 1 | CO11: 1 | CP11: 0 | CQ11: 0 | CR11: 0 | CS11: 1 | CT11: 1 | CU11: 1 | CV11: 1 | CW11: 1 | CX11: 1 | CY11: 1 | CZ11: 1 | DA11: 1 | DB11: 0 | DC11: 1 | DD11: 1 | DE11: 0 | DF11: 1 | DG11: 0 | DH11: 0 | DI11: 0 | DJ11: 0 | DK11: 0 | DL11: 0 | DM11: 0 | DN11: 1 | DO11: 1 | DP11: 1 | DQ11: 1 | DR11: 1 | DS11: 0 | DT11: 0 | DU11: 0 | DV11: 1 | DW11: 1 | DX11: 1 | DY11: 1 | DZ11: 1 | EA11: 0 | EB11: 0 | EC11: 0 | ED11: 0 | EE11: 1 | EF11: 1 | EG11: 1 | EH11: 0 | EI11: 0 | EJ11: 0 | EK11: 1 | EL11: 1 | EM11: 1 | EN11: 0 | EO11: 1 | EP11: 0 | EQ11: 0 | ER11: 0 | ES11: 0 | ET11: 1 | EU11: 1 | EV11: 0 | EW11: 0 | EX11: 0 | EY11: 0 | EZ11: 0 | FA11: 1 | FB11: 1 | FC11: 1 | FD11: 0 | FE11: 1 | FF11: 0 | FG11: 0 | FH11: 1 | FI11: 1 | FJ11: 1 | FK11: 0 | FL11: 0 | FM11: 1 | FN11: 1 | FO11: 0 | FP11: 0 | FQ11: 1 | FR11: 0 | FS11: 1 | FT11: 1 | FU11: 1 | FV11: 0 | FW11: 1 | FX11: 1 | FY11: 1 | FZ11: 0 | GA11: 1 | GB11: 1 | GC11: 1 | GD11: 1 | GE11: 1 | GF11: 1 | GG11: 0 | GH11: 0 | GI11: 0 | GJ11: 0 | GK11: 0 | GL11: 0 | GM11: 0 | GN11: 0 | GO11: 0 | GP11: 0 | GQ11: 0 | GR11: 0 | GS11: 0 | GT11: 0 | GU11: 0 | GV11: 0 | GW11: 1 | GX11: 1 | GY11: 1 | GZ11: 0 | HA11: 0 | HB11: 0 | HC11: 0 | HD11: 1 | HE11: 1 | HF11: 0 | HG11: 1 | HH11: 0 | HI11: 1 | HJ11: 0 | HK11: 0 | HL11: 0 | HM11: 0 | HN11: 1 | HO11: 1 | HP11: 0 | HQ11: 0 | HR11: 0 | HS11: 1 | HT11: 1 | HU11: 1 | HV11: 1 | HW11: 1 | HX11: 0 | HY11: 0 | HZ11: 0 | IA11: 0 | IB11: 0 | IC11: 0 | ID11: 0 | IE11: 0 | IF11: 1 | IG11: 0 | IH11: 1 | II11: 0 | IJ11: 0 | IK11: 1 | IL11: 0 | IM11: 0 | IN11: 0 | IO11: 0 | IP11: 0 | IQ11: 0 | IR11: 1 | IS11: =SUMPRODUCT(C11:IR11,$C$20:$IR$20)*(1+'Parameters Added'!$B$11) -> 141043
A12: ='1) Project Information'!V17 -> 2021 | B12: 2 | C12: 0 | D12: 0 | E12: 1 | F12: 1 | G12: 1 | H12: 0 | I12: 0 | J12: 0 | K12: 0 | L12: 0 | M12: 0 | N12: 1 | O12: 0 | P12: 0 | Q12: 0 | R12: 0 | S12: 1 | T12: 1 | U12: 1 | V12: 1 | W12: 1 | X12: 1 | Y12: 0 | Z12: 0 | AA12: 0 | AB12: 1 | AC12: 1 | AD12: 0 | AE12: 1 | AF12: 1 | AG12: 1 | AH12: 0 | AI12: 0 | AJ12: 0 | AK12: 0 | AL12: 1 | AM12: 0 | AN12: 0 | AO12: 0 | AP12: 0 | AQ12: 0 | AR12: 1 | AS12: 0 | AT12: 0 | AU12: 0 | AV12: 0 | AW12: 0 | AX12: 0 | AY12: 0 | AZ12: 1 | BA12: 1 | BB12: 1 | BC12: 0 | BD12: 0 | BE12: 0 | BF12: 0 | BG12: 0 | BH12: 1 | BI12: 1 | BJ12: 1 | BK12: 1 | BL12: 0 | BM12: 0 | BN12: 0 | BO12: 1 | BP12: 0 | BQ12: 1 | BR12: 1 | BS12: 1 | BT12: 1 | BU12: 0 | BV12: 0 | BW12: 0 | BX12: 0 | BY12: 1 | BZ12: 0 | CA12: 0 | CB12: 0 | CC12: 0 | CD12: 0 | CE12: 0 | CF12: 0 | CG12: 0 | CH12: 0 | CI12: 0 | CJ12: 0 | CK12: 1 | CL12: 1 | CM12: 0 | CN12: 0 | CO12: 0 | CP12: 1 | CQ12: 1 | CR12: 0 | CS12: 0 | CT12: 0 | CU12: 0 | CV12: 0 | CW12: 0 | CX12: 0 | CY12: 0 | CZ12: 0 | DA12: 0 | DB12: 1 | DC12: 0 | DD12: 0 | DE12: 1 | DF12: 0 | DG12: 1 | DH12: 1 | DI12: 1 | DJ12: 1 | DK12: 1 | DL12: 0 | DM12: 1 | DN12: 0 | DO12: 0 | DP12: 0 | DQ12: 0 | DR12: 0 | DS12: 1 | DT12: 1 | DU12: 1 | DV12: 0 | DW12: 0 | DX12: 0 | DY12: 0 | DZ12: 0 | EA12: 1 | EB12: 0 | EC12: 1 | ED12: 0 | EE12: 0 | EF12: 0 | EG12: 0 | EH12: 1 | EI12: 1 | EJ12: 0 | EK12: 0 | EL12: 0 | EM12: 0 | EN12: 1 | EO12: 0 | EP12: 1 | EQ12: 1 | ER12: 1 | ES12: 1 | ET12: 0 | EU12: 0 | EV12: 0 | EW12: 0 | EX12: 0 | EY12: 0 | EZ12: 1 | FA12: 0 | FB12: 0 | FC12: 0 | FD12: 0 | FE12: 0 | FF12: 1 | FG12: 0 | FH12: 0 | FI12: 0 | FJ12: 0 | FK12: 1 | FL12: 1 | FM12: 0 | FN12: 0 | FO12: 1 | FP12: 0 | FQ12: 0 | FR12: 0 | FS12: 0 | FT12: 0 | FU12: 0 | FV12: 0 | FW12: 0 | FX12: 0 | FY12: 0 | FZ12: 1 | GA12: 0 | GB12: 0 | GC12: 0 | GD12: 0 | GE12: 0 | GF12: 0 | GG12: 0 | GH12: 0 | GI12: 0 | GJ12: 1 | GK12: 0 | GL12: 1 | GM12: 1 | GN12: 0 | GO12: 1 | GP12: 0 | GQ12: 0 | GR12: 1 | GS12: 0 | GT12: 0 | GU12: 0 | GV12: 0 | GW12: 0 | GX12: 0 | GY12: 0 | GZ12: 1 | HA12: 1 | HB12: 1 | HC12: 0 | HD12: 0 | HE12: 0 | HF12: 0 | HG12: 0 | HH12: 0 | HI12: 0 | HJ12: 0 | HK12: 0 | HL12: 0 | HM12: 1 | HN12: 0 | HO12: 0 | HP12: 0 | HQ12: 1 | HR12: 1 | HS12: 0 | HT12: 0 | HU12: 0 | HV12: 0 | HW12: 0 | HX12: 1 | HY12: 0 | HZ12: 1 | IA12: 1 | IB12: 1 | IC12: 1 | ID12: 1 | IE12: 1 | IF12: 0 | IG12: 1 | IH12: 0 | II12: 0 | IJ12: 0 | IK12: 0 | IL12: 0 | IM12: 0 | IN12: 0 | IO12: 0 | IP12: 0 | IQ12: 1 | IR12: 0 | IS12: =SUMPRODUCT(C12:IR12,$C$20:$IR$20)*(1+'Parameters Added'!$B$11) -> 114231
A13: ='1) Project Information'!V18 -> 2022 | B13: 3 | C13: 0 | D13: 0 | E13: 0 | F13: 0 | G13: 0 | H13: 0 | I13: 0 | J13: 0 | K13: 0 | L13: 0 | M13: 0 | N13: 0 | O13: 0 | P13: 0 | Q13: 0 | R13: 0 | S13: 0 | T13: 0 | U13: 0 | V13: 0 | W13: 0 | X13: 0 | Y13: 1 | Z13: 0 | AA13: 0 | AB13: 0 | AC13: 0 | AD13: 0 | AE13: 0 | AF13: 0 | AG13: 0 | AH13: 1 | AI13: 0 | AJ13: 0 | AK13: 0 | AL13: 0 | AM13: 0 | AN13: 0 | AO13: 0 | AP13: 0 | AQ13: 0 | AR13: 0 | AS13: 0 | AT13: 0 | AU13: 0 | AV13: 0 | AW13: 0 | AX13: 0 | AY13: 0 | AZ13: 0 | BA13: 0 | BB13: 0 | BC13: 1 | BD13: 0 | BE13: 0 | BF13: 1 | BG13: 0 | BH13: 0 | BI13: 0 | BJ13: 0 | BK13: 0 | BL13: 0 | BM13: 1 | BN13: 0 | BO13: 0 | BP13: 0 | BQ13: 0 | BR13: 0 | BS13: 0 | BT13: 0 | BU13: 0 | BV13: 0 | BW13: 0 | BX13: 1 | BY13: 0 | BZ13: 0 | CA13: 1 | CB13: 0 | CC13: 0 | CD13: 0 | CE13: 0 | CF13: 1 | CG13: 0 | CH13: 0 | CI13: 1 | CJ13: 0 | CK13: 0 | CL13: 0 | CM13: 0 | CN13: 0 | CO13: 0 | CP13: 0 | CQ13: 0 | CR13: 1 | CS13: 0 | CT13: 0 | CU13: 0 | CV13: 0 | CW13: 0 | CX13: 0 | CY13: 0 | CZ13: 0 | DA13: 0 | DB13: 0 | DC13: 0 | DD13: 0 | DE13: 0 | DF13: 0 | DG13: 0 | DH13: 0 | DI13: 0 | DJ13: 0 | DK13: 0 | DL13: 1 | DM13: 0 | DN13: 0 | DO13: 0 | DP13: 0 | DQ13: 0 | DR13: 0 | DS13: 0 | DT13: 0 | DU13: 0 | DV13: 0 | DW13: 0 | DX13: 0 | DY13: 0 | DZ13: 0 | EA13: 0 | EB13: 1 | EC13: 0 | ED13: 1 | EE13: 0 | EF13: 0 | EG13: 0 | EH13: 0 | EI13: 0 | EJ13: 0 | EK13: 0 | EL13: 0 | EM13: 0 | EN13: 0 | EO13: 0 | EP13: 0 | EQ13: 0 | ER13: 0 | ES13: 0 | ET13: 0 | EU13: 0 | EV13: 1 | EW13: 1 | EX13: 1 | EY13: 1 | EZ13: 0 | FA13: 0 | FB13: 0 | FC13: 0 | FD13: 1 | FE13: 0 | FF13: 0 | FG13: 0 | FH13: 0 | FI13: 0 | FJ13: 0 | FK13: 0 | FL13: 0 | FM13: 0 | FN13: 0 | FO13: 0 | FP13: 1 | FQ13: 0 | FR13: 1 | FS13: 0 | FT13: 0 | FU13: 0 | FV13: 0 | FW13: 0 | FX13: 0 | FY13: 0 | FZ13: 0 | GA13: 0 | GB13: 0 | GC13: 0 | GD13: 0 | GE13: 0 | GF13: 0 | GG13: 1 | GH13: 1 | GI13: 1 | GJ13: 0 | GK13: 1 | GL13: 0 | GM13: 0 | GN13: 1 | GO13: 0 | GP13: 1 | GQ13: 1 | GR13: 0 | GS13: 0 | GT13: 1 | GU13: 1 | GV13: 0 | GW13: 0 | GX13: 0 | GY13: 0 | GZ13: 0 | HA13: 0 | HB13: 0 | HC13: 0 | HD13: 0 | HE13: 0 | HF13: 1 | HG13: 0 | HH13: 1 | HI13: 0 | HJ13: 1 | HK13: 0 | HL13: 0 | HM13: 0 | HN13: 0 | HO13: 0 | HP13: 0 | HQ13: 0 | HR13: 0 | HS13: 0 | HT13: 0 | HU13: 0 | HV13: 0 | HW13: 0 | HX13: 0 | HY13: 1 | HZ13: 0 | IA13: 0 | IB13: 0 | IC13: 0 | ID13: 0 | IE13: 0 | IF13: 0 | IG13: 0 | IH13: 0 | II13: 1 | IJ13: 1 | IK13: 0 | IL13: 1 | IM13: 1 | IN13: 1 | IO13: 1 | IP13: 1 | IQ13: 0 | IR13: 0 | IS13: =SUMPRODUCT(C13:IR13,$C$20:$IR$20)*(1+'Parameters Added'!$B$11) -> 57768
A14: ='1) Project Information'!V19 -> 2023 | B14: 4 | C14: 0 | D14: 0 | E14: 0 | F14: 0 | G14: 0 | H14: 1 | I14: 1 | J14: 1 | K14: 0 | L14: 0 | M14: 0 | N14: 0 | O14: 0 | P14: 0 | Q14: 1 | R14: 1 | S14: 0 | T14: 0 | U14: 0 | V14: 0 | W14: 0 | X14: 0 | Y14: 0 | Z14: 0 | AA14: 0 | AB14: 0 | AC14: 0 | AD14: 0 | AE14: 0 | AF14: 0 | AG14: 0 | AH14: 0 | AI14: 1 | AJ14: 1 | AK14: 0 | AL14: 0 | AM14: 0 | AN14: 0 | AO14: 0 | AP14: 0 | AQ14: 0 | AR14: 0 | AS14: 0 | AT14: 1 | AU14: 1 | AV14: 0 | AW14: 0 | AX14: 1 | AY14: 0 | AZ14: 0 | BA14: 0 | BB14: 0 | BC14: 0 | BD14: 0 | BE14: 1 | BF14: 0 | BG14: 0 | BH14: 0 | BI14: 0 | BJ14: 0 | BK14: 0 | BL14: 0 | BM14: 0 | BN14: 0 | BO14: 0 | BP14: 0 | BQ14: 0 | BR14: 0 | BS14: 0 | BT14: 0 | BU14: 0 | BV14: 0 | BW14: 0 | BX14: 0 | BY14: 0 | BZ14: 1 | CA14: 0 | CB14: 0 | CC14: 0 | CD14: 0 | CE14: 0 | CF14: 0 | CG14: 1 | CH14: 0 | CI14: 0 | CJ14: 0 | CK14: 0 | CL14: 0 | CM14: 0 | CN14: 0 | CO14: 0 | CP14: 0 | CQ14: 0 | CR14: 0 | CS14: 0 | CT14: 0 | CU14: 0 | CV14: 0 | CW14: 0 | CX14: 0 | CY14: 0 | CZ14: 0 | DA14: 0 | DB14: 0 | DC14: 0 | DD14: 0 | DE14: 0 | DF14: 0 | DG14: 0 | DH14: 0 | DI14: 0 | DJ14: 0 | DK14: 0 | DL14: 0 | DM14: 0 | DN14: 0 | DO14: 0 | DP14: 0 | DQ14: 0 | DR14: 0 | DS14: 0 | DT14: 0 | DU14: 0 | DV14: 0 | DW14: 0 | DX14: 0 | DY14: 0 | DZ14: 0 | EA14: 0 | EB14: 0 | EC14: 0 | ED14: 0 | EE14: 0 | EF14: 0 | EG14: 0 | EH14: 0 | EI14: 0 | EJ14: 1 | EK14: 0 | EL14: 0 | EM14: 0 | EN14: 0 | EO14: 0 | EP14: 0 | EQ14: 0 | ER14: 0 | ES14: 0 | ET14: 0 | EU14: 0 | EV14: 0 | EW14: 0 | EX14: 0 | EY14: 0 | EZ14: 0 | FA14: 0 | FB14: 0 | FC14: 0 | FD14: 0 | FE14: 0 | FF14: 0 | FG14: 1 | FH14: 0 | FI14: 0 | FJ14: 0 | FK14: 0 | FL14: 0 | FM14: 0 | FN14: 0 | FO14: 0 | FP14: 0 | FQ14: 0 | FR14: 0 | FS14: 0 | FT14: 0 | FU14: 0 | FV14: 1 | FW14: 0 | FX14: 0 | FY14: 0 | FZ14: 0 | GA14: 0 | GB14: 0 | GC14: 0 | GD14: 0 | GE14: 0 | GF14: 0 | GG14: 0 | GH14: 0 | GI14: 0 | GJ14: 0 | GK14: 0 | GL14: 0 | GM14: 0 | GN14: 0 | GO14: 0 | GP14: 0 | GQ14: 0 | GR14: 0 | GS14: 1 | GT14: 0 | GU14: 0 | GV14: 1 | GW14: 0 | GX14: 0 | GY14: 0 | GZ14: 0 | HA14: 0 | HB14: 0 | HC14: 1 | HD14: 0 | HE14: 0 | HF14: 0 | HG14: 0 | HH14: 0 | HI14: 0 | HJ14: 0 | HK14: 1 | HL14: 1 | HM14: 0 | HN14: 0 | HO14: 0 | HP14: 1 | HQ14: 0 | HR14: 0 | HS14: 0 | HT14: 0 | HU14: 0 | HV14: 0 | HW14: 0 | HX14: 0 | HY14: 0 | HZ14: 0 | IA14: 0 | IB14: 0 | IC14: 0 | ID14: 0 | IE14: 0 | IF14: 0 | IG14: 0 | IH14: 0 | II14: 0 | IJ14: 0 | IK14: 0 | IL14: 0 | IM14: 0 | IN14: 0 | IO14: 0 | IP14: 0 | IQ14: 0 | IR14: 0 | IS14: =SUMPRODUCT(C14:IR14,$C$20:$IR$20)*(1+'Parameters Added'!$B$11) -> 31758
A15: ='1) Project Information'!V20 -> 2024 | B15: 5 | C15: 0 | D15: 0 | E15: 0 | F15: 0 | G15: 0 | H15: 0 | I15: 0 | J15: 0 | K15: 0 | L15: 0 | M15: 0 | N15: 0 | O15: 0 | P15: 0 | Q15: 0 | R15: 0 | S15: 0 | T15: 0 | U15: 0 | V15: 0 | W15: 0 | X15: 0 | Y15: 0 | Z15: 0 | AA15: 0 | AB15: 0 | AC15: 0 | AD15: 0 | AE15: 0 | AF15: 0 | AG15: 0 | AH15: 0 | AI15: 0 | AJ15: 0 | AK15: 0 | AL15: 0 | AM15: 0 | AN15: 0 | AO15: 0 | AP15: 0 | AQ15: 0 | AR15: 0 | AS15: 0 | AT15: 0 | AU15: 0 | AV15: 0 | AW15: 0 | AX15: 0 | AY15: 0 | AZ15: 0 | BA15: 0 | BB15: 0 | BC15: 0 | BD15: 0 | BE15: 0 | BF15: 0 | BG15: 0 | BH15: 0 | BI15: 0 | BJ15: 0 | BK15: 0 | BL15: 0 | BM15: 0 | BN15: 0 | BO15: 0 | BP15: 0 | BQ15: 0 | BR15: 0 | BS15: 0 | BT15: 0 | BU15: 0 | BV15: 0 | BW15: 0 | BX15: 0 | BY15: 0 | BZ15: 0 | CA15: 0 | CB15: 0 | CC15: 0 | CD15: 0 | CE15: 0 | CF15: 0 | CG15: 0 | CH15: 0 | CI15: 0 | CJ15: 0 | CK15: 0 | CL15: 0 | CM15: 0 | CN15: 0 | CO15: 0 | CP15: 0 | CQ15: 0 | CR15: 0 | CS15: 0 | CT15: 0 | CU15: 0 | CV15: 0 | CW15: 0 | CX15: 0 | CY15: 0 | CZ15: 0 | DA15: 0 | DB15: 0 | DC15: 0 | DD15: 0 | DE15: 0 | DF15: 0 | DG15: 0 | DH15: 0 | DI15: 0 | DJ15: 0 | DK15: 0 | DL15: 0 | DM15: 0 | DN15: 0 | DO15: 0 | DP15: 0 | DQ15: 0 | DR15: 0 | DS15: 0 | DT15: 0 | DU15: 0 | DV15: 0 | DW15: 0 | DX15: 0 | DY15: 0 | DZ15: 0 | EA15: 0 | EB15: 0 | EC15: 0 | ED15: 0 | EE15: 0 | EF15: 0 | EG15: 0 | EH15: 0 | EI15: 0 | EJ15: 0 | EK15: 0 | EL15: 0 | EM15: 0 | EN15: 0 | EO15: 0 | EP15: 0 | EQ15: 0 | ER15: 0 | ES15: 0 | ET15: 0 | EU15: 0 | EV15: 0 | EW15: 0 | EX15: 0 | EY15: 0 | EZ15: 0 | FA15: 0 | FB15: 0 | FC15: 0 | FD15: 0 | FE15: 0 | FF15: 0 | FG15: 0 | FH15: 0 | FI15: 0 | FJ15: 0 | FK15: 0 | FL15: 0 | FM15: 0 | FN15: 0 | FO15: 0 | FP15: 0 | FQ15: 0 | FR15: 0 | FS15: 0 | FT15: 0 | FU15: 0 | FV15: 0 | FW15: 0 | FX15: 0 | FY15: 0 | FZ15: 0 | GA15: 0 | GB15: 0 | GC15: 0 | GD15: 0 | GE15: 0 | GF15: 0 | GG15: 0 | GH15: 0 | GI15: 0 | GJ15: 0 | GK15: 0 | GL15: 0 | GM15: 0 | GN15: 0 | GO15: 0 | GP15: 0 | GQ15: 0 | GR15: 0 | GS15: 0 | GT15: 0 | GU15: 0 | GV15: 0 | GW15: 0 | GX15: 0 | GY15: 0 | GZ15: 0 | HA15: 0 | HB15: 0 | HC15: 0 | HD15: 0 | HE15: 0 | HF15: 0 | HG15: 0 | HH15: 0 | HI15: 0 | HJ15: 0 | HK15: 0 | HL15: 0 | HM15: 0 | HN15: 0 | HO15: 0 | HP15: 0 | HQ15: 0 | HR15: 0 | HS15: 0 | HT15: 0 | HU15: 0 | HV15: 0 | HW15: 0 | HX15: 0 | HY15: 0 | HZ15: 0 | IA15: 0 | IB15: 0 | IC15: 0 | ID15: 0 | IE15: 0 | IF15: 0 | IG15: 0 | IH15: 0 | II15: 0 | IJ15: 0 | IK15: 0 | IL15: 0 | IM15: 0 | IN15: 0 | IO15: 0 | IP15: 0 | IQ15: 0 | IR15: 0 | IS15: =SUMPRODUCT(C15:IR15,$C$20:$IR$20)*(1+'Parameters Added'!$B$11) -> 0
A16: ='1) Project Information'!V21 -> 2025 | B16: 6 | C16: 0 | D16: 0 | E16: 0 | F16: 0 | G16: 0 | H16: 0 | I16: 0 | J16: 0 | K16: 0 | L16: 0 | M16: 0 | N16: 0 | O16: 0 | P16: 0 | Q16: 0 | R16: 0 | S16: 0 | T16: 0 | U16: 0 | V16: 0 | W16: 0 | X16: 0 | Y16: 0 | Z16: 0 | AA16: 0 | AB16: 0 | AC16: 0 | AD16: 0 | AE16: 0 | AF16: 0 | AG16: 0 | AH16: 0 | AI16: 0 | AJ16: 0 | AK16: 0 | AL16: 0 | AM16: 0 | AN16: 0 | AO16: 0 | AP16: 0 | AQ16: 0 | AR16: 0 | AS16: 0 | AT16: 0 | AU16: 0 | AV16: 0 | AW16: 0 | AX16: 0 | AY16: 0 | AZ16: 0 | BA16: 0 | BB16: 0 | BC16: 0 | BD16: 0 | BE16: 0 | BF16: 0 | BG16: 0 | BH16: 0 | BI16: 0 | BJ16: 0 | BK16: 0 | BL16: 0 | BM16: 0 | BN16: 0 | BO16: 0 | BP16: 0 | BQ16: 0 | BR16: 0 | BS16: 0 | BT16: 0 | BU16: 0 | BV16: 0 | BW16: 0 | BX16: 0 | BY16: 0 | BZ16: 0 | CA16: 0 | CB16: 0 | CC16: 0 | CD16: 0 | CE16: 0 | CF16: 0 | CG16: 0 | CH16: 0 | CI16: 0 | CJ16: 0 | CK16: 0 | CL16: 0 | CM16: 0 | CN16: 0 | CO16: 0 | CP16: 0 | CQ16: 0 | CR16: 0 | CS16: 0 | CT16: 0 | CU16: 0 | CV16: 0 | CW16: 0 | CX16: 0 | CY16: 0 | CZ16: 0 | DA16: 0 | DB16: 0 | DC16: 0 | DD16: 0 | DE16: 0 | DF16: 0 | DG16: 0 | DH16: 0 | DI16: 0 | DJ16: 0 | DK16: 0 | DL16: 0 | DM16: 0 | DN16: 0 | DO16: 0 | DP16: 0 | DQ16: 0 | DR16: 0 | DS16: 0 | DT16: 0 | DU16: 0 | DV16: 0 | DW16: 0 | DX16: 0 | DY16: 0 | DZ16: 0 | EA16: 0 | EB16: 0 | EC16: 0 | ED16: 0 | EE16: 0 | EF16: 0 | EG16: 0 | EH16: 0 | EI16: 0 | EJ16: 0 | EK16: 0 | EL16: 0 | EM16: 0 | EN16: 0 | EO16: 0 | EP16: 0 | EQ16: 0 | ER16: 0 | ES16: 0 | ET16: 0 | EU16: 0 | EV16: 0 | EW16: 0 | EX16: 0 | EY16: 0 | EZ16: 0 | FA16: 0 | FB16: 0 | FC16: 0 | FD16: 0 | FE16: 0 | FF16: 0 | FG16: 0 | FH16: 0 | FI16: 0 | FJ16: 0 | FK16: 0 | FL16: 0 | FM16: 0 | FN16: 0 | FO16: 0 | FP16: 0 | FQ16: 0 | FR16: 0 | FS16: 0 | FT16: 0 | FU16: 0 | FV16: 0 | FW16: 0 | FX16: 0 | FY16: 0 | FZ16: 0 | GA16: 0 | GB16: 0 | GC16: 0 | GD16: 0 | GE16: 0 | GF16: 0 | GG16: 0 | GH16: 0 | GI16: 0 | GJ16: 0 | GK16: 0 | GL16: 0 | GM16: 0 | GN16: 0 | GO16: 0 | GP16: 0 | GQ16: 0 | GR16: 0 | GS16: 0 | GT16: 0 | GU16: 0 | GV16: 0 | GW16: 0 | GX16: 0 | GY16: 0 | GZ16: 0 | HA16: 0 | HB16: 0 | HC16: 0 | HD16: 0 | HE16: 0 | HF16: 0 | HG16: 0 | HH16: 0 | HI16: 0 | HJ16: 0 | HK16: 0 | HL16: 0 | HM16: 0 | HN16: 0 | HO16: 0 | HP16: 0 | HQ16: 0 | HR16: 0 | HS16: 0 | HT16: 0 | HU16: 0 | HV16: 0 | HW16: 0 | HX16: 0 | HY16: 0 | HZ16: 0 | IA16: 0 | IB16: 0 | IC16: 0 | ID16: 0 | IE16: 0 | IF16: 0 | IG16: 0 | IH16: 0 | II16: 0 | IJ16: 0 | IK16: 0 | IL16: 0 | IM16: 0 | IN16: 0 | IO16: 0 | IP16: 0 | IQ16: 0 | IR16: 0 | IS16: =SUMPRODUCT(C16:IR16,$C$20:$IR$20)*(1+'Parameters Added'!$B$11) -> 0
A17: ='1) Project Information'!V22 -> 2026 | B17: 7 | C17: 0 | D17: 0 | E17: 0 | F17: 0 | G17: 0 | H17: 0 | I17: 0 | J17: 0 | K17: 0 | L17: 0 | M17: 0 | N17: 0 | O17: 0 | P17: 0 | Q17: 0 | R17: 0 | S17: 0 | T17: 0 | U17: 0 | V17: 0 | W17: 0 | X17: 0 | Y17: 0 | Z17: 0 | AA17: 0 | AB17: 0 | AC17: 0 | AD17: 0 | AE17: 0 | AF17: 0 | AG17: 0 | AH17: 0 | AI17: 0 | AJ17: 0 | AK17: 0 | AL17: 0 | AM17: 0 | AN17: 0 | AO17: 0 | AP17: 0 | AQ17: 0 | AR17: 0 | AS17: 0 | AT17: 0 | AU17: 0 | AV17: 0 | AW17: 0 | AX17: 0 | AY17: 0 | AZ17: 0 | BA17: 0 | BB17: 0 | BC17: 0 | BD17: 0 | BE17: 0 | BF17: 0 | BG17: 0 | BH17: 0 | BI17: 0 | BJ17: 0 | BK17: 0 | BL17: 0 | BM17: 0 | BN17: 0 | BO17: 0 | BP17: 0 | BQ17: 0 | BR17: 0 | BS17: 0 | BT17: 0 | BU17: 0 | BV17: 0 | BW17: 0 | BX17: 0 | BY17: 0 | BZ17: 0 | CA17: 0 | CB17: 0 | CC17: 0 | CD17: 0 | CE17: 0 | CF17: 0 | CG17: 0 | CH17: 0 | CI17: 0 | CJ17: 0 | CK17: 0 | CL17: 0 | CM17: 0 | CN17: 0 | CO17: 0 | CP17: 0 | CQ17: 0 | CR17: 0 | CS17: 0 | CT17: 0 | CU17: 0 | CV17: 0 | CW17: 0 | CX17: 0 | CY17: 0 | CZ17: 0 | DA17: 0 | DB17: 0 | DC17: 0 | DD17: 0 | DE17: 0 | DF17: 0 | DG17: 0 | DH17: 0 | DI17: 0 | DJ17: 0 | DK17: 0 | DL17: 0 | DM17: 0 | DN17: 0 | DO17: 0 | DP17: 0 | DQ17: 0 | DR17: 0 | DS17: 0 | DT17: 0 | DU17: 0 | DV17: 0 | DW17: 0 | DX17: 0 | DY17: 0 | DZ17: 0 | EA17: 0 | EB17: 0 | EC17: 0 | ED17: 0 | EE17: 0 | EF17: 0 | EG17: 0 | EH17: 0 | EI17: 0 | EJ17: 0 | EK17: 0 | EL17: 0 | EM17: 0 | EN17: 0 | EO17: 0 | EP17: 0 | EQ17: 0 | ER17: 0 | ES17: 0 | ET17: 0 | EU17: 0 | EV17: 0 | EW17: 0 | EX17: 0 | EY17: 0 | EZ17: 0 | FA17: 0 | FB17: 0 | FC17: 0 | FD17: 0 | FE17: 0 | FF17: 0 | FG17: 0 | FH17: 0 | FI17: 0 | FJ17: 0 | FK17: 0 | FL17: 0 | FM17: 0 | FN17: 0 | FO17: 0 | FP17: 0 | FQ17: 0 | FR17: 0 | FS17: 0 | FT17: 0 | FU17: 0 | FV17: 0 | FW17: 0 | FX17: 0 | FY17: 0 | FZ17: 0 | GA17: 0 | GB17: 0 | GC17: 0 | GD17: 0 | GE17: 0 | GF17: 0 | GG17: 0 | GH17: 0 | GI17: 0 | GJ17: 0 | GK17: 0 | GL17: 0 | GM17: 0 | GN17: 0 | GO17: 0 | GP17: 0 | GQ17: 0 | GR17: 0 | GS17: 0 | GT17: 0 | GU17: 0 | GV17: 0 | GW17: 0 | GX17: 0 | GY17: 0 | GZ17: 0 | HA17: 0 | HB17: 0 | HC17: 0 | HD17: 0 | HE17: 0 | HF17: 0 | HG17: 0 | HH17: 0 | HI17: 0 | HJ17: 0 | HK17: 0 | HL17: 0 | HM17: 0 | HN17: 0 | HO17: 0 | HP17: 0 | HQ17: 0 | HR17: 0 | HS17: 0 | HT17: 0 | HU17: 0 | HV17: 0 | HW17: 0 | HX17: 0 | HY17: 0 | HZ17: 0 | IA17: 0 | IB17: 0 | IC17: 0 | ID17: 0 | IE17: 0 | IF17: 0 | IG17: 0 | IH17: 0 | II17: 0 | IJ17: 0 | IK17: 0 | IL17: 0 | IM17: 0 | IN17: 0 | IO17: 0 | IP17: 0 | IQ17: 0 | IR17: 0 | IS17: =SUMPRODUCT(C17:IR17,$C$20:$IR$20)*(1+'Parameters Added'!$B$11) -> 0
A18: ='1) Project Information'!V23 -> Project Open | B18: 8 | C18: 0 | D18: 0 | E18: 0 | F18: 0 | G18: 0 | H18: 0 | I18: 0 | J18: 0 | K18: 0 | L18: 0 | M18: 0 | N18: 0 | O18: 0 | P18: 0 | Q18: 0 | R18: 0 | S18: 0 | T18: 0 | U18: 0 | V18: 0 | W18: 0 | X18: 0 | Y18: 0 | Z18: 0 | AA18: 0 | AB18: 0 | AC18: 0 | AD18: 0 | AE18: 0 | AF18: 0 | AG18: 0 | AH18: 0 | AI18: 0 | AJ18: 0 | AK18: 0 | AL18: 0 | AM18: 0 | AN18: 0 | AO18: 0 | AP18: 0 | AQ18: 0 | AR18: 0 | AS18: 0 | AT18: 0 | AU18: 0 | AV18: 0 | AW18: 0 | AX18: 0 | AY18: 0 | AZ18: 0 | BA18: 0 | BB18: 0 | BC18: 0 | BD18: 0 | BE18: 0 | BF18: 0 | BG18: 0 | BH18: 0 | BI18: 0 | BJ18: 0 | BK18: 0 | BL18: 0 | BM18: 0 | BN18: 0 | BO18: 0 | BP18: 0 | BQ18: 0 | BR18: 0 | BS18: 0 | BT18: 0 | BU18: 0 | BV18: 0 | BW18: 0 | BX18: 0 | BY18: 0 | BZ18: 0 | CA18: 0 | CB18: 0 | CC18: 0 | CD18: 0 | CE18: 0 | CF18: 0 | CG18: 0 | CH18: 0 | CI18: 0 | CJ18: 0 | CK18: 0 | CL18: 0 | CM18: 0 | CN18: 0 | CO18: 0 | CP18: 0 | CQ18: 0 | CR18: 0 | CS18: 0 | CT18: 0 | CU18: 0 | CV18: 0 | CW18: 0 | CX18: 0 | CY18: 0 | CZ18: 0 | DA18: 0 | DB18: 0 | DC18: 0 | DD18: 0 | DE18: 0 | DF18: 0 | DG18: 0 | DH18: 0 | DI18: 0 | DJ18: 0 | DK18: 0 | DL18: 0 | DM18: 0 | DN18: 0 | DO18: 0 | DP18: 0 | DQ18: 0 | DR18: 0 | DS18: 0 | DT18: 0 | DU18: 0 | DV18: 0 | DW18: 0 | DX18: 0 | DY18: 0 | DZ18: 0 | EA18: 0 | EB18: 0 | EC18: 0 | ED18: 0 | EE18: 0 | EF18: 0 | EG18: 0 | EH18: 0 | EI18: 0 | EJ18: 0 | EK18: 0 | EL18: 0 | EM18: 0 | EN18: 0 | EO18: 0 | EP18: 0 | EQ18: 0 | ER18: 0 | ES18: 0 | ET18: 0 | EU18: 0 | EV18: 0 | EW18: 0 | EX18: 0 | EY18: 0 | EZ18: 0 | FA18: 0 | FB18: 0 | FC18: 0 | FD18: 0 | FE18: 0 | FF18: 0 | FG18: 0 | FH18: 0 | FI18: 0 | FJ18: 0 | FK18: 0 | FL18: 0 | FM18: 0 | FN18: 0 | FO18: 0 | FP18: 0 | FQ18: 0 | FR18: 0 | FS18: 0 | FT18: 0 | FU18: 0 | FV18: 0 | FW18: 0 | FX18: 0 | FY18: 0 | FZ18: 0 | GA18: 0 | GB18: 0 | GC18: 0 | GD18: 0 | GE18: 0 | GF18: 0 | GG18: 0 | GH18: 0 | GI18: 0 | GJ18: 0 | GK18: 0 | GL18: 0 | GM18: 0 | GN18: 0 | GO18: 0 | GP18: 0 | GQ18: 0 | GR18: 0 | GS18: 0 | GT18: 0 | GU18: 0 | GV18: 0 | GW18: 0 | GX18: 0 | GY18: 0 | GZ18: 0 | HA18: 0 | HB18: 0 | HC18: 0 | HD18: 0 | HE18: 0 | HF18: 0 | HG18: 0 | HH18: 0 | HI18: 0 | HJ18: 0 | HK18: 0 | HL18: 0 | HM18: 0 | HN18: 0 | HO18: 0 | HP18: 0 | HQ18: 0 | HR18: 0 | HS18: 0 | HT18: 0 | HU18: 0 | HV18: 0 | HW18: 0 | HX18: 0 | HY18: 0 | HZ18: 0 | IA18: 0 | IB18: 0 | IC18: 0 | ID18: 0 | IE18: 0 | IF18: 0 | IG18: 0 | IH18: 0 | II18: 0 | IJ18: 0 | IK18: 0 | IL18: 0 | IM18: 0 | IN18: 0 | IO18: 0 | IP18: 0 | IQ18: 0 | IR18: 0 | IS18: =SUMPRODUCT(C18:IR18,$C$20:$IR$20)*(1+'Parameters Added'!$B$11) -> 0
A20: Construction Cost ($1000) | C20: =INDEX('Bridge Data'!$BE$4:$BE$253,'Bridge Data Matrices'!C$9)/1000/C$6 -> 340 | D20: =INDEX('Bridge Data'!$BE$4:$BE$253,'Bridge Data Matrices'!D$9)/1000/D$6 -> 1909 | E20: =INDEX('Bridge Data'!$BE$4:$BE$253,'Bridge Data Matrices'!E$9)/1000/E$6 -> 449 | F20: =INDEX('Bridge Data'!$BE$4:$BE$253,'Bridge Data Matrices'!F$9)/1000/F$6 -> 596 | G20: =INDEX('Bridge Data'!$BE$4:$BE$253,'Bridge Data Matrices'!G$9)/1000/G$6 -> 354 | H20: =INDEX('Bridge Data'!$BE$4:$BE$253,'Bridge Data Matrices'!H$9)/1000/H$6 -> 844.7014925 | I20: =INDEX('Bridge Data'!$BE$4:$BE$253,'Bridge Data Matrices'!I$9)/1000/I$6 -> 772.2985075 | J20: =INDEX('Bridge Data'!$BE$4:$BE$253,'Bridge Data Matrices'!J$9)/1000/J$6 -> 779 | K20: =INDEX('Bridge Data'!$BE$4:$BE$253,'Bridge Data Matrices'!K$9)/1000/K$6 -> 1175 | L20: =INDEX('Bridge Data'!$BE$4:$BE$253,'Bridge Data Matrices'!L$9)/1000/L$6 -> 762 | M20: =INDEX('Bridge Data'!$BE$4:$BE$253,'Bridge Data Matrices'!M$9)/1000/M$6 -> 593 | N20: =INDEX('Bridge Data'!$BE$4:$BE$253,'Bridge Data Matrices'!N$9)/1000/N$6 -> 1128 | O20: =INDEX('Bridge Data'!$BE$4:$BE$253,'Bridge Data Matrices'!O$9)/1000/O$6 -> 570 | P20: =INDEX('Bridge Data'!$BE$4:$BE$253,'Bridge Data Matrices'!P$9)/1000/P$6 -> 1140 | Q20: =INDEX('Bridge Data'!$BE$4:$BE$253,'Bridge Data Matrices'!Q$9)/1000/Q$6 -> 2028 | R20: =INDEX('Bridge Data'!$BE$4:$BE$253,'Bridge Data Matrices'!R$9)/1000/R$6 -> 2028 | S20: =INDEX('Bridge Data'!$BE$4:$BE$253,'Bridge Data Matrices'!S$9)/1000/S$6 -> 590 | T20: =INDEX('Bridge Data'!$BE$4:$BE$253,'Bridge Data Matrices'!T$9)/1000/T$6 -> 590 | U20: =INDEX('Bridge Data'!$BE$4:$BE$253,'Bridge Data Matrices'!U$9)/1000/U$6 -> 36.53976408 | V20: =INDEX('Bridge Data'!$BE$4:$BE$253,'Bridge Data Matrices'!V$9)/1000/V$6 -> 904 | W20: =INDEX('Bridge Data'!$BE$4:$BE$253,'Bridge Data Matrices'!W$9)/1000/W$6 -> 981 | X20: =INDEX('Bridge Data'!$BE$4:$BE$253,'Bridge Data Matrices'!X$9)/1000/X$6 -> 495 | Y20: =INDEX('Bridge Data'!$BE$4:$BE$253,'Bridge Data Matrices'!Y$9)/1000/Y$6 -> 699 | Z20: =INDEX('Bridge Data'!$BE$4:$BE$253,'Bridge Data Matrices'!Z$9)/1000/Z$6 -> 615 | AA20: =INDEX('Bridge Data'!$BE$4:$BE$253,'Bridge Data Matrices'!AA$9)/1000/AA$6 -> 627 | AB20: =INDEX('Bridge Data'!$BE$4:$BE$253,'Bridge Data Matrices'!AB$9)/1000/AB$6 -> 1633.421456 | AC20: =INDEX('Bridge Data'!$BE$4:$BE$253,'Bridge Data Matrices'!AC$9)/1000/AC$6 -> 1142.773946 | AD20: =INDEX('Bridge Data'!$BE$4:$BE$253,'Bridge Data Matrices'!AD$9)/1000/AD$6 -> 844 | AE20: =INDEX('Bridge Data'!$BE$4:$BE$253,'Bridge Data Matrices'!AE$9)/1000/AE$6 -> 160.3951338 | AF20: =INDEX('Bridge Data'!$BE$4:$BE$253,'Bridge Data Matrices'!AF$9)/1000/AF$6 -> 56.37606328 | AG20: =INDEX('Bridge Data'!$BE$4:$BE$253,'Bridge Data Matrices'!AG$9)/1000/AG$6 -> 596.6890388 | AH20: =INDEX('Bridge Data'!$BE$4:$BE$253,'Bridge Data Matrices'!AH$9)/1000/AH$6 -> 2582 | AI20: =INDEX('Bridge Data'!$BE$4:$BE$253,'Bridge Data Matrices'!AI$9)/1000/AI$6 -> 233 | AJ20: =INDEX('Bridge Data'!$BE$4:$BE$253,'Bridge Data Matrices'!AJ$9)/1000/AJ$6 -> 998 | AK20: =INDEX('Bridge Data'!$BE$4:$BE$253,'Bridge Data Matrices'!AK$9)/1000/AK$6 -> 844 | AL20: =INDEX('Bridge Data'!$BE$4:$BE$253,'Bridge Data Matrices'!AL$9)/1000/AL$6 -> 2129 | AM20: =INDEX('Bridge Data'!$BE$4:$BE$253,'Bridge Data Matrices'!AM$9)/1000/AM$6 -> 579 | AN20: =INDEX('Bridge Data'!$BE$4:$BE$253,'Bridge Data Matrices'!AN$9)/1000/AN$6 -> 1326 | AO20: =INDEX('Bridge Data'!$BE$4:$BE$253,'Bridge Data Matrices'!AO$9)/1000/AO$6 -> 4561 | AP20: =INDEX('Bridge Data'!$BE$4:$BE$253,'Bridge Data Matrices'!AP$9)/1000/AP$6 -> 643.8157895 | AQ20: =INDEX('Bridge Data'!$BE$4:$BE$253,'Bridge Data Matrices'!AQ$9)/1000/AQ$6 -> 754.1842105 | AR20: =INDEX('Bridge Data'!$BE$4:$BE$253,'Bridge Data Matrices'!AR$9)/1000/AR$6 -> 1007 | AS20: =INDEX('Bridge Data'!$BE$4:$BE$253,'Bridge Data Matrices'!AS$9)/1000/AS$6 -> 997 | AT20: =INDEX('Bridge Data'!$BE$4:$BE$253,'Bridge Data Matrices'!AT$9)/1000/AT$6 -> 2750.740324 | AU20: =INDEX('Bridge Data'!$BE$4:$BE$253,'Bridge Data Matrices'!AU$9)/1000/AU$6 -> 1563.259676 | AV20: =INDEX('Bridge Data'!$BE$4:$BE$253,'Bridge Data Matrices'!AV$9)/1000/AV$6 -> 718 | AW20: =INDEX('Bridge Data'!$BE$4:$BE$253,'Bridge Data Matrices'!AW$9)/1000/AW$6 -> 2223 | AX20: =INDEX('Bridge Data'!$BE$4:$BE$253,'Bridge Data Matrices'!AX$9)/1000/AX$6 -> 3115 | AY20: =INDEX('Bridge Data'!$BE$4:$BE$253,'Bridge Data Matrices'!AY$9)/1000/AY$6 -> 693 | AZ20: =INDEX('Bridge Data'!$BE$4:$BE$253,'Bridge Data Matrices'!AZ$9)/1000/AZ$6 -> 2517 | BA20: =INDEX('Bridge Data'!$BE$4:$BE$253,'Bridge Data Matrices'!BA$9)/1000/BA$6 -> 2003.901408 | BB20: =INDEX('Bridge Data'!$BE$4:$BE$253,'Bridge Data Matrices'!BB$9)/1000/BB$6 -> 1894.098592 | BC20: =INDEX('Bridge Data'!$BE$4:$BE$253,'Bridge Data Matrices'!BC$9)/1000/BC$6 -> 866 | BD20: =INDEX('Bridge Data'!$BE$4:$BE$253,'Bridge Data Matrices'!BD$9)/1000/BD$6 -> 859 | BE20: =INDEX('Bridge Data'!$BE$4:$BE$253,'Bridge Data Matrices'!BE$9)/1000/BE$6 -> 275 | BF20: =INDEX('Bridge Data'!$BE$4:$BE$253,'Bridge Data Matrices'!BF$9)/1000/BF$6 -> 801 | BG20: =INDEX('Bridge Data'!$BE$4:$BE$253,'Bridge Data Matrices'!BG$9)/1000/BG$6 -> 2590 | BH20: =INDEX('Bridge Data'!$BE$4:$BE$253,'Bridge Data Matrices'!BH$9)/1000/BH$6 -> 2984.385409 | BI20: =INDEX('Bridge Data'!$BE$4:$BE$253,'Bridge Data Matrices'!BI$9)/1000/BI$6 -> 1182.063704 | BJ20: =INDEX('Bridge Data'!$BE$4:$BE$253,'Bridge Data Matrices'!BJ$9)/1000/BJ$6 -> 1468.624602 | BK20: =INDEX('Bridge Data'!$BE$4:$BE$253,'Bridge Data Matrices'!BK$9)/1000/BK$6 -> 2005.926285 | BL20: =INDEX('Bridge Data'!$BE$4:$BE$253,'Bridge Data Matrices'!BL$9)/1000/BL$6 -> 736 | BM20: =INDEX('Bridge Data'!$BE$4:$BE$253,'Bridge Data Matrices'!BM$9)/1000/BM$6 -> 942 | BN20: =INDEX('Bridge Data'!$BE$4:$BE$253,'Bridge Data Matrices'!BN$9)/1000/BN$6 -> 1185 | BO20: =INDEX('Bridge Data'!$BE$4:$BE$253,'Bridge Data Matrices'!BO$9)/1000/BO$6 -> 884 | BP20: =INDEX('Bridge Data'!$BE$4:$BE$253,'Bridge Data Matrices'!BP$9)/1000/BP$6 -> 758 | BQ20: =INDEX('Bridge Data'!$BE$4:$BE$253,'Bridge Data Matrices'!BQ$9)/1000/BQ$6 -> 2321 | BR20: =INDEX('Bridge Data'!$BE$4:$BE$253,'Bridge Data Matrices'!BR$9)/1000/BR$6 -> 773 | BS20: =INDEX('Bridge Data'!$BE$4:$BE$253,'Bridge Data Matrices'!BS$9)/1000/BS$6 -> 2624 | BT20: =INDEX('Bridge Data'!$BE$4:$BE$253,'Bridge Data Matrices'!BT$9)/1000/BT$6 -> 301 | BU20: =INDEX('Bridge Data'!$BE$4:$BE$253,'Bridge Data Matrices'!BU$9)/1000/BU$6 -> 784 | BV20: =INDEX('Bridge Data'!$BE$4:$BE$253,'Bridge Data Matrices'!BV$9)/1000/BV$6 -> 895 | BW20: =INDEX('Bridge Data'!$BE$4:$BE$253,'Bridge Data Matrices'!BW$9)/1000/BW$6 -> 438 | BX20: =INDEX('Bridge Data'!$BE$4:$BE$253,'Bridge Data Matrices'!BX$9)/1000/BX$6 -> 1173 | BY20: =INDEX('Bridge Data'!$BE$4:$BE$253,'Bridge Data Matrices'!BY$9)/1000/BY$6 -> 2308 | BZ20: =INDEX('Bridge Data'!$BE$4:$BE$253,'Bridge Data Matrices'!BZ$9)/1000/BZ$6 -> 643 | CA20: =INDEX('Bridge Data'!$BE$4:$BE$253,'Bridge Data Matrices'!CA$9)/1000/CA$6 -> 1079 | CB20: =INDEX('Bridge Data'!$BE$4:$BE$253,'Bridge Data Matrices'!CB$9)/1000/CB$6 -> 1416 | CC20: =INDEX('Bridge Data'!$BE$4:$BE$253,'Bridge Data Matrices'!CC$9)/1000/CC$6 -> 1184 | CD20: =INDEX('Bridge Data'!$BE$4:$BE$253,'Bridge Data Matrices'!CD$9)/1000/CD$6 -> 1296 | CE20: =INDEX('Bridge Data'!$BE$4:$BE$253,'Bridge Data Matrices'!CE$9)/1000/CE$6 -> 813 | CF20: =INDEX('Bridge Data'!$BE$4:$BE$253,'Bridge Data Matrices'!CF$9)/1000/CF$6 -> 550 | CG20: =INDEX('Bridge Data'!$BE$4:$BE$253,'Bridge Data Matrices'!CG$9)/1000/CG$6 -> 893 | CH20: =INDEX('Bridge Data'!$BE$4:$BE$253,'Bridge Data Matrices'!CH$9)/1000/CH$6 -> 2178 | CI20: =INDEX('Bridge Data'!$BE$4:$BE$253,'Bridge Data Matrices'!CI$9)/1000/CI$6 -> 1864 | CJ20: =INDEX('Bridge Data'!$BE$4:$BE$253,'Bridge Data Matrices'!CJ$9)/1000/CJ$6 -> 553 | CK20: =INDEX('Bridge Data'!$BE$4:$BE$253,'Bridge Data Matrices'!CK$9)/1000/CK$6 -> 1050 | CL20: =INDEX('Bridge Data'!$BE$4:$BE$253,'Bridge Data Matrices'!CL$9)/1000/CL$6 -> 145 | CM20: =INDEX('Bridge Data'!$BE$4:$BE$253,'Bridge Data Matrices'!CM$9)/1000/CM$6 -> 1640 | CN20: =INDEX('Bridge Data'!$BE$4:$BE$253,'Bridge Data Matrices'!CN$9)/1000/CN$6 -> 1133 | CO20: =INDEX('Bridge Data'!$BE$4:$BE$253,'Bridge Data Matrices'!CO$9)/1000/CO$6 -> 634 | CP20: =INDEX('Bridge Data'!$BE$4:$BE$253,'Bridge Data Matrices'!CP$9)/1000/CP$6 -> 808 | CQ20: =INDEX('Bridge Data'!$BE$4:$BE$253,'Bridge Data Matrices'!CQ$9)/1000/CQ$6 -> 907 | CR20: =INDEX('Bridge Data'!$BE$4:$BE$253,'Bridge Data Matrices'!CR$9)/1000/CR$6 -> 1647 | CS20: =INDEX('Bridge Data'!$BE$4:$BE$253,'Bridge Data Matrices'!CS$9)/1000/CS$6 -> 684.5254041 | CT20: =INDEX('Bridge Data'!$BE$4:$BE$253,'Bridge Data Matrices'!CT$9)/1000/CT$6 -> 684.5254041 | CU20: =INDEX('Bridge Data'!$BE$4:$BE$253,'Bridge Data Matrices'!CU$9)/1000/CU$6 -> 1478.974596 | CV20: =INDEX('Bridge Data'!$BE$4:$BE$253,'Bridge Data Matrices'!CV$9)/1000/CV$6 -> 1478.974596 | CW20: =INDEX('Bridge Data'!$BE$4:$BE$253,'Bridge Data Matrices'!CW$9)/1000/CW$6 -> 2097 | CX20: =INDEX('Bridge Data'!$BE$4:$BE$253,'Bridge Data Matrices'!CX$9)/1000/CX$6 -> 2072.498644 | CY20: =INDEX('Bridge Data'!$BE$4:$BE$253,'Bridge Data Matrices'!CY$9)/1000/CY$6 -> 2072.498644 | CZ20: =INDEX('Bridge Data'!$BE$4:$BE$253,'Bridge Data Matrices'!CZ$9)/1000/CZ$6 -> 295.0027126 | DA20: =INDEX('Bridge Data'!$BE$4:$BE$253,'Bridge Data Matrices'!DA$9)/1000/DA$6 -> 378 | DB20: =INDEX('Bridge Data'!$BE$4:$BE$253,'Bridge Data Matrices'!DB$9)/1000/DB$6 -> 1093 | DC20: =INDEX('Bridge Data'!$BE$4:$BE$253,'Bridge Data Matrices'!DC$9)/1000/DC$6 -> 721 | DD20: =INDEX('Bridge Data'!$BE$4:$BE$253,'Bridge Data Matrices'!DD$9)/1000/DD$6 -> 1100 | DE20: =INDEX('Bridge Data'!$BE$4:$BE$253,'Bridge Data Matrices'!DE$9)/1000/DE$6 -> 1015 | DF20: =INDEX('Bridge Data'!$BE$4:$BE$253,'Bridge Data Matrices'!DF$9)/1000/DF$6 -> 3050 | DG20: =INDEX('Bridge Data'!$BE$4:$BE$253,'Bridge Data Matrices'!DG$9)/1000/DG$6 -> 802 | DH20: =INDEX('Bridge Data'!$BE$4:$BE$253,'Bridge Data Matrices'!DH$9)/1000/DH$6 -> 1064 | DI20: =INDEX('Bridge Data'!$BE$4:$BE$253,'Bridge Data Matrices'!DI$9)/1000/DI$6 -> 2469.5 | DJ20: =INDEX('Bridge Data'!$BE$4:$BE$253,'Bridge Data Matrices'!DJ$9)/1000/DJ$6 -> 2469.5 | DK20: =INDEX('Bridge Data'!$BE$4:$BE$253,'Bridge Data Matrices'!DK$9)/1000/DK$6 -> 1372 | DL20: =INDEX('Bridge Data'!$BE$4:$BE$253,'Bridge Data Matrices'!DL$9)/1000/DL$6 -> 3409 | DM20: =INDEX('Bridge Data'!$BE$4:$BE$253,'Bridge Data Matrices'!DM$9)/1000/DM$6 -> 742 | DN20: =INDEX('Bridge Data'!$BE$4:$BE$253,'Bridge Data Matrices'!DN$9)/1000/DN$6 -> 1236 | DO20: =INDEX('Bridge Data'!$BE$4:$BE$253,'Bridge Data Matrices'!DO$9)/1000/DO$6 -> 1492 | DP20: =INDEX('Bridge Data'!$BE$4:$BE$253,'Bridge Data Matrices'!DP$9)/1000/DP$6 -> 3419 | DQ20: =INDEX('Bridge Data'!$BE$4:$BE$253,'Bridge Data Matrices'!DQ$9)/1000/DQ$6 -> 2888.427793 | DR20: =INDEX('Bridge Data'!$BE$4:$BE$253,'Bridge Data Matrices'!DR$9)/1000/DR$6 -> 3100.572207 | DS20: =INDEX('Bridge Data'!$BE$4:$BE$253,'Bridge Data Matrices'!DS$9)/1000/DS$6 -> 802 | DT20: =INDEX('Bridge Data'!$BE$4:$BE$253,'Bridge Data Matrices'!DT$9)/1000/DT$6 -> 1614 | DU20: =INDEX('Bridge Data'!$BE$4:$BE$253,'Bridge Data Matrices'!DU$9)/1000/DU$6 -> 1009 | DV20: =INDEX('Bridge Data'!$BE$4:$BE$253,'Bridge Data Matrices'!DV$9)/1000/DV$6 -> 1410 | DW20: =INDEX('Bridge Data'!$BE$4:$BE$253,'Bridge Data Matrices'!DW$9)/1000/DW$6 -> 467 | DX20: =INDEX('Bridge Data'!$BE$4:$BE$253,'Bridge Data Matrices'!DX$9)/1000/DX$6 -> 609.1410775 | DY20: =INDEX('Bridge Data'!$BE$4:$BE$253,'Bridge Data Matrices'!DY$9)/1000/DY$6 -> 758.8589225 | DZ20: =INDEX('Bridge Data'!$BE$4:$BE$253,'Bridge Data Matrices'!DZ$9)/1000/DZ$6 -> 2173 | EA20: =INDEX('Bridge Data'!$BE$4:$BE$253,'Bridge Data Matrices'!EA$9)/1000/EA$6 -> 3220 | EB20: =INDEX('Bridge Data'!$BE$4:$BE$253,'Bridge Data Matrices'!EB$9)/1000/EB$6 -> 777 | EC20: =INDEX('Bridge Data'!$BE$4:$BE$253,'Bridge Data Matrices'!EC$9)/1000/EC$6 -> 857 | ED20: =INDEX('Bridge Data'!$BE$4:$BE$253,'Bridge Data Matrices'!ED$9)/1000/ED$6 -> 991 | EE20: =INDEX('Bridge Data'!$BE$4:$BE$253,'Bridge Data Matrices'!EE$9)/1000/EE$6 -> 833 | EF20: =INDEX('Bridge Data'!$BE$4:$BE$253,'Bridge Data Matrices'!EF$9)/1000/EF$6 -> 545 | EG20: =INDEX('Bridge Data'!$BE$4:$BE$253,'Bridge Data Matrices'!EG$9)/1000/EG$6 -> 1149 | EH20: =INDEX('Bridge Data'!$BE$4:$BE$253,'Bridge Data Matrices'!EH$9)/1000/EH$6 -> 4839 | EI20: =INDEX('Bridge Data'!$BE$4:$BE$253,'Bridge Data Matrices'!EI$9)/1000/EI$6 -> 469 | EJ20: =INDEX('Bridge Data'!$BE$4:$BE$253,'Bridge Data Matrices'!EJ$9)/1000/EJ$6 -> 1347 | EK20: =INDEX('Bridge Data'!$BE$4:$BE$253,'Bridge Data Matrices'!EK$9)/1000/EK$6 -> 705 | EL20: =INDEX('Bridge Data'!$BE$4:$BE$253,'Bridge Data Matrices'!EL$9)/1000/EL$6 -> 1753 | EM20: =INDEX('Bridge Data'!$BE$4:$BE$253,'Bridge Data Matrices'!EM$9)/1000/EM$6 -> 1556 | EN20: =INDEX('Bridge Data'!$BE$4:$BE$253,'Bridge Data Matrices'!EN$9)/1000/EN$6 -> 772 | EO20: =INDEX('Bridge Data'!$BE$4:$BE$253,'Bridge Data Matrices'!EO$9)/1000/EO$6 -> 444 | EP20: =INDEX('Bridge Data'!$BE$4:$BE$253,'Bridge Data Matrices'!EP$9)/1000/EP$6 -> 344 | EQ20: =INDEX('Bridge Data'!$BE$4:$BE$253,'Bridge Data Matrices'!EQ$9)/1000/EQ$6 -> 697.989418 | ER20: =INDEX('Bridge Data'!$BE$4:$BE$253,'Bridge Data Matrices'!ER$9)/1000/ER$6 -> 662.010582 | ES20: =INDEX('Bridge Data'!$BE$4:$BE$253,'Bridge Data Matrices'!ES$9)/1000/ES$6 -> 1306 | ET20: =INDEX('Bridge Data'!$BE$4:$BE$253,'Bridge Data Matrices'!ET$9)/1000/ET$6 -> 394 | EU20: =INDEX('Bridge Data'!$BE$4:$BE$253,'Bridge Data Matrices'!EU$9)/1000/EU$6 -> 481 | EV20: =INDEX('Bridge Data'!$BE$4:$BE$253,'Bridge Data Matrices'!EV$9)/1000/EV$6 -> 681.5 | EW20: =INDEX('Bridge Data'!$BE$4:$BE$253,'Bridge Data Matrices'!EW$9)/1000/EW$6 -> 681.5 | EX20: =INDEX('Bridge Data'!$BE$4:$BE$253,'Bridge Data Matrices'!EX$9)/1000/EX$6 -> 821 | EY20: =INDEX('Bridge Data'!$BE$4:$BE$253,'Bridge Data Matrices'!EY$9)/1000/EY$6 -> 923 | EZ20: =INDEX('Bridge Data'!$BE$4:$BE$253,'Bridge Data Matrices'!EZ$9)/1000/EZ$6 -> 703 | FA20: =INDEX('Bridge Data'!$BE$4:$BE$253,'Bridge Data Matrices'!FA$9)/1000/FA$6 -> 929 | FB20: =INDEX('Bridge Data'!$BE$4:$BE$253,'Bridge Data Matrices'!FB$9)/1000/FB$6 -> 955 | FC20: =INDEX('Bridge Data'!$BE$4:$BE$253,'Bridge Data Matrices'!FC$9)/1000/FC$6 -> 1694 | FD20: =INDEX('Bridge Data'!$BE$4:$BE$253,'Bridge Data Matrices'!FD$9)/1000/FD$6 -> 1240 | FE20: =INDEX('Bridge Data'!$BE$4:$BE$253,'Bridge Data Matrices'!FE$9)/1000/FE$6 -> 548 | FF20: =INDEX('Bridge Data'!$BE$4:$BE$253,'Bridge Data Matrices'!FF$9)/1000/FF$6 -> 2200 | FG20: =INDEX('Bridge Data'!$BE$4:$BE$253,'Bridge Data Matrices'!FG$9)/1000/FG$6 -> 784 | FH20: =INDEX('Bridge Data'!$BE$4:$BE$253,'Bridge Data Matrices'!FH$9)/1000/FH$6 -> 1433 | FI20: =INDEX('Bridge Data'!$BE$4:$BE$253,'Bridge Data Matrices'!FI$9)/1000/FI$6 -> 2311 | FJ20: =INDEX('Bridge Data'!$BE$4:$BE$253,'Bridge Data Matrices'!FJ$9)/1000/FJ$6 -> 821 | FK20: =INDEX('Bridge Data'!$BE$4:$BE$253,'Bridge Data Matrices'!FK$9)/1000/FK$6 -> 590.0191571 | FL20: =INDEX('Bridge Data'!$BE$4:$BE$253,'Bridge Data Matrices'!FL$9)/1000/FL$6 -> 1496.785441 | FM20: =INDEX('Bridge Data'!$BE$4:$BE$253,'Bridge Data Matrices'!FM$9)/1000/FM$6 -> 1508 | FN20: =INDEX('Bridge Data'!$BE$4:$BE$253,'Bridge Data Matrices'!FN$9)/1000/FN$6 -> 647 | FO20: =INDEX('Bridge Data'!$BE$4:$BE$253,'Bridge Data Matrices'!FO$9)/1000/FO$6 -> 2256 | FP20: =INDEX('Bridge Data'!$BE$4:$BE$253,'Bridge Data Matrices'!FP$9)/1000/FP$6 -> 791 | FQ20: =INDEX('Bridge Data'!$BE$4:$BE$253,'Bridge Data Matrices'!FQ$9)/1000/FQ$6 -> 1990 | FR20: =INDEX('Bridge Data'!$BE$4:$BE$253,'Bridge Data Matrices'!FR$9)/1000/FR$6 -> 2147 | FS20: =INDEX('Bridge Data'!$BE$4:$BE$253,'Bridge Data Matrices'!FS$9)/1000/FS$6 -> 5986 | FT20: =INDEX('Bridge Data'!$BE$4:$BE$253,'Bridge Data Matrices'!FT$9)/1000/FT$6 -> 1389 | FU20: =INDEX('Bridge Data'!$BE$4:$BE$253,'Bridge Data Matrices'!FU$9)/1000/FU$6 -> 3543 | FV20: =INDEX('Bridge Data'!$BE$4:$BE$253,'Bridge Data Matrices'!FV$9)/1000/FV$6 -> 5224 | FW20: =INDEX('Bridge Data'!$BE$4:$BE$253,'Bridge Data Matrices'!FW$9)/1000/FW$6 -> 1197 | FX20: =INDEX('Bridge Data'!$BE$4:$BE$253,'Bridge Data Matrices'!FX$9)/1000/FX$6 -> 3262 | FY20: =INDEX('Bridge Data'!$BE$4:$BE$253,'Bridge Data Matrices'!FY$9)/1000/FY$6 -> 1216 | FZ20: =INDEX('Bridge Data'!$BE$4:$BE$253,'Bridge Data Matrices'!FZ$9)/1000/FZ$6 -> 744 | GA20: =INDEX('Bridge Data'!$BE$4:$BE$253,'Bridge Data Matrices'!GA$9)/1000/GA$6 -> 785 | GB20: =INDEX('Bridge Data'!$BE$4:$BE$253,'Bridge Data Matrices'!GB$9)/1000/GB$6 -> 1159 | GC20: =INDEX('Bridge Data'!$BE$4:$BE$253,'Bridge Data Matrices'!GC$9)/1000/GC$6 -> 652.544484 | GD20: =INDEX('Bridge Data'!$BE$4:$BE$253,'Bridge Data Matrices'!GD$9)/1000/GD$6 -> 592.3096085 | GE20: =INDEX('Bridge Data'!$BE$4:$BE$253,'Bridge Data Matrices'!GE$9)/1000/GE$6 -> 732.8576512 | GF20: =INDEX('Bridge Data'!$BE$4:$BE$253,'Bridge Data Matrices'!GF$9)/1000/GF$6 -> 843.2882562 | GG20: =INDEX('Bridge Data'!$BE$4:$BE$253,'Bridge Data Matrices'!GG$9)/1000/GG$6 -> 4206 | GH20: =INDEX('Bridge Data'!$BE$4:$BE$253,'Bridge Data Matrices'!GH$9)/1000/GH$6 -> 466 | GI20: =INDEX('Bridge Data'!$BE$4:$BE$253,'Bridge Data Matrices'!GI$9)/1000/GI$6 -> 1822 | GJ20: =INDEX('Bridge Data'!$BE$4:$BE$253,'Bridge Data Matrices'!GJ$9)/1000/GJ$6 -> 526 | GK20: =INDEX('Bridge Data'!$BE$4:$BE$253,'Bridge Data Matrices'!GK$9)/1000/GK$6 -> 656 | GL20: =INDEX('Bridge Data'!$BE$4:$BE$253,'Bridge Data Matrices'!GL$9)/1000/GL$6 -> 1400 | GM20: =INDEX('Bridge Data'!$BE$4:$BE$253,'Bridge Data Matrices'!GM$9)/1000/GM$6 -> 1834 | GN20: =INDEX('Bridge Data'!$BE$4:$BE$253,'Bridge Data Matrices'!GN$9)/1000/GN$6 -> 2225 | GO20: =INDEX('Bridge Data'!$BE$4:$BE$253,'Bridge Data Matrices'!GO$9)/1000/GO$6 -> 901 | GP20: =INDEX('Bridge Data'!$BE$4:$BE$253,'Bridge Data Matrices'!GP$9)/1000/GP$6 -> 698 | GQ20: =INDEX('Bridge Data'!$BE$4:$BE$253,'Bridge Data Matrices'!GQ$9)/1000/GQ$6 -> 1015 | GR20: =INDEX('Bridge Data'!$BE$4:$BE$253,'Bridge Data Matrices'!GR$9)/1000/GR$6 -> 714 | GS20: =INDEX('Bridge Data'!$BE$4:$BE$253,'Bridge Data Matrices'!GS$9)/1000/GS$6 -> 1076 | GT20: =INDEX('Bridge Data'!$BE$4:$BE$253,'Bridge Data Matrices'!GT$9)/1000/GT$6 -> 794 | GU20: =INDEX('Bridge Data'!$BE$4:$BE$253,'Bridge Data Matrices'!GU$9)/1000/GU$6 -> 585 | GV20: =INDEX('Bridge Data'!$BE$4:$BE$253,'Bridge Data Matrices'!GV$9)/1000/GV$6 -> 3171 | GW20: =INDEX('Bridge Data'!$BE$4:$BE$253,'Bridge Data Matrices'!GW$9)/1000/GW$6 -> 2738 | GX20: =INDEX('Bridge Data'!$BE$4:$BE$253,'Bridge Data Matrices'!GX$9)/1000/GX$6 -> 754 | GY20: =INDEX('Bridge Data'!$BE$4:$BE$253,'Bridge Data Matrices'!GY$9)/1000/GY$6 -> 690 | GZ20: =INDEX('Bridge Data'!$BE$4:$BE$253,'Bridge Data Matrices'!GZ$9)/1000/GZ$6 -> 353.224 | HA20: =INDEX('Bridge Data'!$BE$4:$BE$253,'Bridge Data Matrices'!HA$9)/1000/HA$6 -> 152.888 | HB20: =INDEX('Bridge Data'!$BE$4:$BE$253,'Bridge Data Matrices'!HB$9)/1000/HB$6 -> 152.888 | HC20: =INDEX('Bridge Data'!$BE$4:$BE$253,'Bridge Data Matrices'!HC$9)/1000/HC$6 -> 437 | HD20: =INDEX('Bridge Data'!$BE$4:$BE$253,'Bridge Data Matrices'!HD$9)/1000/HD$6 -> 953 | HE20: =INDEX('Bridge Data'!$BE$4:$BE$253,'Bridge Data Matrices'!HE$9)/1000/HE$6 -> 424 | HF20: =INDEX('Bridge Data'!$BE$4:$BE$253,'Bridge Data Matrices'!HF$9)/1000/HF$6 -> 5936 | HG20: =INDEX('Bridge Data'!$BE$4:$BE$253,'Bridge Data Matrices'!HG$9)/1000/HG$6 -> 3907 | HH20: =INDEX('Bridge Data'!$BE$4:$BE$253,'Bridge Data Matrices'!HH$9)/1000/HH$6 -> 805 | HI20: =INDEX('Bridge Data'!$BE$4:$BE$253,'Bridge Data Matrices'!HI$9)/1000/HI$6 -> 2721 | HJ20: =INDEX('Bridge Data'!$BE$4:$BE$253,'Bridge Data Matrices'!HJ$9)/1000/HJ$6 -> 993 | HK20: =INDEX('Bridge Data'!$BE$4:$BE$253,'Bridge Data Matrices'!HK$9)/1000/HK$6 -> 166 | HL20: =INDEX('Bridge Data'!$BE$4:$BE$253,'Bridge Data Matrices'!HL$9)/1000/HL$6 -> 166 | HM20: =INDEX('Bridge Data'!$BE$4:$BE$253,'Bridge Data Matrices'!HM$9)/1000/HM$6 -> 2028 | HN20: =INDEX('Bridge Data'!$BE$4:$BE$253,'Bridge Data Matrices'!HN$9)/1000/HN$6 -> 1869 | HO20: =INDEX('Bridge Data'!$BE$4:$BE$253,'Bridge Data Matrices'!HO$9)/1000/HO$6 -> 1058 | HP20: =INDEX('Bridge Data'!$BE$4:$BE$253,'Bridge Data Matrices'!HP$9)/1000/HP$6 -> 2464 | HQ20: =INDEX('Bridge Data'!$BE$4:$BE$253,'Bridge Data Matrices'!HQ$9)/1000/HQ$6 -> 1723.453336 | HR20: =INDEX('Bridge Data'!$BE$4:$BE$253,'Bridge Data Matrices'!HR$9)/1000/HR$6 -> 1674.546664 | HS20: =INDEX('Bridge Data'!$BE$4:$BE$253,'Bridge Data Matrices'!HS$9)/1000/HS$6 -> 857 | HT20: =INDEX('Bridge Data'!$BE$4:$BE$253,'Bridge Data Matrices'!HT$9)/1000/HT$6 -> 573 | HU20: =INDEX('Bridge Data'!$BE$4:$BE$253,'Bridge Data Matrices'!HU$9)/1000/HU$6 -> 595.2847682 | HV20: =INDEX('Bridge Data'!$BE$4:$BE$253,'Bridge Data Matrices'!HV$9)/1000/HV$6 -> 1100.715232 | HW20: =INDEX('Bridge Data'!$BE$4:$BE$253,'Bridge Data Matrices'!HW$9)/1000/HW$6 -> 873 | HX20: =INDEX('Bridge Data'!$BE$4:$BE$253,'Bridge Data Matrices'!HX$9)/1000/HX$6 -> 1763 | HY20: =INDEX('Bridge Data'!$BE$4:$BE$253,'Bridge Data Matrices'!HY$9)/1000/HY$6 -> 7013 | HZ20: =INDEX('Bridge Data'!$BE$4:$BE$253,'Bridge Data Matrices'!HZ$9)/1000/HZ$6 -> 2096.547069 | IA20: =INDEX('Bridge Data'!$BE$4:$BE$253,'Bridge Data Matrices'!IA$9)/1000/IA$6 -> 4971.452931 | IB20: =INDEX('Bridge Data'!$BE$4:$BE$253,'Bridge Data Matrices'!IB$9)/1000/IB$6 -> 6133.250366 | IC20: =INDEX('Bridge Data'!$BE$4:$BE$253,'Bridge Data Matrices'!IC$9)/1000/IC$6 -> 1076.749634 | ID20: =INDEX('Bridge Data'!$BE$4:$BE$253,'Bridge Data Matrices'!ID$9)/1000/ID$6 -> 2615.331309 | IE20: =INDEX('Bridge Data'!$BE$4:$BE$253,'Bridge Data Matrices'!IE$9)/1000/IE$6 -> 3649.668691 | IF20: =INDEX('Bridge Data'!$BE$4:$BE$253,'Bridge Data Matrices'!IF$9)/1000/IF$6 -> 847 | IG20: =INDEX('Bridge Data'!$BE$4:$BE$253,'Bridge Data Matrices'!IG$9)/1000/IG$6 -> 5180 | IH20: =INDEX('Bridge Data'!$BE$4:$BE$253,'Bridge Data Matrices'!IH$9)/1000/IH$6 -> 1185 | II20: =INDEX('Bridge Data'!$BE$4:$BE$253,'Bridge Data Matrices'!II$9)/1000/II$6 -> 1219.325648 | IJ20: =INDEX('Bridge Data'!$BE$4:$BE$253,'Bridge Data Matrices'!IJ$9)/1000/IJ$6 -> 1157.674352 | IK20: =INDEX('Bridge Data'!$BE$4:$BE$253,'Bridge Data Matrices'!IK$9)/1000/IK$6 -> 784 | IL20: =INDEX('Bridge Data'!$BE$4:$BE$253,'Bridge Data Matrices'!IL$9)/1000/IL$6 -> 973.5633162 | IM20: =INDEX('Bridge Data'!$BE$4:$BE$253,'Bridge Data Matrices'!IM$9)/1000/IM$6 -> 832.3439948 | IN20: =INDEX('Bridge Data'!$BE$4:$BE$253,'Bridge Data Matrices'!IN$9)/1000/IN$6 -> 490.6475042 | IO20: =INDEX('Bridge Data'!$BE$4:$BE$253,'Bridge Data Matrices'!IO$9)/1000/IO$6 -> 700.1438272 | IP20: =INDEX('Bridge Data'!$BE$4:$BE$253,'Bridge Data Matrices'!IP$9)/1000/IP$6 -> 515.3013576 | IQ20: =INDEX('Bridge Data'!$BE$4:$BE$253,'Bridge Data Matrices'!IQ$9)/1000/IQ$6 -> 650 | IR20: =INDEX('Bridge Data'!$BE$4:$BE$253,'Bridge Data Matrices'!IR$9)/1000/IR$6 -> 2387
A22: matBenefit | C22: Bridge Number
A23: Year | C23: 1 | D23: 2 | E23: 3 | F23: 4 | G23: 5 | H23: 6 | I23: 7 | J23: 8 | K23: 9 | L23: 10 | M23: 11 | N23: 12 | O23: 13 | P23: 14 | Q23: 15 | R23: 16 | S23: 17 | T23: 18 | U23: 19 | V23: 20 | W23: 21 | X23: 22 | Y23: 23 | Z23: 24 | AA23: 25 | AB23: 26 | AC23: 27 | AD23: 28 | AE23: 29 | AF23: 30 | AG23: 31 | AH23: 32 | AI23: 33 | AJ23: 34 | AK23: 35 | AL23: 36 | AM23: 37 | AN23: 38 | AO23: 39 | AP23: 40 | AQ23: 41 | AR23: 42 | AS23: 43 | AT23: 44 | AU23: 45 | AV23: 46 | AW23: 47 | AX23: 48 | AY23: 49 | AZ23: 50 | BA23: 51 | BB23: 52 | BC23: 53 | BD23: 54 | BE23: 55 | BF23: 56 | BG23: 57 | BH23: 58 | BI23: 59 | BJ23: 60 | BK23: 61 | BL23: 62 | BM23: 63 | BN23: 64 | BO23: 65 | BP23: 66 | BQ23: 67 | BR23: 68 | BS23: 69 | BT23: 70 | BU23: 71 | BV23: 72 | BW23: 73 | BX23: 74 | BY23: 75 | BZ23: 76 | CA23: 77 | CB23: 78 | CC23: 79 | CD23: 80 | CE23: 81 | CF23: 82 | CG23: 83 | CH23: 84 | CI23: 85 | CJ23: 86 | CK23: 87 | CL23: 88 | CM23: 89 | CN23: 90 | CO23: 91 | CP23: 92 | CQ23: 93 | CR23: 94 | CS23: 95 | CT23: 96 | CU23: 97 | CV23: 98 | CW23: 99 | CX23: 100 | CY23: 101 | CZ23: 102 | DA23: 103 | DB23: 104 | DC23: 105 | DD23: 106 | DE23: 107 | DF23: 108 | DG23: 109 | DH23: 110 | DI23: 111 | DJ23: 112 | DK23: 113 | DL23: 114 | DM23: 115 | DN23: 116 | DO23: 117 | DP23: 118 | DQ23: 119 | DR23: 120 | DS23: 121 | DT23: 122 | DU23: 123 | DV23: 124 | DW23: 125 | DX23: 126 | DY23: 127 | DZ23: 128 | EA23: 129 | EB23: 130 | EC23: 131 | ED23: 132 | EE23: 133 | EF23: 134 | EG23: 135 | EH23: 136 | EI23: 137 | EJ23: 138 | EK23: 139 | EL23: 140 | EM23: 141 | EN23: 142 | EO23: 143 | EP23: 144 | EQ23: 145 | ER23: 146 | ES23: 147 | ET23: 148 | EU23: 149 | EV23: 150 | EW23: 151 | EX23: 152 | EY23: 153 | EZ23: 154 | FA23: 155 | FB23: 156 | FC23: 157 | FD23: 158 | FE23: 159 | FF23: 160 | FG23: 161 | FH23: 162 | FI23: 163 | FJ23: 164 | FK23: 165 | FL23: 166 | FM23: 167 | FN23: 168 | FO23: 169 | FP23: 170 | FQ23: 171 | FR23: 172 | FS23: 173 | FT23: 174 | FU23: 175 | FV23: 176 | FW23: 177 | FX23: 178 | FY23: 179 | FZ23: 180 | GA23: 181 | GB23: 182 | GC23: 183 | GD23: 184 | GE23: 185 | GF23: 186 | GG23: 187 | GH23: 188 | GI23: 189 | GJ23: 190 | GK23: 191 | GL23: 192 | GM23: 193 | GN23: 194 | GO23: 195 | GP23: 196 | GQ23: 197 | GR23: 198 | GS23: 199 | GT23: 200 | GU23: 201 | GV23: 202 | GW23: 203 | GX23: 204 | GY23: 205 | GZ23: 206 | HA23: 207 | HB23: 208 | HC23: 209 | HD23: 210 | HE23: 211 | HF23: 212 | HG23: 213 | HH23: 214 | HI23: 215 | HJ23: 216 | HK23: 217 | HL23: 218 | HM23: 219 | HN23: 220 | HO23: 221 | HP23: 222 | HQ23: 223 | HR23: 224 | HS23: 225 | HT23: 226 | HU23: 227 | HV23: 228 | HW23: 229 | HX23: 230 | HY23: 231 | HZ23: 232 | IA23: 233 | IB23: 234 | IC23: 235 | ID23: 236 | IE23: 237 | IF23: 238 | IG23: 239 | IH23: 240 | II23: 241 | IJ23: 242 | IK23: 243 | IL23: 244 | IM23: 245 | IN23: 246 | IO23: 247 | IP23: 248 | IQ23: 249 | IR23: 250
A24: ='Travel Time'!B709 -> 2020 | B24: 1 | C24: =IF(AND($A24>=C$3,$A24<=C$4),1,0) -> 0 | D24: =IF(AND($A24>=D$3,$A24<=D$4),1,0) -> 0 | E24: 0 | F24: 0 | G24: 0 | H24: 0 | I24: 0 | J24: 0 | K24: 0 | L24: 0 | M24: 0 | N24: 0 | O24: 0 | P24: 0 | Q24: 0 | R24: 0 | S24: 0 | T24: 0 | U24: 0 | V24: 0 | W24: 0 | X24: 0 | Y24: 0 | Z24: 0 | AA24: 0 | AB24: 0 | AC24: 0 | AD24: 0 | AE24: 0 | AF24: 0 | AG24: 0 | AH24: 0 | AI24: 0 | AJ24: 0 | AK24: 0 | AL24: 0 | AM24: 0 | AN24: 0 | AO24: 0 | AP24: 0 | AQ24: 0 | AR24: 0 | AS24: 0 | AT24: 0 | AU24: 0 | AV24: 0 | AW24: 0 | AX24: 0 | AY24: 0 | AZ24: 0 | BA24: 0 | BB24: 0 | BC24: 0 | BD24: 0 | BE24: 0 | BF24: 0 | BG24: 0 | BH24: 0 | BI24: 0 | BJ24: 0 | BK24: 0 | BL24: 0 | BM24: 0 | BN24: 0 | BO24: 0 | BP24: =IF(AND($A24>=BP$3,$A24<=BP$4),1,0) -> 0 | BQ24: 0 | BR24: 0 | BS24: 0 | BT24: 0 | BU24: 0 | BV24: 0 | BW24: 0 | BX24: 0 | BY24: 0 | BZ24: 0 | CA24: 0 | CB24: 0 | CC24: 0 | CD24: 0 | CE24: 0 | CF24: 0 | CG24: 0 | CH24: 0 | CI24: 0 | CJ24: 0 | CK24: 0 | CL24: 0 | CM24: 0 | CN24: 0 | CO24: 0 | CP24: 0 | CQ24: 0 | CR24: 0 | CS24: 0 | CT24: 0 | CU24: 0 | CV24: 0 | CW24: 0 | CX24: 0 | CY24: 0 | CZ24: 0 | DA24: 0 | DB24: 0 | DC24: 0 | DD24: 0 | DE24: 0 | DF24: 0 | DG24: 0 | DH24: 0 | DI24: 0 | DJ24: 0 | DK24: 0 | DL24: 0 | DM24: 0 | DN24: 0 | DO24: 0 | DP24: 0 | DQ24: 0 | DR24: 0 | DS24: 0 | DT24: 0 | DU24: 0 | DV24: 0 | DW24: 0 | DX24: 0 | DY24: 0 | DZ24: 0 | EA24: 0 | EB24: =IF(AND($A24>=EB$3,$A24<=EB$4),1,0) -> 0 | EC24: 0 | ED24: 0 | EE24: 0 | EF24: 0 | EG24: 0 | EH24: 0 | EI24: 0 | EJ24: 0 | EK24: 0 | EL24: 0 | EM24: 0 | EN24: 0 | EO24: 0 | EP24: 0 | EQ24: 0 | ER24: 0 | ES24: 0 | ET24: 0 | EU24: 0 | EV24: 0 | EW24: 0 | EX24: 0 | EY24: 0 | EZ24: 0 | FA24: 0 | FB24: 0 | FC24: 0 | FD24: 0 | FE24: 0 | FF24: 0 | FG24: 0 | FH24: 0 | FI24: 0 | FJ24: 0 | FK24: 0 | FL24: 0 | FM24: 0 | FN24: 0 | FO24: 0 | FP24: 0 | FQ24: 0 | FR24: 0 | FS24: 0 | FT24: 0 | FU24: 0 | FV24: 0 | FW24: 0 | FX24: 0 | FY24: 0 | FZ24: 0 | GA24: 0 | GB24: 0 | GC24: 0 | GD24: 0 | GE24: 0 | GF24: 0 | GG24: 0 | GH24: 0 | GI24: 0 | GJ24: 0 | GK24: 0 | GL24: 0 | GM24: 0 | GN24: =IF(AND($A24>=GN$3,$A24<=GN$4),1,0) -> 0 | GO24: 0 | GP24: 0 | GQ24: 0 | GR24: 0 | GS24: 0 | GT24: 0 | GU24: 0 | GV24: 0 | GW24: 0 | GX24: 0 | GY24: 0 | GZ24: 0 | HA24: 0 | HB24: 0 | HC24: 0 | HD24: 0 | HE24: 0 | HF24: 0 | HG24: 0 | HH24: 0 | HI24: 0 | HJ24: 0 | HK24: 0 | HL24: 0 | HM24: 0 | HN24: 0 | HO24: 0 | HP24: 0 | HQ24: 0 | HR24: 0 | HS24: 0 | HT24: 0 | HU24: 0 | HV24: 0 | HW24: 0 | HX24: 0 | HY24: 0 | HZ24: 0 | IA24: 0 | IB24: 0 | IC24: 0 | ID24: 0 | IE24: 0 | IF24: 0 | IG24: 0 | IH24: 0 | II24: 0 | IJ24: 0 | IK24: 0 | IL24: 0 | IM24: 0 | IN24: 0 | IO24: 0 | IP24: 0 | IQ24: 0 | IR24: 0
A25: ='Travel Time'!B710 -> 2021 | B25: 2 | C25: =IF(AND($A25>=C$3,$A25<=C$4),1,0) -> 0 | D25: 0 | E25: 0 | F25: 0 | G25: 0 | H25: 0 | I25: 0 | J25: 0 | K25: 0 | L25: 0 | M25: 0 | N25: 0 | O25: 0 | P25: 0 | Q25: 0 | R25: 0 | S25: 0 | T25: 0 | U25: 0 | V25: 0 | W25: 0 | X25: 0 | Y25: 0 | Z25: 0 | AA25: 0 | AB25: 0 | AC25: 0 | AD25: 0 | AE25: 0 | AF25: 0 | AG25: 0 | AH25: 0 | AI25: 0 | AJ25: 0 | AK25: 0 | AL25: 0 | AM25: 0 | AN25: 0 | AO25: 0 | AP25: 0 | AQ25: 0 | AR25: 0 | AS25: 0 | AT25: 0 | AU25: 0 | AV25: 0 | AW25: 0 | AX25: 0 | AY25: 0 | AZ25: 0 | BA25: 0 | BB25: 0 | BC25: 0 | BD25: 0 | BE25: 0 | BF25: 0 | BG25: 0 | BH25: 0 | BI25: 0 | BJ25: 0 | BK25: 0 | BL25: 0 | BM25: 0 | BN25: 0 | BO25: 0 | BP25: 0 | BQ25: 0 | BR25: 0 | BS25: 0 | BT25: 0 | BU25: 0 | BV25: 0 | BW25: 0 | BX25: 0 | BY25: 0 | BZ25: 0 | CA25: 0 | CB25: 0 | CC25: 0 | CD25: 0 | CE25: 0 | CF25: 0 | CG25: 0 | CH25: 0 | CI25: 0 | CJ25: 0 | CK25: 0 | CL25: 0 | CM25: 0 | CN25: 0 | CO25: 0 | CP25: 0 | CQ25: 0 | CR25: 0 | CS25: 0 | CT25: 0 | CU25: 0 | CV25: 0 | CW25: 0 | CX25: 0 | CY25: 0 | CZ25: 0 | DA25: 0 | DB25: 0 | DC25: 0 | DD25: 0 | DE25: 0 | DF25: 0 | DG25: 0 | DH25: 0 | DI25: 0 | DJ25: 0 | DK25: 0 | DL25: 0 | DM25: 0 | DN25: 0 | DO25: 0 | DP25: 0 | DQ25: 0 | DR25: 0 | DS25: 0 | DT25: 0 | DU25: 0 | DV25: 0 | DW25: 0 | DX25: 0 | DY25: 0 | DZ25: 0 | EA25: 0 | EB25: 0 | EC25: 0 | ED25: 0 | EE25: 0 | EF25: 0 | EG25: 0 | EH25: 0 | EI25: 0 | EJ25: 0 | EK25: 0 | EL25: 0 | EM25: 0 | EN25: 0 | EO25: 0 | EP25: 0 | EQ25: 0 | ER25: 0 | ES25: 0 | ET25: 0 | EU25: 0 | EV25: 0 | EW25: 0 | EX25: 0 | EY25: 0 | EZ25: 0 | FA25: 0 | FB25: 0 | FC25: 0 | FD25: 0 | FE25: 0 | FF25: 0 | FG25: 0 | FH25: 0 | FI25: 0 | FJ25: 0 | FK25: 0 | FL25: 0 | FM25: 0 | FN25: 0 | FO25: 0 | FP25: 0 | FQ25: 0 | FR25: 0 | FS25: 0 | FT25: 0 | FU25: 0 | FV25: 0 | FW25: 0 | FX25: 0 | FY25: 0 | FZ25: 0 | GA25: 0 | GB25: 0 | GC25: 0 | GD25: 0 | GE25: 0 | GF25: 0 | GG25: 0 | GH25: 0 | GI25: 0 | GJ25: 0 | GK25: 0 | GL25: 0 | GM25: 0 | GN25: 0 | GO25: 0 | GP25: 0 | GQ25: 0 | GR25: 0 | GS25: 0 | GT25: 0 | GU25: 0 | GV25: 0 | GW25: 0 | GX25: 0 | GY25: 0 | GZ25: 0 | HA25: 0 | HB25: 0 | HC25: 0 | HD25: 0 | HE25: 0 | HF25: 0 | HG25: 0 | HH25: 0 | HI25: 0 | HJ25: 0 | HK25: 0 | HL25: 0 | HM25: 0 | HN25: 0 | HO25: 0 | HP25: 0 | HQ25: 0 | HR25: 0 | HS25: 0 | HT25: 0 | HU25: 0 | HV25: 0 | HW25: 0 | HX25: 0 | HY25: 0 | HZ25: 0 | IA25: 0 | IB25: 0 | IC25: 0 | ID25: 0 | IE25: 0 | IF25: 0 | IG25: 0 | IH25: 0 | II25: 0 | IJ25: 0 | IK25: 0 | IL25: 0 | IM25: 0 | IN25: 0 | IO25: 0 | IP25: 0 | IQ25: 0 | IR25: 0
A26: ='Travel Time'!B711 -> 2022 | B26: 3 | C26: 0 | D26: =IF(AND($A26>=D$3,$A26<=D$4),1,0) -> 0 | E26: 0 | F26: 0 | G26: 0 | H26: 0 | I26: 0 | J26: 0 | K26: 0 | L26: 0 | M26: 0 | N26: 0 | O26: 0 | P26: 0 | Q26: 0 | R26: 0 | S26: 0 | T26: 0 | U26: 0 | V26: 0 | W26: 1 | X26: 0 | Y26: 0 | Z26: 0 | AA26: 0 | AB26: 0 | AC26: 0 | AD26: 0 | AE26: 0 | AF26: 0 | AG26: 0 | AH26: 0 | AI26: 0 | AJ26: 0 | AK26: 0 | AL26: 0 | AM26: 0 | AN26: 0 | AO26: 0 | AP26: 0 | AQ26: 0 | AR26: 0 | AS26: 0 | AT26: 0 | AU26: 0 | AV26: 0 | AW26: 0 | AX26: 0 | AY26: 0 | AZ26: 0 | BA26: 1 | BB26: 0 | BC26: 0 | BD26: 0 | BE26: 0 | BF26: 0 | BG26: 0 | BH26: 1 | BI26: 1 | BJ26: 1 | BK26: 1 | BL26: 0 | BM26: 0 | BN26: 0 | BO26: 0 | BP26: 0 | BQ26: 0 | BR26: 0 | BS26: 1 | BT26: 0 | BU26: 0 | BV26: 0 | BW26: 0 | BX26: 0 | BY26: 0 | BZ26: 0 | CA26: 0 | CB26: 0 | CC26: 0 | CD26: 0 | CE26: 0 | CF26: 0 | CG26: 0 | CH26: 0 | CI26: 0 | CJ26: 0 | CK26: 0 | CL26: 0 | CM26: 0 | CN26: 0 | CO26: 0 | CP26: 0 | CQ26: 0 | CR26: 0 | CS26: 0 | CT26: 0 | CU26: 0 | CV26: 0 | CW26: 0 | CX26: 0 | CY26: 0 | CZ26: 0 | DA26: 0 | DB26: 1 | DC26: 0 | DD26: 0 | DE26: 0 | DF26: 0 | DG26: 0 | DH26: 0 | DI26: 0 | DJ26: 0 | DK26: 0 | DL26: 0 | DM26: 0 | DN26: 0 | DO26: 0 | DP26: 0 | DQ26: 0 | DR26: 0 | DS26: 0 | DT26: 0 | DU26: 0 | DV26: 0 | DW26: 0 | DX26: 0 | DY26: 0 | DZ26: 0 | EA26: 0 | EB26: 0 | EC26: 0 | ED26: 0 | EE26: 0 | EF26: 0 | EG26: 0 | EH26: 0 | EI26: 0 | EJ26: 0 | EK26: 1 | EL26: 0 | EM26: 0 | EN26: 1 | EO26: 0 | EP26: 0 | EQ26: 0 | ER26: 0 | ES26: 0 | ET26: 0 | EU26: 0 | EV26: 0 | EW26: 0 | EX26: 0 | EY26: 0 | EZ26: 0 | FA26: 0 | FB26: 0 | FC26: 0 | FD26: 0 | FE26: 0 | FF26: 0 | FG26: 0 | FH26: 0 | FI26: 0 | FJ26: 1 | FK26: 0 | FL26: 0 | FM26: 0 | FN26: 0 | FO26: 0 | FP26: 0 | FQ26: 0 | FR26: 0 | FS26: 0 | FT26: 0 | FU26: 0 | FV26: 1 | FW26: 0 | FX26: 0 | FY26: 0 | FZ26: 0 | GA26: 0 | GB26: 0 | GC26: 0 | GD26: 0 | GE26: 0 | GF26: 0 | GG26: 0 | GH26: 0 | GI26: 0 | GJ26: 0 | GK26: 0 | GL26: 0 | GM26: 0 | GN26: 0 | GO26: 0 | GP26: 0 | GQ26: 0 | GR26: 0 | GS26: 0 | GT26: 0 | GU26: 0 | GV26: 0 | GW26: 0 | GX26: 0 | GY26: 0 | GZ26: 0 | HA26: 0 | HB26: 0 | HC26: 0 | HD26: 0 | HE26: 0 | HF26: 0 | HG26: 1 | HH26: 0 | HI26: 0 | HJ26: 0 | HK26: 0 | HL26: 0 | HM26: 0 | HN26: 0 | HO26: 0 | HP26: 0 | HQ26: 0 | HR26: 0 | HS26: 0 | HT26: 0 | HU26: 0 | HV26: 0 | HW26: 0 | HX26: 0 | HY26: 0 | HZ26: 1 | IA26: 1 | IB26: 0 | IC26: 0 | ID26: 0 | IE26: 0 | IF26: 0 | IG26: 0 | IH26: 0 | II26: 0 | IJ26: 0 | IK26: 0 | IL26: 0 | IM26: 0 | IN26: 0 | IO26: 0 | IP26: 0 | IQ26: 0 | IR26: 0
A27: ='Travel Time'!B712 -> 2023 | B27: 4 | C27: 0 | D27: 0 | E27: 0 | F27: 0 | G27: 0 | H27: 0 | I27: 0 | J27: 0 | K27: 0 | L27: 0 | M27: 0 | N27: 0 | O27: 0 | P27: 0 | Q27: 0 | R27: 0 | S27: 0 | T27: 0 | U27: 0 | V27: 0 | W27: 1 | X27: 0 | Y27: 0 | Z27: 0 | AA27: 0 | AB27: 0 | AC27: 0 | AD27: 0 | AE27: 0 | AF27: 0 | AG27: 0 | AH27: 0 | AI27: 0 | AJ27: 0 | AK27: 0 | AL27: 0 | AM27: 0 | AN27: 0 | AO27: 0 | AP27: 0 | AQ27: 0 | AR27: 0 | AS27: 0 | AT27: 0 | AU27: 0 | AV27: 0 | AW27: 0 | AX27: 0 | AY27: 0 | AZ27: 0 | BA27: 1 | BB27: 0 | BC27: 0 | BD27: 0 | BE27: 0 | BF27: 0 | BG27: 0 | BH27: 1 | BI27: 1 | BJ27: 1 | BK27: 1 | BL27: 0 | BM27: 0 | BN27: 0 | BO27: 0 | BP27: 0 | BQ27: 0 | BR27: 0 | BS27: 1 | BT27: 0 | BU27: 0 | BV27: 0 | BW27: 0 | BX27: 0 | BY27: 0 | BZ27: 0 | CA27: 0 | CB27: 0 | CC27: 0 | CD27: 0 | CE27: 0 | CF27: 0 | CG27: 0 | CH27: 0 | CI27: 0 | CJ27: 0 | CK27: 0 | CL27: 0 | CM27: 0 | CN27: 0 | CO27: 0 | CP27: 0 | CQ27: 0 | CR27: 0 | CS27: 0 | CT27: 0 | CU27: 0 | CV27: 0 | CW27: 0 | CX27: 0 | CY27: 0 | CZ27: 0 | DA27: 0 | DB27: 1 | DC27: 0 | DD27: 0 | DE27: 0 | DF27: 0 | DG27: 0 | DH27: 0 | DI27: 0 | DJ27: 0 | DK27: 0 | DL27: 0 | DM27: 0 | DN27: 0 | DO27: 0 | DP27: 0 | DQ27: 0 | DR27: 0 | DS27: 0 | DT27: 0 | DU27: 0 | DV27: 0 | DW27: 0 | DX27: 0 | DY27: 0 | DZ27: 0 | EA27: =IF(AND($A27>=EA$3,$A27<=EA$4),1,0) -> 0 | EB27: 0 | EC27: 0 | ED27: 0 | EE27: 0 | EF27: 0 | EG27: 0 | EH27: 0 | EI27: 0 | EJ27: 0 | EK27: 1 | EL27: 0 | EM27: 0 | EN27: 1 | EO27: 0 | EP27: 0 | EQ27: 0 | ER27: 0 | ES27: 0 | ET27: 0 | EU27: 0 | EV27: 0 | EW27: 0 | EX27: 0 | EY27: 0 | EZ27: 0 | FA27: 0 | FB27: 0 | FC27: 0 | FD27: 0 | FE27: 0 | FF27: 0 | FG27: 0 | FH27: 0 | FI27: 0 | FJ27: 1 | FK27: 0 | FL27: 0 | FM27: 0 | FN27: 0 | FO27: 0 | FP27: 0 | FQ27: 0 | FR27: 0 | FS27: 0 | FT27: 0 | FU27: 0 | FV27: 1 | FW27: 0 | FX27: 0 | FY27: 0 | FZ27: 0 | GA27: 0 | GB27: 0 | GC27: 0 | GD27: 0 | GE27: 0 | GF27: 0 | GG27: 0 | GH27: 0 | GI27: 0 | GJ27: 0 | GK27: 0 | GL27: 0 | GM27: 0 | GN27: 0 | GO27: 0 | GP27: 0 | GQ27: 0 | GR27: 0 | GS27: 0 | GT27: 0 | GU27: 0 | GV27: 0 | GW27: 0 | GX27: 0 | GY27: 0 | GZ27: 0 | HA27: 0 | HB27: 0 | HC27: 0 | HD27: 0 | HE27: 0 | HF27: 0 | HG27: 1 | HH27: 0 | HI27: 0 | HJ27: 0 | HK27: 0 | HL27: 0 | HM27: 0 | HN27: 0 | HO27: 0 | HP27: 0 | HQ27: 0 | HR27: 0 | HS27: 0 | HT27: 0 | HU27: 0 | HV27: 0 | HW27: 0 | HX27: 0 | HY27: 0 | HZ27: 1 | IA27: 1 | IB27: 0 | IC27: 0 | ID27: 0 | IE27: 0 | IF27: 0 | IG27: 0 | IH27: 0 | II27: 0 | IJ27: 0 | IK27: 0 | IL27: 0 | IM27: 0 | IN27: 0 | IO27: 0 | IP27: 0 | IQ27: 0 | IR27: 0
A28: ='Travel Time'!B713 -> 2024 | B28: 5 | C28: 0 | D28: 0 | E28: 0 | F28: 1 | G28: 0 | H28: 0 | I28: 0 | J28: 0 | K28: 0 | L28: 0 | M28: 0 | N28: 0 | O28: 0 | P28: 0 | Q28: 0 | R28: 0 | S28: 0 | T28: 0 | U28: 0 | V28: 0 | W28: 1 | X28: 0 | Y28: 0 | Z28: 0 | AA28: 0 | AB28: 0 | AC28: 0 | AD28: 0 | AE28: 0 | AF28: 0 | AG28: 0 | AH28: 0 | AI28: 0 | AJ28: 0 | AK28: 0 | AL28: 0 | AM28: 0 | AN28: 0 | AO28: 0 | AP28: 0 | AQ28: 0 | AR28: 0 | AS28: 0 | AT28: 0 | AU28: 0 | AV28: 0 | AW28: 0 | AX28: 0 | AY28: 0 | AZ28: 0 | BA28: 1 | BB28: 0 | BC28: 0 | BD28: 0 | BE28: 0 | BF28: 0 | BG28: 0 | BH28: 1 | BI28: 1 | BJ28: 1 | BK28: 1 | BL28: 0 | BM28: 0 | BN28: 0 | BO28: 0 | BP28: =IF(AND($A28>=BP$3,$A28<=BP$4),1,0) -> 0 | BQ28: 0 | BR28: 0 | BS28: 1 | BT28: 0 | BU28: 0 | BV28: 0 | BW28: 0 | BX28: 0 | BY28: 0 | BZ28: 0 | CA28: 0 | CB28: 0 | CC28: 0 | CD28: 0 | CE28: 0 | CF28: 0 | CG28: 0 | CH28: 0 | CI28: 0 | CJ28: 0 | CK28: 0 | CL28: 0 | CM28: 0 | CN28: 0 | CO28: 0 | CP28: 0 | CQ28: 0 | CR28: 0 | CS28: 0 | CT28: 0 | CU28: 0 | CV28: 0 | CW28: 0 | CX28: 0 | CY28: 0 | CZ28: 0 | DA28: 1 | DB28: 1 | DC28: 0 | DD28: 0 | DE28: 0 | DF28: 0 | DG28: 0 | DH28: 0 | DI28: 0 | DJ28: 0 | DK28: 0 | DL28: 0 | DM28: 0 | DN28: 0 | DO28: 0 | DP28: 0 | DQ28: 0 | DR28: 0 | DS28: 0 | DT28: 0 | DU28: 0 | DV28: 0 | DW28: 0 | DX28: 0 | DY28: 0 | DZ28: 0 | EA28: 0 | EB28: 0 | EC28: 0 | ED28: 0 | EE28: 0 | EF28: 0 | EG28: 0 | EH28: 0 | EI28: 0 | EJ28: 0 | EK28: 1 | EL28: 0 | EM28: 0 | EN28: 1 | EO28: 1 | EP28: 0 | EQ28: 0 | ER28: 0 | ES28: 0 | ET28: 1 | EU28: 0 | EV28: 0 | EW28: 0 | EX28: 0 | EY28: 0 | EZ28: 0 | FA28: 0 | FB28: 0 | FC28: 0 | FD28: 0 | FE28: 0 | FF28: 0 | FG28: 0 | FH28: 0 | FI28: 0 | FJ28: 1 | FK28: 0 | FL28: 0 | FM28: 0 | FN28: 0 | FO28: 0 | FP28: 0 | FQ28: 0 | FR28: 0 | FS28: 0 | FT28: 0 | FU28: 0 | FV28: 1 | FW28: 0 | FX28: 0 | FY28: 0 | FZ28: 0 | GA28: 0 | GB28: 0 | GC28: 0 | GD28: 0 | GE28: 0 | GF28: 0 | GG28: 0 | GH28: 0 | GI28: 0 | GJ28: 0 | GK28: 0 | GL28: 1 | GM28: 0 | GN28: 0 | GO28: 0 | GP28: 0 | GQ28: 0 | GR28: 0 | GS28: 0 | GT28: 0 | GU28: 0 | GV28: 0 | GW28: 0 | GX28: 0 | GY28: 0 | GZ28: 0 | HA28: 0 | HB28: 0 | HC28: 0 | HD28: 0 | HE28: 0 | HF28: 0 | HG28: 1 | HH28: 0 | HI28: 0 | HJ28: 0 | HK28: 0 | HL28: 0 | HM28: 0 | HN28: 0 | HO28: =IF(AND($A28>=HO$3,$A28<=HO$4),1,0) -> 0 | HP28: 0 | HQ28: 0 | HR28: 0 | HS28: 0 | HT28: 0 | HU28: 0 | HV28: 0 | HW28: 0 | HX28: 0 | HY28: 0 | HZ28: 1 | IA28: 1 | IB28: 0 | IC28: 0 | ID28: 0 | IE28: 0 | IF28: 0 | IG28: 0 | IH28: 0 | II28: 0 | IJ28: 0 | IK28: 0 | IL28: 0 | IM28: 0 | IN28: 0 | IO28: 0 | IP28: 0 | IQ28: 0 | IR28: 0
A29: ='Travel Time'!B714 -> 2025 | B29: 6 | C29: 0 | D29: 0 | E29: 0 | F29: 1 | G29: 0 | H29: 0 | I29: 0 | J29: 0 | K29: 0 | L29: 0 | M29: 0 | N29: 0 | O29: 0 | P29: 0 | Q29: 0 | R29: 0 | S29: 0 | T29: 0 | U29: 0 | V29: 0 | W29: 1 | X29: 0 | Y29: 0 | Z29: 0 | AA29: 0 | AB29: 0 | AC29: 0 | AD29: 0 | AE29: 0 | AF29: 0 | AG29: 0 | AH29: 0 | AI29: 0 | AJ29: 0 | AK29: 0 | AL29: 0 | AM29: 0 | AN29: 0 | AO29: 0 | AP29: 0 | AQ29: 0 | AR29: 0 | AS29: 0 | AT29: 0 | AU29: 0 | AV29: 0 | AW29: 0 | AX29: 0 | AY29: 0 | AZ29: 0 | BA29: 1 | BB29: 0 | BC29: 0 | BD29: 0 | BE29: 0 | BF29: 0 | BG29: 0 | BH29: 1 | BI29: 1 | BJ29: 1 | BK29: 1 | BL29: 0 | BM29: 0 | BN29: 0 | BO29: =IF(AND($A29>=BO$3,$A29<=BO$4),1,0) -> 0 | BP29: 0 | BQ29: 0 | BR29: 0 | BS29: 1 | BT29: 0 | BU29: 0 | BV29: 0 | BW29: 0 | BX29: 0 | BY29: 0 | BZ29: 0 | CA29: 0 | CB29: 0 | CC29: 0 | CD29: 0 | CE29: 0 | CF29: 0 | CG29: 0 | CH29: 0 | CI29: 0 | CJ29: 0 | CK29: 0 | CL29: 0 | CM29: 0 | CN29: 0 | CO29: 0 | CP29: 0 | CQ29: 0 | CR29: 0 | CS29: 0 | CT29: 0 | CU29: 0 | CV29: 0 | CW29: 0 | CX29: 0 | CY29: 0 | CZ29: 0 | DA29: 1 | DB29: 1 | DC29: 0 | DD29: 0 | DE29: 0 | DF29: 0 | DG29: 0 | DH29: 0 | DI29: 0 | DJ29: 0 | DK29: 0 | DL29: 0 | DM29: 0 | DN29: 0 | DO29: 0 | DP29: 0 | DQ29: 0 | DR29: 0 | DS29: 0 | DT29: 0 | DU29: 0 | DV29: 0 | DW29: 0 | DX29: 0 | DY29: 0 | DZ29: 0 | EA29: 0 | EB29: 0 | EC29: 0 | ED29: 0 | EE29: 0 | EF29: 0 | EG29: 0 | EH29: 0 | EI29: 0 | EJ29: 0 | EK29: 1 | EL29: 0 | EM29: 0 | EN29: 1 | EO29: 1 | EP29: 0 | EQ29: 0 | ER29: 0 | ES29: 0 | ET29: 1 | EU29: 0 | EV29: 0 | EW29: 0 | EX29: 0 | EY29: 0 | EZ29: 0 | FA29: 0 | FB29: 0 | FC29: 0 | FD29: 0 | FE29: 0 | FF29: 0 | FG29: 0 | FH29: 0 | FI29: 0 | FJ29: 1 | FK29: 0 | FL29: 0 | FM29: 0 | FN29: 0 | FO29: 0 | FP29: 0 | FQ29: 0 | FR29: 0 | FS29: 0 | FT29: 0 | FU29: 0 | FV29: 1 | FW29: 0 | FX29: 0 | FY29: 0 | FZ29: 0 | GA29: 0 | GB29: 0 | GC29: 0 | GD29: 0 | GE29: 0 | GF29: 0 | GG29: 0 | GH29: 0 | GI29: 0 | GJ29: 0 | GK29: 0 | GL29: 1 | GM29: 0 | GN29: =IF(AND($A29>=GN$3,$A29<=GN$4),1,0) -> 0 | GO29: 0 | GP29: 0 | GQ29: 0 | GR29: 0 | GS29: 0 | GT29: 0 | GU29: 0 | GV29: 0 | GW29: 0 | GX29: 0 | GY29: 0 | GZ29: 0 | HA29: 0 | HB29: 0 | HC29: 0 | HD29: 0 | HE29: 0 | HF29: 0 | HG29: 1 | HH29: 0 | HI29: 0 | HJ29: 0 | HK29: 0 | HL29: 0 | HM29: 0 | HN29: 0 | HO29: 0 | HP29: 0 | HQ29: 0 | HR29: 0 | HS29: 0 | HT29: 0 | HU29: 0 | HV29: 0 | HW29: 0 | HX29: 0 | HY29: 0 | HZ29: 1 | IA29: 1 | IB29: 0 | IC29: 0 | ID29: 0 | IE29: 0 | IF29: 0 | IG29: 0 | IH29: 0 | II29: 0 | IJ29: 0 | IK29: 0 | IL29: 0 | IM29: 0 | IN29: 0 | IO29: 0 | IP29: 0 | IQ29: 0 | IR29: 0
A30: ='Travel Time'!B715 -> 2026 | B30: 7 | C30: 0 | D30: =IF(AND($A30>=D$3,$A30<=D$4),1,0) -> 0 | E30: 0 | F30: 1 | G30: 0 | H30: 0 | I30: 0 | J30: 0 | K30: 1 | L30: 1 | M30: 0 | N30: 0 | O30: 1 | P30: 0 | Q30: 1 | R30: 0 | S30: 0 | T30: 0 | U30: 0 | V30: 1 | W30: 1 | X30: 0 | Y30: 1 | Z30: 0 | AA30: 0 | AB30: 0 | AC30: 0 | AD30: 1 | AE30: 0 | AF30: 0 | AG30: 0 | AH30: 0 | AI30: 0 | AJ30: 0 | AK30: 1 | AL30: 1 | AM30: 0 | AN30: 0 | AO30: 0 | AP30: 0 | AQ30: 0 | AR30: 1 | AS30: 0 | AT30: 0 | AU30: 0 | AV30: 1 | AW30: 0 | AX30: 0 | AY30: 1 | AZ30: 0 | BA30: 1 | BB30: 0 | BC30: 1 | BD30: 1 | BE30: 0 | BF30: 0 | BG30: 0 | BH30: 1 | BI30: 1 | BJ30: 1 | BK30: 1 | BL30: 1 | BM30: 0 | BN30: 1 | BO30: 1 | BP30: 0 | BQ30: 0 | BR30: 0 | BS30: 1 | BT30: 0 | BU30: 0 | BV30: 1 | BW30: 0 | BX30: 0 | BY30: 1 | BZ30: 0 | CA30: 0 | CB30: 0 | CC30: 0 | CD30: 0 | CE30: 0 | CF30: 0 | CG30: 1 | CH30: 0 | CI30: 1 | CJ30: 1 | CK30: 0 | CL30: 0 | CM30: 1 | CN30: 1 | CO30: 1 | CP30: 0 | CQ30: 0 | CR30: 0 | CS30: 0 | CT30: 0 | CU30: 0 | CV30: 0 | CW30: 0 | CX30: 0 | CY30: 0 | CZ30: 0 | DA30: 1 | DB30: 1 | DC30: 0 | DD30: 0 | DE30: 1 | DF30: 0 | DG30: 0 | DH30: 0 | DI30: 0 | DJ30: 0 | DK30: 1 | DL30: 1 | DM30: 0 | DN30: 0 | DO30: 1 | DP30: 0 | DQ30: 0 | DR30: 0 | DS30: 1 | DT30: 0 | DU30: 0 | DV30: 1 | DW30: 0 | DX30: 0 | DY30: 0 | DZ30: 0 | EA30: 0 | EB30: 0 | EC30: 1 | ED30: 0 | EE30: 0 | EF30: 0 | EG30: 0 | EH30: 0 | EI30: 0 | EJ30: 0 | EK30: 1 | EL30: 0 | EM30: 0 | EN30: 1 | EO30: 1 | EP30: 0 | EQ30: 0 | ER30: 0 | ES30: 0 | ET30: 1 | EU30: 0 | EV30: 0 | EW30: 0 | EX30: 0 | EY30: 0 | EZ30: 1 | FA30: 1 | FB30: 1 | FC30: 1 | FD30: 1 | FE30: 0 | FF30: 0 | FG30: 0 | FH30: 0 | FI30: 0 | FJ30: 1 | FK30: 0 | FL30: 1 | FM30: 1 | FN30: 1 | FO30: 0 | FP30: 0 | FQ30: 0 | FR30: 0 | FS30: 0 | FT30: 1 | FU30: 0 | FV30: 1 | FW30: 0 | FX30: 0 | FY30: 0 | FZ30: 0 | GA30: 1 | GB30: 0 | GC30: 0 | GD30: 0 | GE30: 0 | GF30: 0 | GG30: 0 | GH30: 0 | GI30: 1 | GJ30: 1 | GK30: 0 | GL30: 1 | GM30: 0 | GN30: 0 | GO30: 0 | GP30: 0 | GQ30: 1 | GR30: 0 | GS30: 0 | GT30: 0 | GU30: 1 | GV30: 0 | GW30: 1 | GX30: 1 | GY30: 1 | GZ30: 0 | HA30: 0 | HB30: 0 | HC30: 0 | HD30: 0 | HE30: 0 | HF30: 0 | HG30: 1 | HH30: 1 | HI30: 0 | HJ30: 0 | HK30: 0 | HL30: 0 | HM30: 0 | HN30: 0 | HO30: 0 | HP30: 0 | HQ30: 0 | HR30: 0 | HS30: 0 | HT30: 0 | HU30: 0 | HV30: 0 | HW30: 0 | HX30: 0 | HY30: 0 | HZ30: 1 | IA30: 1 | IB30: 0 | IC30: 0 | ID30: 0 | IE30: 0 | IF30: 0 | IG30: 0 | IH30: 0 | II30: 0 | IJ30: 0 | IK30: 0 | IL30: 0 | IM30: 0 | IN30: 0 | IO30: 0 | IP30: 0 | IQ30: 1 | IR30: 0
A31: ='Travel Time'!B716 -> 2027 | B31: 8 | C31: 0 | D31: 0 | E31: 0 | F31: 1 | G31: 0 | H31: 0 | I31: 0 | J31: 0 | K31: 1 | L31: 1 | M31: 0 | N31: 0 | O31: 1 | P31: 0 | Q31: 1 | R31: 0 | S31: 0 | T31: 0 | U31: 0 | V31: 1 | W31: 1 | X31: 0 | Y31: 1 | Z31: 0 | AA31: 0 | AB31: 0 | AC31: 0 | AD31: 1 | AE31: 0 | AF31: 0 | AG31: 0 | AH31: 0 | AI31: 0 | AJ31: 0 | AK31: 1 | AL31: 1 | AM31: 0 | AN31: 0 | AO31: 0 | AP31: 0 | AQ31: 0 | AR31: 1 | AS31: 0 | AT31: 0 | AU31: 0 | AV31: 1 | AW31: 0 | AX31: 0 | AY31: 1 | AZ31: 0 | BA31: 1 | BB31: 0 | BC31: 1 | BD31: 1 | BE31: 0 | BF31: 0 | BG31: 0 | BH31: 1 | BI31: 1 | BJ31: 1 | BK31: 1 | BL31: 1 | BM31: 0 | BN31: 1 | BO31: 1 | BP31: 0 | BQ31: 0 | BR31: 0 | BS31: 1 | BT31: 0 | BU31: 0 | BV31: 1 | BW31: 0 | BX31: 0 | BY31: 1 | BZ31: 0 | CA31: 0 | CB31: 0 | CC31: 0 | CD31: 0 | CE31: 0 | CF31: 0 | CG31: 1 | CH31: 0 | CI31: 1 | CJ31: 1 | CK31: 0 | CL31: 0 | CM31: 1 | CN31: 1 | CO31: 1 | CP31: 0 | CQ31: 0 | CR31: 0 | CS31: 0 | CT31: 0 | CU31: 0 | CV31: 0 | CW31: 0 | CX31: 0 | CY31: 0 | CZ31: 0 | DA31: 1 | DB31: 1 | DC31: 0 | DD31: 0 | DE31: 1 | DF31: 0 | DG31: 0 | DH31: 0 | DI31: 0 | DJ31: 0 | DK31: 1 | DL31: 1 | DM31: 0 | DN31: 0 | DO31: 1 | DP31: 0 | DQ31: 0 | DR31: 0 | DS31: 1 | DT31: 0 | DU31: 0 | DV31: 1 | DW31: 0 | DX31: 0 | DY31: 0 | DZ31: 0 | EA31: 0 | EB31: 0 | EC31: 1 | ED31: =IF(AND($A31>=ED$3,$A31<=ED$4),1,0) -> 0 | EE31: 0 | EF31: 0 | EG31: 0 | EH31: 0 | EI31: 0 | EJ31: 0 | EK31: 1 | EL31: 0 | EM31: 0 | EN31: 1 | EO31: 1 | EP31: 0 | EQ31: 0 | ER31: 0 | ES31: 0 | ET31: 1 | EU31: 0 | EV31: 0 | EW31: 0 | EX31: 0 | EY31: 0 | EZ31: 1 | FA31: 1 | FB31: 1 | FC31: 1 | FD31: 1 | FE31: 0 | FF31: 0 | FG31: 0 | FH31: 0 | FI31: 0 | FJ31: 1 | FK31: 0 | FL31: 1 | FM31: 1 | FN31: 1 | FO31: 0 | FP31: 0 | FQ31: 0 | FR31: 0 | FS31: 0 | FT31: 1 | FU31: 0 | FV31: 1 | FW31: 0 | FX31: 0 | FY31: 0 | FZ31: 0 | GA31: 1 | GB31: 0 | GC31: 0 | GD31: 0 | GE31: 0 | GF31: 0 | GG31: 0 | GH31: 0 | GI31: 1 | GJ31: 1 | GK31: 0 | GL31: 1 | GM31: 0 | GN31: 0 | GO31: 0 | GP31: 0 | GQ31: 1 | GR31: 0 | GS31: 0 | GT31: 0 | GU31: 1 | GV31: 0 | GW31: 1 | GX31: 1 | GY31: 1 | GZ31: 0 | HA31: 0 | HB31: 0 | HC31: 0 | HD31: 0 | HE31: 0 | HF31: 0 | HG31: 1 | HH31: 1 | HI31: 0 | HJ31: 0 | HK31: 0 | HL31: 0 | HM31: 0 | HN31: 0 | HO31: 0 | HP31: 0 | HQ31: 0 | HR31: 0 | HS31: 0 | HT31: 0 | HU31: 0 | HV31: 0 | HW31: 0 | HX31: 0 | HY31: 0 | HZ31: 1 | IA31: 1 | IB31: 0 | IC31: 0 | ID31: 0 | IE31: 0 | IF31: 0 | IG31: 0 | IH31: 0 | II31: 0 | IJ31: 0 | IK31: 0 | IL31: 0 | IM31: 0 | IN31: 0 | IO31: 0 | IP31: 0 | IQ31: 1 | IR31: 0
A32: ='Travel Time'!B717 -> 2028 | B32: 9 | C32: 0 | D32: 1 | E32: 0 | F32: 1 | G32: 0 | H32: 1 | I32: 1 | J32: 0 | K32: 1 | L32: 1 | M32: 1 | N32: 0 | O32: 1 | P32: 0 | Q32: 1 | R32: 1 | S32: 0 | T32: 0 | U32: 0 | V32: 1 | W32: 1 | X32: 0 | Y32: 1 | Z32: 1 | AA32: 1 | AB32: 1 | AC32: 0 | AD32: 1 | AE32: 1 | AF32: 0 | AG32: 0 | AH32: 1 | AI32: 0 | AJ32: 0 | AK32: 1 | AL32: 1 | AM32: 1 | AN32: 1 | AO32: 0 | AP32: 1 | AQ32: 1 | AR32: 1 | AS32: 1 | AT32: 0 | AU32: 0 | AV32: 1 | AW32: 1 | AX32: 0 | AY32: 1 | AZ32: 1 | BA32: 1 | BB32: 0 | BC32: 1 | BD32: 1 | BE32: 1 | BF32: 0 | BG32: 0 | BH32: 1 | BI32: 1 | BJ32: 1 | BK32: 1 | BL32: 1 | BM32: 0 | BN32: 1 | BO32: 1 | BP32: 1 | BQ32: 1 | BR32: 0 | BS32: 1 | BT32: 1 | BU32: 0 | BV32: 1 | BW32: 1 | BX32: 1 | BY32: 1 | BZ32: 1 | CA32: 1 | CB32: 1 | CC32: 1 | CD32: 1 | CE32: 1 | CF32: 1 | CG32: 1 | CH32: 1 | CI32: 1 | CJ32: 1 | CK32: 1 | CL32: 1 | CM32: 1 | CN32: 1 | CO32: 1 | CP32: 1 | CQ32: 1 | CR32: 0 | CS32: 0 | CT32: 0 | CU32: 0 | CV32: 0 | CW32: 1 | CX32: 0 | CY32: 0 | CZ32: 0 | DA32: 1 | DB32: 1 | DC32: 0 | DD32: 1 | DE32: 1 | DF32: 0 | DG32: 1 | DH32: 0 | DI32: 0 | DJ32: 0 | DK32: 1 | DL32: 1 | DM32: 1 | DN32: 1 | DO32: 1 | DP32: 0 | DQ32: 1 | DR32: 0 | DS32: 1 | DT32: 0 | DU32: 1 | DV32: 1 | DW32: 1 | DX32: 1 | DY32: 1 | DZ32: 1 | EA32: 0 | EB32: =IF(AND($A32>=EB$3,$A32<=EB$4),1,0) -> 1 | EC32: 1 | ED32: 0 | EE32: 1 | EF32: 1 | EG32: 1 | EH32: 1 | EI32: 1 | EJ32: 1 | EK32: 1 | EL32: 1 | EM32: 1 | EN32: 1 | EO32: 1 | EP32: 1 | EQ32: 0 | ER32: 0 | ES32: 1 | ET32: 1 | EU32: 0 | EV32: 0 | EW32: 0 | EX32: 1 | EY32: 1 | EZ32: 1 | FA32: 1 | FB32: 1 | FC32: 1 | FD32: 1 | FE32: 1 | FF32: 1 | FG32: 1 | FH32: 0 | FI32: 0 | FJ32: 1 | FK32: 0 | FL32: 1 | FM32: 1 | FN32: 1 | FO32: 1 | FP32: 1 | FQ32: 1 | FR32: 1 | FS32: 1 | FT32: 1 | FU32: 0 | FV32: 1 | FW32: 0 | FX32: 1 | FY32: 1 | FZ32: 1 | GA32: 1 | GB32: 1 | GC32: 1 | GD32: 1 | GE32: 1 | GF32: 1 | GG32: 1 | GH32: 1 | GI32: 1 | GJ32: 1 | GK32: 1 | GL32: 1 | GM32: 1 | GN32: 0 | GO32: 1 | GP32: 0 | GQ32: 1 | GR32: 0 | GS32: 0 | GT32: 0 | GU32: 1 | GV32: 0 | GW32: 1 | GX32: 1 | GY32: 1 | GZ32: 0 | HA32: 0 | HB32: 0 | HC32: 1 | HD32: 1 | HE32: 1 | HF32: 1 | HG32: 1 | HH32: 1 | HI32: 1 | HJ32: 1 | HK32: 0 | HL32: 0 | HM32: 0 | HN32: 0 | HO32: 1 | HP32: 0 | HQ32: 0 | HR32: 0 | HS32: 1 | HT32: 1 | HU32: 1 | HV32: 1 | HW32: 1 | HX32: 1 | HY32: 0 | HZ32: 1 | IA32: 1 | IB32: 0 | IC32: 0 | ID32: 0 | IE32: 0 | IF32: 1 | IG32: 1 | IH32: 1 | II32: 0 | IJ32: 0 | IK32: 0 | IL32: 0 | IM32: 0 | IN32: 0 | IO32: 0 | IP32: 0 | IQ32: 1 | IR32: 1
A33: ='Travel Time'!B718 -> 2029 | B33: 10 | C33: 0 | D33: 1 | E33: 0 | F33: 1 | G33: 0 | H33: 1 | I33: 1 | J33: 0 | K33: 1 | L33: 1 | M33: 1 | N33: 0 | O33: 1 | P33: 0 | Q33: 1 | R33: 1 | S33: 0 | T33: 0 | U33: 0 | V33: 1 | W33: 1 | X33: 0 | Y33: 1 | Z33: 1 | AA33: 1 | AB33: 1 | AC33: 0 | AD33: 1 | AE33: 1 | AF33: 0 | AG33: 0 | AH33: 1 | AI33: 0 | AJ33: 0 | AK33: 1 | AL33: 1 | AM33: 1 | AN33: 1 | AO33: 0 | AP33: 1 | AQ33: 1 | AR33: 1 | AS33: 1 | AT33: 0 | AU33: 0 | AV33: 1 | AW33: 1 | AX33: 0 | AY33: 1 | AZ33: 1 | BA33: 1 | BB33: 0 | BC33: 1 | BD33: 1 | BE33: 1 | BF33: 0 | BG33: 0 | BH33: 1 | BI33: 1 | BJ33: 1 | BK33: 1 | BL33: 1 | BM33: 0 | BN33: 1 | BO33: =IF(AND($A33>=BO$3,$A33<=BO$4),1,0) -> 1 | BP33: 1 | BQ33: 1 | BR33: 0 | BS33: 1 | BT33: 1 | BU33: 0 | BV33: 1 | BW33: 1 | BX33: 1 | BY33: 1 | BZ33: 1 | CA33: 1 | CB33: 1 | CC33: 1 | CD33: 1 | CE33: 1 | CF33: 1 | CG33: 1 | CH33: 1 | CI33: 1 | CJ33: 1 | CK33: 1 | CL33: 1 | CM33: 1 | CN33: 1 | CO33: 1 | CP33: 1 | CQ33: 1 | CR33: 0 | CS33: 0 | CT33: 0 | CU33: 0 | CV33: 0 | CW33: 1 | CX33: 0 | CY33: 0 | CZ33: 0 | DA33: 1 | DB33: 1 | DC33: 0 | DD33: 1 | DE33: 1 | DF33: 0 | DG33: 1 | DH33: 0 | DI33: 0 | DJ33: 0 | DK33: 1 | DL33: 1 | DM33: 1 | DN33: 1 | DO33: 1 | DP33: 0 | DQ33: 1 | DR33: 0 | DS33: 1 | DT33: 0 | DU33: 1 | DV33: 1 | DW33: 1 | DX33: 1 | DY33: 1 | DZ33: 1 | EA33: 0 | EB33: 1 | EC33: 1 | ED33: 0 | EE33: 1 | EF33: 1 | EG33: 1 | EH33: 1 | EI33: 1 | EJ33: 1 | EK33: 1 | EL33: 1 | EM33: 1 | EN33: 1 | EO33: 1 | EP33: 1 | EQ33: 0 | ER33: 0 | ES33: 1 | ET33: 1 | EU33: 0 | EV33: 0 | EW33: 0 | EX33: 1 | EY33: 1 | EZ33: 1 | FA33: 1 | FB33: 1 | FC33: 1 | FD33: 1 | FE33: 1 | FF33: 1 | FG33: 1 | FH33: 0 | FI33: 0 | FJ33: 1 | FK33: 0 | FL33: 1 | FM33: 1 | FN33: 1 | FO33: 1 | FP33: 1 | FQ33: 1 | FR33: 1 | FS33: 1 | FT33: 1 | FU33: 0 | FV33: 1 | FW33: 0 | FX33: 1 | FY33: 1 | FZ33: 1 | GA33: 1 | GB33: 1 | GC33: 1 | GD33: 1 | GE33: 1 | GF33: 1 | GG33: 1 | GH33: 1 | GI33: 1 | GJ33: 1 | GK33: 1 | GL33: 1 | GM33: 1 | GN33: 0 | GO33: 1 | GP33: 0 | GQ33: 1 | GR33: 0 | GS33: 0 | GT33: 0 | GU33: 1 | GV33: 0 | GW33: 1 | GX33: 1 | GY33: 1 | GZ33: 0 | HA33: 0 | HB33: 0 | HC33: 1 | HD33: 1 | HE33: 1 | HF33: 1 | HG33: 1 | HH33: 1 | HI33: 1 | HJ33: 1 | HK33: 0 | HL33: 0 | HM33: 0 | HN33: 0 | HO33: 1 | HP33: 0 | HQ33: 0 | HR33: 0 | HS33: 1 | HT33: 1 | HU33: =IF(AND($A33>=HU$3,$A33<=HU$4),1,0) -> 1 | HV33: 1 | HW33: 1 | HX33: 1 | HY33: 0 | HZ33: 1 | IA33: 1 | IB33: 0 | IC33: 0 | ID33: 0 | IE33: 0 | IF33: 1 | IG33: 1 | IH33: 1 | II33: 0 | IJ33: 0 | IK33: 0 | IL33: 0 | IM33: 0 | IN33: 0 | IO33: 0 | IP33: 0 | IQ33: 1 | IR33: 1
A34: ='Travel Time'!B719 -> 2030 | B34: 11 | C34: 0 | D34: =IF(AND($A34>=D$3,$A34<=D$4),1,0) -> 1 | E34: 0 | F34: 1 | G34: 0 | H34: 1 | I34: 1 | J34: 0 | K34: 1 | L34: 1 | M34: 1 | N34: 0 | O34: 1 | P34: 0 | Q34: 1 | R34: 1 | S34: 0 | T34: 0 | U34: 0 | V34: 1 | W34: 1 | X34: 0 | Y34: 1 | Z34: 1 | AA34: 1 | AB34: 1 | AC34: 0 | AD34: 1 | AE34: 1 | AF34: 0 | AG34: 0 | AH34: 1 | AI34: 0 | AJ34: 0 | AK34: 1 | AL34: 1 | AM34: 1 | AN34: 1 | AO34: 0 | AP34: 1 | AQ34: 1 | AR34: 1 | AS34: 1 | AT34: 0 | AU34: 0 | AV34: 1 | AW34: 1 | AX34: 0 | AY34: 1 | AZ34: 1 | BA34: 1 | BB34: 0 | BC34: 1 | BD34: 1 | BE34: 1 | BF34: 0 | BG34: 0 | BH34: 1 | BI34: 1 | BJ34: 1 | BK34: 1 | BL34: 1 | BM34: 0 | BN34: 1 | BO34: 1 | BP34: 1 | BQ34: 1 | BR34: 0 | BS34: 1 | BT34: 1 | BU34: 0 | BV34: 1 | BW34: 1 | BX34: 1 | BY34: 1 | BZ34: 1 | CA34: 1 | CB34: 1 | CC34: 1 | CD34: 1 | CE34: 1 | CF34: 1 | CG34: 1 | CH34: 1 | CI34: 1 | CJ34: 1 | CK34: 1 | CL34: 1 | CM34: 1 | CN34: 1 | CO34: 1 | CP34: 1 | CQ34: 1 | CR34: 0 | CS34: 0 | CT34: 0 | CU34: 0 | CV34: 0 | CW34: 1 | CX34: 0 | CY34: 0 | CZ34: 0 | DA34: 1 | DB34: 1 | DC34: 0 | DD34: 1 | DE34: 1 | DF34: 0 | DG34: 1 | DH34: 0 | DI34: 0 | DJ34: 0 | DK34: 1 | DL34: 1 | DM34: 1 | DN34: 1 | DO34: 1 | DP34: 0 | DQ34: 1 | DR34: 0 | DS34: 1 | DT34: 0 | DU34: 1 | DV34: 1 | DW34: 1 | DX34: 1 | DY34: 1 | DZ34: 1 | EA34: 0 | EB34: 1 | EC34: 1 | ED34: 0 | EE34: 1 | EF34: 1 | EG34: 1 | EH34: 1 | EI34: 1 | EJ34: 1 | EK34: 1 | EL34: 1 | EM34: 1 | EN34: 1 | EO34: 1 | EP34: 1 | EQ34: 0 | ER34: 0 | ES34: 1 | ET34: 1 | EU34: 0 | EV34: 0 | EW34: 0 | EX34: 1 | EY34: 1 | EZ34: 1 | FA34: 1 | FB34: 1 | FC34: 1 | FD34: 1 | FE34: 1 | FF34: 1 | FG34: 1 | FH34: 0 | FI34: 0 | FJ34: 1 | FK34: 0 | FL34: 1 | FM34: 1 | FN34: 1 | FO34: 1 | FP34: 1 | FQ34: 1 | FR34: 1 | FS34: 1 | FT34: 1 | FU34: 0 | FV34: 1 | FW34: 0 | FX34: 1 | FY34: 1 | FZ34: 1 | GA34: 1 | GB34: 1 | GC34: 1 | GD34: 1 | GE34: 1 | GF34: 1 | GG34: 1 | GH34: 1 | GI34: 1 | GJ34: 1 | GK34: 1 | GL34: 1 | GM34: 1 | GN34: 0 | GO34: 1 | GP34: =IF(AND($A34>=GP$3,$A34<=GP$4),1,0) -> 0 | GQ34: 1 | GR34: 0 | GS34: 0 | GT34: 0 | GU34: 1 | GV34: 0 | GW34: 1 | GX34: 1 | GY34: 1 | GZ34: 0 | HA34: 0 | HB34: 0 | HC34: 1 | HD34: 1 | HE34: 1 | HF34: 1 | HG34: 1 | HH34: 1 | HI34: 1 | HJ34: 1 | HK34: 0 | HL34: 0 | HM34: 0 | HN34: 0 | HO34: 1 | HP34: 0 | HQ34: 0 | HR34: 0 | HS34: 1 | HT34: 1 | HU34: 1 | HV34: 1 | HW34: 1 | HX34: 1 | HY34: 0 | HZ34: 1 | IA34: 1 | IB34: 0 | IC34: 0 | ID34: 0 | IE34: 0 | IF34: 1 | IG34: 1 | IH34: 1 | II34: 0 | IJ34: 0 | IK34: 0 | IL34: 0 | IM34: 0 | IN34: 0 | IO34: 0 | IP34: 0 | IQ34: 1 | IR34: 1
A35: ='Travel Time'!B720 -> 2031 | B35: 12 | C35: 0 | D35: 1 | E35: 0 | F35: 1 | G35: 0 | H35: 1 | I35: 1 | J35: 0 | K35: 1 | L35: 1 | M35: 1 | N35: 0 | O35: 1 | P35: 0 | Q35: 1 | R35: 1 | S35: 0 | T35: 0 | U35: 0 | V35: 1 | W35: 1 | X35: 0 | Y35: 1 | Z35: 1 | AA35: 1 | AB35: 1 | AC35: 0 | AD35: 1 | AE35: 1 | AF35: 0 | AG35: 0 | AH35: 1 | AI35: 0 | AJ35: 0 | AK35: 1 | AL35: 1 | AM35: 1 | AN35: 1 | AO35: 0 | AP35: 1 | AQ35: 1 | AR35: 1 | AS35: 1 | AT35: 0 | AU35: 0 | AV35: 1 | AW35: 1 | AX35: 0 | AY35: 1 | AZ35: 1 | BA35: 1 | BB35: 0 | BC35: 1 | BD35: 1 | BE35: 1 | BF35: 0 | BG35: 0 | BH35: 1 | BI35: 1 | BJ35: 1 | BK35: 1 | BL35: 1 | BM35: 0 | BN35: 1 | BO35: 1 | BP35: 1 | BQ35: 1 | BR35: 0 | BS35: 1 | BT35: 1 | BU35: 0 | BV35: 1 | BW35: 1 | BX35: 1 | BY35: 1 | BZ35: 1 | CA35: 1 | CB35: 1 | CC35: 1 | CD35: 1 | CE35: 1 | CF35: 1 | CG35: 1 | CH35: 1 | CI35: 1 | CJ35: 1 | CK35: 1 | CL35: 1 | CM35: 1 | CN35: 1 | CO35: 1 | CP35: 1 | CQ35: 1 | CR35: 0 | CS35: 0 | CT35: 0 | CU35: 0 | CV35: 0 | CW35: 1 | CX35: 0 | CY35: 0 | CZ35: 0 | DA35: 1 | DB35: 1 | DC35: 0 | DD35: 1 | DE35: 1 | DF35: 0 | DG35: 1 | DH35: 0 | DI35: 0 | DJ35: 0 | DK35: 1 | DL35: 1 | DM35: 1 | DN35: 1 | DO35: 1 | DP35: 0 | DQ35: 1 | DR35: 0 | DS35: 1 | DT35: 0 | DU35: 1 | DV35: 1 | DW35: 1 | DX35: 1 | DY35: 1 | DZ35: 1 | EA35: 0 | EB35: 1 | EC35: 1 | ED35: 0 | EE35: 1 | EF35: 1 | EG35: 1 | EH35: 1 | EI35: 1 | EJ35: 1 | EK35: 1 | EL35: 1 | EM35: 1 | EN35: 1 | EO35: 1 | EP35: 1 | EQ35: 0 | ER35: 0 | ES35: 1 | ET35: 1 | EU35: 0 | EV35: 0 | EW35: 0 | EX35: 1 | EY35: 1 | EZ35: 1 | FA35: 1 | FB35: 1 | FC35: 1 | FD35: 1 | FE35: 1 | FF35: 1 | FG35: 1 | FH35: 0 | FI35: 0 | FJ35: 1 | FK35: 0 | FL35: 1 | FM35: 1 | FN35: 1 | FO35: 1 | FP35: 1 | FQ35: 1 | FR35: 1 | FS35: 1 | FT35: 1 | FU35: 0 | FV35: 1 | FW35: 0 | FX35: 1 | FY35: 1 | FZ35: 1 | GA35: 1 | GB35: 1 | GC35: 1 | GD35: 1 | GE35: 1 | GF35: 1 | GG35: 1 | GH35: 1 | GI35: 1 | GJ35: 1 | GK35: 1 | GL35: 1 | GM35: =IF(AND($A35>=GM$3,$A35<=GM$4),1,0) -> 1 | GN35: 0 | GO35: 1 | GP35: 0 | GQ35: 1 | GR35: 0 | GS35: 0 | GT35: 0 | GU35: 1 | GV35: 0 | GW35: 1 | GX35: 1 | GY35: 1 | GZ35: 0 | HA35: 0 | HB35: 0 | HC35: 1 | HD35: 1 | HE35: 1 | HF35: 1 | HG35: 1 | HH35: 1 | HI35: 1 | HJ35: 1 | HK35: 0 | HL35: 0 | HM35: 0 | HN35: 0 | HO35: 1 | HP35: 0 | HQ35: 0 | HR35: 0 | HS35: 1 | HT35: 1 | HU35: 1 | HV35: 1 | HW35: 1 | HX35: 1 | HY35: 0 | HZ35: 1 | IA35: 1 | IB35: 0 | IC35: 0 | ID35: 0 | IE35: 0 | IF35: 1 | IG35: 1 | IH35: 1 | II35: 0 | IJ35: 0 | IK35: 0 | IL35: 0 | IM35: 0 | IN35: 0 | IO35: 0 | IP35: 0 | IQ35: 1 | IR35: 1
A36: ='Travel Time'!B721 -> 2032 | B36: 13 | C36: 0 | D36: 1 | E36: 0 | F36: 1 | G36: 0 | H36: 1 | I36: 1 | J36: 0 | K36: 1 | L36: 1 | M36: 1 | N36: 0 | O36: 1 | P36: 0 | Q36: 1 | R36: 1 | S36: 0 | T36: 0 | U36: 0 | V36: 1 | W36: 1 | X36: 0 | Y36: 1 | Z36: 1 | AA36: 1 | AB36: 1 | AC36: 0 | AD36: 1 | AE36: 1 | AF36: 0 | AG36: 0 | AH36: 1 | AI36: 0 | AJ36: 0 | AK36: 1 | AL36: 1 | AM36: 1 | AN36: 1 | AO36: 0 | AP36: 1 | AQ36: 1 | AR36: 1 | AS36: 1 | AT36: 0 | AU36: 0 | AV36: 1 | AW36: 1 | AX36: 0 | AY36: 1 | AZ36: 1 | BA36: 1 | BB36: 0 | BC36: 1 | BD36: 1 | BE36: 1 | BF36: 0 | BG36: 0 | BH36: 1 | BI36: 1 | BJ36: 1 | BK36: 1 | BL36: 1 | BM36: 0 | BN36: 1 | BO36: 1 | BP36: 1 | BQ36: 1 | BR36: 0 | BS36: 1 | BT36: 1 | BU36: 0 | BV36: 1 | BW36: 1 | BX36: 1 | BY36: 1 | BZ36: 1 | CA36: 1 | CB36: 1 | CC36: 1 | CD36: 1 | CE36: 1 | CF36: 1 | CG36: 1 | CH36: 1 | CI36: 1 | CJ36: 1 | CK36: 1 | CL36: 1 | CM36: 1 | CN36: 1 | CO36: 1 | CP36: 1 | CQ36: 1 | CR36: 0 | CS36: 0 | CT36: 0 | CU36: 0 | CV36: 0 | CW36: 1 | CX36: 0 | CY36: 0 | CZ36: 0 | DA36: 1 | DB36: 1 | DC36: 0 | DD36: 1 | DE36: 1 | DF36: 0 | DG36: 1 | DH36: 0 | DI36: 0 | DJ36: 0 | DK36: 1 | DL36: 1 | DM36: 1 | DN36: 1 | DO36: 1 | DP36: 0 | DQ36: 1 | DR36: 0 | DS36: 1 | DT36: 0 | DU36: 1 | DV36: 1 | DW36: 1 | DX36: 1 | DY36: 1 | DZ36: 1 | EA36: 0 | EB36: =IF(AND($A36>=EB$3,$A36<=EB$4),1,0) -> 1 | EC36: 1 | ED36: 0 | EE36: 1 | EF36: 1 | EG36: 1 | EH36: 1 | EI36: 1 | EJ36: 1 | EK36: 1 | EL36: 1 | EM36: 1 | EN36: 1 | EO36: 1 | EP36: 1 | EQ36: 0 | ER36: 0 | ES36: 1 | ET36: 1 | EU36: 0 | EV36: 0 | EW36: 0 | EX36: 1 | EY36: 1 | EZ36: 1 | FA36: 1 | FB36: 1 | FC36: 1 | FD36: 1 | FE36: 1 | FF36: 1 | FG36: 1 | FH36: 0 | FI36: 0 | FJ36: 1 | FK36: 0 | FL36: 1 | FM36: 1 | FN36: 1 | FO36: 1 | FP36: 1 | FQ36: 1 | FR36: 1 | FS36: 1 | FT36: 1 | FU36: 0 | FV36: 1 | FW36: 0 | FX36: 1 | FY36: 1 | FZ36: 1 | GA36: 1 | GB36: 1 | GC36: 1 | GD36: 1 | GE36: 1 | GF36: 1 | GG36: 1 | GH36: 1 | GI36: 1 | GJ36: 1 | GK36: 1 | GL36: 1 | GM36: 1 | GN36: 0 | GO36: 1 | GP36: 0 | GQ36: 1 | GR36: 0 | GS36: 0 | GT36: 0 | GU36: 1 | GV36: 0 | GW36: 1 | GX36: 1 | GY36: 1 | GZ36: 0 | HA36: 0 | HB36: 0 | HC36: 1 | HD36: 1 | HE36: 1 | HF36: 1 | HG36: 1 | HH36: 1 | HI36: 1 | HJ36: 1 | HK36: 0 | HL36: 0 | HM36: 0 | HN36: 0 | HO36: 1 | HP36: 0 | HQ36: 0 | HR36: 0 | HS36: 1 | HT36: 1 | HU36: 1 | HV36: 1 | HW36: 1 | HX36: 1 | HY36: 0 | HZ36: 1 | IA36: 1 | IB36: 0 | IC36: 0 | ID36: 0 | IE36: 0 | IF36: 1 | IG36: 1 | IH36: 1 | II36: 0 | IJ36: 0 | IK36: 0 | IL36: 0 | IM36: 0 | IN36: 0 | IO36: 0 | IP36: 0 | IQ36: 1 | IR36: 1
